Workbook

Sheet LDC Info
AA3: Algoma Power Inc.
AA4: Atikokan Hydro Inc.
AA5: Attawapiskat Power Corporation
AA6: Bluewater Power Distribution Corp.
AA7: Brant County Power
AA8: Brantford Power Inc.
AA9: Burlington Hydro Inc.
AA10: Cambridge and North Dumfries Hydro
AA11: Canadian Niagara Power Inc. – Eastern Ontario Power/Fort Erie/Port Colborne
AA12: Centre Wellington Hydro Ltd.
N13: Version 1.1 | AA13: Chapleau Public Utilities Corporation
D14: Utility Name | E14: Sioux Lookout Hydro Inc. | AA14: COLLUS Power Corp.
AA15: Cooperative Hydro Embrun Inc.
D16: Service Territory | E16: Municipality of Sioux Lookout | AA16: E.L.K. Energy Inc.
AA17: Enersource Hydro Mississauga Inc.
D18: Assigned EB Number | E18: EB-2012-0165 | AA18: Entegrus Powerlines Inc.
AA19: ENWIN Utilities Ltd.
D20: Name of Contact and Title | E20: Deanne Kulchyski, President/CEO | AA20: Erie Thames Powerlines Corp.
AA21: Espanola Regional Hydro Distribution Corporation
D22: Phone Number | E22: 807-737-3800 | AA22: Essex Powerlines Corporation
AA23: Festival Hydro Inc.
D24: Email Address | E24: dkulchyski@tbaytel.net | AA24: Fort Albany Power Corporation
AA25: Fort Frances Power Corporation
D26: Bridge Year | E26: 2012 | AA26: Greater Sudbury Hydro Inc.
AA27: Grimsby Power Inc.
D28: Test Year | E28: 2013 | AA28: Guelph Hydro Electric Systems Inc.
AA29: Haldimand County Hydro Inc.
D30: Last Rebasing Year | E30: 2008 | AA30: Guelph Hydro Electric Systems Inc.
AA31: Halton Hills Hydro Inc.
B32: Notes | AA32: Hearst Power Distribution Co. Ltd.
AA33: Horizon Utilities Corporation
C34: Pale green cells represent input cells. | AA34: Hydro 2000 Inc.
AA35: Hydro Hawkesbury Inc.
C36: Pale blue cells represent drop-down lists. The applicant should select the appropriate item from the drop-down list. | AA36: Hydro One Brampton Networks Inc.
AA37: Hydro One Networks Inc.
C38: White cells contain fixed values, automatically generated values or formulae. | AA38: Hydro One Remote Communities Inc.
AA39: Hydro Ottawa Limited
AA40: Innisfil Hydro Dist. Systems Limited
AA41: Kashechewan Power Corporation
AA42: Kenora Hydro Electric Corporation Ltd.
AA43: Kingston Hydro Corporation
AA44: Kitchener-Wilmot Hydro Inc.
AA45: Lakefront Utilities Inc.
AA46: Lakeland Power Distribution Ltd.
AA47: London Hydro Inc.
AA48: Midland Power Utility Corporation
AA49: Milton Hydro Distribution Inc.
AA50: Newmarket – Tay Power Distribution Ltd.
AA51: Niagara Peninsula Energy Inc.
AA52: Niagara-on-the-Lake Hydro Inc.
AA53: Norfolk Power Distribution Ltd.
AA54: North Bay Hydro Distribution Limited
AA55: Northern Ontario Wires Inc.
AA56: Oakville Hydro Distribution Inc.
AA57: Orangeville Hydro Limited
AA58: Orillia Power Distribution Corp.
AA59: Oshawa PUC Networks Inc.
AA60: Ottawa River Power Corporation
AA61: Parry Sound Power Corporation
AA62: Peterborough Distribution Inc.
AA63: PowerStream Inc.
AA64: PUC Distribution Inc.
AA65: Renfrew Hydro Inc.
AA66: Rideau St. Lawrence Distribution Inc.
AA67: St. Thomas Energy Inc.
AA68: Sioux Lookout Hydro Inc.
AA69: Thunder Bay Hydro Electricity Distribution
AA70: Tillsonburg Hydro Inc.
AA71: Toronto Hydro-Electric System Limited
AA72: Veridian Connections Inc.
AA73: Wasaga Distribution Inc.
AA74: Waterloo North Hydro Inc.
AA75: Welland Hydro Electric System Corp.
AA76: Wellington North Power Inc.
AA77: West Coast Huron Energy Inc.
AA78: Westario Power Inc.
AA79: Whitby Hydro Electric Corporation
AA80: Woodstock Hydro Services Inc.

Sheet Index
A15: 1 | B15: LDC Information Sheet | E15: 19 | F15: Appendix 2-H OM&A Detailed Analysis
A16: 2 | B16: Index | E16: 20 | F16: Appendix 2-I OM&A Summary Analysis
A17: 3 | B17: Appendix 2-A Capital Projects | E17: 21 | F17: Appendix 2-J OM&A Cost Drivers
A18: 4 | B18: Appendix 2-B Fixed Asset Continuity | E18: 22 | F18: Appendix 2-K Employee Costs
A19: 5 | B19: Appendix 2-CA CGAAP Depreciation Expense 2011 | E19: 23 | F19: Appendix 2-L OM&A per Cust FTEE
A20: 6 | B20: Appendix 2-CB MIFRS Depreciation Expense 2011 | E20: 24 | F20: Appendix 2-M Regulatory Costs
A21: 7 | B21: Appendix 2-CC MIFRS Depreciation Expense 2012 | E21: 25 | F21: Appendix 2-N Corp Cost Allocation
A22: 8 | B22: Appendix 2-CD MIFRS Depreciation Expense 2013 | E22: 26 | F22: Appendix 2-OA Capital Structure and Cost of Capital
A23: 9 | B23: Appendix 2-CE CGAAP Depreciation Expense 2011 | E23: 27 | F23: Appendix 2-OB Debt Instruments
A24: 10 | B24: Appendix 2-CF CGAAP Depreciation Expense 2012 | E24: 28 | F24: Appendix 2-P Cost Allocation
A25: 11 | B25: Appendix 2-CG MIFRS Depreciation Expense 2012 | E25: 29 | F25: Appendix 2-Q Cost of Service Embedded Distributor
A26: 12 | B26: Appendix 2-CH MIFRS Depreciation Expense 2013 | E26: 30 | F26: Appendix 2-R Loss Factors
A27: 13 | B27: Appendix 2-CI Alternative Accounting Standards Depreciation Expense | E27: 31 | F27: Appendix 2-S Stranded Meters
A28: 14 | B28: Appendix 2-D Overhead | E28: 32 | F28: Appendix 2-T 1592 Tax Variance
A29: 15 | B29: Appendix 2-EA PP&E Deferral Account - 2012 IFRS Adopters | E29: 33 | F29: Appendix 2-U IFRS Transition Costs
A30: 16 | B30: Appendix 2-EB PP&E Deferral Account - 2013 IFRS Adopters | E30: 34 | F30: Appendix 2-V Rev Reconciliation
A31: 17 | B31: Appendix 2-F Other Operating Revenue | E31: 35 | F31: Appendix 2-W Bill Impacts
A32: 18 | B32: Appendix 2-G Detailed OM&A Expenses | E32: 36 | F32: Appendix 2-X CoS Flowchart

Sheet App.2-A_Capital Projects
G1: File Number: | H1: ='LDC Info'!$E$18 -> EB-2012-0165
G2: Exhibit: | H2: 2
G3: Tab:
G4: Schedule:
G5: Page:
G7: Date: | H7: 2013-02-22
A9: Appendix 2-A
A10: Capital Projects Table
A13: Projects | B13: =IF(ISBLANK('LDC Info'!E26), "Year 1", 'LDC Info'!E26-5) -> 2007 | C13: =IF(ISBLANK('LDC Info'!E26), "Year 2", 'LDC Info'!E26-4) -> 2008 | D13: =IF(ISBLANK('LDC Info'!E26), "Year 3", 'LDC Info'!E26-3) -> 2009 | E13: =IF(ISBLANK('LDC Info'!E26), "Year 4", 'LDC Info'!E26-2) -> 2010 | F13: =IF(ISBLANK('LDC Info'!E26), "Year 5", 'LDC Info'!E26-1) -> 2011 | G13: ='LDC Info'!E26 & " Bridge Year" -> 2012 Bridge Year | H13: ='LDC Info'!E28 & " Test Year" -> 2013 Test Year
A14: Reporting Basis | B14: CGAAP | C14: CGAAP | D14: CGAAP | E14: CGAAP | F14: CGAAP | G14: CGAAP | H14: CGAAP
A15: Overhead
A16: Airport 3 Phase Extension | B16: 4671.08
A17: Blue Heron Subdivision | D17: 16968
A18: Friesen pole line | F18: 17912.19
A19: General Upgrades | G19: 17231.59 | H19: 7490
A20: Golf Course Subdivision | F20: 1285.91
A21: Government Row Upgrade | B21: 5213.41 | C21: 3046.91
A22: Hostel | B22: 24202.67 | C22: 19126.77 | D22: 325.84
A23: Hwy 72 South | B23: 4877.46 | C23: 18372 | D23: 1845.29 | E23: 61582.45 | F23: 3032.9 | G23: 8259
A24: Meno Ya Win | B24: 1372.65 | C24: 3078 | D24: 2818.22
A25: Moosehorn Rd Voltage Upgrade | F25: 18689.2 | G25: 45288.46
A26: New Connections | B26: 13996.5 | C26: 11707.22 | D26: 15260.2 | E26: 13719.25 | F26: 12906.4 | G26: 49304.14 | H26: 6929
A27: Pole Replacement Program | B27: 125968.5 | C27: 104030 | D27: 134275 | E27: 122818 | F27: 116167 | G27: 11300 | H27: 46922
A28: Sturgeon Road Upgrade | F28: 13769
A30: Sub-Total | B30: =SUM(B16:B29) -> 180302.27 | C30: =SUM(C16:C29) -> 159360.9 | D30: 171492.55 | E30: 198119.7 | F30: 183762.6 | G30: 131383.19 | H30: 61341
A31: Underground
A32: Ameresco
A33: Finway
A34: General Upgrades | H34: 1736
A35: Golf Course Subdivision | E35: 17687.61 | F35: 12920.65
A36: Hostel | C36: 10704.16
A37: Meno Ya Win | D37: 9127.69
A38: Moosehorn Rd Voltage Upgrade | F38: 979.06 | G38: 391.6
A39: New Connections | B39: 52496.01 | C39: 50915.55 | D39: 28794.35 | E39: 29577 | F39: 29299 | G39: 31371 | H39: 20216
A40: Sturgeon River Submarine Cable | H40: 72200
A41: Sub-Total | B41: =SUM(B32:B40) -> 52496.01 | C41: 61619.71 | D41: 37922.04 | E41: 47264.61 | F41: 43198.71 | G41: 31762.6 | H41: 94152
A42: Transformers
A43: Airport Transformer Replacement | F43: 15090
A44: Golf Course Subdivision | E44: 10079.14
A45: Hostel | B45: 17832.96 | C45: 1523
A46: Hwy 72 South | E46: 20155
A47: New Connections | B47: 42302.31 | C47: 133674.11 | D47: 6590.35 | E47: 48714 | F47: 36960 | G47: 19919.5 | H47: 29613
A48: Spare Transformer | G48: 17215
A49: Upgrades/Replacements | G49: 9813.3 | H49: 30154
A51: Sub-Total | B51: =SUM(B43:B50) -> 60135.27 | C51: =SUM(C43:C50) -> 135197.11 | D51: 6590.35 | E51: 78948.14 | F51: 52050 | G51: 46947.8 | H51: 59767
A52: Meters
A53: Hostel | D53: 2051.89
A54: Meno Ya Win | D54: 35019.37
A55: MNR Central Metering | E55: 50667.96 | F55: 3109
A56: New Connections | B56: 2014.44 | C56: 2047 | E56: 6539 | F56: 3369 | G56: 7381 | H56: 1680
A57: Smart Meters for GS > 50 kW | D57: 58864.74
A60: Sub-Total | B60: =SUM(B52:B59) -> 2014.44 | C60: =SUM(C52:C59) -> 2047 | D60: 95936 | E60: 57206.96 | F60: 6478 | G60: 7381 | H60: 1680
A61: Vehicles
A62: 2008 Ford F-S/Duty | C62: 68430
A63: 2010 Chev | D63: 31183
A64: Line Truck Betterment | G64: 89116
A67: Sub-Total | B67: =SUM(B62:B66) -> 0 | C67: 68430 | D67: 31183 | E67: 0 | F67: 0 | G67: 89116 | H67: 0
A68: Power Operated Equipment
A69: Backhoe | H69: 86000
A70: Nodwell Trailer | E70: 23400
A74: Sub-Total | B74: =SUM(B69:B73) -> 0 | C74: 0 | D74: 0 | E74: 23400 | F74: 0 | G74: 0 | H74: 86000
A75: Computer Hardware/Software
A76: Asset Management Software | D76: 21865
A77: Mapping Software | F77: 22500
A78: Security System | G78: 5381
A81: Sub-Total | B81: =SUM(B76:B80) -> 0 | C81: 0 | D81: 21865 | E81: 0 | F81: 22500 | G81: 5381 | H81: 0
A82: Miscellaneous | B82: 17063.89 | C82: 16981 | D82: 21768.1 | E82: 5526 | F82: 9740 | G82: 22720 | H82: 17000
A84: Contributed Capital | B84: -50140.97 | C84: -83680 | D84: -96209 | E84: -112799 | F84: -73975 | G84: -92000 | H84: -92000
A85: Total | B85: =SUMPRODUCT(--($A30:$A82="Sub-Total"), B$30:B$82)+B82+B84 -> 261870.91 | C85: 359955.72 | D85: 290548.04 | E85: 297666.41 | F85: 243754.31 | G85: 242691.59 | H85: 227940
A88: Notes:
A90: 1 Please provide a breakdown of the major components of each capital project. Please ensure that all projects below the materiality threshold are included in the miscellaneous line. Add more projects as required.
A92: 2 Amounts should be reported on a MIFRS basis for the adoption year and any subsequent years, only.

Sheet App.2-B_FA Cont 2008 CGAAP
M1: File Number: | N1: ='LDC Info'!$E$18 -> EB-2012-0165
M2: Exhibit: | N2: 2
M3: Tab: | N3: 2
M4: Schedule: | N4: 1
M5: Page:
M7: Date: | N7: 2013-02-22
A9: Appendix 2-B
A10: Fixed Asset Continuity Schedule
F12: Year | G12: 2008
E14: Cost | K14: Accumulated Depreciation
A15: CCA Class | B15: OEB | C15: Description | D15: Depreciation Rate | E15: Opening Balance | F15: Additions | G15: Disposals | H15: Closing Balance | J15: Opening Balance | K15: Additions | L15: Disposals | M15: Closing Balance | N15: Net Book Value
A16: 12 | B16: 1611 | C16: Computer Software (Formally known as Account 1925) | E16: 2090 | F16: 2160 | H16: =E16+F16+G16 -> 4250 | J16: 418 | K16: 850 | M16: =J16+K16+L16 -> 1268 | N16: =H16-M16 -> 2982
A17: CEC | B17: 1612 | C17: Land Rights (Formally known as Account 1906) | H17: =E17+F17+G17 -> 0 | M17: =J17+K17+L17 -> 0 | N17: =H17-M17 -> 0
A18: N/A | B18: 1805 | C18: Land | H18: =E18+F18+G18 -> 0 | M18: =J18+K18+L18 -> 0 | N18: 0
A19: 47 | B19: 1808 | C19: Buildings | E19: 91864 | H19: =E19+F19+G19 -> 91864 | J19: 26324 | K19: 3675 | M19: =J19+K19+L19 -> 29999 | N19: 61865
A20: 13 | B20: 1810 | C20: Leasehold Improvements | H20: 0 | M20: 0 | N20: 0
A21: 47 | B21: 1815 | C21: Transformer Station Equipment >50 kV | H21: 0 | M21: 0 | N21: 0
A22: 47 | B22: 1820 | C22: Distribution Station Equipment <50 kV | H22: 0 | M22: 0 | N22: 0
A23: 47 | B23: 1825 | C23: Storage Battery Equipment | H23: 0 | M23: 0 | N23: 0
A24: 47 | B24: 1830 | C24: Poles, Towers & Fixtures | E24: 2779548 | F24: 157373 | H24: 2936921 | J24: 673135 | K24: 117477 | M24: 790612 | N24: 2146309
A25: 47 | B25: 1835 | C25: Overhead Conductors & Devices | E25: 1079172 | H25: 1079172 | J25: 302157 | K25: 43167 | M25: 345324 | N25: 733848
A26: 47 | B26: 1840 | C26: Underground Conduit | E26: 155512 | F26: 7589 | H26: 163101 | J26: 41322 | K26: 6524 | M26: 47846 | N26: 115255
A27: 47 | B27: 1845 | C27: Underground Conductors & Devices | E27: 716556 | F27: 54030 | H27: 770586 | J27: 173573 | K27: 30823 | M27: 204396 | N27: 566190
A28: 47 | B28: 1850 | C28: Line Transformers | E28: 1336479 | F28: 133674 | H28: 1470153 | J28: 343426 | K28: 58806 | M28: 402232 | N28: 1067921
A29: 47 | B29: 1855 | C29: Services (Overhead & Underground) | H29: 0 | M29: 0 | N29: 0
A30: 47 | B30: 1860 | C30: Meters | E30: 318716 | F30: 2047 | G30: -415 | H30: 320348 | J30: 73674 | K30: 13566 | L30: -166 | M30: 87074 | N30: 233274
A31: 47 | B31: 1860 | C31: Meters (Smart Meters) | H31: 0 | M31: 0 | N31: 0
A32: N/A | B32: 1905 | C32: Land | H32: 0 | M32: 0 | N32: 0
A33: 47 | B33: 1908 | C33: Buildings & Fixtures | H33: 0 | M33: 0 | N33: 0
A34: 13 | B34: 1910 | C34: Leasehold Improvements | H34: 0 | M34: 0 | N34: 0
A35: 8 | B35: 1915 | C35: Office Furniture & Equipment (10 years) | E35: 7801 | F35: 1652 | G35: -734 | H35: 8719 | J35: 4294 | K35: 906 | L35: -587 | M35: 4613 | N35: 4106
A36: 8 | B36: 1915 | C36: Office Furniture & Equipment (5 years) | H36: 0 | M36: 0 | N36: 0
A37: 10 | B37: 1920 | C37: Computer Equipment - Hardware | H37: 0 | M37: 0 | N37: 0
A38: 45 | B38: 1920 | C38: Computer Equip.-Hardware(Post Mar. 22/04) | E38: 11997 | F38: 1753 | H38: 13750 | J38: 10727 | K38: 1324 | M38: 12051 | N38: 1699
A39: 45.1 | B39: 1920 | C39: Computer Equip.-Hardware(Post Mar. 19/07) | H39: 0 | M39: 0 | N39: 0
A40: 10 | B40: 1930 | C40: Transportation Equipment(8 years) | E40: 306152 | F40: 68430 | G40: -27036 | H40: 347546 | J40: 214172.58 | K40: 42482 | L40: -25346 | M40: 231308.58 | N40: 116237.42
A41: 10 | B41: 1930 | C41: Transportation Equipment(5 years) | E41: 59134 | H41: 59134 | J41: 32440.91 | K41: 11827 | M41: 44267.91 | N41: 14866.09
A42: 8 | B42: 1940 | C42: Tools, Shop & Garage Equipment | E42: 52484 | F42: 6177 | H42: 58661 | J42: 29138 | K42: 5866 | M42: 35004 | N42: 23657
A43: 8 | B43: 1945 | C43: Measurement & Testing Equipment | E43: 12188 | F43: 873 | H43: 13061 | J43: 4475 | K43: 1306 | M43: 5781 | N43: 7280
A44: 8 | B44: 1950 | C44: Power Operated Equipment | E44: 108187 | F44: 1690 | G44: -1690 | H44: 108187 | J44: 94656 | K44: 5171 | M44: 99827 | N44: 8360
A45: 8 | B45: 1955 | C45: Communications Equipment | E45: 33911 | F45: 1268 | H45: 35179 | J45: 17688 | K45: 3678 | M45: 21366 | N45: 13813
A46: 8 | B46: 1955 | C46: Communication Equipment (Smart Meters) | H46: 0 | M46: 0 | N46: 0
A47: 8 | B47: 1960 | C47: Miscellaneous Equipment | H47: 0 | M47: 0 | N47: 0
A48: 47 | B48: 1975 | C48: Load Management Controls Utility Premises | H48: 0 | M48: 0 | N48: 0
A49: 47 | B49: 1980 | C49: System Supervisor Equipment | H49: 0 | M49: 0 | N49: 0
A50: 47 | B50: 1985 | C50: Miscellaneous Fixed Assets | E50: 21876 | F50: 1408 | H50: 23284 | J50: 12266 | K50: 2328 | M50: 14594 | N50: 8690
A51: 47 | B51: 1995 | C51: Contributions & Grants | E51: -524528 | F51: -83680 | H51: -608208 | J51: -89251 | K51: -24328 | M51: -113579 | N51: -494629
A52: WIP | C52: Work In Progress | F52: 3512 | H52: 3512 | M52: 0 | N52: 3512
C54: Total | E54: =SUM(E16:E53) -> 6569139 | F54: =SUM(F16:F53) -> 359956 | G54: -29875 | H54: 6899220 | J54: =SUM(J16:J53) -> 1964635.49 | K54: =SUM(K16:K53) -> 325448 | L54: -26099 | M54: 2263984.49 | N54: =SUM(N16:N53)-SUM(N50) -> 4626545.51
J56: Less: Fully Allocated Depreciation
A57: 10 | C57: Transportation | J57: Transportation | L57: =SUM(K40+K44) -> 47653
A58: 8 | C58: Stores Equipment | J58: Tools/Sentinel Lights | L58: =SUM(K42+K43+K45+K50) -> 13178
J59: Net Depreciation | L59: =K54-L57-L58 -> 264617
A61: Notes:
A63: 1 | B63: Tables in the format outlined above covering all fixed asset accounts should be submitted for the Test Year, Bridge Year and all relevant historical years. At a minimum , the applicant must provide data for the earlier of: 1) all historical years back to its last rebasing; or 2) at least three years of historical actuals, in addition to Bridge Year and Test Year forecasts.
A66: 2 | B66: The "CCA Class" for fixed assets should agree with the CCA Class used for tax purposes in Tax Returns. Fixed Assets sub-components may be used where the underlying asset components are classified under multiple CCA Classes for tax purposes. If an applicant uses any different classes from those shown in the table, an explanation should be provided. (also see note 3 below).
A69: 3 | B69: The table may need to be customized for a utility's asset categories or for any new asset accounts announced or authorized by the Board.
A71: 4 | B71: The depreciation column (D) is not required as the relevant information will be provided in the following 2-C series of appendices.

Sheet App.2-B_FA Cont 2009 CGAAP
M1: File Number: | N1: ='LDC Info'!$E$18 -> EB-2012-0165
M2: Exhibit: | N2: 2
M3: Tab: | N3: 2
M4: Schedule: | N4: 1
M5: Page:
M7: Date: | N7: 2013-02-22
A9: Appendix 2-B
A10: Fixed Asset Continuity Schedule
F12: Year | G12: 2009
E14: Cost | K14: Accumulated Depreciation
A15: CCA Class | B15: OEB | C15: Description | D15: Depreciation Rate | E15: Opening Balance | F15: Additions | G15: Disposals | H15: Closing Balance | J15: Opening Balance | K15: Additions | L15: Disposals | M15: Closing Balance | N15: Net Book Value
A16: 12 | B16: 1611 | C16: Computer Software (Formally known as Account 1925) | E16: ='App.2-B_FA Cont 2008 CGAAP'!H16 -> 4250 | H16: =E16+F16+G16 -> 4250 | J16: ='App.2-B_FA Cont 2008 CGAAP'!M16 -> 1268 | K16: 850 | M16: =J16+K16+L16 -> 2118 | N16: =H16-M16 -> 2132
A17: CEC | B17: 1612 | C17: Land Rights (Formally known as Account 1906) | E17: ='App.2-B_FA Cont 2008 CGAAP'!H17 -> 0 | H17: =E17+F17+G17 -> 0 | J17: ='App.2-B_FA Cont 2008 CGAAP'!M17 -> 0 | M17: =J17+K17+L17 -> 0 | N17: =H17-M17 -> 0
A18: N/A | B18: 1805 | C18: Land | E18: ='App.2-B_FA Cont 2008 CGAAP'!H18 -> 0 | H18: =E18+F18+G18 -> 0 | J18: ='App.2-B_FA Cont 2008 CGAAP'!M18 -> 0 | M18: =J18+K18+L18 -> 0 | N18: 0
A19: 47 | B19: 1808 | C19: Buildings | E19: ='App.2-B_FA Cont 2008 CGAAP'!H19 -> 91864 | H19: =E19+F19+G19 -> 91864 | J19: ='App.2-B_FA Cont 2008 CGAAP'!M19 -> 29999 | K19: 3675 | M19: =J19+K19+L19 -> 33674 | N19: 58190
A20: 13 | B20: 1810 | C20: Leasehold Improvements | E20: ='App.2-B_FA Cont 2008 CGAAP'!H20 -> 0 | H20: 0 | J20: ='App.2-B_FA Cont 2008 CGAAP'!M20 -> 0 | M20: 0 | N20: 0
A21: 47 | B21: 1815 | C21: Transformer Station Equipment >50 kV | E21: ='App.2-B_FA Cont 2008 CGAAP'!H21 -> 0 | H21: 0 | J21: ='App.2-B_FA Cont 2008 CGAAP'!M21 -> 0 | M21: 0 | N21: 0
A22: 47 | B22: 1820 | C22: Distribution Station Equipment <50 kV | E22: ='App.2-B_FA Cont 2008 CGAAP'!H22 -> 0 | H22: 0 | J22: ='App.2-B_FA Cont 2008 CGAAP'!M22 -> 0 | M22: 0 | N22: 0
A23: 47 | B23: 1825 | C23: Storage Battery Equipment | E23: ='App.2-B_FA Cont 2008 CGAAP'!H23 -> 0 | H23: 0 | J23: ='App.2-B_FA Cont 2008 CGAAP'!M23 -> 0 | M23: 0 | N23: 0
A24: 47 | B24: 1830 | C24: Poles, Towers & Fixtures | E24: ='App.2-B_FA Cont 2008 CGAAP'!H24 -> 2936921 | F24: 172714 | H24: 3109635 | J24: ='App.2-B_FA Cont 2008 CGAAP'!M24 -> 790612 | K24: 124385 | M24: 914997 | N24: 2194638
A25: 47 | B25: 1835 | C25: Overhead Conductors & Devices | E25: ='App.2-B_FA Cont 2008 CGAAP'!H25 -> 1079172 | H25: 1079172 | J25: ='App.2-B_FA Cont 2008 CGAAP'!M25 -> 345324 | K25: 43167 | M25: 388491 | N25: 690681
A26: 47 | B26: 1840 | C26: Underground Conduit | E26: ='App.2-B_FA Cont 2008 CGAAP'!H26 -> 163101 | F26: 2608 | H26: 165709 | J26: ='App.2-B_FA Cont 2008 CGAAP'!M26 -> 47846 | K26: 6628 | M26: 54474 | N26: 111235
A27: 47 | B27: 1845 | C27: Underground Conductors & Devices | E27: ='App.2-B_FA Cont 2008 CGAAP'!H27 -> 770586 | F27: 35314 | H27: 805900 | J27: ='App.2-B_FA Cont 2008 CGAAP'!M27 -> 204396 | K27: 32236 | M27: 236632 | N27: 569268
A28: 47 | B28: 1850 | C28: Line Transformers | E28: ='App.2-B_FA Cont 2008 CGAAP'!H28 -> 1470153 | F28: 6590 | H28: 1476743 | J28: ='App.2-B_FA Cont 2008 CGAAP'!M28 -> 402232 | K28: 59070 | M28: 461302 | N28: 1015441
A29: 47 | B29: 1855 | C29: Services (Overhead & Underground) | E29: ='App.2-B_FA Cont 2008 CGAAP'!H29 -> 0 | H29: 0 | J29: ='App.2-B_FA Cont 2008 CGAAP'!M29 -> 0 | M29: 0 | N29: 0
A30: 47 | B30: 1860 | C30: Meters | E30: ='App.2-B_FA Cont 2008 CGAAP'!H30 -> 320348 | F30: 95936 | G30: -25887 | H30: 390397 | J30: ='App.2-B_FA Cont 2008 CGAAP'!M30 -> 87074 | K30: 17403 | L30: -9539 | M30: 94938 | N30: 295459
A31: 47 | B31: 1860 | C31: Meters (Smart Meters) | E31: ='App.2-B_FA Cont 2008 CGAAP'!H31 -> 0 | H31: 0 | J31: ='App.2-B_FA Cont 2008 CGAAP'!M31 -> 0 | M31: 0 | N31: 0
A32: N/A | B32: 1905 | C32: Land | E32: ='App.2-B_FA Cont 2008 CGAAP'!H32 -> 0 | H32: 0 | J32: ='App.2-B_FA Cont 2008 CGAAP'!M32 -> 0 | M32: 0 | N32: 0
A33: 47 | B33: 1908 | C33: Buildings & Fixtures | E33: ='App.2-B_FA Cont 2008 CGAAP'!H33 -> 0 | H33: 0 | J33: ='App.2-B_FA Cont 2008 CGAAP'!M33 -> 0 | M33: 0 | N33: 0
A34: 13 | B34: 1910 | C34: Leasehold Improvements | E34: ='App.2-B_FA Cont 2008 CGAAP'!H34 -> 0 | H34: 0 | J34: ='App.2-B_FA Cont 2008 CGAAP'!M34 -> 0 | M34: 0 | N34: 0
A35: 8 | B35: 1915 | C35: Office Furniture & Equipment (10 years) | E35: ='App.2-B_FA Cont 2008 CGAAP'!H35 -> 8719 | F35: 4659 | H35: 13378 | J35: ='App.2-B_FA Cont 2008 CGAAP'!M35 -> 4613 | K35: 1293 | M35: 5906 | N35: 7472
A36: 8 | B36: 1915 | C36: Office Furniture & Equipment (5 years) | E36: ='App.2-B_FA Cont 2008 CGAAP'!H36 -> 0 | H36: 0 | J36: ='App.2-B_FA Cont 2008 CGAAP'!M36 -> 0 | M36: 0 | N36: 0
A37: 10 | B37: 1920 | C37: Computer Equipment - Hardware | E37: ='App.2-B_FA Cont 2008 CGAAP'!H37 -> 0 | H37: 0 | J37: ='App.2-B_FA Cont 2008 CGAAP'!M37 -> 0 | M37: 0 | N37: 0
A38: 45 | B38: 1920 | C38: Computer Equip.-Hardware(Post Mar. 22/04) | E38: ='App.2-B_FA Cont 2008 CGAAP'!H38 -> 13750 | F38: 25810 | H38: 39560 | J38: ='App.2-B_FA Cont 2008 CGAAP'!M38 -> 12051 | K38: 6016 | M38: 18067 | N38: 21493
A39: 45.1 | B39: 1920 | C39: Computer Equip.-Hardware(Post Mar. 19/07) | E39: ='App.2-B_FA Cont 2008 CGAAP'!H39 -> 0 | H39: 0 | J39: ='App.2-B_FA Cont 2008 CGAAP'!M39 -> 0 | M39: 0 | N39: 0
A40: 10 | B40: 1930 | C40: Transportation Equipment(8 years) | E40: ='App.2-B_FA Cont 2008 CGAAP'!H40 -> 347546 | H40: 347546 | J40: ='App.2-B_FA Cont 2008 CGAAP'!M40 -> 231308.58 | K40: 39068 | M40: 270376.58 | N40: 77169.42
A41: 10 | B41: 1930 | C41: Transportation Equipment(5 years) | E41: ='App.2-B_FA Cont 2008 CGAAP'!H41 -> 59134 | F41: 31183 | H41: 90317 | J41: ='App.2-B_FA Cont 2008 CGAAP'!M41 -> 44267.91 | K41: 9062 | M41: 53329.91 | N41: 36987.09
A42: 8 | B42: 1940 | C42: Tools, Shop & Garage Equipment | E42: ='App.2-B_FA Cont 2008 CGAAP'!H42 -> 58661 | F42: 4984 | H42: 63645 | J42: ='App.2-B_FA Cont 2008 CGAAP'!M42 -> 35004 | K42: 6364 | M42: 41368 | N42: 22277
A43: 8 | B43: 1945 | C43: Measurement & Testing Equipment | E43: ='App.2-B_FA Cont 2008 CGAAP'!H43 -> 13061 | G43: -367 | H43: 12694 | J43: ='App.2-B_FA Cont 2008 CGAAP'!M43 -> 5781 | K43: 1267 | L43: -39 | M43: 7009 | N43: 5685
A44: 8 | B44: 1950 | C44: Power Operated Equipment | E44: ='App.2-B_FA Cont 2008 CGAAP'!H44 -> 108187 | F44: 4215 | H44: 112402 | J44: ='App.2-B_FA Cont 2008 CGAAP'!M44 -> 99827 | K44: 5241 | M44: 105068 | N44: 7334
A45: 8 | B45: 1955 | C45: Communications Equipment | E45: ='App.2-B_FA Cont 2008 CGAAP'!H45 -> 35179 | F45: 2155 | H45: 37334 | J45: ='App.2-B_FA Cont 2008 CGAAP'!M45 -> 21366 | K45: 3894 | M45: 25260 | N45: 12074
A46: 8 | B46: 1955 | C46: Communication Equipment (Smart Meters) | E46: ='App.2-B_FA Cont 2008 CGAAP'!H46 -> 0 | H46: 0 | J46: ='App.2-B_FA Cont 2008 CGAAP'!M46 -> 0 | M46: 0 | N46: 0
A47: 8 | B47: 1960 | C47: Miscellaneous Equipment | E47: ='App.2-B_FA Cont 2008 CGAAP'!H47 -> 0 | H47: 0 | J47: ='App.2-B_FA Cont 2008 CGAAP'!M47 -> 0 | M47: 0 | N47: 0
A48: 47 | B48: 1975 | C48: Load Management Controls Utility Premises | E48: ='App.2-B_FA Cont 2008 CGAAP'!H48 -> 0 | H48: 0 | J48: ='App.2-B_FA Cont 2008 CGAAP'!M48 -> 0 | M48: 0 | N48: 0
A49: 47 | B49: 1980 | C49: System Supervisor Equipment | E49: ='App.2-B_FA Cont 2008 CGAAP'!H49 -> 0 | H49: 0 | J49: ='App.2-B_FA Cont 2008 CGAAP'!M49 -> 0 | M49: 0 | N49: 0
A50: 47 | B50: 1985 | C50: Miscellaneous Fixed Assets | E50: ='App.2-B_FA Cont 2008 CGAAP'!H50 -> 23284 | F50: 1810 | H50: 25094 | J50: ='App.2-B_FA Cont 2008 CGAAP'!M50 -> 14594 | K50: 2509 | M50: 17103 | N50: 7991
A51: 47 | B51: 1995 | C51: Contributions & Grants | E51: ='App.2-B_FA Cont 2008 CGAAP'!H51 -> -608208 | F51: -96209 | H51: -704417 | J51: ='App.2-B_FA Cont 2008 CGAAP'!M51 -> -113579 | K51: -28177 | M51: -141756 | N51: -562661
A52: WIP | C52: Work In Progress | E52: ='App.2-B_FA Cont 2008 CGAAP'!H52 -> 3512 | F52: -1221 | H52: 2291 | J52: ='App.2-B_FA Cont 2008 CGAAP'!M52 -> 0 | M52: 0 | N52: 2291
C54: Total | E54: =SUM(E16:E53) -> 6899220 | F54: =SUM(F16:F53) -> 290548 | G54: -26254 | H54: 7163514 | J54: =SUM(J16:J53) -> 2263984.49 | K54: =SUM(K16:K53) -> 333951 | L54: -9578 | M54: 2588357.49 | N54: =SUM(N16:N53)-SUM(N50) -> 4567165.51
J56: Less: Fully Allocated Depreciation
A57: 10 | C57: Transportation | J57: Transportation | L57: =SUM(K40+K44) -> 44309
A58: 8 | C58: Stores Equipment | J58: Tools/Sentinel Lights | L58: =SUM(K42+K43+K45+K50) -> 14034
J59: Net Depreciation | L59: =K54-L57-L58 -> 275608
A61: Notes:
A63: 1 | B63: Tables in the format outlined above covering all fixed asset accounts should be submitted for the Test Year, Bridge Year and all relevant historical years. At a minimum , the applicant must provide data for the earlier of: 1) all historical years back to its last rebasing; or 2) at least three years of historical actuals, in addition to Bridge Year and Test Year forecasts.
A66: 2 | B66: The "CCA Class" for fixed assets should agree with the CCA Class used for tax purposes in Tax Returns. Fixed Assets sub-components may be used where the underlying asset components are classified under multiple CCA Classes for tax purposes. If an applicant uses any different classes from those shown in the table, an explanation should be provided. (also see note 3 below).
A69: 3 | B69: The table may need to be customized for a utility's asset categories or for any new asset accounts announced or authorized by the Board.
A71: 4 | B71: The depreciation column (D) is not required as the relevant information will be provided in the following 2-C series of appendices.

Sheet App.2-B_FA Cont 2010 CGAAP
M1: File Number: | N1: ='LDC Info'!$E$18 -> EB-2012-0165
M2: Exhibit: | N2: 2
M3: Tab: | N3: 2
M4: Schedule: | N4: 1
M5: Page:
M7: Date: | N7: 2013-02-22
A9: Appendix 2-B
A10: Fixed Asset Continuity Schedule
F12: Year | G12: 2010
E14: Cost | K14: Accumulated Depreciation
A15: CCA Class | B15: OEB | C15: Description | D15: Depreciation Rate | E15: Opening Balance | F15: Additions | G15: Disposals | H15: Closing Balance | J15: Opening Balance | K15: Additions | L15: Disposals | M15: Closing Balance | N15: Net Book Value
A16: 12 | B16: 1611 | C16: Computer Software (Formally known as Account 1925) | E16: ='App.2-B_FA Cont 2009 CGAAP'!H16 -> 4250 | F16: 2295 | H16: =E16+F16+G16 -> 6545 | J16: ='App.2-B_FA Cont 2009 CGAAP'!M16 -> 2118 | K16: 1003 | M16: =J16+K16+L16 -> 3121 | N16: =H16-M16 -> 3424
A17: CEC | B17: 1612 | C17: Land Rights (Formally known as Account 1906) | E17: ='App.2-B_FA Cont 2009 CGAAP'!H17 -> 0 | H17: =E17+F17+G17 -> 0 | J17: ='App.2-B_FA Cont 2009 CGAAP'!M17 -> 0 | M17: =J17+K17+L17 -> 0 | N17: =H17-M17 -> 0
A18: N/A | B18: 1805 | C18: Land | E18: ='App.2-B_FA Cont 2009 CGAAP'!H18 -> 0 | H18: =E18+F18+G18 -> 0 | J18: ='App.2-B_FA Cont 2009 CGAAP'!M18 -> 0 | M18: =J18+K18+L18 -> 0 | N18: 0
A19: 47 | B19: 1808 | C19: Buildings | E19: ='App.2-B_FA Cont 2009 CGAAP'!H19 -> 91864 | H19: =E19+F19+G19 -> 91864 | J19: ='App.2-B_FA Cont 2009 CGAAP'!M19 -> 33674 | K19: 3675 | M19: =J19+K19+L19 -> 37349 | N19: 54515
A20: 13 | B20: 1810 | C20: Leasehold Improvements | E20: ='App.2-B_FA Cont 2009 CGAAP'!H20 -> 0 | H20: 0 | J20: ='App.2-B_FA Cont 2009 CGAAP'!M20 -> 0 | M20: 0 | N20: 0
A21: 47 | B21: 1815 | C21: Transformer Station Equipment >50 kV | E21: ='App.2-B_FA Cont 2009 CGAAP'!H21 -> 0 | H21: 0 | J21: ='App.2-B_FA Cont 2009 CGAAP'!M21 -> 0 | M21: 0 | N21: 0
A22: 47 | B22: 1820 | C22: Distribution Station Equipment <50 kV | E22: ='App.2-B_FA Cont 2009 CGAAP'!H22 -> 0 | H22: 0 | J22: ='App.2-B_FA Cont 2009 CGAAP'!M22 -> 0 | M22: 0 | N22: 0
A23: 47 | B23: 1825 | C23: Storage Battery Equipment | E23: ='App.2-B_FA Cont 2009 CGAAP'!H23 -> 0 | H23: 0 | J23: ='App.2-B_FA Cont 2009 CGAAP'!M23 -> 0 | M23: 0 | N23: 0
A24: 47 | B24: 1830 | C24: Poles, Towers & Fixtures | E24: ='App.2-B_FA Cont 2009 CGAAP'!H24 -> 3109635 | F24: 198775 | H24: 3308410 | J24: ='App.2-B_FA Cont 2009 CGAAP'!M24 -> 914997 | K24: 132336 | M24: 1047333 | N24: 2261077
A25: 47 | B25: 1835 | C25: Overhead Conductors & Devices | E25: ='App.2-B_FA Cont 2009 CGAAP'!H25 -> 1079172 | F25: 810 | H25: 1079982 | J25: ='App.2-B_FA Cont 2009 CGAAP'!M25 -> 388491 | K25: 43199 | M25: 431690 | N25: 648292
A26: 47 | B26: 1840 | C26: Underground Conduit | E26: ='App.2-B_FA Cont 2009 CGAAP'!H26 -> 165709 | F26: 1739 | H26: 167448 | J26: ='App.2-B_FA Cont 2009 CGAAP'!M26 -> 54474 | K26: 6698 | M26: 61172 | N26: 106276
A27: 47 | B27: 1845 | C27: Underground Conductors & Devices | E27: ='App.2-B_FA Cont 2009 CGAAP'!H27 -> 805900 | F27: 27838 | H27: 833738 | J27: ='App.2-B_FA Cont 2009 CGAAP'!M27 -> 236632 | K27: 33350 | M27: 269982 | N27: 563756
A28: 47 | B28: 1850 | C28: Line Transformers | E28: ='App.2-B_FA Cont 2009 CGAAP'!H28 -> 1476743 | F28: 68869 | H28: 1545612 | J28: ='App.2-B_FA Cont 2009 CGAAP'!M28 -> 461302 | K28: 61824 | M28: 523126 | N28: 1022486
A29: 47 | B29: 1855 | C29: Services (Overhead & Underground) | E29: ='App.2-B_FA Cont 2009 CGAAP'!H29 -> 0 | H29: 0 | J29: ='App.2-B_FA Cont 2009 CGAAP'!M29 -> 0 | M29: 0 | N29: 0
A30: 47 | B30: 1860 | C30: Meters | E30: ='App.2-B_FA Cont 2009 CGAAP'!H30 -> 390397 | F30: 57207 | H30: 447604 | J30: ='App.2-B_FA Cont 2009 CGAAP'!M30 -> 94938 | K30: 19692 | M30: 114630 | N30: 332974
A31: 47 | B31: 1860 | C31: Meters (Smart Meters) | E31: ='App.2-B_FA Cont 2009 CGAAP'!H31 -> 0 | H31: 0 | J31: ='App.2-B_FA Cont 2009 CGAAP'!M31 -> 0 | M31: 0 | N31: 0
A32: N/A | B32: 1905 | C32: Land | E32: ='App.2-B_FA Cont 2009 CGAAP'!H32 -> 0 | H32: 0 | J32: ='App.2-B_FA Cont 2009 CGAAP'!M32 -> 0 | M32: 0 | N32: 0
A33: 47 | B33: 1908 | C33: Buildings & Fixtures | E33: ='App.2-B_FA Cont 2009 CGAAP'!H33 -> 0 | H33: 0 | J33: ='App.2-B_FA Cont 2009 CGAAP'!M33 -> 0 | M33: 0 | N33: 0
A34: 13 | B34: 1910 | C34: Leasehold Improvements | E34: ='App.2-B_FA Cont 2009 CGAAP'!H34 -> 0 | H34: 0 | J34: ='App.2-B_FA Cont 2009 CGAAP'!M34 -> 0 | M34: 0 | N34: 0
A35: 8 | B35: 1915 | C35: Office Furniture & Equipment (10 years) | E35: ='App.2-B_FA Cont 2009 CGAAP'!H35 -> 13378 | F35: 356 | H35: 13734 | J35: ='App.2-B_FA Cont 2009 CGAAP'!M35 -> 5906 | K35: 1266 | M35: 7172 | N35: 6562
A36: 8 | B36: 1915 | C36: Office Furniture & Equipment (5 years) | E36: ='App.2-B_FA Cont 2009 CGAAP'!H36 -> 0 | H36: 0 | J36: ='App.2-B_FA Cont 2009 CGAAP'!M36 -> 0 | M36: 0 | N36: 0
A37: 10 | B37: 1920 | C37: Computer Equipment - Hardware | E37: ='App.2-B_FA Cont 2009 CGAAP'!H37 -> 0 | H37: 0 | J37: ='App.2-B_FA Cont 2009 CGAAP'!M37 -> 0 | M37: 0 | N37: 0
A38: 45 | B38: 1920 | C38: Computer Equip.-Hardware(Post Mar. 22/04) | E38: ='App.2-B_FA Cont 2009 CGAAP'!H38 -> 39560 | F38: 320 | G38: -556 | H38: 39324 | J38: ='App.2-B_FA Cont 2009 CGAAP'!M38 -> 18067 | K38: 5740 | L38: -556 | M38: 23251 | N38: 16073
A39: 45.1 | B39: 1920 | C39: Computer Equip.-Hardware(Post Mar. 19/07) | E39: ='App.2-B_FA Cont 2009 CGAAP'!H39 -> 0 | H39: 0 | J39: ='App.2-B_FA Cont 2009 CGAAP'!M39 -> 0 | M39: 0 | N39: 0
A40: 10 | B40: 1930 | C40: Transportation Equipment(8 years) | E40: ='App.2-B_FA Cont 2009 CGAAP'!H40 -> 347546 | H40: 347546 | J40: ='App.2-B_FA Cont 2009 CGAAP'!M40 -> 270376.58 | K40: 33688 | M40: 304064.58 | N40: 43481.42
A41: 10 | B41: 1930 | C41: Transportation Equipment(5 years) | E41: ='App.2-B_FA Cont 2009 CGAAP'!H41 -> 90317 | H41: 90317 | J41: ='App.2-B_FA Cont 2009 CGAAP'!M41 -> 53329.91 | K41: 12561 | M41: 65890.91 | N41: 24426.09
A42: 8 | B42: 1940 | C42: Tools, Shop & Garage Equipment | E42: ='App.2-B_FA Cont 2009 CGAAP'!H42 -> 63645 | F42: 1130 | H42: 64775 | J42: ='App.2-B_FA Cont 2009 CGAAP'!M42 -> 41368 | K42: 6300 | M42: 47668 | N42: 17107
A43: 8 | B43: 1945 | C43: Measurement & Testing Equipment | E43: ='App.2-B_FA Cont 2009 CGAAP'!H43 -> 12694 | H43: 12694 | J43: ='App.2-B_FA Cont 2009 CGAAP'!M43 -> 7009 | K43: 1267 | M43: 8276 | N43: 4418
A44: 8 | B44: 1950 | C44: Power Operated Equipment | E44: ='App.2-B_FA Cont 2009 CGAAP'!H44 -> 112402 | F44: 23400 | H44: 135802 | J44: ='App.2-B_FA Cont 2009 CGAAP'!M44 -> 105068 | K44: 4267 | M44: 109335 | N44: 26467
A45: 8 | B45: 1955 | C45: Communications Equipment | E45: ='App.2-B_FA Cont 2009 CGAAP'!H45 -> 37334 | H45: 37334 | J45: ='App.2-B_FA Cont 2009 CGAAP'!M45 -> 25260 | K45: 3519 | M45: 28779 | N45: 8555
A46: 8 | B46: 1955 | C46: Communication Equipment (Smart Meters) | E46: ='App.2-B_FA Cont 2009 CGAAP'!H46 -> 0 | H46: 0 | J46: ='App.2-B_FA Cont 2009 CGAAP'!M46 -> 0 | M46: 0 | N46: 0
A47: 8 | B47: 1960 | C47: Miscellaneous Equipment | E47: ='App.2-B_FA Cont 2009 CGAAP'!H47 -> 0 | H47: 0 | J47: ='App.2-B_FA Cont 2009 CGAAP'!M47 -> 0 | M47: 0 | N47: 0
A48: 47 | B48: 1975 | C48: Load Management Controls Utility Premises | E48: ='App.2-B_FA Cont 2009 CGAAP'!H48 -> 0 | H48: 0 | J48: ='App.2-B_FA Cont 2009 CGAAP'!M48 -> 0 | M48: 0 | N48: 0
A49: 47 | B49: 1980 | C49: System Supervisor Equipment | E49: ='App.2-B_FA Cont 2009 CGAAP'!H49 -> 0 | H49: 0 | J49: ='App.2-B_FA Cont 2009 CGAAP'!M49 -> 0 | M49: 0 | N49: 0
A50: 47 | B50: 1985 | C50: Miscellaneous Fixed Assets | E50: ='App.2-B_FA Cont 2009 CGAAP'!H50 -> 25094 | F50: 1425 | H50: 26519 | J50: ='App.2-B_FA Cont 2009 CGAAP'!M50 -> 17103 | K50: 2343 | M50: 19446 | N50: 7073
A51: 47 | B51: 1995 | C51: Contributions & Grants | E51: ='App.2-B_FA Cont 2009 CGAAP'!H51 -> -704417 | F51: -112799 | H51: -817216 | J51: ='App.2-B_FA Cont 2009 CGAAP'!M51 -> -141756 | K51: -32688 | M51: -174444 | N51: -642772
A52: WIP | C52: Work In Progress | E52: ='App.2-B_FA Cont 2009 CGAAP'!H52 -> 2291 | F52: 26301 | H52: 28592 | J52: ='App.2-B_FA Cont 2009 CGAAP'!M52 -> 0 | M52: 0 | N52: 28592
C54: Total | E54: =SUM(E16:E53) -> 7163514 | F54: =SUM(F16:F53) -> 297666 | G54: -556 | H54: 7460624 | J54: =SUM(J16:J53) -> 2588357.49 | K54: =SUM(K16:K53) -> 340040 | L54: -556 | M54: 2927841.49 | N54: =SUM(N16:N53)-SUM(N50) -> 4525709.51
J56: Less: Fully Allocated Depreciation
A57: 10 | C57: Transportation | J57: Transportation | L57: =SUM(K40+K44) -> 37955
A58: 8 | C58: Stores Equipment | J58: Tools/Sentinel Lights | L58: =SUM(K42+K43+K45+K50) -> 13429
J59: Net Depreciation | L59: =K54-L57-L58 -> 288656
A61: Notes:
A63: 1 | B63: Tables in the format outlined above covering all fixed asset accounts should be submitted for the Test Year, Bridge Year and all relevant historical years. At a minimum , the applicant must provide data for the earlier of: 1) all historical years back to its last rebasing; or 2) at least three years of historical actuals, in addition to Bridge Year and Test Year forecasts.
A66: 2 | B66: The "CCA Class" for fixed assets should agree with the CCA Class used for tax purposes in Tax Returns. Fixed Assets sub-components may be used where the underlying asset components are classified under multiple CCA Classes for tax purposes. If an applicant uses any different classes from those shown in the table, an explanation should be provided. (also see note 3 below).
A69: 3 | B69: The table may need to be customized for a utility's asset categories or for any new asset accounts announced or authorized by the Board.
A71: 4 | B71: The depreciation column (D) is not required as the relevant information will be provided in the following 2-C series of appendices.

Sheet App.2-B_FA Cont 2011 CGAAP
M1: File Number: | N1: ='LDC Info'!$E$18 -> EB-2012-0165
M2: Exhibit: | N2: 2
M3: Tab: | N3: 2
M4: Schedule: | N4: 1
M5: Page:
M7: Date: | N7: 2013-02-22
A9: Appendix 2-B
A10: Fixed Asset Continuity Schedule
F12: Year | G12: 2011
E14: Cost | K14: Accumulated Depreciation
A15: CCA Class | B15: OEB | C15: Description | D15: Depreciation Rate | E15: Opening Balance | F15: Additions | G15: Disposals | H15: Closing Balance | J15: Opening Balance | K15: Additions | L15: Disposals | M15: Closing Balance | N15: Net Book Value
A16: 12 | B16: 1611 | C16: Computer Software (Formally known as Account 1925) | E16: ='App.2-B_FA Cont 2010 CGAAP'!H16 -> 6545 | F16: 22500 | H16: =E16+F16+G16 -> 29045 | J16: ='App.2-B_FA Cont 2010 CGAAP'!M16 -> 3121 | K16: 1684 | M16: =J16+K16+L16 -> 4805 | N16: =H16-M16 -> 24240
A17: CEC | B17: 1612 | C17: Land Rights (Formally known as Account 1906) | E17: ='App.2-B_FA Cont 2010 CGAAP'!H17 -> 0 | H17: =E17+F17+G17 -> 0 | J17: ='App.2-B_FA Cont 2010 CGAAP'!M17 -> 0 | M17: =J17+K17+L17 -> 0 | N17: =H17-M17 -> 0
A18: N/A | B18: 1805 | C18: Land | E18: ='App.2-B_FA Cont 2010 CGAAP'!H18 -> 0 | H18: =E18+F18+G18 -> 0 | J18: ='App.2-B_FA Cont 2010 CGAAP'!M18 -> 0 | M18: =J18+K18+L18 -> 0 | N18: 0
A19: 47 | B19: 1808 | C19: Buildings | E19: ='App.2-B_FA Cont 2010 CGAAP'!H19 -> 91864 | H19: =E19+F19+G19 -> 91864 | J19: ='App.2-B_FA Cont 2010 CGAAP'!M19 -> 37349 | K19: 3675 | M19: =J19+K19+L19 -> 41024 | N19: 50840
A20: 13 | B20: 1810 | C20: Leasehold Improvements | E20: ='App.2-B_FA Cont 2010 CGAAP'!H20 -> 0 | H20: 0 | J20: ='App.2-B_FA Cont 2010 CGAAP'!M20 -> 0 | M20: 0 | N20: 0
A21: 47 | B21: 1815 | C21: Transformer Station Equipment >50 kV | E21: ='App.2-B_FA Cont 2010 CGAAP'!H21 -> 0 | H21: 0 | J21: ='App.2-B_FA Cont 2010 CGAAP'!M21 -> 0 | M21: 0 | N21: 0
A22: 47 | B22: 1820 | C22: Distribution Station Equipment <50 kV | E22: ='App.2-B_FA Cont 2010 CGAAP'!H22 -> 0 | H22: 0 | J22: ='App.2-B_FA Cont 2010 CGAAP'!M22 -> 0 | M22: 0 | N22: 0
A23: 47 | B23: 1825 | C23: Storage Battery Equipment | E23: ='App.2-B_FA Cont 2010 CGAAP'!H23 -> 0 | H23: 0 | J23: ='App.2-B_FA Cont 2010 CGAAP'!M23 -> 0 | M23: 0 | N23: 0
A24: 47 | B24: 1830 | C24: Poles, Towers & Fixtures | E24: ='App.2-B_FA Cont 2010 CGAAP'!H24 -> 3308410 | F24: 165064 | H24: 3473474 | J24: ='App.2-B_FA Cont 2010 CGAAP'!M24 -> 1047333 | K24: 138939 | M24: 1186272 | N24: 2287202
A25: 47 | B25: 1835 | C25: Overhead Conductors & Devices | E25: ='App.2-B_FA Cont 2010 CGAAP'!H25 -> 1079982 | H25: 1079982 | J25: ='App.2-B_FA Cont 2010 CGAAP'!M25 -> 431690 | K25: 43199 | M25: 474889 | N25: 605093
A26: 47 | B26: 1840 | C26: Underground Conduit | E26: ='App.2-B_FA Cont 2010 CGAAP'!H26 -> 167448 | F26: 5944 | H26: 173392 | J26: ='App.2-B_FA Cont 2010 CGAAP'!M26 -> 61172 | K26: 6936 | M26: 68108 | N26: 105284
A27: 47 | B27: 1845 | C27: Underground Conductors & Devices | E27: ='App.2-B_FA Cont 2010 CGAAP'!H27 -> 833738 | F27: 53964 | H27: 887702 | J27: ='App.2-B_FA Cont 2010 CGAAP'!M27 -> 269982 | K27: 35508 | M27: 305490 | N27: 582212
A28: 47 | B28: 1850 | C28: Line Transformers | E28: ='App.2-B_FA Cont 2010 CGAAP'!H28 -> 1545612 | F28: 62129 | H28: 1607741 | J28: ='App.2-B_FA Cont 2010 CGAAP'!M28 -> 523126 | K28: 64310 | M28: 587436 | N28: 1020305
A29: 47 | B29: 1855 | C29: Services (Overhead & Underground) | E29: ='App.2-B_FA Cont 2010 CGAAP'!H29 -> 0 | H29: 0 | J29: ='App.2-B_FA Cont 2010 CGAAP'!M29 -> 0 | M29: 0 | N29: 0
A30: 47 | B30: 1860 | C30: Meters | E30: ='App.2-B_FA Cont 2010 CGAAP'!H30 -> 447604 | F30: 6478 | H30: 454082 | J30: ='App.2-B_FA Cont 2010 CGAAP'!M30 -> 114630 | K30: 11880 | M30: 126510 | N30: 327572
A31: 47 | B31: 1860 | C31: Meters (Smart Meters) | E31: ='App.2-B_FA Cont 2010 CGAAP'!H31 -> 0 | H31: 0 | J31: ='App.2-B_FA Cont 2010 CGAAP'!M31 -> 0 | M31: 0 | N31: 0
A32: N/A | B32: 1905 | C32: Land | E32: ='App.2-B_FA Cont 2010 CGAAP'!H32 -> 0 | H32: 0 | J32: ='App.2-B_FA Cont 2010 CGAAP'!M32 -> 0 | M32: 0 | N32: 0
A33: 47 | B33: 1908 | C33: Buildings & Fixtures | E33: ='App.2-B_FA Cont 2010 CGAAP'!H33 -> 0 | H33: 0 | J33: ='App.2-B_FA Cont 2010 CGAAP'!M33 -> 0 | M33: 0 | N33: 0
A34: 13 | B34: 1910 | C34: Leasehold Improvements | E34: ='App.2-B_FA Cont 2010 CGAAP'!H34 -> 0 | H34: 0 | J34: ='App.2-B_FA Cont 2010 CGAAP'!M34 -> 0 | M34: 0 | N34: 0
A35: 8 | B35: 1915 | C35: Office Furniture & Equipment (10 years) | E35: ='App.2-B_FA Cont 2010 CGAAP'!H35 -> 13734 | F35: 3798 | H35: 17532 | J35: ='App.2-B_FA Cont 2010 CGAAP'!M35 -> 7172 | K35: 1257 | M35: 8429 | N35: 9103
A36: 8 | B36: 1915 | C36: Office Furniture & Equipment (5 years) | E36: ='App.2-B_FA Cont 2010 CGAAP'!H36 -> 0 | H36: 0 | J36: ='App.2-B_FA Cont 2010 CGAAP'!M36 -> 0 | M36: 0 | N36: 0
A37: 10 | B37: 1920 | C37: Computer Equipment - Hardware | E37: ='App.2-B_FA Cont 2010 CGAAP'!H37 -> 0 | H37: 0 | J37: ='App.2-B_FA Cont 2010 CGAAP'!M37 -> 0 | M37: 0 | N37: 0
A38: 45 | B38: 1920 | C38: Computer Equip.-Hardware(Post Mar. 22/04) | E38: ='App.2-B_FA Cont 2010 CGAAP'!H38 -> 39324 | F38: 2337 | H38: 41661 | J38: ='App.2-B_FA Cont 2010 CGAAP'!M38 -> 23251 | K38: 5732 | M38: 28983 | N38: 12678
A39: 45.1 | B39: 1920 | C39: Computer Equip.-Hardware(Post Mar. 19/07) | E39: ='App.2-B_FA Cont 2010 CGAAP'!H39 -> 0 | H39: 0 | J39: ='App.2-B_FA Cont 2010 CGAAP'!M39 -> 0 | M39: 0 | N39: 0
A40: 10 | B40: 1930 | C40: Transportation Equipment(8 years) | E40: ='App.2-B_FA Cont 2010 CGAAP'!H40 -> 347546 | H40: 347546 | J40: ='App.2-B_FA Cont 2010 CGAAP'!M40 -> 304064.58 | K40: 8554 | M40: 312618.58 | N40: 34927.42
A41: 10 | B41: 1930 | C41: Transportation Equipment(5 years) | E41: ='App.2-B_FA Cont 2010 CGAAP'!H41 -> 90317 | H41: 90317 | J41: ='App.2-B_FA Cont 2010 CGAAP'!M41 -> 65890.91 | K41: 6237 | M41: 72127.91 | N41: 18189.09
A42: 8 | B42: 1940 | C42: Tools, Shop & Garage Equipment | E42: ='App.2-B_FA Cont 2010 CGAAP'!H42 -> 64775 | F42: 2436 | H42: 67211 | J42: ='App.2-B_FA Cont 2010 CGAAP'!M42 -> 47668 | K42: 3590 | M42: 51258 | N42: 15953
A43: 8 | B43: 1945 | C43: Measurement & Testing Equipment | E43: ='App.2-B_FA Cont 2010 CGAAP'!H43 -> 12694 | H43: 12694 | J43: ='App.2-B_FA Cont 2010 CGAAP'!M43 -> 8276 | K43: 1198 | M43: 9474 | N43: 3220
A44: 8 | B44: 1950 | C44: Power Operated Equipment | E44: ='App.2-B_FA Cont 2010 CGAAP'!H44 -> 135802 | H44: 135802 | J44: ='App.2-B_FA Cont 2010 CGAAP'!M44 -> 109335 | K44: 3778 | M44: 113113 | N44: 22689
A45: 8 | B45: 1955 | C45: Communications Equipment | E45: ='App.2-B_FA Cont 2010 CGAAP'!H45 -> 37334 | H45: 37334 | J45: ='App.2-B_FA Cont 2010 CGAAP'!M45 -> 28779 | K45: 1575 | M45: 30354 | N45: 6980
A46: 8 | B46: 1955 | C46: Communication Equipment (Smart Meters) | E46: ='App.2-B_FA Cont 2010 CGAAP'!H46 -> 0 | H46: 0 | J46: ='App.2-B_FA Cont 2010 CGAAP'!M46 -> 0 | M46: 0 | N46: 0
A47: 8 | B47: 1960 | C47: Miscellaneous Equipment | E47: ='App.2-B_FA Cont 2010 CGAAP'!H47 -> 0 | H47: 0 | J47: ='App.2-B_FA Cont 2010 CGAAP'!M47 -> 0 | M47: 0 | N47: 0
A48: 47 | B48: 1975 | C48: Load Management Controls Utility Premises | E48: ='App.2-B_FA Cont 2010 CGAAP'!H48 -> 0 | H48: 0 | J48: ='App.2-B_FA Cont 2010 CGAAP'!M48 -> 0 | M48: 0 | N48: 0
A49: 47 | B49: 1980 | C49: System Supervisor Equipment | E49: ='App.2-B_FA Cont 2010 CGAAP'!H49 -> 0 | H49: 0 | J49: ='App.2-B_FA Cont 2010 CGAAP'!M49 -> 0 | M49: 0 | N49: 0
A50: 47 | B50: 1985 | C50: Miscellaneous Fixed Assets | E50: ='App.2-B_FA Cont 2010 CGAAP'!H50 -> 26519 | F50: 1169 | H50: 27688 | J50: ='App.2-B_FA Cont 2010 CGAAP'!M50 -> 19446 | K50: 1531 | M50: 20977 | N50: 6711
A51: 47 | B51: 1995 | C51: Contributions & Grants | E51: ='App.2-B_FA Cont 2010 CGAAP'!H51 -> -817216 | F51: -73975 | H51: -891191 | J51: ='App.2-B_FA Cont 2010 CGAAP'!M51 -> -174444 | K51: -35279 | M51: -209723 | N51: -681468
A52: WIP | C52: Work In Progress | E52: ='App.2-B_FA Cont 2010 CGAAP'!H52 -> 28592 | F52: -8090 | H52: 20502 | J52: ='App.2-B_FA Cont 2010 CGAAP'!M52 -> 0 | M52: 0 | N52: 20502
C54: Total | E54: =SUM(E16:E53) -> 7460624 | F54: =SUM(F16:F53) -> 243754 | G54: 0 | H54: 7704378 | J54: =SUM(J16:J53) -> 2927841.49 | K54: =SUM(K16:K53) -> 304304 | L54: 0 | M54: 3232145.49 | N54: =SUM(N16:N53)-SUM(N50) -> 4465521.51
J56: Less: Fully Allocated Depreciation
A57: 10 | C57: Transportation | J57: Transportation | L57: =SUM(K40+K44) -> 12332
A58: 8 | C58: Stores Equipment | J58: Tools/Sentinel Lights | L58: =SUM(K42+K43+K45+K50) -> 7894
J59: Net Depreciation | L59: =K54-L57-L58 -> 284078
A61: Notes:
A63: 1 | B63: Tables in the format outlined above covering all fixed asset accounts should be submitted for the Test Year, Bridge Year and all relevant historical years. At a minimum , the applicant must provide data for the earlier of: 1) all historical years back to its last rebasing; or 2) at least three years of historical actuals, in addition to Bridge Year and Test Year forecasts.
A66: 2 | B66: The "CCA Class" for fixed assets should agree with the CCA Class used for tax purposes in Tax Returns. Fixed Assets sub-components may be used where the underlying asset components are classified under multiple CCA Classes for tax purposes. If an applicant uses any different classes from those shown in the table, an explanation should be provided. (also see note 3 below).
A69: 3 | B69: The table may need to be customized for a utility's asset categories or for any new asset accounts announced or authorized by the Board.
A71: 4 | B71: The depreciation column (D) is not required as the relevant information will be provided in the following 2-C series of appendices.

Sheet App.2-B_FA Cont 2012 CGAAP
M1: File Number: | N1: ='LDC Info'!$E$18 -> EB-2012-0165
M2: Exhibit: | N2: 2
M3: Tab: | N3: 2
M4: Schedule: | N4: 1
M5: Page:
M7: Date: | N7: 2013-02-22
A9: Appendix 2-B
A10: Fixed Asset Continuity Schedule
F12: Year | G12: 2012 - Bridge | H12: CGAAP
E14: Cost | K14: Accumulated Depreciation
A15: CCA Class | B15: OEB | C15: Description | D15: Depreciation Rate | E15: Opening Balance | F15: Additions | G15: Disposals | H15: Closing Balance | J15: Opening Balance | K15: Additions | L15: Disposals | M15: Closing Balance | N15: Net Book Value
A16: 12 | B16: 1611 | C16: Computer Software (Formally known as Account 1925) | E16: ='App.2-B_FA Cont 2011 CGAAP'!H16 -> 29045 | F16: 52240 | H16: =E16+F16+G16 -> 81285 | J16: ='App.2-B_FA Cont 2011 CGAAP'!M16 -> 4805 | K16: 39701 | M16: =J16+K16+L16 -> 44506 | N16: =H16-M16 -> 36779
A17: CEC | B17: 1612 | C17: Land Rights (Formally known as Account 1906) | E17: ='App.2-B_FA Cont 2011 CGAAP'!H17 -> 0 | H17: =E17+F17+G17 -> 0 | J17: ='App.2-B_FA Cont 2011 CGAAP'!M17 -> 0 | M17: =J17+K17+L17 -> 0 | N17: =H17-M17 -> 0
A18: N/A | B18: 1805 | C18: Land | E18: ='App.2-B_FA Cont 2011 CGAAP'!H18 -> 0 | H18: =E18+F18+G18 -> 0 | J18: ='App.2-B_FA Cont 2011 CGAAP'!M18 -> 0 | M18: =J18+K18+L18 -> 0 | N18: 0
A19: 47 | B19: 1808 | C19: Buildings | E19: ='App.2-B_FA Cont 2011 CGAAP'!H19 -> 91864 | H19: =E19+F19+G19 -> 91864 | J19: ='App.2-B_FA Cont 2011 CGAAP'!M19 -> 41024 | K19: 3675 | M19: =J19+K19+L19 -> 44699 | N19: 47165
A20: 13 | B20: 1810 | C20: Leasehold Improvements | E20: ='App.2-B_FA Cont 2011 CGAAP'!H20 -> 0 | H20: 0 | J20: ='App.2-B_FA Cont 2011 CGAAP'!M20 -> 0 | M20: 0 | N20: 0
A21: 47 | B21: 1815 | C21: Transformer Station Equipment >50 kV | E21: ='App.2-B_FA Cont 2011 CGAAP'!H21 -> 0 | H21: 0 | J21: ='App.2-B_FA Cont 2011 CGAAP'!M21 -> 0 | M21: 0 | N21: 0
A22: 47 | B22: 1820 | C22: Distribution Station Equipment <50 kV | E22: ='App.2-B_FA Cont 2011 CGAAP'!H22 -> 0 | H22: 0 | J22: ='App.2-B_FA Cont 2011 CGAAP'!M22 -> 0 | M22: 0 | N22: 0
A23: 47 | B23: 1825 | C23: Storage Battery Equipment | E23: ='App.2-B_FA Cont 2011 CGAAP'!H23 -> 0 | H23: 0 | J23: ='App.2-B_FA Cont 2011 CGAAP'!M23 -> 0 | M23: 0 | N23: 0
A24: 47 | B24: 1830 | C24: Poles, Towers & Fixtures | E24: ='App.2-B_FA Cont 2011 CGAAP'!H24 -> 3473474 | F24: 133834 | H24: 3607308 | J24: ='App.2-B_FA Cont 2011 CGAAP'!M24 -> 1186272 | K24: 127737 | M24: 1314009 | N24: 2293299
A25: 47 | B25: 1835 | C25: Overhead Conductors & Devices | E25: ='App.2-B_FA Cont 2011 CGAAP'!H25 -> 1079982 | F25: 25855 | H25: 1105837 | J25: ='App.2-B_FA Cont 2011 CGAAP'!M25 -> 474889 | K25: 43700 | M25: 518589 | N25: 587248
A26: 47 | B26: 1840 | C26: Underground Conduit | E26: ='App.2-B_FA Cont 2011 CGAAP'!H26 -> 173392 | F26: 6200 | H26: 179592 | J26: ='App.2-B_FA Cont 2011 CGAAP'!M26 -> 68108 | K26: 6702 | M26: 74810 | N26: 104782
A27: 47 | B27: 1845 | C27: Underground Conductors & Devices | E27: ='App.2-B_FA Cont 2011 CGAAP'!H27 -> 887702 | F27: 35823 | H27: 923525 | J27: ='App.2-B_FA Cont 2011 CGAAP'!M27 -> 305490 | K27: 32802 | M27: 338292 | N27: 585233
A28: 47 | B28: 1850 | C28: Line Transformers | E28: ='App.2-B_FA Cont 2011 CGAAP'!H28 -> 1607741 | F28: 46948 | H28: 1654689 | J28: ='App.2-B_FA Cont 2011 CGAAP'!M28 -> 587436 | K28: 59823 | M28: 647259 | N28: 1007430
A29: 47 | B29: 1855 | C29: Services (Overhead & Underground) | E29: ='App.2-B_FA Cont 2011 CGAAP'!H29 -> 0 | H29: 0 | J29: ='App.2-B_FA Cont 2011 CGAAP'!M29 -> 0 | M29: 0 | N29: 0
A30: 47 | B30: 1860 | C30: Meters | E30: ='App.2-B_FA Cont 2011 CGAAP'!H30 -> 454082 | F30: 3890 | G30: -294462 | H30: 163510 | J30: ='App.2-B_FA Cont 2011 CGAAP'!M30 -> 126510 | K30: 11733 | L30: -112869 | M30: 25374 | N30: 138136
A31: 47 | B31: 1860 | C31: Meters (Smart Meters) | E31: ='App.2-B_FA Cont 2011 CGAAP'!H31 -> 0 | F31: 647486 | H31: 647486 | J31: ='App.2-B_FA Cont 2011 CGAAP'!M31 -> 0 | K31: 147661 | M31: 147661 | N31: 499825
A32: N/A | B32: 1905 | C32: Land | E32: ='App.2-B_FA Cont 2011 CGAAP'!H32 -> 0 | H32: 0 | J32: ='App.2-B_FA Cont 2011 CGAAP'!M32 -> 0 | M32: 0 | N32: 0
A33: 47 | B33: 1908 | C33: Buildings & Fixtures | E33: ='App.2-B_FA Cont 2011 CGAAP'!H33 -> 0 | H33: 0 | J33: ='App.2-B_FA Cont 2011 CGAAP'!M33 -> 0 | M33: 0 | N33: 0
A34: 13 | B34: 1910 | C34: Leasehold Improvements | E34: ='App.2-B_FA Cont 2011 CGAAP'!H34 -> 0 | H34: 0 | J34: ='App.2-B_FA Cont 2011 CGAAP'!M34 -> 0 | M34: 0 | N34: 0
A35: 8 | B35: 1915 | C35: Office Furniture & Equipment (10 years) | E35: ='App.2-B_FA Cont 2011 CGAAP'!H35 -> 17532 | F35: 6000 | G35: -1295 | H35: 22237 | J35: ='App.2-B_FA Cont 2011 CGAAP'!M35 -> 8429 | K35: 1611 | L35: -1295 | M35: 8745 | N35: 13492
A36: 8 | B36: 1915 | C36: Office Furniture & Equipment (5 years) | E36: ='App.2-B_FA Cont 2011 CGAAP'!H36 -> 0 | H36: 0 | J36: ='App.2-B_FA Cont 2011 CGAAP'!M36 -> 0 | M36: 0 | N36: 0
A37: 10 | B37: 1920 | C37: Computer Equipment - Hardware | E37: ='App.2-B_FA Cont 2011 CGAAP'!H37 -> 0 | H37: 0 | J37: ='App.2-B_FA Cont 2011 CGAAP'!M37 -> 0 | M37: 0 | N37: 0
A38: 45 | B38: 1920 | C38: Computer Equip.-Hardware(Post Mar. 22/04) | E38: ='App.2-B_FA Cont 2011 CGAAP'!H38 -> 41661 | F38: 28977 | G38: -1753 | H38: 68885 | J38: ='App.2-B_FA Cont 2011 CGAAP'!M38 -> 28983 | K38: 13823 | L38: -1519 | M38: 41287 | N38: 27598
A39: 45.1 | B39: 1920 | C39: Computer Equip.-Hardware(Post Mar. 19/07) | E39: ='App.2-B_FA Cont 2011 CGAAP'!H39 -> 0 | H39: 0 | J39: ='App.2-B_FA Cont 2011 CGAAP'!M39 -> 0 | M39: 0 | N39: 0
A40: 10 | B40: 1930 | C40: Transportation Equipment(8 years) | E40: ='App.2-B_FA Cont 2011 CGAAP'!H40 -> 347546 | F40: 89116 | H40: 436662 | J40: ='App.2-B_FA Cont 2011 CGAAP'!M40 -> 312618.58 | K40: 9482 | M40: 322100.58 | N40: 114561.42
A41: 10 | B41: 1930 | C41: Transportation Equipment(5 years) | E41: ='App.2-B_FA Cont 2011 CGAAP'!H41 -> 90317 | H41: 90317 | J41: ='App.2-B_FA Cont 2011 CGAAP'!M41 -> 72127.91 | K41: 6237 | M41: 78364.91 | N41: 11952.09
A42: 8 | B42: 1940 | C42: Tools, Shop & Garage Equipment | E42: ='App.2-B_FA Cont 2011 CGAAP'!H42 -> 67211 | F42: 22930 | H42: 90141 | J42: ='App.2-B_FA Cont 2011 CGAAP'!M42 -> 51258 | K42: 7702 | M42: 58960 | N42: 31181
A43: 8 | B43: 1945 | C43: Measurement & Testing Equipment | E43: ='App.2-B_FA Cont 2011 CGAAP'!H43 -> 12694 | H43: 12694 | J43: ='App.2-B_FA Cont 2011 CGAAP'!M43 -> 9474 | K43: 1087 | M43: 10561 | N43: 2133
A44: 8 | B44: 1950 | C44: Power Operated Equipment | E44: ='App.2-B_FA Cont 2011 CGAAP'!H44 -> 135802 | F44: 720 | H44: 136522 | J44: ='App.2-B_FA Cont 2011 CGAAP'!M44 -> 113113 | K44: 3852 | M44: 116965 | N44: 19557
A45: 8 | B45: 1955 | C45: Communications Equipment | E45: ='App.2-B_FA Cont 2011 CGAAP'!H45 -> 37334 | H45: 37334 | J45: ='App.2-B_FA Cont 2011 CGAAP'!M45 -> 30354 | K45: 1534 | M45: 31888 | N45: 5446
A46: 8 | B46: 1955 | C46: Communication Equipment (Smart Meters) | E46: ='App.2-B_FA Cont 2011 CGAAP'!H46 -> 0 | H46: 0 | J46: ='App.2-B_FA Cont 2011 CGAAP'!M46 -> 0 | M46: 0 | N46: 0
A47: 8 | B47: 1960 | C47: Miscellaneous Equipment | E47: ='App.2-B_FA Cont 2011 CGAAP'!H47 -> 0 | H47: 0 | J47: ='App.2-B_FA Cont 2011 CGAAP'!M47 -> 0 | M47: 0 | N47: 0
A48: 47 | B48: 1975 | C48: Load Management Controls Utility Premises | E48: ='App.2-B_FA Cont 2011 CGAAP'!H48 -> 0 | H48: 0 | J48: ='App.2-B_FA Cont 2011 CGAAP'!M48 -> 0 | M48: 0 | N48: 0
A49: 47 | B49: 1980 | C49: System Supervisor Equipment | E49: ='App.2-B_FA Cont 2011 CGAAP'!H49 -> 0 | H49: 0 | J49: ='App.2-B_FA Cont 2011 CGAAP'!M49 -> 0 | M49: 0 | N49: 0
A50: 47 | B50: 1985 | C50: Miscellaneous Fixed Assets | E50: ='App.2-B_FA Cont 2011 CGAAP'!H50 -> 27688 | F50: 2000 | H50: 29688 | J50: ='App.2-B_FA Cont 2011 CGAAP'!M50 -> 20977 | K50: 1233 | M50: 22210 | N50: 7478
A51: 47 | B51: 1995 | C51: Contributions & Grants | E51: ='App.2-B_FA Cont 2011 CGAAP'!H51 -> -891191 | F51: -92000 | H51: -983191 | J51: ='App.2-B_FA Cont 2011 CGAAP'!M51 -> -209723 | K51: -30523 | M51: -240246 | N51: -742945
A52: WIP | C52: Work In Progress | E52: ='App.2-B_FA Cont 2011 CGAAP'!H52 -> 20502 | F52: 2109 | H52: 22611 | J52: ='App.2-B_FA Cont 2011 CGAAP'!M52 -> 0 | M52: 0 | N52: 22611
C54: Total | E54: =SUM(E16:E53) -> 7704378 | F54: =SUM(F16:F53) -> 1012128 | G54: -297510 | H54: 8418996 | J54: =SUM(J16:J53) -> 3232145.49 | K54: =SUM(K16:K53) -> 489572 | L54: -115683 | M54: 3606034.49 | N54: =SUM(N16:N53)-SUM(N50) -> 4805483.51
J56: Less: Fully Allocated Depreciation
A57: 10 | C57: Transportation | J57: Transportation | L57: =SUM(K40+K44) -> 13334
A58: 8 | C58: Stores Equipment | J58: Tools/Sentinel Lights | L58: =SUM(K42+K43+K45+K50) -> 11556
J59: Net Depreciation | L59: =K54-L57-L58 -> 464682
A61: Notes:
A63: 1 | B63: Tables in the format outlined above covering all fixed asset accounts should be submitted for the Test Year, Bridge Year and all relevant historical years. At a minimum , the applicant must provide data for the earlier of: 1) all historical years back to its last rebasing; or 2) at least three years of historical actuals, in addition to Bridge Year and Test Year forecasts.
A66: 2 | B66: The "CCA Class" for fixed assets should agree with the CCA Class used for tax purposes in Tax Returns. Fixed Assets sub-components may be used where the underlying asset components are classified under multiple CCA Classes for tax purposes. If an applicant uses any different classes from those shown in the table, an explanation should be provided. (also see note 3 below).
A69: 3 | B69: The table may need to be customized for a utility's asset categories or for any new asset accounts announced or authorized by the Board.
A71: 4 | B71: The depreciation column (D) is not required as the relevant information will be provided in the following 2-C series of appendices.

Sheet App.2-B_FA Cont 2012 MCGAAP
M1: File Number: | N1: ='LDC Info'!$E$18 -> EB-2012-0165
M2: Exhibit: | N2: 2
M3: Tab: | N3: 2
M4: Schedule: | N4: 1
M5: Page:
M7: Date: | N7: 2013-02-22
A9: Appendix 2-B
A10: Fixed Asset Continuity Schedule
F12: Year | G12: 2012 -Bridge | H12: MCGAAP
E14: Cost | K14: Accumulated Depreciation
A15: CCA Class | B15: OEB | C15: Description | D15: Depreciation Rate | E15: Opening Balance | F15: Additions | G15: Disposals | H15: Closing Balance | J15: Opening Balance | K15: Additions | L15: Disposals | M15: Closing Balance | N15: Net Book Value
A16: 12 | B16: 1611 | C16: Computer Software (Formally known as Account 1925) | E16: ='App.2-B_FA Cont 2011 CGAAP'!H16 -> 29045 | F16: 52240 | H16: =E16+F16+G16 -> 81285 | J16: ='App.2-B_FA Cont 2011 CGAAP'!M16 -> 4805 | K16: 39701 | M16: =J16+K16+L16 -> 44506 | N16: =H16-M16 -> 36779
A17: CEC | B17: 1612 | C17: Land Rights (Formally known as Account 1906) | E17: ='App.2-B_FA Cont 2011 CGAAP'!H17 -> 0 | H17: =E17+F17+G17 -> 0 | J17: ='App.2-B_FA Cont 2011 CGAAP'!M17 -> 0 | M17: =J17+K17+L17 -> 0 | N17: =H17-M17 -> 0
A18: N/A | B18: 1805 | C18: Land | E18: ='App.2-B_FA Cont 2011 CGAAP'!H18 -> 0 | H18: =E18+F18+G18 -> 0 | J18: ='App.2-B_FA Cont 2011 CGAAP'!M18 -> 0 | M18: =J18+K18+L18 -> 0 | N18: 0
A19: 47 | B19: 1808 | C19: Buildings | E19: ='App.2-B_FA Cont 2011 CGAAP'!H19 -> 91864 | H19: =E19+F19+G19 -> 91864 | J19: ='App.2-B_FA Cont 2011 CGAAP'!M19 -> 41024 | K19: 3675 | M19: =J19+K19+L19 -> 44699 | N19: 47165
A20: 13 | B20: 1810 | C20: Leasehold Improvements | E20: ='App.2-B_FA Cont 2011 CGAAP'!H20 -> 0 | H20: 0 | J20: ='App.2-B_FA Cont 2011 CGAAP'!M20 -> 0 | M20: 0 | N20: 0
A21: 47 | B21: 1815 | C21: Transformer Station Equipment >50 kV | E21: ='App.2-B_FA Cont 2011 CGAAP'!H21 -> 0 | H21: 0 | J21: ='App.2-B_FA Cont 2011 CGAAP'!M21 -> 0 | M21: 0 | N21: 0
A22: 47 | B22: 1820 | C22: Distribution Station Equipment <50 kV | E22: ='App.2-B_FA Cont 2011 CGAAP'!H22 -> 0 | H22: 0 | J22: ='App.2-B_FA Cont 2011 CGAAP'!M22 -> 0 | M22: 0 | N22: 0
A23: 47 | B23: 1825 | C23: Storage Battery Equipment | E23: ='App.2-B_FA Cont 2011 CGAAP'!H23 -> 0 | H23: 0 | J23: ='App.2-B_FA Cont 2011 CGAAP'!M23 -> 0 | M23: 0 | N23: 0
A24: 47 | B24: 1830 | C24: Poles, Towers & Fixtures | E24: ='App.2-B_FA Cont 2011 CGAAP'!H24 -> 3473474 | F24: 103422 | H24: 3576896 | J24: ='App.2-B_FA Cont 2011 CGAAP'!M24 -> 1186272 | K24: 54541 | M24: 1240813 | N24: 2336083
A25: 47 | B25: 1835 | C25: Overhead Conductors & Devices | E25: ='App.2-B_FA Cont 2011 CGAAP'!H25 -> 1079982 | F25: 25855 | H25: 1105837 | J25: ='App.2-B_FA Cont 2011 CGAAP'!M25 -> 474889 | K25: 18068 | M25: 492957 | N25: 612880
A26: 47 | B26: 1840 | C26: Underground Conduit | E26: ='App.2-B_FA Cont 2011 CGAAP'!H26 -> 173392 | F26: 5000 | H26: 178392 | J26: ='App.2-B_FA Cont 2011 CGAAP'!M26 -> 68108 | K26: 2392 | M26: 70500 | N26: 107892
A27: 47 | B27: 1845 | C27: Underground Conductors & Devices | E27: ='App.2-B_FA Cont 2011 CGAAP'!H27 -> 887702 | F27: 26248 | H27: 913950 | J27: ='App.2-B_FA Cont 2011 CGAAP'!M27 -> 305490 | K27: 16981 | M27: 322471 | N27: 591479
A28: 47 | B28: 1850 | C28: Line Transformers | E28: ='App.2-B_FA Cont 2011 CGAAP'!H28 -> 1607741 | F28: 46948 | H28: 1654689 | J28: ='App.2-B_FA Cont 2011 CGAAP'!M28 -> 587436 | K28: 30345 | M28: 617781 | N28: 1036908
A29: 47 | B29: 1855 | C29: Services (Overhead & Underground) | E29: ='App.2-B_FA Cont 2011 CGAAP'!H29 -> 0 | H29: 0 | J29: ='App.2-B_FA Cont 2011 CGAAP'!M29 -> 0 | M29: 0 | N29: 0
A30: 47 | B30: 1860 | C30: Meters | E30: ='App.2-B_FA Cont 2011 CGAAP'!H30 -> 454082 | F30: 3890 | G30: -294462 | H30: 163510 | J30: ='App.2-B_FA Cont 2011 CGAAP'!M30 -> 126510 | K30: 11733 | L30: -112869 | M30: 25374 | N30: 138136
A31: 47 | B31: 1860 | C31: Meters (Smart Meters) | E31: ='App.2-B_FA Cont 2011 CGAAP'!H31 -> 0 | F31: 647486 | H31: 647486 | J31: ='App.2-B_FA Cont 2011 CGAAP'!M31 -> 0 | K31: 147661 | M31: 147661 | N31: 499825
A32: N/A | B32: 1905 | C32: Land | E32: ='App.2-B_FA Cont 2011 CGAAP'!H32 -> 0 | H32: 0 | J32: ='App.2-B_FA Cont 2011 CGAAP'!M32 -> 0 | M32: 0 | N32: 0
A33: 47 | B33: 1908 | C33: Buildings & Fixtures | E33: ='App.2-B_FA Cont 2011 CGAAP'!H33 -> 0 | H33: 0 | J33: ='App.2-B_FA Cont 2011 CGAAP'!M33 -> 0 | M33: 0 | N33: 0
A34: 13 | B34: 1910 | C34: Leasehold Improvements | E34: ='App.2-B_FA Cont 2011 CGAAP'!H34 -> 0 | H34: 0 | J34: ='App.2-B_FA Cont 2011 CGAAP'!M34 -> 0 | M34: 0 | N34: 0
A35: 8 | B35: 1915 | C35: Office Furniture & Equipment (10 years) | E35: ='App.2-B_FA Cont 2011 CGAAP'!H35 -> 17532 | F35: 6000 | G35: -1295 | H35: 22237 | J35: ='App.2-B_FA Cont 2011 CGAAP'!M35 -> 8429 | K35: 1611 | L35: -1295 | M35: 8745 | N35: 13492
A36: 8 | B36: 1915 | C36: Office Furniture & Equipment (5 years) | E36: ='App.2-B_FA Cont 2011 CGAAP'!H36 -> 0 | H36: 0 | J36: ='App.2-B_FA Cont 2011 CGAAP'!M36 -> 0 | M36: 0 | N36: 0
A37: 10 | B37: 1920 | C37: Computer Equipment - Hardware | E37: ='App.2-B_FA Cont 2011 CGAAP'!H37 -> 0 | H37: 0 | J37: ='App.2-B_FA Cont 2011 CGAAP'!M37 -> 0 | M37: 0 | N37: 0
A38: 45 | B38: 1920 | C38: Computer Equip.-Hardware(Post Mar. 22/04) | E38: ='App.2-B_FA Cont 2011 CGAAP'!H38 -> 41661 | F38: 28977 | G38: -1753 | H38: 68885 | J38: ='App.2-B_FA Cont 2011 CGAAP'!M38 -> 28983 | K38: 13823 | L38: -1519 | M38: 41287 | N38: 27598
A39: 45.1 | B39: 1920 | C39: Computer Equip.-Hardware(Post Mar. 19/07) | E39: ='App.2-B_FA Cont 2011 CGAAP'!H39 -> 0 | H39: 0 | J39: ='App.2-B_FA Cont 2011 CGAAP'!M39 -> 0 | M39: 0 | N39: 0
A40: 10 | B40: 1930 | C40: Transportation Equipment(8 years) | E40: ='App.2-B_FA Cont 2011 CGAAP'!H40 -> 347546 | F40: 89116 | H40: 436662 | J40: ='App.2-B_FA Cont 2011 CGAAP'!M40 -> 312618.58 | K40: 9482 | M40: 322100.58 | N40: 114561.42
A41: 10 | B41: 1930 | C41: Transportation Equipment(5 years) | E41: ='App.2-B_FA Cont 2011 CGAAP'!H41 -> 90317 | H41: 90317 | J41: ='App.2-B_FA Cont 2011 CGAAP'!M41 -> 72127.91 | K41: 6237 | M41: 78364.91 | N41: 11952.09
A42: 8 | B42: 1940 | C42: Tools, Shop & Garage Equipment | E42: ='App.2-B_FA Cont 2011 CGAAP'!H42 -> 67211 | F42: 22930 | H42: 90141 | J42: ='App.2-B_FA Cont 2011 CGAAP'!M42 -> 51258 | K42: 7702 | M42: 58960 | N42: 31181
A43: 8 | B43: 1945 | C43: Measurement & Testing Equipment | E43: ='App.2-B_FA Cont 2011 CGAAP'!H43 -> 12694 | H43: 12694 | J43: ='App.2-B_FA Cont 2011 CGAAP'!M43 -> 9474 | K43: 1087 | M43: 10561 | N43: 2133
A44: 8 | B44: 1950 | C44: Power Operated Equipment | E44: ='App.2-B_FA Cont 2011 CGAAP'!H44 -> 135802 | F44: 720 | H44: 136522 | J44: ='App.2-B_FA Cont 2011 CGAAP'!M44 -> 113113 | K44: 3852 | M44: 116965 | N44: 19557
A45: 8 | B45: 1955 | C45: Communications Equipment | E45: ='App.2-B_FA Cont 2011 CGAAP'!H45 -> 37334 | H45: 37334 | J45: ='App.2-B_FA Cont 2011 CGAAP'!M45 -> 30354 | K45: 1534 | M45: 31888 | N45: 5446
A46: 8 | B46: 1955 | C46: Communication Equipment (Smart Meters) | E46: ='App.2-B_FA Cont 2011 CGAAP'!H46 -> 0 | H46: 0 | J46: ='App.2-B_FA Cont 2011 CGAAP'!M46 -> 0 | M46: 0 | N46: 0
A47: 8 | B47: 1960 | C47: Miscellaneous Equipment | E47: ='App.2-B_FA Cont 2011 CGAAP'!H47 -> 0 | H47: 0 | J47: ='App.2-B_FA Cont 2011 CGAAP'!M47 -> 0 | M47: 0 | N47: 0
A48: 47 | B48: 1975 | C48: Load Management Controls Utility Premises | E48: ='App.2-B_FA Cont 2011 CGAAP'!H48 -> 0 | H48: 0 | J48: ='App.2-B_FA Cont 2011 CGAAP'!M48 -> 0 | M48: 0 | N48: 0
A49: 47 | B49: 1980 | C49: System Supervisor Equipment | E49: ='App.2-B_FA Cont 2011 CGAAP'!H49 -> 0 | H49: 0 | J49: ='App.2-B_FA Cont 2011 CGAAP'!M49 -> 0 | M49: 0 | N49: 0
A50: 47 | B50: 1985 | C50: Miscellaneous Fixed Assets | E50: ='App.2-B_FA Cont 2011 CGAAP'!H50 -> 27688 | F50: 2000 | H50: 29688 | J50: ='App.2-B_FA Cont 2011 CGAAP'!M50 -> 20977 | K50: 1233 | M50: 22210 | N50: 7478
A51: 47 | B51: 1995 | C51: Contributions & Grants | E51: ='App.2-B_FA Cont 2011 CGAAP'!H51 -> -891191 | F51: -92000 | H51: -983191 | J51: ='App.2-B_FA Cont 2011 CGAAP'!M51 -> -209723 | K51: -22161 | M51: -231884 | N51: -751307
A52: WIP | C52: Work In Progress | E52: ='App.2-B_FA Cont 2011 CGAAP'!H52 -> 20502 | F52: 2109 | H52: 22611 | J52: ='App.2-B_FA Cont 2011 CGAAP'!M52 -> 0 | M52: 0 | N52: 22611
C54: Total | E54: =SUM(E16:E53) -> 7704378 | F54: =SUM(F16:F53) -> 970941 | G54: -297510 | H54: 8377809 | J54: =SUM(J16:J53) -> 3232145.49 | K54: =SUM(K16:K53) -> 349497 | L54: -115683 | M54: 3465959.49 | N54: =SUM(N16:N53)-SUM(N50) -> 4904371.51
J56: Less: Fully Allocated Depreciation
A57: 10 | C57: Transportation | J57: Transportation | L57: =SUM(K40+K44) -> 13334
A58: 8 | C58: Stores Equipment | J58: Tools/Sentinel Lights | L58: =SUM(K42+K43+K45+K50) -> 11556
J59: Net Depreciation | L59: =K54-L57-L58 -> 324607
A61: Notes:
A63: 1 | B63: Tables in the format outlined above covering all fixed asset accounts should be submitted for the Test Year, Bridge Year and all relevant historical years. At a minimum , the applicant must provide data for the earlier of: 1) all historical years back to its last rebasing; or 2) at least three years of historical actuals, in addition to Bridge Year and Test Year forecasts.
A66: 2 | B66: The "CCA Class" for fixed assets should agree with the CCA Class used for tax purposes in Tax Returns. Fixed Assets sub-components may be used where the underlying asset components are classified under multiple CCA Classes for tax purposes. If an applicant uses any different classes from those shown in the table, an explanation should be provided. (also see note 3 below).
A69: 3 | B69: The table may need to be customized for a utility's asset categories or for any new asset accounts announced or authorized by the Board.
A71: 4 | B71: The depreciation column (D) is not required as the relevant information will be provided in the following 2-C series of appendices.

Sheet App.2-B_FA Cont 2013 MCGAAP
M1: File Number: | N1: ='LDC Info'!$E$18 -> EB-2012-0165
M2: Exhibit: | N2: 2
M3: Tab: | N3: 2
M4: Schedule: | N4: 1
M5: Page:
M7: Date: | N7: 2013-02-22
A9: Appendix 2-B
A10: Fixed Asset Continuity Schedule
F12: Year | G12: 2013 - Test | H12: MCGAAP
E14: Cost | K14: Accumulated Depreciation
A15: CCA Class | B15: OEB | C15: Description | D15: Depreciation Rate | E15: Opening Balance | F15: Additions | G15: Disposals | H15: Closing Balance | J15: Opening Balance | K15: Additions | L15: Disposals | M15: Closing Balance | N15: Net Book Value
A16: 12 | B16: 1611 | C16: Computer Software (Formally known as Account 1925) | E16: ='App.2-B_FA Cont 2012 MCGAAP'!H16 -> 81285 | F16: 1000 | H16: =E16+F16+G16 -> 82285 | J16: ='App.2-B_FA Cont 2012 MCGAAP'!M16 -> 44506 | K16: 15607 | M16: =J16+K16+L16 -> 60113 | N16: =H16-M16 -> 22172
A17: CEC | B17: 1612 | C17: Land Rights (Formally known as Account 1906) | E17: ='App.2-B_FA Cont 2012 MCGAAP'!H17 -> 0 | H17: =E17+F17+G17 -> 0 | J17: ='App.2-B_FA Cont 2012 MCGAAP'!M17 -> 0 | M17: =J17+K17+L17 -> 0 | N17: =H17-M17 -> 0
A18: N/A | B18: 1805 | C18: Land | E18: ='App.2-B_FA Cont 2012 MCGAAP'!H18 -> 0 | H18: =E18+F18+G18 -> 0 | J18: ='App.2-B_FA Cont 2012 MCGAAP'!M18 -> 0 | M18: =J18+K18+L18 -> 0 | N18: 0
A19: 47 | B19: 1808 | C19: Buildings | E19: ='App.2-B_FA Cont 2012 MCGAAP'!H19 -> 91864 | H19: =E19+F19+G19 -> 91864 | J19: ='App.2-B_FA Cont 2012 MCGAAP'!M19 -> 44699 | K19: 3675 | M19: =J19+K19+L19 -> 48374 | N19: 43490
A20: 13 | B20: 1810 | C20: Leasehold Improvements | E20: ='App.2-B_FA Cont 2012 MCGAAP'!H20 -> 0 | H20: 0 | J20: ='App.2-B_FA Cont 2012 MCGAAP'!M20 -> 0 | M20: 0 | N20: 0
A21: 47 | B21: 1815 | C21: Transformer Station Equipment >50 kV | E21: ='App.2-B_FA Cont 2012 MCGAAP'!H21 -> 0 | H21: 0 | J21: ='App.2-B_FA Cont 2012 MCGAAP'!M21 -> 0 | M21: 0 | N21: 0
A22: 47 | B22: 1820 | C22: Distribution Station Equipment <50 kV | E22: ='App.2-B_FA Cont 2012 MCGAAP'!H22 -> 0 | H22: 0 | J22: ='App.2-B_FA Cont 2012 MCGAAP'!M22 -> 0 | M22: 0 | N22: 0
A23: 47 | B23: 1825 | C23: Storage Battery Equipment | E23: ='App.2-B_FA Cont 2012 MCGAAP'!H23 -> 0 | H23: 0 | J23: ='App.2-B_FA Cont 2012 MCGAAP'!M23 -> 0 | M23: 0 | N23: 0
A24: 47 | B24: 1830 | C24: Poles, Towers & Fixtures | E24: ='App.2-B_FA Cont 2012 MCGAAP'!H24 -> 3576896 | F24: 49073 | H24: 3625969 | J24: ='App.2-B_FA Cont 2012 MCGAAP'!M24 -> 1240813 | K24: 70114 | M24: 1310927 | N24: 2315042
A25: 47 | B25: 1835 | C25: Overhead Conductors & Devices | E25: ='App.2-B_FA Cont 2012 MCGAAP'!H25 -> 1105837 | F25: 12268 | H25: 1118105 | J25: ='App.2-B_FA Cont 2012 MCGAAP'!M25 -> 492957 | K25: 18508 | M25: 511465 | N25: 606640
A26: 47 | B26: 1840 | C26: Underground Conduit | E26: ='App.2-B_FA Cont 2012 MCGAAP'!H26 -> 178392 | F26: 5000 | H26: 183392 | J26: ='App.2-B_FA Cont 2012 MCGAAP'!M26 -> 70500 | K26: 2850 | M26: 73350 | N26: 110042
A27: 47 | B27: 1845 | C27: Underground Conductors & Devices | E27: ='App.2-B_FA Cont 2012 MCGAAP'!H27 -> 913950 | F27: 89152 | H27: 1003102 | J27: ='App.2-B_FA Cont 2012 MCGAAP'!M27 -> 322471 | K27: 21847 | M27: 344318 | N27: 658784
A28: 47 | B28: 1850 | C28: Line Transformers | E28: ='App.2-B_FA Cont 2012 MCGAAP'!H28 -> 1654689 | F28: 59767 | H28: 1714456 | J28: ='App.2-B_FA Cont 2012 MCGAAP'!M28 -> 617781 | K28: 37104 | M28: 654885 | N28: 1059571
A29: 47 | B29: 1855 | C29: Services (Overhead & Underground) | E29: ='App.2-B_FA Cont 2012 MCGAAP'!H29 -> 0 | H29: 0 | J29: ='App.2-B_FA Cont 2012 MCGAAP'!M29 -> 0 | M29: 0 | N29: 0
A30: 47 | B30: 1860 | C30: Meters | E30: ='App.2-B_FA Cont 2012 MCGAAP'!H30 -> 163510 | H30: 163510 | J30: ='App.2-B_FA Cont 2012 MCGAAP'!M30 -> 25374 | K30: 12035 | M30: 37409 | N30: 126101
A31: 47 | B31: 1860 | C31: Meters (Smart Meters) | E31: ='App.2-B_FA Cont 2012 MCGAAP'!H31 -> 647486 | F31: 1680 | H31: 649166 | J31: ='App.2-B_FA Cont 2012 MCGAAP'!M31 -> 147661 | K31: 43222 | M31: 190883 | N31: 458283
A32: N/A | B32: 1905 | C32: Land | E32: ='App.2-B_FA Cont 2012 MCGAAP'!H32 -> 0 | H32: 0 | J32: ='App.2-B_FA Cont 2012 MCGAAP'!M32 -> 0 | M32: 0 | N32: 0
A33: 47 | B33: 1908 | C33: Buildings & Fixtures | E33: ='App.2-B_FA Cont 2012 MCGAAP'!H33 -> 0 | H33: 0 | J33: ='App.2-B_FA Cont 2012 MCGAAP'!M33 -> 0 | M33: 0 | N33: 0
A34: 13 | B34: 1910 | C34: Leasehold Improvements | E34: ='App.2-B_FA Cont 2012 MCGAAP'!H34 -> 0 | H34: 0 | J34: ='App.2-B_FA Cont 2012 MCGAAP'!M34 -> 0 | M34: 0 | N34: 0
A35: 8 | B35: 1915 | C35: Office Furniture & Equipment (10 years) | E35: ='App.2-B_FA Cont 2012 MCGAAP'!H35 -> 22237 | H35: 22237 | J35: ='App.2-B_FA Cont 2012 MCGAAP'!M35 -> 8745 | K35: 1851 | M35: 10596 | N35: 11641
A36: 8 | B36: 1915 | C36: Office Furniture & Equipment (5 years) | E36: ='App.2-B_FA Cont 2012 MCGAAP'!H36 -> 0 | H36: 0 | J36: ='App.2-B_FA Cont 2012 MCGAAP'!M36 -> 0 | M36: 0 | N36: 0
A37: 10 | B37: 1920 | C37: Computer Equipment - Hardware | E37: ='App.2-B_FA Cont 2012 MCGAAP'!H37 -> 0 | H37: 0 | J37: ='App.2-B_FA Cont 2012 MCGAAP'!M37 -> 0 | M37: 0 | N37: 0
A38: 45 | B38: 1920 | C38: Computer Equip.-Hardware(Post Mar. 22/04) | E38: ='App.2-B_FA Cont 2012 MCGAAP'!H38 -> 68885 | F38: 2000 | H38: 70885 | J38: ='App.2-B_FA Cont 2012 MCGAAP'!M38 -> 41287 | K38: 9830 | M38: 51117 | N38: 19768
A39: 45.1 | B39: 1920 | C39: Computer Equip.-Hardware(Post Mar. 19/07) | E39: ='App.2-B_FA Cont 2012 MCGAAP'!H39 -> 0 | H39: 0 | J39: ='App.2-B_FA Cont 2012 MCGAAP'!M39 -> 0 | M39: 0 | N39: 0
A40: 10 | B40: 1930 | C40: Transportation Equipment(8 years) | E40: ='App.2-B_FA Cont 2012 MCGAAP'!H40 -> 436662 | H40: 436662 | J40: ='App.2-B_FA Cont 2012 MCGAAP'!M40 -> 322100.58 | K40: 19693 | M40: 341793.58 | N40: 94868.42
A41: 10 | B41: 1930 | C41: Transportation Equipment(5 years) | E41: ='App.2-B_FA Cont 2012 MCGAAP'!H41 -> 90317 | H41: 90317 | J41: ='App.2-B_FA Cont 2012 MCGAAP'!M41 -> 78364.91 | K41: 6237 | M41: 84601.91 | N41: 5715.09
A42: 8 | B42: 1940 | C42: Tools, Shop & Garage Equipment | E42: ='App.2-B_FA Cont 2012 MCGAAP'!H42 -> 90141 | F42: 5000 | H42: 95141 | J42: ='App.2-B_FA Cont 2012 MCGAAP'!M42 -> 58960 | K42: 5519 | M42: 64479 | N42: 30662
A43: 8 | B43: 1945 | C43: Measurement & Testing Equipment | E43: ='App.2-B_FA Cont 2012 MCGAAP'!H43 -> 12694 | F43: 7000 | H43: 19694 | J43: ='App.2-B_FA Cont 2012 MCGAAP'!M43 -> 10561 | K43: 1643 | M43: 12204 | N43: 7490
A44: 8 | B44: 1950 | C44: Power Operated Equipment | E44: ='App.2-B_FA Cont 2012 MCGAAP'!H44 -> 136522 | F44: 86000 | H44: 222522 | J44: ='App.2-B_FA Cont 2012 MCGAAP'!M44 -> 116965 | K44: 14662 | M44: 131627 | N44: 90895
A45: 8 | B45: 1955 | C45: Communications Equipment | E45: ='App.2-B_FA Cont 2012 MCGAAP'!H45 -> 37334 | H45: 37334 | J45: ='App.2-B_FA Cont 2012 MCGAAP'!M45 -> 31888 | K45: 1504 | M45: 33392 | N45: 3942
A46: 8 | B46: 1955 | C46: Communication Equipment (Smart Meters) | E46: ='App.2-B_FA Cont 2012 MCGAAP'!H46 -> 0 | H46: 0 | J46: ='App.2-B_FA Cont 2012 MCGAAP'!M46 -> 0 | M46: 0 | N46: 0
A47: 8 | B47: 1960 | C47: Miscellaneous Equipment | E47: ='App.2-B_FA Cont 2012 MCGAAP'!H47 -> 0 | H47: 0 | J47: ='App.2-B_FA Cont 2012 MCGAAP'!M47 -> 0 | M47: 0 | N47: 0
A48: 47 | B48: 1975 | C48: Load Management Controls Utility Premises | E48: ='App.2-B_FA Cont 2012 MCGAAP'!H48 -> 0 | H48: 0 | J48: ='App.2-B_FA Cont 2012 MCGAAP'!M48 -> 0 | M48: 0 | N48: 0
A49: 47 | B49: 1980 | C49: System Supervisor Equipment | E49: ='App.2-B_FA Cont 2012 MCGAAP'!H49 -> 0 | H49: 0 | J49: ='App.2-B_FA Cont 2012 MCGAAP'!M49 -> 0 | M49: 0 | N49: 0
A50: 47 | B50: 1985 | C50: Miscellaneous Fixed Assets | E50: ='App.2-B_FA Cont 2012 MCGAAP'!H50 -> 29688 | F50: 2000 | H50: 31688 | J50: ='App.2-B_FA Cont 2012 MCGAAP'!M50 -> 22210 | K50: 1491 | M50: 23701 | N50: 7987
A51: 47 | B51: 1995 | C51: Contributions & Grants | E51: ='App.2-B_FA Cont 2012 MCGAAP'!H51 -> -983191 | F51: -92000 | H51: -1075191 | J51: ='App.2-B_FA Cont 2012 MCGAAP'!M51 -> -231884 | K51: -31517 | M51: -263401 | N51: -811790
A52: WIP | C52: Work In Progress | E52: ='App.2-B_FA Cont 2012 MCGAAP'!H52 -> 22611 | H52: 22611 | J52: ='App.2-B_FA Cont 2012 MCGAAP'!M52 -> 0 | M52: 0 | N52: 22611
C54: Total | E54: =SUM(E16:E53) -> 8377809 | F54: =SUM(F16:F53) -> 227940 | G54: 0 | H54: 8605749 | J54: =SUM(J16:J53) -> 3465959.49 | K54: =SUM(K16:K53) -> 255875 | L54: 0 | M54: 3721834.49 | N54: =SUM(N16:N53)-SUM(N50) -> 4875927.51
J56: Less: Fully Allocated Depreciation
A57: 10 | C57: Transportation | J57: Transportation | L57: =SUM(K40+K41+K44) -> 40592
A58: 8 | C58: Stores Equipment | J58: Tools/Sentinel Lights | L58: =SUM(K42+K43+K45+K50) -> 10157
J59: Net Depreciation | L59: =K54-L57-L58 -> 205126
A61: Notes:
A63: 1 | B63: Tables in the format outlined above covering all fixed asset accounts should be submitted for the Test Year, Bridge Year and all relevant historical years. At a minimum , the applicant must provide data for the earlier of: 1) all historical years back to its last rebasing; or 2) at least three years of historical actuals, in addition to Bridge Year and Test Year forecasts.
A66: 2 | B66: The "CCA Class" for fixed assets should agree with the CCA Class used for tax purposes in Tax Returns. Fixed Assets sub-components may be used where the underlying asset components are classified under multiple CCA Classes for tax purposes. If an applicant uses any different classes from those shown in the table, an explanation should be provided. (also see note 3 below).
A69: 3 | B69: The table may need to be customized for a utility's asset categories or for any new asset accounts announced or authorized by the Board.
A71: 4 | B71: The depreciation column (D) is not required as the relevant information will be provided in the following 2-C series of appendices.

Sheet App.2-CE_CGAAP_DepExp_2011
K1: File Number: | L1: ='LDC Info'!$E$18 -> EB-2012-0165
K2: Exhibit: | L2: 2
K3: Tab:
K4: Schedule:
K5: Page:
K7: Date: | L7: 2013-02-22
A9: Appendix 2-CE
A10: Depreciation and Amortization Expense
A11: Assumes the applicant adopted IFRS for financial reporting purposes January 1, 2013 - Note Sioux Lookout Hydro will be adopting IFRS January 1, 2014
C12: Year | D12: 2011 | E12: CGAAP
A14: Account | B14: Description | C14: Opening Regulatory Gross PP&E as at Jan 1, 2011 | D14: Less Fully Depreciated | E14: Net for Depreciation | F14: Additions | G14: Total for Depreciation | H14: Years | I14: Depreciation Rate | J14: 2011 Depreciation Expense | K14: 2011 Depreciation Expense per Appendix 2-B Fixed Assets, Column K (l) | L14: Variance 2 | M14: Note to explain variance
C15: (a) | D15: (b) | E15: (c) | F15: (d) | G15: (e) = (c) + ½ x (d) 1 | H15: (f) | I15: (g) = 1 / (f) | J15: (h) = (e) / (f) | L15: (m) = (h) - (l)
A16: 1611 | B16: Computer Software (Formally known as Account 1925) | C16: ='App.2-B_FA Cont 2011 CGAAP'!E16 -> 6545 | E16: =C16-D16 -> 6545 | F16: ='App.2-B_FA Cont 2011 CGAAP'!F16 -> 22500 | G16: =E16+0.5*F16 -> 17795 | H16: 5 | I16: =IF(H16=0,"",1/H16) -> 0.2 | J16: =IF(H16=0,0,G16/H16) -> 3559 | K16: ='App.2-B_FA Cont 2011 CGAAP'!K16 -> 1684 | L16: =IF(ISERROR(+J16-K16), "", +J16-K16) -> 1875 | M16: 1 | N16: Use actual month of acquisition instead of 1/2 yr rule
A17: 1612 | B17: Land Rights (Formally known as Account 1906) | E17: =C17-D17 -> 0 | F17: ='App.2-B_FA Cont 2011 CGAAP'!F17 -> 0 | G17: =E17+0.5*F17 -> 0 | J17: 0 | K17: ='App.2-B_FA Cont 2011 CGAAP'!K17 -> 0 | L17: =IF(ISERROR(+J17-K17), "", +J17-K17) -> 0
A18: 1805 | B18: Land | E18: 0 | F18: ='App.2-B_FA Cont 2011 CGAAP'!F18 -> 0 | G18: 0 | J18: 0 | K18: ='App.2-B_FA Cont 2011 CGAAP'!K18 -> 0 | L18: 0
A19: 1808 | B19: Buildings | C19: ='App.2-B_FA Cont 2011 CGAAP'!E19 -> 91864 | E19: 91864 | F19: ='App.2-B_FA Cont 2011 CGAAP'!F19 -> 0 | G19: 91864 | H19: 25 | I19: 0.04 | J19: 3674.56 | K19: ='App.2-B_FA Cont 2011 CGAAP'!K19 -> 3675 | L19: -0.44 | M19: 2
A20: 1810 | B20: Leasehold Improvements | E20: 0 | F20: ='App.2-B_FA Cont 2011 CGAAP'!F20 -> 0 | G20: 0 | J20: 0 | K20: ='App.2-B_FA Cont 2011 CGAAP'!K20 -> 0 | L20: 0
A21: 1815 | B21: Transformer Station Equipment >50 kV | E21: 0 | F21: ='App.2-B_FA Cont 2011 CGAAP'!F21 -> 0 | G21: 0 | J21: 0 | K21: ='App.2-B_FA Cont 2011 CGAAP'!K21 -> 0 | L21: 0
A22: 1820 | B22: Distribution Station Equipment <50 kV | E22: 0 | F22: ='App.2-B_FA Cont 2011 CGAAP'!F22 -> 0 | G22: 0 | J22: 0 | K22: ='App.2-B_FA Cont 2011 CGAAP'!K22 -> 0 | L22: 0
A23: 1825 | B23: Storage Battery Equipment | E23: 0 | F23: ='App.2-B_FA Cont 2011 CGAAP'!F23 -> 0 | G23: 0 | J23: 0 | K23: ='App.2-B_FA Cont 2011 CGAAP'!K23 -> 0 | L23: 0
A24: 1830 | B24: Poles, Towers & Fixtures | C24: ='App.2-B_FA Cont 2011 CGAAP'!E24 -> 3308410 | E24: 3308410 | F24: ='App.2-B_FA Cont 2011 CGAAP'!F24 -> 165064 | G24: 3390942 | H24: 25 | I24: 0.04 | J24: 135637.68 | K24: ='App.2-B_FA Cont 2011 CGAAP'!K24 -> 138939 | L24: -3301.32 | M24: 3
A25: 1835 | B25: Overhead Conductors & Devices | C25: ='App.2-B_FA Cont 2011 CGAAP'!E25 -> 1079982 | E25: 1079982 | F25: ='App.2-B_FA Cont 2011 CGAAP'!F25 -> 0 | G25: 1079982 | H25: 25 | I25: 0.04 | J25: 43199.28 | K25: ='App.2-B_FA Cont 2011 CGAAP'!K25 -> 43199 | L25: 0.28 | M25: 4
A26: 1840 | B26: Underground Conduit | C26: ='App.2-B_FA Cont 2011 CGAAP'!E26 -> 167448 | E26: 167448 | F26: ='App.2-B_FA Cont 2011 CGAAP'!F26 -> 5944 | G26: 170420 | H26: 25 | I26: 0.04 | J26: 6816.8 | K26: ='App.2-B_FA Cont 2011 CGAAP'!K26 -> 6936 | L26: -119.2 | M26: 5
A27: 1845 | B27: Underground Conductors & Devices | C27: ='App.2-B_FA Cont 2011 CGAAP'!E27 -> 833738 | E27: 833738 | F27: ='App.2-B_FA Cont 2011 CGAAP'!F27 -> 53964 | G27: 860720 | H27: 25 | I27: 0.04 | J27: 34428.8 | K27: ='App.2-B_FA Cont 2011 CGAAP'!K27 -> 35508 | L27: -1079.2 | M27: 6
A28: 1850 | B28: Line Transformers | C28: ='App.2-B_FA Cont 2011 CGAAP'!E28 -> 1545612 | E28: 1545612 | F28: ='App.2-B_FA Cont 2011 CGAAP'!F28 -> 62129 | G28: 1576676.5 | H28: 25 | I28: 0.04 | J28: 63067.06 | K28: ='App.2-B_FA Cont 2011 CGAAP'!K28 -> 64310 | L28: -1242.94 | M28: 7
A29: 1855 | B29: Services (Overhead & Underground) | E29: 0 | F29: ='App.2-B_FA Cont 2011 CGAAP'!F29 -> 0 | G29: 0 | J29: 0 | K29: ='App.2-B_FA Cont 2011 CGAAP'!K29 -> 0 | L29: 0
A30: 1860 | B30: Meters | C30: ='App.2-B_FA Cont 2011 CGAAP'!E30 -> 447604 | D30: 150604 | E30: 297000 | F30: ='App.2-B_FA Cont 2011 CGAAP'!F30 -> 6478 | G30: 300239 | H30: 25 | I30: 0.04 | J30: 12009.56 | K30: ='App.2-B_FA Cont 2011 CGAAP'!K30 -> 11880 | L30: 129.56 | M30: 8
A31: 1860 | B31: Meters (Smart Meters) | C31: ='App.2-B_FA Cont 2011 CGAAP'!E31 -> 0 | E31: 0 | F31: ='App.2-B_FA Cont 2011 CGAAP'!F31 -> 0 | G31: 0 | J31: 0 | K31: ='App.2-B_FA Cont 2011 CGAAP'!K31 -> 0 | L31: 0
A32: 1905 | B32: Land | E32: 0 | F32: ='App.2-B_FA Cont 2011 CGAAP'!F32 -> 0 | G32: 0 | J32: 0 | K32: ='App.2-B_FA Cont 2011 CGAAP'!K32 -> 0 | L32: 0
A33: 1908 | B33: Buildings & Fixtures | E33: 0 | F33: ='App.2-B_FA Cont 2011 CGAAP'!F33 -> 0 | G33: 0 | J33: 0 | K33: ='App.2-B_FA Cont 2011 CGAAP'!K33 -> 0 | L33: 0
A34: 1910 | B34: Leasehold Improvements | E34: 0 | F34: ='App.2-B_FA Cont 2011 CGAAP'!F34 -> 0 | G34: 0 | J34: 0 | K34: ='App.2-B_FA Cont 2011 CGAAP'!K34 -> 0 | L34: 0
A35: 1915 | B35: Office Furniture & Equipment (10 years) | C35: ='App.2-B_FA Cont 2011 CGAAP'!E35 -> 13734 | D35: 4706 | E35: 9028 | F35: ='App.2-B_FA Cont 2011 CGAAP'!F35 -> 3798 | G35: 10927 | H35: 10 | I35: 0.1 | J35: 1092.7 | K35: ='App.2-B_FA Cont 2011 CGAAP'!K35 -> 1257 | L35: -164.3 | M35: 9 | N35: Use actual month of acquisition instead of 1/2 yr rule
A36: 1915 | B36: Office Furniture & Equipment (5 years) | C36: ='App.2-B_FA Cont 2011 CGAAP'!E36 -> 0 | E36: 0 | F36: ='App.2-B_FA Cont 2011 CGAAP'!F36 -> 0 | G36: 0 | J36: 0 | K36: ='App.2-B_FA Cont 2011 CGAAP'!K36 -> 0 | L36: 0
A37: 1920 | B37: Computer Equipment - Hardware | C37: ='App.2-B_FA Cont 2011 CGAAP'!E37 -> 0 | E37: 0 | F37: ='App.2-B_FA Cont 2011 CGAAP'!F37 -> 0 | G37: 0 | J37: 0 | K37: ='App.2-B_FA Cont 2011 CGAAP'!K37 -> 0 | L37: 0
A38: 1920 | B38: Computer Equip.-Hardware(Post Mar. 22/04) | C38: ='App.2-B_FA Cont 2011 CGAAP'!E38 -> 39324 | D38: 15033 | E38: 24291 | F38: ='App.2-B_FA Cont 2011 CGAAP'!F38 -> 2337 | G38: 25459.5 | H38: 5 | I38: 0.2 | J38: 5091.9 | K38: ='App.2-B_FA Cont 2011 CGAAP'!K38 -> 5732 | L38: -640.1 | M38: 10 | N38: Use actual month of acquisition instead of 1/2 yr rule
A39: 1920 | B39: Computer Equip.-Hardware(Post Mar. 19/07) | C39: ='App.2-B_FA Cont 2011 CGAAP'!E39 -> 0 | E39: 0 | F39: ='App.2-B_FA Cont 2011 CGAAP'!F39 -> 0 | G39: 0 | J39: 0 | K39: ='App.2-B_FA Cont 2011 CGAAP'!K39 -> 0 | L39: 0
A40: 1930 | B40: Transportation Equipment(8 years) | C40: ='App.2-B_FA Cont 2011 CGAAP'!E40 -> 347546 | D40: 279116 | E40: 68430 | F40: ='App.2-B_FA Cont 2011 CGAAP'!F40 -> 0 | G40: 68430 | H40: 8 | I40: 0.125 | J40: 8553.75 | K40: ='App.2-B_FA Cont 2011 CGAAP'!K40 -> 8554 | L40: -0.25 | M40: 11
A41: 1930 | B41: Transportation Equipment(5 years) | C41: ='App.2-B_FA Cont 2011 CGAAP'!E41 -> 90317 | D41: 59131 | E41: 31186 | F41: ='App.2-B_FA Cont 2011 CGAAP'!F41 -> 0 | G41: 31186 | H41: 5 | I41: 0.2 | J41: 6237.2 | K41: ='App.2-B_FA Cont 2011 CGAAP'!K41 -> 6237 | L41: 0.2 | M41: 12
A42: 1940 | B42: Tools, Shop & Garage Equipment | C42: ='App.2-B_FA Cont 2011 CGAAP'!E42 -> 64775 | D42: 31307 | E42: 33468 | F42: ='App.2-B_FA Cont 2011 CGAAP'!F42 -> 2436 | G42: 34686 | H42: 10 | I42: 0.1 | J42: 3468.6 | K42: ='App.2-B_FA Cont 2011 CGAAP'!K42 -> 3590 | L42: -121.4 | M42: 13
A43: 1945 | B43: Measurement & Testing Equipment | C43: ='App.2-B_FA Cont 2011 CGAAP'!E43 -> 12694 | E43: 12694 | F43: ='App.2-B_FA Cont 2011 CGAAP'!F43 -> 0 | G43: 12694 | H43: 10 | I43: 0.1 | J43: 1269.4 | K43: ='App.2-B_FA Cont 2011 CGAAP'!K43 -> 1198 | L43: 71.4 | M43: 14
A44: 1950 | B44: Power Operated Equipment | C44: ='App.2-B_FA Cont 2011 CGAAP'!E44 -> 135802 | D44: 108187 | E44: 27615 | F44: ='App.2-B_FA Cont 2011 CGAAP'!F44 -> 0 | G44: 27615 | H44: 8 | I44: 0.125 | J44: 3451.875 | K44: ='App.2-B_FA Cont 2011 CGAAP'!K44 -> 3778 | L44: -326.125 | M44: 15
A45: 1955 | B45: Communications Equipment | C45: ='App.2-B_FA Cont 2011 CGAAP'!E45 -> 37334 | D45: 23602 | E45: 13732 | F45: ='App.2-B_FA Cont 2011 CGAAP'!F45 -> 0 | G45: 13732 | H45: 10 | I45: 0.1 | J45: 1373.2 | K45: ='App.2-B_FA Cont 2011 CGAAP'!K45 -> 1575 | L45: -201.8 | M45: 16
A46: 1955 | B46: Communication Equipment (Smart Meters) | C46: ='App.2-B_FA Cont 2011 CGAAP'!E46 -> 0 | E46: 0 | F46: ='App.2-B_FA Cont 2011 CGAAP'!F46 -> 0 | G46: 0 | J46: 0 | K46: ='App.2-B_FA Cont 2011 CGAAP'!K46 -> 0 | L46: 0
A47: 1960 | B47: Miscellaneous Equipment | C47: ='App.2-B_FA Cont 2011 CGAAP'!E47 -> 0 | E47: 0 | F47: ='App.2-B_FA Cont 2011 CGAAP'!F47 -> 0 | G47: 0 | J47: 0 | K47: ='App.2-B_FA Cont 2011 CGAAP'!K47 -> 0 | L47: 0
A48: 1975 | B48: Load Management Controls Utility Premises | C48: ='App.2-B_FA Cont 2011 CGAAP'!E48 -> 0 | E48: 0 | F48: ='App.2-B_FA Cont 2011 CGAAP'!F48 -> 0 | G48: 0 | J48: 0 | K48: ='App.2-B_FA Cont 2011 CGAAP'!K48 -> 0 | L48: 0
A49: 1980 | B49: System Supervisor Equipment | C49: ='App.2-B_FA Cont 2011 CGAAP'!E49 -> 0 | E49: 0 | F49: ='App.2-B_FA Cont 2011 CGAAP'!F49 -> 0 | G49: 0 | J49: 0 | K49: ='App.2-B_FA Cont 2011 CGAAP'!K49 -> 0 | L49: 0
A50: 1985 | B50: Miscellaneous Fixed Assets | C50: ='App.2-B_FA Cont 2011 CGAAP'!E50 -> 26519 | D50: 12376 | E50: 14143 | F50: ='App.2-B_FA Cont 2011 CGAAP'!F50 -> 1169 | G50: 14727.5 | H50: 10 | I50: 0.1 | J50: 1472.75 | K50: ='App.2-B_FA Cont 2011 CGAAP'!K50 -> 1531 | L50: -58.25 | M50: 17
A51: 1995 | B51: Contributions & Grants | C51: ='App.2-B_FA Cont 2011 CGAAP'!E51 -> -817216 | E51: -817216 | F51: ='App.2-B_FA Cont 2011 CGAAP'!F51 -> -73975 | G51: -854203.5 | H51: 25 | I51: 0.04 | J51: -34168.14 | K51: ='App.2-B_FA Cont 2011 CGAAP'!K51 -> -35279 | L51: 1110.86 | M51: 18
A52: etc. | E52: 0 | F52: ='App.2-B_FA Cont 2011 CGAAP'!F52 -> -8090 | G52: -4045 | J52: 0 | K52: ='App.2-B_FA Cont 2011 CGAAP'!K52 -> 0 | L52: 0
E53: 0 | F53: ='App.2-B_FA Cont 2011 CGAAP'!F53 -> 0 | G53: 0 | J53: 0 | K53: ='App.2-B_FA Cont 2011 CGAAP'!K53 -> 0 | L53: 0
B54: Total | C54: =SUM(C16:C53) -> 7432032 | D54: =SUM(D16:D53) -> 684062 | E54: =SUM(E16:E53) -> 6747970 | F54: =SUM(F16:F53) -> 243754 | G54: =SUM(G16:G53) -> 6869847 | J54: =SUM(J16:J53) -> 300235.975 | K54: =SUM(K16:K53) -> 304304 | L54: =SUM(L16:L53) -> -4068.025
A56: Notes:
A57: 1 | B57: Board policy of the "half-year" rule - the applicant must ensure that additions in the year attract a half-year depreciation expense in the first year. Deviations from this standard practice must be supported in the application.
A58: 2 | B58: The applicant must provide an explanation of material variances in evidence
A59: General: | B59: Applicants must provide a breakdown of depreciation and amortization expense in the above format for all relevant accounts. Asset Retirement Obligations (AROs), depreciation and accretion expense should be disclosed separately consistent with the Notes of historical Audited Financial Statements.

Sheet App.2-CF_CGAAP_DepExp_2012
K1: File Number: | L1: ='LDC Info'!$E$18 -> EB-2012-0165
K2: Exhibit: | L2: 2
K3: Tab:
K4: Schedule:
K5: Page:
K7: Date: | L7: 2013-02-22
A9: Appendix 2-CF
A10: Depreciation and Amortization Expense
A11: Assumes the applicant adopted IFRS for financial reporting purposes January 1, 2013 - Note Sioux Lookout Hydro will be adopting IFRS January 1, 2014
C12: Year | D12: 2012 | E12: CGAAP
A14: Account | B14: Description | C14: Opening Regulatory Gross PP&E as at Jan 1, 2012 | D14: Less Fully Depreciated | E14: Net for Depreciation | F14: Additions | G14: Total for Depreciation | H14: Years | I14: Depreciation Rate | J14: 2012 Depreciation Expense | K14: 2012 Depreciation Expense per Appendix 2-B Fixed Assets, Column K (l) | L14: Variance 2 | M14: Note to explain variance
C15: (a) | D15: (b) | E15: (c) | F15: (d) | G15: (e) = (c) + ½ x (d) 1 | H15: (f) | I15: (g) = 1 / (f) | J15: (h) = (e) / (f) | L15: (m) = (h) - (l)
A16: 1611 | B16: Computer Software (Formally known as Account 1925) | C16: ='App.2-B_FA Cont 2012 CGAAP'!E16 -> 29045 | D16: 4250 | E16: =C16-D16 -> 24795 | F16: ='App.2-B_FA Cont 2012 CGAAP'!F16 -> 52240 | G16: =E16+0.5*F16 -> 50915 | H16: 5 | I16: =IF(H16=0,0,1/H16) -> 0.2 | J16: =IF(H16=0,0,G16/H16) -> 10183 | K16: ='App.2-B_FA Cont 2012 CGAAP'!K16 -> 39701 | L16: =IF(ISERROR(+J16-K16), 0, +J16-K16) -> -29518 | M16: 1 | N16: Smart Meter Disposition
A17: 1612 | B17: Land Rights (Formally known as Account 1906) | C17: ='App.2-B_FA Cont 2012 CGAAP'!E17 -> 0 | E17: =C17-D17 -> 0 | F17: ='App.2-B_FA Cont 2012 CGAAP'!F17 -> 0 | G17: =E17+0.5*F17 -> 0 | I17: 0 | J17: 0 | K17: ='App.2-B_FA Cont 2012 CGAAP'!K17 -> 0 | L17: 0
A18: 1805 | B18: Land | C18: ='App.2-B_FA Cont 2012 CGAAP'!E18 -> 0 | E18: 0 | F18: ='App.2-B_FA Cont 2012 CGAAP'!F18 -> 0 | G18: 0 | I18: 0 | J18: 0 | K18: ='App.2-B_FA Cont 2012 CGAAP'!K18 -> 0 | L18: 0
A19: 1808 | B19: Buildings | C19: ='App.2-B_FA Cont 2012 CGAAP'!E19 -> 91864 | E19: 91864 | F19: ='App.2-B_FA Cont 2012 CGAAP'!F19 -> 0 | G19: 91864 | H19: 25 | I19: 0.04 | J19: 3674.56 | K19: ='App.2-B_FA Cont 2012 CGAAP'!K19 -> 3675 | L19: -0.44
A20: 1810 | B20: Leasehold Improvements | C20: ='App.2-B_FA Cont 2012 CGAAP'!E20 -> 0 | E20: 0 | F20: ='App.2-B_FA Cont 2012 CGAAP'!F20 -> 0 | G20: 0 | I20: 0 | J20: 0 | K20: ='App.2-B_FA Cont 2012 CGAAP'!K20 -> 0 | L20: 0
A21: 1815 | B21: Transformer Station Equipment >50 kV | C21: ='App.2-B_FA Cont 2012 CGAAP'!E21 -> 0 | E21: 0 | F21: ='App.2-B_FA Cont 2012 CGAAP'!F21 -> 0 | G21: 0 | I21: 0 | J21: 0 | K21: ='App.2-B_FA Cont 2012 CGAAP'!K21 -> 0 | L21: 0
A22: 1820 | B22: Distribution Station Equipment <50 kV | C22: ='App.2-B_FA Cont 2012 CGAAP'!E22 -> 0 | E22: 0 | F22: ='App.2-B_FA Cont 2012 CGAAP'!F22 -> 0 | G22: 0 | I22: 0 | J22: 0 | K22: ='App.2-B_FA Cont 2012 CGAAP'!K22 -> 0 | L22: 0
A23: 1825 | B23: Storage Battery Equipment | C23: ='App.2-B_FA Cont 2012 CGAAP'!E23 -> 0 | E23: 0 | F23: ='App.2-B_FA Cont 2012 CGAAP'!F23 -> 0 | G23: 0 | I23: 0 | J23: 0 | K23: ='App.2-B_FA Cont 2012 CGAAP'!K23 -> 0 | L23: 0
A24: 1830 | B24: Poles, Towers & Fixtures | C24: ='App.2-B_FA Cont 2012 CGAAP'!E24 -> 3473474 | E24: 3473474 | F24: ='App.2-B_FA Cont 2012 CGAAP'!F24 -> 133834 | G24: 3540391 | H24: 25 | I24: 0.04 | J24: 141615.64 | K24: ='App.2-B_FA Cont 2012 CGAAP'!K24 -> 127737 | L24: 13878.64 | M24: 2 | N24: Adjustment for 1/2 year rule
A25: 1835 | B25: Overhead Conductors & Devices | C25: ='App.2-B_FA Cont 2012 CGAAP'!E25 -> 1079982 | E25: 1079982 | F25: ='App.2-B_FA Cont 2012 CGAAP'!F25 -> 25855 | G25: 1092909.5 | H25: 25 | I25: 0.04 | J25: 43716.38 | K25: ='App.2-B_FA Cont 2012 CGAAP'!K25 -> 43700 | L25: 16.38 | M25: 3 | N25: Adjustment for 1/2 year rule
A26: 1840 | B26: Underground Conduit | C26: ='App.2-B_FA Cont 2012 CGAAP'!E26 -> 173392 | E26: 173392 | F26: ='App.2-B_FA Cont 2012 CGAAP'!F26 -> 6200 | G26: 176492 | H26: 25 | I26: 0.04 | J26: 7059.68 | K26: ='App.2-B_FA Cont 2012 CGAAP'!K26 -> 6702 | L26: 357.68 | M26: 4 | N26: Adjustment for 1/2 year rule
A27: 1845 | B27: Underground Conductors & Devices | C27: ='App.2-B_FA Cont 2012 CGAAP'!E27 -> 887702 | E27: 887702 | F27: ='App.2-B_FA Cont 2012 CGAAP'!F27 -> 35823 | G27: 905613.5 | H27: 25 | I27: 0.04 | J27: 36224.54 | K27: ='App.2-B_FA Cont 2012 CGAAP'!K27 -> 32802 | L27: 3422.54 | M27: 5 | N27: Adjustment for 1/2 year rule
A28: 1850 | B28: Line Transformers | C28: ='App.2-B_FA Cont 2012 CGAAP'!E28 -> 1607741 | E28: 1607741 | F28: ='App.2-B_FA Cont 2012 CGAAP'!F28 -> 46948 | G28: 1631215 | H28: 25 | I28: 0.04 | J28: 65248.6 | K28: ='App.2-B_FA Cont 2012 CGAAP'!K28 -> 59823 | L28: 5425.6 | M28: 6 | N28: Adjustment for 1/2 year rule
A29: 1855 | B29: Services (Overhead & Underground) | C29: ='App.2-B_FA Cont 2012 CGAAP'!E29 -> 0 | E29: 0 | F29: ='App.2-B_FA Cont 2012 CGAAP'!F29 -> 0 | G29: 0 | I29: 0 | J29: 0 | K29: ='App.2-B_FA Cont 2012 CGAAP'!K29 -> 0 | L29: 0
A30: 1860 | B30: Meters | C30: ='App.2-B_FA Cont 2012 CGAAP'!E30 -> 454082 | D30: 150604 | E30: 303478 | F30: ='App.2-B_FA Cont 2012 CGAAP'!F30 -> 3890 | G30: 305423 | H30: 25 | I30: 0.04 | J30: 12216.92 | K30: ='App.2-B_FA Cont 2012 CGAAP'!K30 -> 11733 | L30: 483.92 | M30: 7
A31: 1860 | B31: Meters (Smart Meters) | C31: ='App.2-B_FA Cont 2012 CGAAP'!E31 -> 0 | E31: 0 | F31: ='App.2-B_FA Cont 2012 CGAAP'!F31 -> 647486 | G31: 323743 | H31: 15 | I31: 0.06666666667 | J31: 21582.86667 | K31: ='App.2-B_FA Cont 2012 CGAAP'!K31 -> 147661 | L31: -126078.1333 | M31: 8 | N31: Smart Meter Disposition
A32: 1905 | B32: Land | C32: ='App.2-B_FA Cont 2012 CGAAP'!E32 -> 0 | E32: 0 | F32: ='App.2-B_FA Cont 2012 CGAAP'!F32 -> 0 | G32: 0 | I32: 0 | J32: 0 | K32: ='App.2-B_FA Cont 2012 CGAAP'!K32 -> 0 | L32: 0
A33: 1908 | B33: Buildings & Fixtures | C33: ='App.2-B_FA Cont 2012 CGAAP'!E33 -> 0 | E33: 0 | F33: ='App.2-B_FA Cont 2012 CGAAP'!F33 -> 0 | G33: 0 | I33: 0 | J33: 0 | K33: ='App.2-B_FA Cont 2012 CGAAP'!K33 -> 0 | L33: 0
A34: 1910 | B34: Leasehold Improvements | C34: ='App.2-B_FA Cont 2012 CGAAP'!E34 -> 0 | E34: 0 | F34: ='App.2-B_FA Cont 2012 CGAAP'!F34 -> 0 | G34: 0 | I34: 0 | J34: 0 | K34: ='App.2-B_FA Cont 2012 CGAAP'!K34 -> 0 | L34: 0
A35: 1915 | B35: Office Furniture & Equipment (10 years) | C35: ='App.2-B_FA Cont 2012 CGAAP'!E35 -> 17532 | D35: 4706 | E35: 12826 | F35: ='App.2-B_FA Cont 2012 CGAAP'!F35 -> 6000 | G35: 15826 | H35: 10 | I35: 0.1 | J35: 1582.6 | K35: ='App.2-B_FA Cont 2012 CGAAP'!K35 -> 1611 | L35: -28.4 | M35: 9
A36: 1915 | B36: Office Furniture & Equipment (5 years) | C36: ='App.2-B_FA Cont 2012 CGAAP'!E36 -> 0 | E36: 0 | F36: ='App.2-B_FA Cont 2012 CGAAP'!F36 -> 0 | G36: 0 | I36: 0 | J36: 0 | K36: ='App.2-B_FA Cont 2012 CGAAP'!K36 -> 0 | L36: 0
A37: 1920 | B37: Computer Equipment - Hardware | C37: ='App.2-B_FA Cont 2012 CGAAP'!E37 -> 0 | E37: 0 | F37: ='App.2-B_FA Cont 2012 CGAAP'!F37 -> 0 | G37: 0 | I37: 0 | J37: 0 | K37: ='App.2-B_FA Cont 2012 CGAAP'!K37 -> 0 | L37: 0
A38: 1920 | B38: Computer Equip.-Hardware(Post Mar. 22/04) | C38: ='App.2-B_FA Cont 2012 CGAAP'!E38 -> 41661 | D38: 15033 | E38: 26628 | F38: ='App.2-B_FA Cont 2012 CGAAP'!F38 -> 28977 | G38: 41116.5 | H38: 5 | I38: 0.2 | J38: 8223.3 | K38: ='App.2-B_FA Cont 2012 CGAAP'!K38 -> 13823 | L38: -5599.7 | M38: 10 | N38: Smart Meter Disposition
A39: 1920 | B39: Computer Equip.-Hardware(Post Mar. 19/07) | C39: ='App.2-B_FA Cont 2012 CGAAP'!E39 -> 0 | E39: 0 | F39: ='App.2-B_FA Cont 2012 CGAAP'!F39 -> 0 | G39: 0 | I39: 0 | J39: 0 | K39: ='App.2-B_FA Cont 2012 CGAAP'!K39 -> 0 | L39: 0
A40: 1930 | B40: Transportation Equipment(8 years) | C40: ='App.2-B_FA Cont 2012 CGAAP'!E40 -> 347546 | D40: 279116 | E40: 68430 | F40: ='App.2-B_FA Cont 2012 CGAAP'!F40 -> 89116 | G40: 112988 | H40: 8 | I40: 0.125 | J40: 14123.5 | K40: ='App.2-B_FA Cont 2012 CGAAP'!K40 -> 9482 | L40: 4641.5 | M40: 11 | N40: Instead of 1/2 rule use month of acquisition
A41: 1930 | B41: Transportation Equipment(5 years) | C41: ='App.2-B_FA Cont 2012 CGAAP'!E41 -> 90317 | D41: 59131 | E41: 31186 | F41: ='App.2-B_FA Cont 2012 CGAAP'!F41 -> 0 | G41: 31186 | H41: 5 | I41: 0.2 | J41: 6237.2 | K41: ='App.2-B_FA Cont 2012 CGAAP'!K41 -> 6237 | L41: 0.2
A42: 1940 | B42: Tools, Shop & Garage Equipment | C42: ='App.2-B_FA Cont 2012 CGAAP'!E42 -> 67211 | D42: 37453 | E42: 29758 | F42: ='App.2-B_FA Cont 2012 CGAAP'!F42 -> 22930 | G42: 41223 | H42: 10 | I42: 0.1 | J42: 4122.3 | K42: ='App.2-B_FA Cont 2012 CGAAP'!K42 -> 7702 | L42: -3579.7 | M42: 12 | N42: Smart Meter Disposition
A43: 1945 | B43: Measurement & Testing Equipment | C43: ='App.2-B_FA Cont 2012 CGAAP'!E43 -> 12694 | E43: 12694 | F43: ='App.2-B_FA Cont 2012 CGAAP'!F43 -> 0 | G43: 12694 | H43: 10 | I43: 0.1 | J43: 1269.4 | K43: ='App.2-B_FA Cont 2012 CGAAP'!K43 -> 1087 | L43: 182.4 | M43: 13
A44: 1950 | B44: Power Operated Equipment | C44: ='App.2-B_FA Cont 2012 CGAAP'!E44 -> 135802 | D44: 108187 | E44: 27615 | F44: ='App.2-B_FA Cont 2012 CGAAP'!F44 -> 720 | G44: 27975 | H44: 8 | I44: 0.125 | J44: 3496.875 | K44: ='App.2-B_FA Cont 2012 CGAAP'!K44 -> 3852 | L44: -355.125 | M44: 14
A45: 1955 | B45: Communications Equipment | C45: ='App.2-B_FA Cont 2012 CGAAP'!E45 -> 37334 | D45: 23602 | E45: 13732 | F45: ='App.2-B_FA Cont 2012 CGAAP'!F45 -> 0 | G45: 13732 | H45: 10 | I45: 0.1 | J45: 1373.2 | K45: ='App.2-B_FA Cont 2012 CGAAP'!K45 -> 1534 | L45: -160.8 | M45: 15
A46: 1955 | B46: Communication Equipment (Smart Meters) | C46: ='App.2-B_FA Cont 2012 CGAAP'!E46 -> 0 | E46: 0 | F46: ='App.2-B_FA Cont 2012 CGAAP'!F46 -> 0 | G46: 0 | I46: 0 | J46: 0 | K46: ='App.2-B_FA Cont 2012 CGAAP'!K46 -> 0 | L46: 0
A47: 1960 | B47: Miscellaneous Equipment | C47: ='App.2-B_FA Cont 2012 CGAAP'!E47 -> 0 | E47: 0 | F47: ='App.2-B_FA Cont 2012 CGAAP'!F47 -> 0 | G47: 0 | I47: 0 | J47: 0 | K47: ='App.2-B_FA Cont 2012 CGAAP'!K47 -> 0 | L47: 0
A48: 1975 | B48: Load Management Controls Utility Premises | C48: ='App.2-B_FA Cont 2012 CGAAP'!E48 -> 0 | E48: 0 | F48: ='App.2-B_FA Cont 2012 CGAAP'!F48 -> 0 | G48: 0 | I48: 0 | J48: 0 | K48: ='App.2-B_FA Cont 2012 CGAAP'!K48 -> 0 | L48: 0
A49: 1980 | B49: System Supervisor Equipment | C49: ='App.2-B_FA Cont 2012 CGAAP'!E49 -> 0 | E49: 0 | F49: ='App.2-B_FA Cont 2012 CGAAP'!F49 -> 0 | G49: 0 | I49: 0 | J49: 0 | K49: ='App.2-B_FA Cont 2012 CGAAP'!K49 -> 0 | L49: 0
A50: 1985 | B50: Miscellaneous Fixed Assets | C50: ='App.2-B_FA Cont 2012 CGAAP'!E50 -> 27688 | D50: 13453 | E50: 14235 | F50: ='App.2-B_FA Cont 2012 CGAAP'!F50 -> 2000 | G50: 15235 | H50: 10 | I50: 0.1 | J50: 1523.5 | K50: ='App.2-B_FA Cont 2012 CGAAP'!K50 -> 1233 | L50: 290.5 | M50: 16 | N50: Adjustment for 1/2 year rule
A51: 1995 | B51: Contributions & Grants | C51: ='App.2-B_FA Cont 2012 CGAAP'!E51 -> -891191 | E51: -891191 | F51: ='App.2-B_FA Cont 2012 CGAAP'!F51 -> -92000 | G51: -937191 | H51: 25 | I51: 0.04 | J51: -37487.64 | K51: ='App.2-B_FA Cont 2012 CGAAP'!K51 -> -30523 | L51: -6964.64 | M51: 17 | N51: Adjustment for 1/2 year rule
A52: etc. | E52: 0 | F52: ='App.2-B_FA Cont 2012 CGAAP'!F52 -> 2109 | G52: 1054.5 | I52: 0 | J52: 0 | K52: ='App.2-B_FA Cont 2012 CGAAP'!K52 -> 0 | L52: 0
E53: 0 | F53: ='App.2-B_FA Cont 2012 CGAAP'!F53 -> 0 | G53: 0 | I53: 0 | J53: 0 | K53: ='App.2-B_FA Cont 2012 CGAAP'!K53 -> 0 | L53: 0
B54: Total | C54: =SUM(C16:C53) -> 7683876 | D54: =SUM(D16:D53) -> 695535 | E54: =SUM(E16:E53) -> 6988341 | F54: =SUM(F16:F53) -> 1012128 | G54: =SUM(G16:G53) -> 7494405 | J54: =SUM(J16:J53) -> 345986.4217 | K54: =SUM(K16:K53) -> 489572 | L54: =SUM(L16:L53) -> -143585.5783
A56: Notes:
A57: 1 | B57: Board policy of the "half-year" rule - the applicant must ensure that additions in the year attract a half-year depreciation expense in the first year. Deviations from this standard practice must be supported in the application.
A58: 2 | B58: The applicant must provide an explanation of material variances in evidence
A60: General: | B60: Applicants must provide a breakdown of depreciation and amortization expense in the above format for all relevant accounts. Asset Retirement Obligations (AROs), depreciation and accretion expense should be disclosed separately consistent with the Notes of historical Audited Financial Statements.

Sheet App.2-CG_MCGAAP_DepExp_2012
N1: File Number: | O1: ='LDC Info'!$E$18 -> EB-2012-0165
N2: Exhibit: | O2: 2
N3: Tab:
N4: Schedule:
N5: Page:
N7: Date: | O7: 2013-02-22
A9: Appendix 2-CG
A10: Depreciation and Amortization Expense
A11: Assumes the applicant adopted IFRS for financial reporting purposes January 1, 2013 -Note Sioux Lookout Hydro will be adopting IFRS January 1, 2014
C12: Year | D12: 2012 | E12: MCGAAP
A14: Account | B14: Description | C14: Opening NBV as at Jan 1, 2012 5 | D14: Additions | E14: Average Remaining Life of Opening NBV 4 | F14: Years (new additions only) 3 | G14: Depreciation Rate on New Additions | H14: Depreciation Expense on Opening NBV | I14: Depreciation Expense on Additions 1 | J14: 2012 Depreciation Expense | K14: 2012 Depreciation Expense per Appendix 2-B Fixed Assets, Column K (l) | L14: Variance 2 | M14: Depreciation Expense on 2012 Full Year Additions | N14: Less Depreciation Expense on Assets Fully Depreciated during the year (o) | O14: 2012 Full Year Depreciation 6 | P14: Note to explain variance
C15: (a) | D15: (d) | E15: (i) | F15: (f) | G15: (g) = 1 / (f) | H15: (j) = (a) / (i) | I15: (h)=((d)*0.5)/(f) | J15: (k) = (j) + (h) | L15: (m) = (k) - (l) | M15: (n)=((d))/(f) | O15: (p) = (j) + (n) - (o)
A16: 1611 | B16: Computer Software (Formally known as Account 1925) | C16: ='App.2-B_FA Cont 2011 CGAAP'!N16 -> 24240 | D16: ='App.2-B_FA Cont 2012 MCGAAP'!F16 -> 52240 | E16: 3.27 | F16: 5 | G16: =IF(F16=0,0,1/F16) -> 0.2 | H16: =IF(E16=0,0,+C16/E16) -> 7412.844037 | I16: =IF(F16=0,0,+(D16*0.5)/F16) -> 5224 | J16: =IF(ISERROR(+H16+I16), 0, +H16+I16) -> 12636.84404 | K16: ='App.2-B_FA Cont 2012 MCGAAP'!K16 -> 39701 | L16: =IF(ISERROR(+J16-K16), 0, +J16-K16) -> -27064.15596 | M16: =IF(F16=0,0,+(D16)/F16) -> 10448 | N16: 432 | O16: =IF(ISERROR(+M16+H16-N16), 0, +M16+H16-N16) -> 17428.84404 | P16: 1 | Q16: Smart Meter Disposition
A17: 1612 | B17: Land Rights (Formally known as Account 1906) | C17: ='App.2-B_FA Cont 2011 CGAAP'!N17 -> 0 | D17: ='App.2-B_FA Cont 2012 MCGAAP'!F17 -> 0 | G17: 0 | H17: 0 | I17: 0 | J17: 0 | K17: ='App.2-B_FA Cont 2012 MCGAAP'!K17 -> 0 | L17: 0 | M17: 0 | O17: =IF(ISERROR(+M17+H17-N17), 0, +M17+H17-N17) -> 0
A18: 1805 | B18: Land | C18: ='App.2-B_FA Cont 2011 CGAAP'!N18 -> 0 | D18: ='App.2-B_FA Cont 2012 MCGAAP'!F18 -> 0 | G18: 0 | H18: 0 | I18: 0 | J18: 0 | K18: ='App.2-B_FA Cont 2012 MCGAAP'!K18 -> 0 | L18: 0 | M18: 0 | O18: 0
A19: 1808 | B19: Buildings | C19: ='App.2-B_FA Cont 2011 CGAAP'!N19 -> 50840 | D19: ='App.2-B_FA Cont 2012 MCGAAP'!F19 -> 0 | E19: 14 | F19: 25 | G19: 0.04 | H19: 3631.428571 | I19: 0 | J19: 3631.428571 | K19: ='App.2-B_FA Cont 2012 MCGAAP'!K19 -> 3675 | L19: -43.57142857 | M19: 0 | O19: 3631.428571 | P19: 2
A20: 1810 | B20: Leasehold Improvements | C20: ='App.2-B_FA Cont 2011 CGAAP'!N20 -> 0 | D20: ='App.2-B_FA Cont 2012 MCGAAP'!F20 -> 0 | G20: 0 | H20: 0 | I20: 0 | J20: 0 | K20: ='App.2-B_FA Cont 2012 MCGAAP'!K20 -> 0 | L20: 0 | M20: 0 | O20: 0
A21: 1815 | B21: Transformer Station Equipment >50 kV | C21: ='App.2-B_FA Cont 2011 CGAAP'!N21 -> 0 | D21: ='App.2-B_FA Cont 2012 MCGAAP'!F21 -> 0 | G21: 0 | H21: 0 | I21: 0 | J21: 0 | K21: ='App.2-B_FA Cont 2012 MCGAAP'!K21 -> 0 | L21: 0 | M21: 0 | O21: 0
A22: 1820 | B22: Distribution Station Equipment <50 kV | C22: ='App.2-B_FA Cont 2011 CGAAP'!N22 -> 0 | D22: ='App.2-B_FA Cont 2012 MCGAAP'!F22 -> 0 | G22: 0 | H22: 0 | I22: 0 | J22: 0 | K22: ='App.2-B_FA Cont 2012 MCGAAP'!K22 -> 0 | L22: 0 | M22: 0 | O22: 0
A23: 1825 | B23: Storage Battery Equipment | C23: ='App.2-B_FA Cont 2011 CGAAP'!N23 -> 0 | D23: ='App.2-B_FA Cont 2012 MCGAAP'!F23 -> 0 | G23: 0 | H23: 0 | I23: 0 | J23: 0 | K23: ='App.2-B_FA Cont 2012 MCGAAP'!K23 -> 0 | L23: 0 | M23: 0 | O23: 0
A24: 1830 | B24: Poles, Towers & Fixtures | C24: ='App.2-B_FA Cont 2011 CGAAP'!N24 -> 2287202 | D24: ='App.2-B_FA Cont 2012 MCGAAP'!F24 -> 103422 | E24: 34 | F24: 45 | G24: 0.02222222222 | H24: 67270.64706 | I24: 1149.133333 | J24: 68419.78039 | K24: ='App.2-B_FA Cont 2012 MCGAAP'!K24 -> 54541 | L24: 13878.78039 | M24: 2298.266667 | O24: 69568.91373 | P24: 3
A25: 1835 | B25: Overhead Conductors & Devices | C25: ='App.2-B_FA Cont 2011 CGAAP'!N25 -> 605093 | D25: ='App.2-B_FA Cont 2012 MCGAAP'!F25 -> 25855 | E25: 34 | F25: 45 | G25: 0.02222222222 | H25: 17796.85294 | I25: 287.2777778 | J25: 18084.13072 | K25: ='App.2-B_FA Cont 2012 MCGAAP'!K25 -> 18068 | L25: 16.13071895 | M25: 574.5555556 | O25: 18371.4085 | P25: 4
A26: 1840 | B26: Underground Conduit | C26: ='App.2-B_FA Cont 2011 CGAAP'!N26 -> 105284 | D26: ='App.2-B_FA Cont 2012 MCGAAP'!F26 -> 5000 | E26: 39 | F26: 50 | G26: 0.02 | H26: 2699.589744 | I26: 50 | J26: 2749.589744 | K26: ='App.2-B_FA Cont 2012 MCGAAP'!K26 -> 2392 | L26: 357.5897436 | M26: 100 | O26: 2799.589744 | P26: 5
A27: 1845 | B27: Underground Conductors & Devices | C27: ='App.2-B_FA Cont 2011 CGAAP'!N27 -> 582212 | D27: ='App.2-B_FA Cont 2012 MCGAAP'!F27 -> 26248 | E27: 29 | F27: 40 | G27: 0.025 | H27: 20076.27586 | I27: 328.1 | J27: 20404.37586 | K27: ='App.2-B_FA Cont 2012 MCGAAP'!K27 -> 16981 | L27: 3423.375862 | M27: 656.2 | O27: 20732.47586 | P27: 6
A28: 1850 | B28: Line Transformers | C28: ='App.2-B_FA Cont 2011 CGAAP'!N28 -> 1020305 | D28: ='App.2-B_FA Cont 2012 MCGAAP'!F28 -> 46948 | E28: 29 | F28: 40 | G28: 0.025 | H28: 35182.93103 | I28: 586.85 | J28: 35769.78103 | K28: ='App.2-B_FA Cont 2012 MCGAAP'!K28 -> 30345 | L28: 5424.781034 | M28: 1173.7 | O28: 36356.63103 | P28: 7
A29: 1855 | B29: Services (Overhead & Underground) | C29: ='App.2-B_FA Cont 2011 CGAAP'!N29 -> 0 | D29: ='App.2-B_FA Cont 2012 MCGAAP'!F29 -> 0 | G29: 0 | H29: 0 | I29: 0 | J29: 0 | K29: ='App.2-B_FA Cont 2012 MCGAAP'!K29 -> 0 | L29: 0 | M29: 0 | O29: 0
A30: 1860 | B30: Meters | C30: ='App.2-B_FA Cont 2011 CGAAP'!N30 -> 327572 | D30: ='App.2-B_FA Cont 2012 MCGAAP'!F30 -> 3890 | E30: 14 | F30: 25 | G30: 0.04 | H30: 23398 | I30: 77.8 | J30: 23475.8 | K30: ='App.2-B_FA Cont 2012 MCGAAP'!K30 -> 11733 | L30: 11742.8 | M30: 155.6 | N30: 11778 | O30: 11775.6 | P30: 8 | Q30: Stranded Meters
A31: 1860 | B31: Meters (Smart Meters) | C31: ='App.2-B_FA Cont 2011 CGAAP'!N31 -> 0 | D31: ='App.2-B_FA Cont 2012 MCGAAP'!F31 -> 647486 | E31: 12 | F31: 15 | G31: 0.06666666667 | H31: 0 | I31: 21582.86667 | J31: 21582.86667 | K31: ='App.2-B_FA Cont 2012 MCGAAP'!K31 -> 147661 | L31: -126078.1333 | M31: 43165.73333 | O31: 43165.73333 | P31: 9 | Q31: Smart Meter Disposition
A32: 1905 | B32: Land | C32: ='App.2-B_FA Cont 2011 CGAAP'!N32 -> 0 | D32: ='App.2-B_FA Cont 2012 MCGAAP'!F32 -> 0 | G32: 0 | H32: 0 | I32: 0 | J32: 0 | K32: ='App.2-B_FA Cont 2012 MCGAAP'!K32 -> 0 | L32: 0 | M32: 0 | O32: 0
A33: 1908 | B33: Buildings & Fixtures | C33: ='App.2-B_FA Cont 2011 CGAAP'!N33 -> 0 | D33: ='App.2-B_FA Cont 2012 MCGAAP'!F33 -> 0 | G33: 0 | H33: 0 | I33: 0 | J33: 0 | K33: ='App.2-B_FA Cont 2012 MCGAAP'!K33 -> 0 | L33: 0 | M33: 0 | O33: 0
A34: 1910 | B34: Leasehold Improvements | C34: ='App.2-B_FA Cont 2011 CGAAP'!N34 -> 0 | D34: ='App.2-B_FA Cont 2012 MCGAAP'!F34 -> 0 | G34: 0 | H34: 0 | I34: 0 | J34: 0 | K34: ='App.2-B_FA Cont 2012 MCGAAP'!K34 -> 0 | L34: 0 | M34: 0 | O34: 0
A35: 1915 | B35: Office Furniture & Equipment (10 years) | C35: ='App.2-B_FA Cont 2011 CGAAP'!N35 -> 9103 | D35: ='App.2-B_FA Cont 2012 MCGAAP'!F35 -> 6000 | E35: 7.79 | F35: 10 | G35: 0.1 | H35: 1168.549422 | I35: 300 | J35: 1468.549422 | K35: ='App.2-B_FA Cont 2012 MCGAAP'!K35 -> 1611 | L35: -142.4505777 | M35: 600 | N35: 10.3 | O35: 1758.249422 | P35: 10
A36: 1915 | B36: Office Furniture & Equipment (5 years) | C36: ='App.2-B_FA Cont 2011 CGAAP'!N36 -> 0 | D36: ='App.2-B_FA Cont 2012 MCGAAP'!F36 -> 0 | G36: 0 | H36: 0 | I36: 0 | J36: 0 | K36: ='App.2-B_FA Cont 2012 MCGAAP'!K36 -> 0 | L36: 0 | M36: 0 | O36: 0
A37: 1920 | B37: Computer Equipment - Hardware | C37: ='App.2-B_FA Cont 2011 CGAAP'!N37 -> 0 | D37: ='App.2-B_FA Cont 2012 MCGAAP'!F37 -> 0 | G37: 0 | H37: 0 | I37: 0 | J37: 0 | K37: ='App.2-B_FA Cont 2012 MCGAAP'!K37 -> 0 | L37: 0 | M37: 0 | O37: 0
A38: 1920 | B38: Computer Equip.-Hardware(Post Mar. 22/04) | C38: ='App.2-B_FA Cont 2011 CGAAP'!N38 -> 12678 | D38: ='App.2-B_FA Cont 2012 MCGAAP'!F38 -> 28977 | E38: 2.83 | F38: 5 | G38: 0.2 | H38: 4479.858657 | I38: 2897.7 | J38: 7377.558657 | K38: ='App.2-B_FA Cont 2012 MCGAAP'!K38 -> 13823 | L38: -6445.441343 | M38: 5795.4 | N38: 175.29 | O38: 10099.96866 | P38: 11 | Q38: Smart Meter Disposition
A39: 1920 | B39: Computer Equip.-Hardware(Post Mar. 19/07) | C39: ='App.2-B_FA Cont 2011 CGAAP'!N39 -> 0 | D39: ='App.2-B_FA Cont 2012 MCGAAP'!F39 -> 0 | G39: 0 | H39: 0 | I39: 0 | J39: 0 | K39: ='App.2-B_FA Cont 2012 MCGAAP'!K39 -> 0 | L39: 0 | M39: 0 | O39: 0
A40: 1930 | B40: Transportation Equipment(8 years) | C40: ='App.2-B_FA Cont 2011 CGAAP'!N40 -> 34927.42 | D40: ='App.2-B_FA Cont 2012 MCGAAP'!F40 -> 89116 | E40: 4.1 | F40: 8 | G40: 0.125 | H40: 8518.882927 | I40: =IF(F40=0,0,+(D40*1/12)/F40) -> 928.2916667 | J40: 9447.174593 | K40: ='App.2-B_FA Cont 2012 MCGAAP'!K40 -> 9482 | L40: -34.8254065 | M40: 11139.5 | O40: 19658.38293 | P40: 12 | Q40: used month of acquisition
A41: 1930 | B41: Transportation Equipment(5 years) | C41: ='App.2-B_FA Cont 2011 CGAAP'!N41 -> 18189.09 | D41: ='App.2-B_FA Cont 2012 MCGAAP'!F41 -> 0 | E41: 3 | F41: 5 | G41: 0.2 | H41: 6063.03 | I41: 0 | J41: 6063.03 | K41: ='App.2-B_FA Cont 2012 MCGAAP'!K41 -> 6237 | L41: -173.97 | M41: 0 | O41: 6063.03 | P41: 13
A42: 1940 | B42: Tools, Shop & Garage Equipment | C42: ='App.2-B_FA Cont 2011 CGAAP'!N42 -> 15953 | D42: ='App.2-B_FA Cont 2012 MCGAAP'!F42 -> 22930 | E42: 6.17 | F42: 10 | G42: 0.1 | H42: 2585.575365 | I42: 1146.5 | J42: 3732.075365 | K42: ='App.2-B_FA Cont 2012 MCGAAP'!K42 -> 7702 | L42: -3969.924635 | M42: 2293 | N42: 614.62 | O42: 4263.955365 | P42: 14 | Q42: Smart Meter Disposition
A43: 1945 | B43: Measurement & Testing Equipment | C43: ='App.2-B_FA Cont 2011 CGAAP'!N43 -> 3220 | D43: ='App.2-B_FA Cont 2012 MCGAAP'!F43 -> 0 | E43: 2.69 | F43: 10 | G43: 0.1 | H43: 1197.026022 | I43: 0 | J43: 1197.026022 | K43: ='App.2-B_FA Cont 2012 MCGAAP'!K43 -> 1087 | L43: 110.0260223 | M43: 0 | N43: 143.53 | O43: 1053.496022 | P43: 15
A44: 1950 | B44: Power Operated Equipment | C44: ='App.2-B_FA Cont 2011 CGAAP'!N44 -> 22689 | D44: ='App.2-B_FA Cont 2012 MCGAAP'!F44 -> 720 | E44: 5.87 | F44: 8 | G44: 0.125 | H44: 3865.247019 | I44: 45 | J44: 3910.247019 | K44: ='App.2-B_FA Cont 2012 MCGAAP'!K44 -> 3852 | L44: 58.24701874 | M44: 90 | O44: 3955.247019 | P44: 16
A45: 1955 | B45: Communications Equipment | C45: ='App.2-B_FA Cont 2011 CGAAP'!N45 -> 6980 | D45: ='App.2-B_FA Cont 2012 MCGAAP'!F45 -> 0 | E45: 4.55 | F45: 10 | G45: 0.1 | H45: 1534.065934 | I45: 0 | J45: 1534.065934 | K45: ='App.2-B_FA Cont 2012 MCGAAP'!K45 -> 1534 | L45: 0.06593406593 | M45: 0 | N45: 29.78 | O45: 1504.285934 | P45: 17
A46: 1955 | B46: Communication Equipment (Smart Meters) | C46: ='App.2-B_FA Cont 2011 CGAAP'!N46 -> 0 | D46: ='App.2-B_FA Cont 2012 MCGAAP'!F46 -> 0 | G46: 0 | H46: 0 | I46: 0 | J46: 0 | K46: ='App.2-B_FA Cont 2012 MCGAAP'!K46 -> 0 | L46: 0 | M46: 0 | O46: 0
A47: 1960 | B47: Miscellaneous Equipment | C47: ='App.2-B_FA Cont 2011 CGAAP'!N47 -> 0 | D47: ='App.2-B_FA Cont 2012 MCGAAP'!F47 -> 0 | G47: 0 | H47: 0 | I47: 0 | J47: 0 | K47: ='App.2-B_FA Cont 2012 MCGAAP'!K47 -> 0 | L47: 0 | M47: 0 | O47: 0
A48: 1975 | B48: Load Management Controls Utility Premises | C48: ='App.2-B_FA Cont 2011 CGAAP'!N48 -> 0 | D48: ='App.2-B_FA Cont 2012 MCGAAP'!F48 -> 0 | G48: 0 | H48: 0 | I48: 0 | J48: 0 | K48: ='App.2-B_FA Cont 2012 MCGAAP'!K48 -> 0 | L48: 0 | M48: 0 | O48: 0
A49: 1980 | B49: System Supervisor Equipment | C49: ='App.2-B_FA Cont 2011 CGAAP'!N49 -> 0 | D49: ='App.2-B_FA Cont 2012 MCGAAP'!F49 -> 0 | G49: 0 | H49: 0 | I49: 0 | J49: 0 | K49: ='App.2-B_FA Cont 2012 MCGAAP'!K49 -> 0 | L49: 0 | M49: 0 | O49: 0
A50: 1985 | B50: Miscellaneous Fixed Assets | C50: ='App.2-B_FA Cont 2011 CGAAP'!N50 -> 6711 | D50: ='App.2-B_FA Cont 2012 MCGAAP'!F50 -> 2000 | E50: 5.37 | F50: 10 | G50: 0.1 | H50: 1249.72067 | I50: 100 | J50: 1349.72067 | K50: ='App.2-B_FA Cont 2012 MCGAAP'!K50 -> 1233 | L50: 116.7206704 | M50: 200 | N50: 232.54 | O50: 1217.18067 | P50: 18
A51: 1995 | B51: Contributions & Grants | C51: ='App.2-B_FA Cont 2011 CGAAP'!N51 -> -681468 | D51: ='App.2-B_FA Cont 2012 MCGAAP'!F51 -> -92000 | E51: 29 | F51: 40 | G51: 0.025 | H51: -23498.89655 | I51: -1150 | J51: -24648.89655 | K51: ='App.2-B_FA Cont 2012 MCGAAP'!K51 -> -22161 | L51: -2487.896552 | M51: -2300 | O51: -25798.89655 | P51: 19
A52: etc. | G52: 0 | H52: 0 | I52: 0 | J52: 0 | K52: ='App.2-B_FA Cont 2012 MCGAAP'!K52 -> 0 | L52: 0 | M52: 0 | O52: 0
G53: 0 | H53: 0 | I53: 0 | J53: 0 | K53: ='App.2-B_FA Cont 2012 MCGAAP'!K53 -> 0 | L53: 0 | M53: 0 | O53: 0
B54: Total | C54: =SUM(C16:C53) -> 4451730.51 | D54: =SUM(D16:D53) -> 968832 | H54: =SUM(H16:H53) -> 184631.6287 | I54: 33553.51944 | J54: 218185.1482 | K54: 349497 | L54: -131311.8518 | M54: 76389.95556 | N54: =SUM(N16:N53) -> 13416.06 | O54: 247605.5243
A56: Notes:
A58: 1 | B58: Board policy of the "half-year" rule - the applicant must ensure that additions in the year attract a half-year depreciation expense in the first year. Deviations from this standard practice must be supported in the application.
A59: 2 | B59: The applicant must provide an explanation of material variances in evidence
A60: 3 | B60: The applicant should ensure that the years for new additions of assets are the asset useful lives determined by management in accordance with IFRS.
A61: 4 | B61: A recalculation should be performed to determine the average remaining life of opening balance of assets (i.e. excluding 2012 additions) under IFRS. For example, Asset A had a useful life of 20 years under CGAAP. On January 1, 2012, the date of transition, Asset A was 3 years depreciated. As a result, Asset A would have a remaining service life of 17 years (20 years less 3 years) under CGAAP as of January 1, 2012. Due to the transition to IFRS, management re-assessed the asset useful lives under IFRS principles and concluded that the revised useful life of Asset A is now 30 years. Therefore, the average remaining useful life of opening balance of Asset A is determined to be 27 years (30 years less 3 years) under IFRS as of January 1, 2012.
A62: 5 | B62: NBV must exclude assets still on the books but which have been fully amortized or depreciated.
A63: 6 | B63: This column refers to the calculated full year depreciation but excludes the depreciation expense on assets fully depreciated during the year. This column is used for the purpose of calculating depreciation expense in the following year on the next worksheet.
A65: General: | B65: Applicants must provide a breakdown of depreciation and amortization expense in the above format for all relevant accounts. Asset Retirement Obligations (AROs), depreciation and accretion expense should be disclosed separately consistent with the Notes of historical Audited Financial Statements.

Sheet App.2-CH_MCGAAP_DepExp_2013
I1: File Number: | J1: ='LDC Info'!$E$18 -> EB-2012-0165
I2: Exhibit: | J2: 2
I3: Tab:
I4: Schedule:
I5: Page:
I7: Date: | J7: 2013-02-22
A9: Appendix 2-CH
A10: Depreciation and Amortization Expense
A11: Assumes the applicant adopted IFRS for financial reporting purposes January 1, 2013 - Note Sioux Lookout Hydro will be adopting IFRS January 1, 2014
C12: Year | D12: 2013 | E12: MCGAAP
A14: Account | B14: Description | C14: Additions | D14: Years (new additions only) | E14: Depreciation Rate on New Additions | F14: 2013 Depreciation Expense 1 | G14: 2013 Depreciation Expense per Appendix 2-B Fixed Assets, Column K (l) | H14: Variance 2 | I14: Note to explain variance
C15: (d) | D15: (f) | E15: (g) = 1 / (f) | F15: (h)=2012 Full Year Depreciation + ((d)*0.5)/(f) | H15: (m) = (h) - (l)
A16: 1611 | B16: Computer Software (Formally known as Account 1925) | C16: ='App.2-B_FA Cont 2013 MCGAAP'!F16 -> 1000 | D16: 5 | E16: =IF(D16=0,0,1/D16) -> 0.2 | F16: =IF(D16=0,'App.2-CG_MCGAAP_DepExp_2012'!O16,+'App.2-CG_MCGAAP_DepExp_2012'!O16+((C16*0.5)/D16)) -> 17528.84404 | G16: ='App.2-B_FA Cont 2013 MCGAAP'!K16 -> 15607 | H16: =IF(ISERROR(+F16-G16), 0, +F16-G16) -> 1921.844037 | I16: 1
A17: 1612 | B17: Land Rights (Formally known as Account 1906) | C17: ='App.2-B_FA Cont 2013 MCGAAP'!F17 -> 0 | E17: 0 | F17: =IF(D17=0,'App.2-CG_MCGAAP_DepExp_2012'!O17,+'App.2-CG_MCGAAP_DepExp_2012'!O17+((C17*0.5)/D17)) -> 0 | G17: ='App.2-B_FA Cont 2013 MCGAAP'!K17 -> 0 | H17: 0
A18: 1805 | B18: Land | C18: ='App.2-B_FA Cont 2013 MCGAAP'!F18 -> 0 | E18: 0 | F18: =IF(D18=0,'App.2-CG_MCGAAP_DepExp_2012'!O18,+'App.2-CG_MCGAAP_DepExp_2012'!O18+((C18*0.5)/D18)) -> 0 | G18: ='App.2-B_FA Cont 2013 MCGAAP'!K18 -> 0 | H18: 0
A19: 1808 | B19: Buildings | C19: ='App.2-B_FA Cont 2013 MCGAAP'!F19 -> 0 | D19: 25 | E19: 0.04 | F19: =IF(D19=0,'App.2-CG_MCGAAP_DepExp_2012'!O19,+'App.2-CG_MCGAAP_DepExp_2012'!O19+((C19*0.5)/D19)) -> 3631.428571 | G19: ='App.2-B_FA Cont 2013 MCGAAP'!K19 -> 3675 | H19: -43.57142857 | I19: 2
A20: 1810 | B20: Leasehold Improvements | C20: ='App.2-B_FA Cont 2013 MCGAAP'!F20 -> 0 | E20: 0 | F20: =IF(D20=0,'App.2-CG_MCGAAP_DepExp_2012'!O20,+'App.2-CG_MCGAAP_DepExp_2012'!O20+((C20*0.5)/D20)) -> 0 | G20: ='App.2-B_FA Cont 2013 MCGAAP'!K20 -> 0 | H20: 0
A21: 1815 | B21: Transformer Station Equipment >50 kV | C21: ='App.2-B_FA Cont 2013 MCGAAP'!F21 -> 0 | E21: 0 | F21: =IF(D21=0,'App.2-CG_MCGAAP_DepExp_2012'!O21,+'App.2-CG_MCGAAP_DepExp_2012'!O21+((C21*0.5)/D21)) -> 0 | G21: ='App.2-B_FA Cont 2013 MCGAAP'!K21 -> 0 | H21: 0
A22: 1820 | B22: Distribution Station Equipment <50 kV | C22: ='App.2-B_FA Cont 2013 MCGAAP'!F22 -> 0 | E22: 0 | F22: =IF(D22=0,'App.2-CG_MCGAAP_DepExp_2012'!O22,+'App.2-CG_MCGAAP_DepExp_2012'!O22+((C22*0.5)/D22)) -> 0 | G22: ='App.2-B_FA Cont 2013 MCGAAP'!K22 -> 0 | H22: 0
A23: 1825 | B23: Storage Battery Equipment | C23: ='App.2-B_FA Cont 2013 MCGAAP'!F23 -> 0 | E23: 0 | F23: =IF(D23=0,'App.2-CG_MCGAAP_DepExp_2012'!O23,+'App.2-CG_MCGAAP_DepExp_2012'!O23+((C23*0.5)/D23)) -> 0 | G23: ='App.2-B_FA Cont 2013 MCGAAP'!K23 -> 0 | H23: 0
A24: 1830 | B24: Poles, Towers & Fixtures | C24: ='App.2-B_FA Cont 2013 MCGAAP'!F24 -> 49073 | D24: 45 | E24: 0.02222222222 | F24: =IF(D24=0,'App.2-CG_MCGAAP_DepExp_2012'!O24,+'App.2-CG_MCGAAP_DepExp_2012'!O24+((C24*0.5)/D24)) -> 70114.16928 | G24: ='App.2-B_FA Cont 2013 MCGAAP'!K24 -> 70114 | H24: 0.1692810457
A25: 1835 | B25: Overhead Conductors & Devices | C25: ='App.2-B_FA Cont 2013 MCGAAP'!F25 -> 12268 | D25: 45 | E25: 0.02222222222 | F25: =IF(D25=0,'App.2-CG_MCGAAP_DepExp_2012'!O25,+'App.2-CG_MCGAAP_DepExp_2012'!O25+((C25*0.5)/D25)) -> 18507.71961 | G25: ='App.2-B_FA Cont 2013 MCGAAP'!K25 -> 18508 | H25: -0.2803921569
A26: 1840 | B26: Underground Conduit | C26: ='App.2-B_FA Cont 2013 MCGAAP'!F26 -> 5000 | D26: 50 | E26: 0.02 | F26: =IF(D26=0,'App.2-CG_MCGAAP_DepExp_2012'!O26,+'App.2-CG_MCGAAP_DepExp_2012'!O26+((C26*0.5)/D26)) -> 2849.589744 | G26: ='App.2-B_FA Cont 2013 MCGAAP'!K26 -> 2850 | H26: -0.4102564103
A27: 1845 | B27: Underground Conductors & Devices | C27: ='App.2-B_FA Cont 2013 MCGAAP'!F27 -> 89152 | D27: 40 | E27: 0.025 | F27: =IF(D27=0,'App.2-CG_MCGAAP_DepExp_2012'!O27,+'App.2-CG_MCGAAP_DepExp_2012'!O27+((C27*0.5)/D27)) -> 21846.87586 | G27: ='App.2-B_FA Cont 2013 MCGAAP'!K27 -> 21847 | H27: -0.124137931
A28: 1850 | B28: Line Transformers | C28: ='App.2-B_FA Cont 2013 MCGAAP'!F28 -> 59767 | D28: 40 | E28: 0.025 | F28: =IF(D28=0,'App.2-CG_MCGAAP_DepExp_2012'!O28,+'App.2-CG_MCGAAP_DepExp_2012'!O28+((C28*0.5)/D28)) -> 37103.71853 | G28: ='App.2-B_FA Cont 2013 MCGAAP'!K28 -> 37104 | H28: -0.2814655172
A29: 1855 | B29: Services (Overhead & Underground) | C29: ='App.2-B_FA Cont 2013 MCGAAP'!F29 -> 0 | E29: 0 | F29: =IF(D29=0,'App.2-CG_MCGAAP_DepExp_2012'!O29,+'App.2-CG_MCGAAP_DepExp_2012'!O29+((C29*0.5)/D29)) -> 0 | G29: ='App.2-B_FA Cont 2013 MCGAAP'!K29 -> 0 | H29: 0
A30: 1860 | B30: Meters | C30: ='App.2-B_FA Cont 2013 MCGAAP'!F30 -> 0 | D30: 25 | E30: 0.04 | F30: =IF(D30=0,'App.2-CG_MCGAAP_DepExp_2012'!O30,+'App.2-CG_MCGAAP_DepExp_2012'!O30+((C30*0.5)/D30)) -> 11775.6 | G30: ='App.2-B_FA Cont 2013 MCGAAP'!K30 -> 12035 | H30: -259.4 | I30: 3
A31: 1860 | B31: Meters (Smart Meters) | C31: ='App.2-B_FA Cont 2013 MCGAAP'!F31 -> 1680 | D31: 15 | E31: 0.06666666667 | F31: =IF(D31=0,'App.2-CG_MCGAAP_DepExp_2012'!O31,+'App.2-CG_MCGAAP_DepExp_2012'!O31+((C31*0.5)/D31)) -> 43221.73333 | G31: ='App.2-B_FA Cont 2013 MCGAAP'!K31 -> 43222 | H31: -0.2666666667
A32: 1905 | B32: Land | C32: ='App.2-B_FA Cont 2013 MCGAAP'!F32 -> 0 | E32: 0 | F32: =IF(D32=0,'App.2-CG_MCGAAP_DepExp_2012'!O32,+'App.2-CG_MCGAAP_DepExp_2012'!O32+((C32*0.5)/D32)) -> 0 | G32: ='App.2-B_FA Cont 2013 MCGAAP'!K32 -> 0 | H32: 0
A33: 1908 | B33: Buildings & Fixtures | C33: ='App.2-B_FA Cont 2013 MCGAAP'!F33 -> 0 | E33: 0 | F33: =IF(D33=0,'App.2-CG_MCGAAP_DepExp_2012'!O33,+'App.2-CG_MCGAAP_DepExp_2012'!O33+((C33*0.5)/D33)) -> 0 | G33: ='App.2-B_FA Cont 2013 MCGAAP'!K33 -> 0 | H33: 0
A34: 1910 | B34: Leasehold Improvements | C34: ='App.2-B_FA Cont 2013 MCGAAP'!F34 -> 0 | E34: 0 | F34: =IF(D34=0,'App.2-CG_MCGAAP_DepExp_2012'!O34,+'App.2-CG_MCGAAP_DepExp_2012'!O34+((C34*0.5)/D34)) -> 0 | G34: ='App.2-B_FA Cont 2013 MCGAAP'!K34 -> 0 | H34: 0
A35: 1915 | B35: Office Furniture & Equipment (10 years) | C35: ='App.2-B_FA Cont 2013 MCGAAP'!F35 -> 0 | D35: 10 | E35: 0.1 | F35: =IF(D35=0,'App.2-CG_MCGAAP_DepExp_2012'!O35,+'App.2-CG_MCGAAP_DepExp_2012'!O35+((C35*0.5)/D35)) -> 1758.249422 | G35: ='App.2-B_FA Cont 2013 MCGAAP'!K35 -> 1851 | H35: -92.75057766 | I35: 4
A36: 1915 | B36: Office Furniture & Equipment (5 years) | C36: ='App.2-B_FA Cont 2013 MCGAAP'!F36 -> 0 | E36: 0 | F36: =IF(D36=0,'App.2-CG_MCGAAP_DepExp_2012'!O36,+'App.2-CG_MCGAAP_DepExp_2012'!O36+((C36*0.5)/D36)) -> 0 | G36: ='App.2-B_FA Cont 2013 MCGAAP'!K36 -> 0 | H36: 0
A37: 1920 | B37: Computer Equipment - Hardware | C37: ='App.2-B_FA Cont 2013 MCGAAP'!F37 -> 0 | E37: 0 | F37: =IF(D37=0,'App.2-CG_MCGAAP_DepExp_2012'!O37,+'App.2-CG_MCGAAP_DepExp_2012'!O37+((C37*0.5)/D37)) -> 0 | G37: ='App.2-B_FA Cont 2013 MCGAAP'!K37 -> 0 | H37: 0
A38: 1920 | B38: Computer Equip.-Hardware(Post Mar. 22/04) | C38: ='App.2-B_FA Cont 2013 MCGAAP'!F38 -> 2000 | D38: 5 | E38: 0.2 | F38: =IF(D38=0,'App.2-CG_MCGAAP_DepExp_2012'!O38,+'App.2-CG_MCGAAP_DepExp_2012'!O38+((C38*0.5)/D38)) -> 10299.96866 | G38: ='App.2-B_FA Cont 2013 MCGAAP'!K38 -> 9830 | H38: 469.9686572 | I38: 5
A39: 1920 | B39: Computer Equip.-Hardware(Post Mar. 19/07) | C39: ='App.2-B_FA Cont 2013 MCGAAP'!F39 -> 0 | E39: 0 | F39: =IF(D39=0,'App.2-CG_MCGAAP_DepExp_2012'!O39,+'App.2-CG_MCGAAP_DepExp_2012'!O39+((C39*0.5)/D39)) -> 0 | G39: ='App.2-B_FA Cont 2013 MCGAAP'!K39 -> 0 | H39: 0
A40: 1930 | B40: Transportation Equipment(8 years) | C40: ='App.2-B_FA Cont 2013 MCGAAP'!F40 -> 0 | D40: 8 | E40: 0.125 | F40: =IF(D40=0,'App.2-CG_MCGAAP_DepExp_2012'!O40,+'App.2-CG_MCGAAP_DepExp_2012'!O40+((C40*0.5)/D40)) -> 19658.38293 | G40: ='App.2-B_FA Cont 2013 MCGAAP'!K40 -> 19693 | H40: -34.61707317 | I40: 6
A41: 1930 | B41: Transportation Equipment(5 years) | C41: ='App.2-B_FA Cont 2013 MCGAAP'!F41 -> 0 | D41: 5 | E41: 0.2 | F41: =IF(D41=0,'App.2-CG_MCGAAP_DepExp_2012'!O41,+'App.2-CG_MCGAAP_DepExp_2012'!O41+((C41*0.5)/D41)) -> 6063.03 | G41: ='App.2-B_FA Cont 2013 MCGAAP'!K41 -> 6237 | H41: -173.97 | I41: 7
A42: 1940 | B42: Tools, Shop & Garage Equipment | C42: ='App.2-B_FA Cont 2013 MCGAAP'!F42 -> 5000 | D42: 10 | E42: 0.1 | F42: =IF(D42=0,'App.2-CG_MCGAAP_DepExp_2012'!O42,+'App.2-CG_MCGAAP_DepExp_2012'!O42+((C42*0.5)/D42)) -> 4513.955365 | G42: ='App.2-B_FA Cont 2013 MCGAAP'!K42 -> 5519 | H42: -1005.044635 | I42: 8
A43: 1945 | B43: Measurement & Testing Equipment | C43: ='App.2-B_FA Cont 2013 MCGAAP'!F43 -> 7000 | D43: 10 | E43: 0.1 | F43: =IF(D43=0,'App.2-CG_MCGAAP_DepExp_2012'!O43,+'App.2-CG_MCGAAP_DepExp_2012'!O43+((C43*0.5)/D43)) -> 1403.496022 | G43: ='App.2-B_FA Cont 2013 MCGAAP'!K43 -> 1643 | H43: -239.5039777 | I43: 9
A44: 1950 | B44: Power Operated Equipment | C44: ='App.2-B_FA Cont 2013 MCGAAP'!F44 -> 86000 | D44: 8 | E44: 0.125 | F44: =IF(D44=0,'App.2-CG_MCGAAP_DepExp_2012'!O44,+'App.2-CG_MCGAAP_DepExp_2012'!O44+((C44*0.5)/D44)) -> 9330.247019 | G44: ='App.2-B_FA Cont 2013 MCGAAP'!K44 -> 14662 | H44: -5331.752981 | I44: 10
A45: 1955 | B45: Communications Equipment | C45: ='App.2-B_FA Cont 2013 MCGAAP'!F45 -> 0 | D45: 10 | E45: 0.1 | F45: =IF(D45=0,'App.2-CG_MCGAAP_DepExp_2012'!O45,+'App.2-CG_MCGAAP_DepExp_2012'!O45+((C45*0.5)/D45)) -> 1504.285934 | G45: ='App.2-B_FA Cont 2013 MCGAAP'!K45 -> 1504 | H45: 0.2859340659
A46: 1955 | B46: Communication Equipment (Smart Meters) | C46: ='App.2-B_FA Cont 2013 MCGAAP'!F46 -> 0 | E46: 0 | F46: =IF(D46=0,'App.2-CG_MCGAAP_DepExp_2012'!O46,+'App.2-CG_MCGAAP_DepExp_2012'!O46+((C46*0.5)/D46)) -> 0 | G46: ='App.2-B_FA Cont 2013 MCGAAP'!K46 -> 0 | H46: 0
A47: 1960 | B47: Miscellaneous Equipment | C47: ='App.2-B_FA Cont 2013 MCGAAP'!F47 -> 0 | E47: 0 | F47: =IF(D47=0,'App.2-CG_MCGAAP_DepExp_2012'!O47,+'App.2-CG_MCGAAP_DepExp_2012'!O47+((C47*0.5)/D47)) -> 0 | G47: ='App.2-B_FA Cont 2013 MCGAAP'!K47 -> 0 | H47: 0
A48: 1975 | B48: Load Management Controls Utility Premises | C48: ='App.2-B_FA Cont 2013 MCGAAP'!F48 -> 0 | E48: 0 | F48: =IF(D48=0,'App.2-CG_MCGAAP_DepExp_2012'!O48,+'App.2-CG_MCGAAP_DepExp_2012'!O48+((C48*0.5)/D48)) -> 0 | G48: ='App.2-B_FA Cont 2013 MCGAAP'!K48 -> 0 | H48: 0
A49: 1980 | B49: System Supervisor Equipment | C49: ='App.2-B_FA Cont 2013 MCGAAP'!F49 -> 0 | E49: 0 | F49: =IF(D49=0,'App.2-CG_MCGAAP_DepExp_2012'!O49,+'App.2-CG_MCGAAP_DepExp_2012'!O49+((C49*0.5)/D49)) -> 0 | G49: ='App.2-B_FA Cont 2013 MCGAAP'!K49 -> 0 | H49: 0
A50: 1985 | B50: Miscellaneous Fixed Assets | C50: ='App.2-B_FA Cont 2013 MCGAAP'!F50 -> 2000 | D50: 10 | E50: 0.1 | F50: =IF(D50=0,'App.2-CG_MCGAAP_DepExp_2012'!O50,+'App.2-CG_MCGAAP_DepExp_2012'!O50+((C50*0.5)/D50)) -> 1317.18067 | G50: ='App.2-B_FA Cont 2013 MCGAAP'!K50 -> 1491 | H50: -173.8193296 | I50: 11
A51: 1995 | B51: Contributions & Grants | C51: ='App.2-B_FA Cont 2013 MCGAAP'!F51 -> -92000 | D51: 40 | E51: 0.025 | F51: =IF(D51=0,'App.2-CG_MCGAAP_DepExp_2012'!O51,+'App.2-CG_MCGAAP_DepExp_2012'!O51+((C51*0.5)/D51)) -> -26948.89655 | G51: ='App.2-B_FA Cont 2013 MCGAAP'!K51 -> -31517 | H51: 4568.103448 | I51: 12
A52: etc. | C52: ='App.2-B_FA Cont 2013 MCGAAP'!F52 -> 0 | E52: 0 | F52: =IF(D52=0,'App.2-CG_MCGAAP_DepExp_2012'!O52,+'App.2-CG_MCGAAP_DepExp_2012'!O52+((C52*0.5)/D52)) -> 0 | G52: ='App.2-B_FA Cont 2013 MCGAAP'!K52 -> 0 | H52: 0
C53: ='App.2-B_FA Cont 2013 MCGAAP'!F53 -> 0 | E53: 0 | F53: =IF(D53=0,'App.2-CG_MCGAAP_DepExp_2012'!O53,+'App.2-CG_MCGAAP_DepExp_2012'!O53+((C53*0.5)/D53)) -> 0 | G53: ='App.2-B_FA Cont 2013 MCGAAP'!K53 -> 0 | H53: 0
B54: Total | C54: =SUM(C16:C53) -> 227940 | F54: =SUM(F16:F53) -> 255479.5784 | G54: =SUM(G16:G53) -> 255875 | H54: =SUM(H16:H53) -> -395.4215647
B55: Depreciation expense adjustment resulting from amortization of Account 1576 and removal of sentinel light depreciation | F55: -26213
B56: Total Depreciation expense to be included in the test year revenue requirement | F56: =+F55+F54 -> 229266.5784
A58: Notes:
A59: 1 | B59: Board policy of the "half-year" rule - the applicant must ensure that additions in the year attract a half-year depreciation expense in the first year. Deviations from this standard practice must be supported in the application.
A60: 2 | B60: The applicant must provide an explanation of material variances in evidence
A63: General: | B63: Applicants must provide a breakdown of depreciation and amortization expense in the above format for all relevant accounts. Asset Retirement Obligations (AROs), depreciation and accretion expense should be disclosed separately consistent with the Notes of historical Audited Financial Statements.

Sheet App.2-CI_AltAccStd_DepExp(NA)
K1: File Number: | L1: ='LDC Info'!$E$18 -> EB-2012-0165
K2: Exhibit:
K3: Tab:
K4: Schedule:
K5: Page:
K7: Date:
A9: Appendix 2-CI
A10: Depreciation and Amortization Expense
A11: Assumes the applicant adopted an alternate accounting standard other than IFRS for financial reporting purposes. For applicants adopting an Alternate Accounting Standard for financial reporting purposes January 1, 2012, applicants must complete 4 versions of the table below (2011 CGAAP, 2011 Alternate Accounting Standard, 2012 Alternate Accounting Standard and 2013 Alternate Accounting Standard). For applicants adopting an Alternate Accounting Standard for financial reporting purposes January 1, 2013, applicants must complete 4 versions of the table below (2011 CGAAP, 2012 CGAAP, 2012 Alternate Accounting Standard and 2013 Alternate Accounting Standard).
B12: Year | E12: Accounting Standard
A14: Account | B14: Description | C14: Opening Regulatory Gross PP&E | D14: Less Fully Depreciated | E14: Net for Depreciation | F14: Additions | G14: Total for Depreciation | H14: Years | I14: Depreciation Rate | J14: Depreciation Expense | K14: Depreciation Expense per Appendix 2-B Fixed Assets, Column K (l) | L14: Variance 2
C15: (a) | D15: (b) | E15: (c) | F15: (d) | G15: (e) = (c) + ½ x (d) 1 | H15: (f) | I15: (g) = 1 / (f) | J15: (h) = (e) / (f) | L15: (m) = (h) - (l)
A16: 1611 | B16: Computer Software (Formally known as Account 1925) | E16: =C16-D16 -> 0 | G16: =E16+0.5*F16 -> 0 | I16: =IF(H16=0,0,1/H16) -> 0 | J16: =IF(H16=0,0,G16/H16) -> 0 | L16: =IF(ISERROR(+J16-K16), 0, +J16-K16) -> 0
A17: 1612 | B17: Land Rights (Formally known as Account 1906) | E17: =C17-D17 -> 0 | G17: =E17+0.5*F17 -> 0 | I17: 0 | J17: 0 | L17: 0
A18: 1805 | B18: Land | E18: 0 | G18: 0 | I18: 0 | J18: 0 | L18: 0
A19: 1808 | B19: Buildings | E19: 0 | G19: 0 | I19: 0 | J19: 0 | L19: 0
A20: 1810 | B20: Leasehold Improvements | E20: 0 | G20: 0 | I20: 0 | J20: 0 | L20: 0
A21: 1815 | B21: Transformer Station Equipment >50 kV | E21: 0 | G21: 0 | I21: 0 | J21: 0 | L21: 0
A22: 1820 | B22: Distribution Station Equipment <50 kV | E22: 0 | G22: 0 | I22: 0 | J22: 0 | L22: 0
A23: 1825 | B23: Storage Battery Equipment | E23: 0 | G23: 0 | I23: 0 | J23: 0 | L23: 0
A24: 1830 | B24: Poles, Towers & Fixtures | E24: 0 | G24: 0 | I24: 0 | J24: 0 | L24: 0
A25: 1835 | B25: Overhead Conductors & Devices | E25: 0 | G25: 0 | I25: 0 | J25: 0 | L25: 0
A26: 1840 | B26: Underground Conduit | E26: 0 | G26: 0 | I26: 0 | J26: 0 | L26: 0
A27: 1845 | B27: Underground Conductors & Devices | E27: 0 | G27: 0 | I27: 0 | J27: 0 | L27: 0
A28: 1850 | B28: Line Transformers | E28: 0 | G28: 0 | I28: 0 | J28: 0 | L28: 0
A29: 1855 | B29: Services (Overhead & Underground) | E29: 0 | G29: 0 | I29: 0 | J29: 0 | L29: 0
A30: 1860 | B30: Meters | E30: 0 | G30: 0 | I30: 0 | J30: 0 | L30: 0
A31: 1860 | B31: Meters (Smart Meters) | E31: 0 | G31: 0 | I31: 0 | J31: 0 | L31: 0
A32: 1905 | B32: Land | E32: 0 | G32: 0 | I32: 0 | J32: 0 | L32: 0
A33: 1908 | B33: Buildings & Fixtures | E33: 0 | G33: 0 | I33: 0 | J33: 0 | L33: 0
A34: 1910 | B34: Leasehold Improvements | E34: 0 | G34: 0 | I34: 0 | J34: 0 | L34: 0
A35: 1915 | B35: Office Furniture & Equipment (10 years) | E35: 0 | G35: 0 | I35: 0 | J35: 0 | L35: 0
A36: 1915 | B36: Office Furniture & Equipment (5 years) | E36: 0 | G36: 0 | I36: 0 | J36: 0 | L36: 0
A37: 1920 | B37: Computer Equipment - Hardware | E37: 0 | G37: 0 | I37: 0 | J37: 0 | L37: 0
A38: 1920 | B38: Computer Equip.-Hardware(Post Mar. 22/04) | E38: 0 | G38: 0 | I38: 0 | J38: 0 | L38: 0
A39: 1920 | B39: Computer Equip.-Hardware(Post Mar. 19/07) | E39: 0 | G39: 0 | I39: 0 | J39: 0 | L39: 0
A40: 1930 | B40: Transportation Equipment | E40: 0 | G40: 0 | I40: 0 | J40: 0 | L40: 0
A41: 1935 | B41: Stores Equipment | E41: 0 | G41: 0 | I41: 0 | J41: 0 | L41: 0
A42: 1940 | B42: Tools, Shop & Garage Equipment | E42: 0 | G42: 0 | I42: 0 | J42: 0 | L42: 0
A43: 1945 | B43: Measurement & Testing Equipment | E43: 0 | G43: 0 | I43: 0 | J43: 0 | L43: 0
A44: 1950 | B44: Power Operated Equipment | E44: 0 | G44: 0 | I44: 0 | J44: 0 | L44: 0
A45: 1955 | B45: Communications Equipment | E45: 0 | G45: 0 | I45: 0 | J45: 0 | L45: 0
A46: 1955 | B46: Communication Equipment (Smart Meters) | E46: 0 | G46: 0 | I46: 0 | J46: 0 | L46: 0
A47: 1960 | B47: Miscellaneous Equipment | E47: 0 | G47: 0 | I47: 0 | J47: 0 | L47: 0
A48: 1975 | B48: Load Management Controls Utility Premises | E48: 0 | G48: 0 | I48: 0 | J48: 0 | L48: 0
A49: 1980 | B49: System Supervisor Equipment | E49: 0 | G49: 0 | I49: 0 | J49: 0 | L49: 0
A50: 1985 | B50: Miscellaneous Fixed Assets | E50: 0 | G50: 0 | I50: 0 | J50: 0 | L50: 0
A51: 1995 | B51: Contributions & Grants | E51: 0 | G51: 0 | I51: 0 | J51: 0 | L51: 0
A52: etc. | E52: 0 | G52: 0 | I52: 0 | J52: 0 | L52: 0
E53: 0 | G53: 0 | I53: 0 | J53: 0 | L53: 0
B54: Total | C54: =SUM(C16:C53) -> 0 | D54: =SUM(D16:D53) -> 0 | E54: =SUM(E16:E53) -> 0 | F54: 0 | G54: 0 | J54: =SUM(J16:J53) -> 0 | K54: =SUM(K16:K53) -> 0 | L54: =SUM(L16:L53) -> 0
A56: Notes:
A58: 1 | B58: Board policy of the "half-year" rule - the applicant must ensure that additions in the year attract a half-year depreciation expense in the first year. Deviations from this standard practice must be supported in the application.
A59: 2 | B59: The applicant must provide an explanation of material variances in evidence
A62: General: | B62: Applicants must provide a breakdown of depreciation and amortization expense in the above format for all relevant accounts. Asset Retirement Obligations (AROs), depreciation and accretion expense should be disclosed separately consistent with the Notes of historical Audited Financial Statements.

Sheet App.2-D_Overhead
L1: File Number: | M1: ='LDC Info'!$E$18 -> EB-2012-0165
L2: Exhibit: | M2: 4
L3: Tab: | M3: 4
L4: Schedule: | M4: 1
L5: Page:
L7: Date: | M7: 2013-02-22
A9: Appendix 2-D
A10: Overhead Expense
A12: The following table should be completed based on the information requested below. An explanation should be provided for any blank entries. The entries should include overhead costs that are currently capitalized on self-constructed assets under MIFRS or an alternate accounting standard.
E13: (A) 1 | F13: (B) | G13: (C) | H13: (D) | I13: (E) 1 | J13: (F) | K13: (G)
A14: Nature of the Overhead Costs | E14: Dollar | F14: Dollar | G14: Dollar | H14: Dollar Impact - | I14: Dollar Impact - | J14: Directly | K14: Reasons why the overhead costs are allowed to be
E15: Impact on PP&E | F15: Impact on PP&E | G15: Impact on PP&E | H15: PP&E Variance | I15: PP&E Variance | J15: Attributable? | K15: capitalized under MIFRS or an alternate accounting
E16: Historic Year | F16: Bridge Year | G16: Test Year | H16: Test versus Bridge | I16: Test versus Historic | J16: (Y/N) | K16: standard given limitations on capitalized overhead
A17: employee benefits(includes Statutory holidays and sick time) | E17: 20887 | F17: 23523 | G17: 24040 | H17: =+G17-F17 -> 517 | I17: =+G17-E17 -> 3153 | J17: Y | K17: Relates to Statutory Holidays, Vacation and Sick Time which are eligible for capital
A18: costs of site preparation | H18: 0 | I18: 0 | K18: If costs incurred, directly charged to the project
A19: initial delivery and handling costs | H19: 0 | I19: 0 | K19: If costs incurred, directly charged to the project
A20: costs of testing whether the asset is functioning properly | H20: 0 | I20: 0 | K20: If costs incurred, directly charged to the project
A21: professional fees | H21: 0 | I21: 0 | K21: If costs incurred, directly charged to the project
H22: 0 | I22: 0
A23: costs of opening a new facility | H23: 0 | I23: 0 | K23: Not applicable
A24: costs of introducing a new product or service (including costs of advertising and promotional activities) | H24: 0 | I24: 0 | K24: Not applicable
A25: costs of conducting business in a new location or with a new class of customer (including costs of staff training) | H25: 0 | I25: 0 | K25: Not applicable
A26: administration and other general overhead costs | H26: 0 | I26: 0 | K26: See below
A27: Stores Overhead | E27: 28394 | F27: 22611 | G27: 23108 | H27: 497 | I27: -5286 | J27: Y | K27: Represents Stores Department direct labour and benefit costs directly attributable to capital
A28: Fleet Maintenance Overhead | E28: 13053.12 | F28: 11643 | G28: 11625 | H28: -18 | I28: -1428.12 | J28: Y | K28: Represents Fleet Department costs directly attributable to capital such as fuel, misc. parts, and depreciation of fleet.
H29: 0 | I29: 0
A30: Insert description of additional item(s) and new rows if needed. | H30: 0 | I30: 0
A31: Total | E31: =SUM(E17:E30) -> 62334.12 | F31: =SUM(F17:F30) -> 57777 | G31: =SUM(G17:G30) -> 58773 | H31: =SUM(H17:H30) -> 996 | I31: =SUM(I17:I30) -> -3561.12
A34: The following table should be completed based on the information requested below. An explanation should be provided for any blank entries. The entries should include overhead costs that were capitalized on self-constructed assets under CGAAP but are no longer capitalized under MIFRS or an alternate accounting standard and are included in OM&A.
E35: (A) 1 | F35: (B) | G35: (C) | H35: (D) | I35: (E) 1 | J35: (F) | K35: (G)
A36: Nature of the Overhead Costs | E36: Dollar | F36: Dollar | G36: Dollar | H36: Dollar Impact - | I36: Dollar Impact - | J36: Directly | K36: Reasons why the overhead costs are not allowed to be
E37: Impact on OM&A | F37: Impact on OM&A | G37: Impact on OM&A | H37: OM&A Variance | I37: OM&A Variance | J37: Attributable? | K37: capitalized under MIFRS or an alternate accounting
E38: Historic Year | F38: Bridge Year | G38: Test Year | H38: Test versus Bridge | I38: Test versus Historic | J38: (Y/N) | K38: standard given limitations on capitalized overhead
A39: employee benefits(includes Statutory holidays and sick time) | F39: 2988 | H39: =+G39-F39 -> -2988 | I39: =+G39-E39 -> 0 | J39: N | K39: Includes benefits not directly related to capital such as Administration and general expenses.
A40: costs of site preparation | H40: =+G40-F40 -> 0 | I40: =+G40-E40 -> 0 | K40: If costs incurred, direclty charged to the project
A41: initial delivery and handling costs | H41: =+G41-F41 -> 0 | I41: =+G41-E41 -> 0 | K41: If costs incurred, direclty charged to the project
A42: costs of testing whether the asset is functioning properly | H42: =+G42-F42 -> 0 | I42: =+G42-E42 -> 0 | K42: If costs incurred, direclty charged to the project
A43: professional fees | H43: =+G43-F43 -> 0 | I43: =+G43-E43 -> 0 | K43: If costs incurred, direclty charged to the project
A45: costs of opening a new facility | H45: =+G45-F45 -> 0 | I45: =+G45-E45 -> 0 | K45: Not applicable
A46: costs of introducing a new product or service (including costs of advertising and promotional activities) | H46: 0 | I46: 0 | K46: Not applicable
A47: costs of conducting business in a new location or with a new class of customer (including costs of staff training) | H47: 0 | I47: 0 | K47: Not applicable
A48: administration and other general overhead costs | H48: 0 | I48: 0 | K48: Included in Employee benefits
A49: Stores Overhead | F49: 5354 | G49: 5472 | H49: 118 | I49: 5472 | J49: N | K49: Represents Stores department costs such as building maintenance not directly attributed to capital
A50: Fleet Maintenance Overhead | F50: 3905 | G50: 3990 | H50: 85 | I50: 3990 | J50: N | K50: If costs incurred, direclty charged to the project
H51: 0 | I51: 0
A52: Insert description of additional item(s) and new rows if needed. | H52: 0 | I52: 0
A53: Total | E53: =SUM(E39:E52) -> 0 | F53: =SUM(F39:F52) -> 12247 | G53: =SUM(G39:G52) -> 9462 | H53: =SUM(H39:H52) -> -2785 | I53: =SUM(I39:I52) -> 9462
A55: Notes:
A56: 1 | B56: If the applicant chooses to adopt IFRS or an alternate accounting standard for financial reporting purposes in 2013, the applicant does not need to complete Columns A, E. If the applicant adopts IFRS or an alternate accounting standard for financial reporting purposes in 2012, the applicant must complete all columns.

Sheet App.2-EA_PP&E Deferral Acc(NA)
H1: File Number: | I1: ='LDC Info'!$E$18 -> EB-2012-0165
H2: Exhibit:
H3: Tab:
H4: Schedule:
H5: Page:
H7: Date:
A9: Appendix 2-EA
A10: IFRS-CGAAP Transitional PP&E Amounts
A11: 2012 Adopters of IFRS for Financial Reporting Purposes
A13: For applicants that adopt IFRS on January 1, 2012 for financial reporting purposes
A15: Note: this sheet should be filled out if the applicant adopts IFRS for its financial reporting purpose as of January 1, 2012.
B17: 2009 Rebasing Year | C17: 2010 | D17: 2011 | E17: 2012 | F17: 2013 Rebasing Year | G17: 2014 | H17: 2015 | I17: 2016
A18: Reporting Basis | B18: CGAAP | C18: IRM | D18: IRM | E18: IRM | F18: MIFRS | G18: IRM | H18: IRM | I18: IRM
A19: Forecast vs. Actual Used in Rebasing Year | B19: Forecast | C19: Actual | D19: Actual | E19: Forecast | F19: Forecast
D20: $ | E20: $
A21: PP&E Values under CGAAP
A22: Opening net PP&E - Note 1
A23: Additions
A24: Depreciation (amounts should be negative)
A25: Closing net PP&E (1) | D25: =D22+D23+D24 -> 0 | E25: =E22+E23+E24 -> 0
A27: PP&E Values under MIFRS (Starts from 2011, the transition year)
A28: Opening net PP&E - Note 1
A29: Additions
A30: Depreciation (amounts should be negative)
A31: Closing net PP&E (2) | D31: =SUM(D28:D30) -> 0 | E31: =SUM(E28:E30) -> 0
A33: Difference in Closing net PP&E, CGAAP vs. MIFRS (Shown as adjustment to rate base on rebasing) | D33: =D25-D31 -> 0 | E33: =E25-E31 -> 0
A35: Account 1575 - IFRS-CGAAP Transitional PP&E Amounts
A36: Opening balance | D36: 0 | E36: =D40 -> 0 | F36: =E40 -> 0 | G36: =F40 -> 0 | H36: =G40 -> 0 | I36: =H40 -> 0
A37: Amounts added in the year | D37: =D33 -> 0 | E37: =E33-D33 -> 0
A38: Sub-total | D38: =D36+D37 -> 0 | E38: 0 | F38: 0 | G38: 0 | H38: 0 | I38: 0
A39: Amount of amortization, included in depreciation expense - Note 2 | F39: =IF(ISERROR(-E33/I44), 0, -E33/I44) -> 0 | G39: =+F39 -> 0 | H39: =+F39 -> 0 | I39: =+F39 -> 0
A40: Closing balance in deferral account | D40: =D38+D39 -> 0 | E40: 0 | F40: =IF(ISERROR(F38+F39), 0, F38+F39) -> 0 | G40: 0 | H40: 0 | I40: 0
A42: Effect on Revenue Requirement
A43: Amortization of deferred balance as above - Note 2 | F43: =IF(ISERROR(E33/I44), 0, E33/I44) -> 0 | H43: WACC
A44: Return on Rate Base Associated with deferred PP&E balance at WACC - Note 3 | F44: =E33*I43 -> 0 | H44: Disposition Period - Note 4 | I44: 4 | J44: Years
A45: Amount included in Revenue Requirement on rebasing | F45: =F43+F44 -> 0
A47: Notes:
A48: 1 For an applicant that adopts IFRS on January 1, 2012, the PP&E values as of January 1, 2011 under both CGAAP and MIFRS should be the same.
A49: 2 Amortization of the deferred balance in Account 1575 will start from the rebasing year.
A50: Assume the utility requests for a certain disposition period, the amortization that should be included in the depreciation expense is calculated as:
A51: the opening balance of Account 1575 / the approved disposition period
A52: 3 Return on rate base associated with deferred balance is calculated as:
A53: the deferred account opening balance as of 2013 rebasing year x WACC
A54: * Please note that the calculation should be adjusted once WACC is updated and finalized in the rate application.
A55: 4 Consistent with the 4 year normal rate cycle, the model is using a 4 year amortization period as a default selection to "clear" the PP&E deferral account through a one-time adjustment to ratebase to capture and remove the impact of the accounting policy changes as caused by the transition from CGAAP to MIFRS.

Sheet App.2-EB_PP&E Deferral Acc(NA)
H1: File Number: | I1: ='LDC Info'!$E$18 -> EB-2012-0165
H2: Exhibit:
H3: Tab:
H4: Schedule:
H5: Page:
H7: Date:
A9: Appendix 2-EB
A10: IFRS-CGAAP Transitional PP&E Amounts
A11: 2013 Adopters of IFRS for Financial Reporting Purposes
A13: For applicants that adopt IFRS on January 1, 2013 for financial reporting purposes
A15: Note: this sheet should be filled out if the applicant adopts IFRS for its financial reporting purpose as of January 1, 2013.
B17: 2009 Rebasing Year | C17: 2010 | D17: 2011 | E17: 2012 | F17: 2013 Rebasing Year | G17: 2014 | H17: 2015 | I17: 2016
A18: Reporting Basis | B18: CGAAP | C18: IRM | D18: IRM | E18: IRM | F18: MIFRS | G18: IRM | H18: IRM | I18: IRM
A19: Forecast vs. Actual Used in Rebasing Year | B19: Forecast | C19: Actual | D19: Actual | E19: Forecast | F19: Forecast
D20: $ | E20: $ | F20: $ | G20: $ | H20: $ | I20: $
A21: PP&E Values under CGAAP
A22: Opening net PP&E - Note 1
A23: Additions
A24: Depreciation (amounts should be negative)
A25: Closing net PP&E (1) | E25: =SUM(E22:E24) -> 0
A27: PP&E Values under MIFRS (Starts from 2012, the transition year)
A28: Opening net PP&E - Note 1
A29: Additions
A30: Depreciation (amounts should be negative)
A31: Closing net PP&E (2) | E31: =SUM(E28:E30) -> 0
A33: Difference in Closing net PP&E, CGAAP vs. MIFRS (Shown as adjustment to rate base on rebasing) | E33: =E25-E31 -> 0
A35: Account 1575 - IFRS-CGAAP Transitional PP&E Amounts
A36: Opening balance | E36: =D40 -> 0 | F36: =E40 -> 0 | G36: =F40 -> 0 | H36: =G40 -> 0 | I36: =H40 -> 0
A37: Amounts added in the year | E37: =E33-D33 -> 0
A38: Sub-total | E38: =E36+E37 -> 0 | F38: =F36+F37 -> 0 | G38: =G36+G37 -> 0 | H38: =H36+H37 -> 0 | I38: =I36+I37 -> 0
A39: Amount of amortization, included in depreciation expense - Note 2 | F39: =IF(ISERROR(-E33/I44), 0, -E33/I44) -> 0 | G39: =+F39 -> 0 | H39: =+F39 -> 0 | I39: =+F39 -> 0
A40: Closing balance in deferral account | E40: =E38+E39 -> 0 | F40: =IF(ISERROR(F38+F39), 0, F38+F39) -> 0 | G40: =G38+G39 -> 0 | H40: =H38+H39 -> 0 | I40: =I38+I39 -> 0
A42: Effect on Revenue Requirement
A43: Amortization of deferred balance as above - Note 2 | F43: =IF(ISERROR(E33/I44), 0, E33/I44) -> 0 | H43: WACC
A44: Return on Rate Base Associated with deferred PP&E balance at WACC - Note 3 | F44: =E33*I43 -> 0 | H44: Disposition Period - Note 4 | I44: 4 | J44: Years
A45: Amount included in Revenue Requirement on rebasing | F45: =F43+F44 -> 0
A47: Notes:
A48: 1 For an applicant that adopts IFRS on January 1, 2013, the PP&E values as of January 1, 2012 under both CGAAP and MIFRS should be the same.
A49: 2 Amortization of the deferred balance in Account 1575 will start from the rebasing year.
A50: Assume the utility requests for a certain disposition period, the amortization that should be included in the depreciation expense is calculated as:
A51: the opening balance of Account 1575 / the approved disposition period
A52: 3 Return on rate base associated with deferred balance is calculated as:
A53: the deferred account opening balance as of 2013 rebasing year x WACC
A54: * Please note that the calculation should be adjusted once WACC is updated and finalized in the rate application.
A55: 4 Consistent with the 4 year normal rate cycle, the model is using a 4 year amortization period as a default selection to "clear" the PP&E deferral account through a one-time adjustment to ratebase to capture and remove the impact of the accounting policy changes as caused by the transition from CGAAP to MIFRS.

Sheet App.2-F_Other_Oper_Rev
H1: File Number: | I1: ='LDC Info'!$E$18 -> EB-2012-0165
H2: Exhibit: | I2: 3
H3: Tab:
H4: Schedule:
H5: Page:
H7: Date: | I7: 2013-02-22
A9: Appendix 2-F
A10: Other Operating Revenue
A12: USoA # | B12: USoA Description | C12: =G13-4 & " Actual" -> 2008 Actual | D12: =G13-3 & " Actual" -> 2009 Actual | E12: =G13-2 & " Actual"& CHAR(178) -> 2010 Actual² | F12: =G13-1 & " Actual"& CHAR(178) -> 2011 Actual² | G12: ="Bridge Year" & CHAR(179) -> Bridge Year³ | H12: ="Bridge Year" & CHAR(179) -> Bridge Year³ | I12: Test Year
G13: ='LDC Info'!E26 -> 2012 | H13: ='LDC Info'!E26 -> 2012 | I13: ='LDC Info'!E28 -> 2013
B14: Reporting Basis | G14: CGAAP | H14: MIFRS | I14: CGAAP
A15: 4235 | B15: Specific Service Charges | C15: 24855 | D15: 21695 | E15: 19435 | F15: 18455 | G15: 16741 | I15: 16741
A16: 4225 | B16: Late Payment Charges | C16: 40428.44 | D16: 50000.32 | E16: 37664.7 | F16: 38119.45 | G16: 39868 | I16: 39868
A17: 4210 | B17: Rent from Electric Property | C17: 38630.29 | D17: 40023.04 | E17: 40279.18 | F17: 43194.5 | G17: 42027 | I17: 42027
A18: 4080-2 | B18: SSS Revenue | G18: 8238 | I18: 8265
A19: 4305 | B19: Regulatory Debits | G19: -98889
A20: 4355 | B20: Gain on Disposition of Utility and Other Property | E20: 633
A21: 4360 | B21: Loss on Disposition of Utility and Other Property | C21: -2001 | D21: -16347 | G21: -234
A22: 4375 | B22: Revenues from Non-Utility Operations | C22: 270 | D22: 9162 | E22: 5491 | G22: 1195 | I22: 2122
A23: 4380 | B23: Expenses of Non-Utility Operations | C23: -24
A24: 4390 | B24: Miscellaneous Non -Operating Income | C24: 5888 | D24: 5772 | E24: 1443
A25: 4405 | B25: Interest and Dividend Income | C25: 131676 | D25: 17056 | E25: 13536 | F25: 21163 | G25: -1709 | I25: 20002
A28: Specific Service Charges | C28: =C15 -> 24855 | D28: 21695 | E28: 19435 | F28: =F15 -> 18455 | G28: 16741 | H28: =H15 -> 0 | I28: =I15 -> 16741
A29: Late Payment Charges | C29: 40428.44 | D29: 50000.32 | E29: 37664.7 | F29: =F16 -> 38119.45 | G29: 39868 | H29: =H16 -> 0 | I29: =I16 -> 39868
A30: Other Distribution Revenues | C30: =SUM(C17:C18) -> 38630.29 | D30: =SUM(D17:D18) -> 40023.04 | E30: 40279.18 | F30: 43194.5 | G30: 50265 | H30: 0 | I30: 50292
A31: Other Income or Deductions | C31: =SUM(C19:C25) -> 135809 | D31: =SUM(D19:D25) -> 15643 | E31: 21103 | F31: 21163 | G31: -99637 | H31: 0 | I31: 22124
A32: Total | C32: =SUM(C28:C31) -> 239722.73 | D32: 127361.36 | E32: 118481.88 | F32: 120931.95 | G32: 7237 | H32: 0 | I32: 129025
A34: Description | C34: Account(s)
A35: Specific Service Charges: | C35: 4235
A36: Late Payment Charges: | C36: 4225
A37: Other Distribution Revenues: | C37: 4080, 4082, 4084, 4090, 4205, 4210, 4215, 4220, 4240, 4245
A38: Other Income and Expenses: | C38: 4305, 4310, 4315, 4320, 4325, 4330, 4335, 4340, 4345, 4350, 4355, 4360, 4365, 4370, 4375, 4380, 4385, 4390, 4395, 4398, 4405, 4415
A41: Note: Add all applicable accounts listed above to the table and include all relevant information.
A42: The above table assumes adoption of MIFRS as of January 1, 2013. If the adoption year differs, please adjust the table accordingly.
A45: Account Breakdown Details
A47: For each "Other Operating Revenue" and "Other Income or Deductions" Account, a detailed breakdown of the account components is required. See the example below for Account 4405, Interest and Dividend Income.
A50: Account 4405 - Interest and Dividend Income
C51: =C12 -> 2008 Actual | D51: =D12 -> 2009 Actual | E51: =E12 -> 2010 Actual² | F51: =F12 -> 2011 Actual² | G51: Bridge Year | H51: Bridge Year | I51: Test Year
A52: Reporting Basis | C52: =IF(ISBLANK(C14), "", C14) ->  | G52: CGAAP | H52: MCGAAP | I52: MCGAAP
A53: Miscellaneous Interest revenue | C53: -1498 | D53: -1525.4 | E53: -1655.03 | F53: -1575.56 | G53: -1038.07 | H53: -1038.07 | I53: -1387
A54: Bank Deposit Interest | C54: -29021.41 | D54: -2365.19 | E54: -4818.36 | F54: -9586.89 | G54: -6641.92 | H54: -6641.92 | I54: -8114.5
A55: Sundry Earnings / Interest Revenue Variance Accounts | C55: -101156.37 | D55: -13165.45 | E55: -7062.35 | F55: -10000.51 | G55: 9389 | H55: 9389 | I55: -10500
A56: etc.1
A58: Total | C58: =SUM(C53:C57) -> -131675.78 | D58: -17056.04 | E58: -13535.74 | F58: -21162.96 | G58: 1709.01 | H58: 1709.01 | I58: -20001.5
A61: Notes:
A62: 1 | B62: List and specify any other interest revenue
A63: 2 | B63: If the applicant is adopting IFRS or an alternate accounting standard as of January 1, 2012 for financial reporting purposes, 2011 must be presented on both a CGAAP and MIFRS (or alternate accounting standard) basis.
A64: 3 | B64: If the applicant is adopting IFRS or an alternate accounting standard as of January 1, 2013 for financial reporting purposes, 2012 must be presented on both a CGAAP and MIFRS (or alternate accounting standard) basis.

Sheet App.2-G_Detailed_OM&A_Expenses
I1: File Number: | J1: ='LDC Info'!$E$18 -> EB-2012-0165
I2: Exhibit: | J2: 4
I3: Tab:
I4: Schedule:
I5: Page:
I7: Date: | J7: 2013-02-22
A9: Appendix 2-G
A10: Detailed, Account by Account, OM&A Expense Table
A11: (excluding Depreciation and Amortization)
A14: Account | B14: Description | C14: ="Last Rebasing Year (" & 'LDC Info'!E30 & " Actuals)" -> Last Rebasing Year (2008 Actuals) | D14: 2009 Actual | E14: ='LDC Info'!E26-2 & " Actual" -> 2010 Actual | F14: ='LDC Info'!E26-1 & " Actual" & CHAR(178) -> 2011 Actual² | G14: ='LDC Info'!E26-1 & " Actual"& CHAR(178) -> 2011 Actual² | H14: ="Bridge Year " & 'LDC Info'!E26& CHAR(179) -> Bridge Year 2012³ | I14: ="Bridge Year " & 'LDC Info'!E26& CHAR(179) -> Bridge Year 2012³ | J14: ="Test Year " & 'LDC Info'!E28 -> Test Year 2013
A15: Reporting Basis | C15: CGAAP | D15: CGAAP | E15: CGAAP | F15: CGAAP | G15: CGAAP | H15: MCGAAP | I15: CGAAP | J15: MCGAAP
A16: Operations
A17: 5005 | B17: Operation Supervision and Engineering
A18: 5010 | B18: Load Dispatching
A19: 5012 | B19: Station Buildings and Fixtures Expense
A20: 5014 | B20: Transformer Station Equipment - Operation Labour
A21: 5015 | B21: Transformer Station Equipment - Operation Supplies and Expenses
A22: 5016 | B22: Distribution Station Equipment - Operation Labour
A23: 5017 | B23: Distribution Station Equipment - Operation Supplies and Expenses
A24: 5020 | B24: Overhead Distribution Lines and Feeders - Operation Labour | C24: 343631 | D24: 330528 | E24: 392797 | F24: 399013 | H24: 505323 | I24: 494472 | J24: 474385
A25: 5025 | B25: Overhead Distribution Lines and Feeders - Operation Supplies and Expenses | C25: 55862 | D25: 48011 | E25: 48069 | F25: 38881 | H25: 68143 | I25: 34205 | J25: 84010
A26: 5030 | B26: Overhead Sub-transmission Feeders - Operation
A27: 5035 | B27: Overhead Distribution Transformers - Operation | C27: 12339 | D27: 1251 | E27: 37139
A28: 5040 | B28: Underground Distribution Lines and Feeders - Operation Labour
A29: 5045 | B29: Underground Distribution Lines and Feeders - Operation Supplies and Expenses
A30: 5050 | B30: Underground Sub-transmission Feeders - Operation
A31: 5055 | B31: Underground Distribution Transformers - Operation
A32: 5060 | B32: Street Lighting and Signal System Expense
A33: 5065 | B33: Meter Expense | C33: 497
A34: 5070 | B34: Customer Premises - Operation Labour
A35: 5075 | B35: Customer Premises - Operation Materials and Expenses
A36: 5085 | B36: Miscellaneous Distribution Expenses | C36: 13995 | D36: 16513 | E36: 15186 | F36: 41159 | H36: 11174 | I36: 11174 | J36: 69968
A37: 5090 | B37: Underground Distribution Lines and Feeders - Rental Paid
A38: 5095 | B38: Overhead Distribution Lines and Feeders - Rental Paid
A39: 5096 | B39: Other Rent
A40: Total - Operations | C40: =SUM(C17:C39) -> 426324 | D40: =SUM(D17:D39) -> 396303 | E40: =SUM(E17:E39) -> 493191 | F40: =SUM(F17:F39) -> 479053 | G40: =SUM(G17:G39) -> 0 | H40: 584640 | I40: 539851 | J40: =SUM(J17:J39) -> 628363
A41: Account | B41: Description | C41: =C14 -> Last Rebasing Year (2008 Actuals) | D41: 2009Actual | E41: 2010 Actual | F41: 2011 Actual² | G41: 2011 Actual² | H41: Bridge Year 2012³ | I41: Bridge Year 2012³ | J41: Test Year 2013
A42: Maintenance
A43: 5105 | B43: Maintenance Supervision and Engineering
A44: 5110 | B44: Maintenance of Buildings and Fixtures - Distribution Stations
A45: 5112 | B45: Maintenance of Transformer Station Equipment
A46: 5114 | B46: Maintenance of Distribution Station Equipment
A47: 5120 | B47: Maintenance of Poles, Towers and Fixtures | C47: 23383 | D47: 31842 | E47: 32164 | F47: 27278 | H47: 35557 | I47: 35557 | J47: 48730
A48: 5125 | B48: Maintenance of Overhead Conductors and Devices
A49: 5130 | B49: Maintenance of Overhead Services
A50: 5135 | B50: Overhead Distribution Lines and Feeders - Right of Way | C50: 54678 | D50: 49768 | E50: 60328 | F50: 68170 | H50: 61197 | I50: 61197 | J50: 61200
A51: 5145 | B51: Maintenance of Underground Conduit
A52: 5150 | B52: Maintenance of Underground Conductors and Devices
A53: 5155 | B53: Maintenance of Underground Services
A54: 5160 | B54: Maintenance of Line Transformers | C54: 5947 | D54: 2498 | E54: 8051 | F54: 2114 | H54: 19681 | I54: 19681 | J54: 13774
A55: 5165 | B55: Maintenance of Street Lighting and Signal Systems
A56: 5170 | B56: Sentinel Lights - Labour | C56: 871 | D56: 1789 | E56: 1469 | F56: 2156 | H56: 2000 | I56: 2000 | J56: 2000
A57: 5172 | B57: Sentinel Lights - Materials and Expenses | C57: 2328 | D57: 3110 | E57: 2969 | F57: 2377 | H57: 2709 | I57: 2709 | J57: 2960
A58: 5175 | B58: Maintenance of Meters | C58: 3923 | D58: 5695 | E58: 11696 | F58: 3958 | H58: 199472 | I58: 199472 | J58: 72941
A59: 5178 | B59: Customer Installations Expenses - Leased Property
A60: 5195 | B60: Maintenance of Other Installations on Customer Premises
A61: Total - Maintenance | C61: =SUM(C43:C60) -> 91130 | D61: =SUM(D43:D60) -> 94702 | E61: =SUM(E43:E60) -> 116677 | F61: =SUM(F43:F60) -> 106053 | G61: =SUM(G43:G60) -> 0 | H61: 320616 | I61: 320616 | J61: =SUM(J43:J60) -> 201605
A62: Account | B62: Description | C62: =C41 -> Last Rebasing Year (2008 Actuals) | D62: 2009 Actual | E62: =E41 -> 2010 Actual | F62: =F41 -> 2011 Actual² | G62: =G41 -> 2011 Actual² | H62: Bridge Year 2012³ | I62: Bridge Year 2012³ | J62: =J41 -> Test Year 2013
A63: Billing and Collecting
A64: 5305 | B64: Supervision
A65: 5310 | B65: Meter Reading Expense | C65: 80676 | D65: 76240 | E65: 27611 | F65: 5251 | H65: 4763 | I65: 4763 | J65: 4876
A66: 5315 | B66: Customer Billing | C66: 176648 | D66: 177780 | E66: 166788 | F66: 160281 | H66: 178262 | I66: 178262 | J66: 195212
A67: 5320 | B67: Collecting | C67: 89415 | D67: 95199 | E67: 93159 | F67: 90179 | H67: 94777 | I67: 94777 | J67: 96877
A68: 5325 | B68: Collecting - Cash Over and Short | C68: -17 | D68: -419 | E68: -76 | F68: -146 | H68: 300 | I68: 300 | J68: 0
A69: 5330 | B69: Collection Charges | C69: 17 | D69: 302 | E69: 100
A70: 5335 | B70: Bad Debt Expense | C70: 18961 | D70: 32238 | E70: 22877 | F70: 9996 | H70: 20000 | I70: 20000 | J70: 20000
A71: 5340 | B71: Miscellaneous Customer Accounts Expenses
A72: Total - Billing and Collecting | C72: =SUM(C64:C71) -> 365700 | D72: =SUM(D64:D71) -> 381340 | E72: =SUM(E64:E71) -> 310459 | F72: =SUM(F64:F71) -> 265561 | G72: =SUM(G64:G71) -> 0 | H72: 298102 | I72: 298102 | J72: =SUM(J64:J71) -> 316965
A73: Account | B73: Description | C73: =C62 -> Last Rebasing Year (2008 Actuals) | D73: 2009 Actual | E73: =E62 -> 2010 Actual | F73: =F62 -> 2011 Actual² | G73: =G62 -> 2011 Actual² | H73: Bridge Year 2012³ | I73: Bridge Year 2012³ | J73: =J62 -> Test Year 2013
A74: Community Relations
A75: 5405 | B75: Supervision
A76: 5410 | B76: Community Relations - Sundry
A77: 5415 | B77: Energy Conservation
A78: 5420 | B78: Community Safety Program
A79: 5425 | B79: Miscellaneous Customer Service and Informational Expenses
A80: 5505 | B80: Supervision
A81: 5510 | B81: Demonstrating and Selling Expense
A82: 5515 | B82: Advertising Expenses
A83: 5520 | B83: Miscellaneous Sales Expense
A84: Total - Community Relations | C84: =SUM(C75:C83) -> 0 | D84: =SUM(D75:D83) -> 0 | E84: =SUM(E75:E83) -> 0 | F84: =SUM(F75:F83) -> 0 | G84: =SUM(G75:G83) -> 0 | H84: 0 | I84: 0 | J84: =SUM(J75:J83) -> 0
A85: Account | B85: Description | C85: =C73 -> Last Rebasing Year (2008 Actuals) | D85: 2009 Actual | E85: =E73 -> 2010 Actual | F85: =F73 -> 2011 Actual² | G85: =G73 -> 2011 Actual² | H85: Bridge Year 2012³ | I85: Bridge Year 2012³ | J85: =J73 -> Test Year 2013
A86: Administrative and General Expenses
A87: 5605 | B87: Executive Salaries and Expenses
A88: 5610 | B88: Management Salaries and Expenses
A89: 5615 | B89: General Administrative Salaries and Expenses | C89: 140431 | D89: 154785 | E89: 151006 | F89: 179236 | H89: 213423 | I89: 208437 | J89: 244923
A90: 5620 | B90: Office Supplies and Expenses | C90: 9152 | D90: 10204 | E90: 10313 | F90: 8627 | H90: 11902 | I90: 11902 | J90: 7103
A91: 5625 | B91: Administrative Expense Transferred - Credit
A92: 5630 | B92: Outside Services Employed | C92: 28446 | D92: 22192 | E92: 5384 | F92: 37652 | H92: 23971 | I92: 23971 | J92: 36773
A93: 5635 | B93: Property Insurance | C93: 24888 | D93: 23470 | E93: 16999 | F93: 18470 | H93: 18480 | I93: 18480 | J93: 18850
A94: 5640 | B94: Injuries and Damages
A95: 5645 | B95: OMERS Pensions and Benefits
A96: 5646 | B96: Employee Pensions and OPEB
A97: 5647 | B97: Employee Sick Leave
A98: 5650 | B98: Franchise Requirements
A99: 5655 | B99: Regulatory Expenses | C99: 26595 | D99: 11374 | E99: 11646 | F99: 13429 | H99: 55782 | I99: 55782 | J99: 33046
A100: 5660 | B100: General Advertising Expenses | C100: 1080 | D100: 1024 | E100: 3586 | F100: 3820 | H100: 10257 | I100: 10257 | J100: 1061
A101: 5665 | B101: Miscellaneous General Expenses | C101: 15265 | D101: 23961 | E101: 21318 | F101: 23166 | H101: 33493 | I101: 33493 | J101: 40882
A102: 5670 | B102: Rent | C102: 17969 | D102: 17969 | E102: 17969 | F102: 17969 | H102: 19866 | I102: 19866 | J102: 19866
A103: 5672 | B103: Lease Payment Charge
A104: 5675 | B104: Maintenance of General Plant
A105: 5680 | B105: Electrical Safety Authority Fees | D105: 2740 | E105: 2400 | H105: 2501 | I105: 2501 | J105: 2501
A106: 5681 | B106: Special Purpose Charge Expense | E106: 12498 | F106: 15042
A107: 5685 | B107: Independent Electricity System Operator Fees and Penalties
A108: 5695 | B108: OM&A Contra Account
A109: 6205 | B109: Donations
A110: 6205 | B110: Donations, Sub-account LEAP Funding | F110: 2130 | H110: 2130 | I110: 2130 | J110: 2455
A111: Total - Administrative and General Expenses | C111: =SUM(C87:C110) -> 263826 | D111: =SUM(D87:D110) -> 267719 | E111: =SUM(E87:E110) -> 253119 | F111: 319541 | G111: 0 | H111: 391805 | I111: 386819 | J111: 407460
A112: Total OM&A | C112: =C40+C61+C72+C84+C111 -> 1146980 | D112: =D40+D61+D72+D84+D111 -> 1140064 | E112: =E40+E61+E72+E84+E111 -> 1173446 | F112: =F40+F61+F72+F84+F111 -> 1170208 | G112: =G40+G61+G72+G84+G111 -> 0 | H112: 1595163 | I112: 1545388 | J112: =J40+J61+J72+J84+J111 -> 1554393
A113: Adjustments for non-recoverable items
A114: 5681 | B114: Special Purpose Charge Expense | E114: 12498 | F114: 15042
A115: 6205 | B115: Donations1
A116: 5170 | B116: Sentinel Lights - Labour | C116: 871 | D116: 1789 | E116: 1469 | F116: 2156 | H116: 2000 | I116: 2000 | J116: 2000
A117: 5172 | B117: Sentinel Lights - Materials and Expenses | C117: 2328 | D117: 3110 | E117: 2969 | F117: 2377 | H117: 2709 | I117: 2709 | J117: 2960
A119: Total Recoverable OM&A | C119: =C112-SUM(C114:C118) -> 1143781 | D119: =D112-SUM(D114:D118) -> 1135165 | E119: =E112-SUM(E114:E118) -> 1156510 | F119: 1150633 | G119: =G112-SUM(G114:G118) -> 0 | H119: 1590454 | I119: 1540679 | J119: 1549433
A121: 1 Account 6205 - Donations is generally non-recoverable. However, the sub-account LEAP funding of account 6205 is generally recoverable.
A123: Note:
A124: 1 | B124: If it has been more than three years since the applicant last filed a cost of service application, additional years of historical actuals should be incorporated into the table, as necessary, to go back to the last cost of service application. If the applicant last filed a cost of service application less than three years ago, a minimum of three years of actual information is required.
A125: 2 | B125: If the applicant is adopting IFRS or an alternate accounting standard as of January 1, 2012 for financial reporting purposes, 2011 must be presented on both a CGAAP and MIFRS (or alternate accounting standard) basis.
A126: 3 | B126: If the applicant is adopting IFRS or an alternate accounting standard as of January 1, 2013 for financial reporting purposes, 2012 must be presented on both a CGAAP and MIFRS (or alternate accounting standard) basis.

Sheet App.2-H_OM&A_Detailed_Analysis
H1: File Number: | I1: ='LDC Info'!$E$18 -> EB-2012-0165
H2: Exhibit: | I2: 4
H3: Tab:
H4: Schedule:
H5: Page:
H7: Date: | I7: 2013-02-22
A9: Appendix 2-H
A10: OM&A Detailed Variance Analysis
A11: (excluding Depreciation and Amortization)
A14: Account | B14: Description | C14: ="Last Board-approved Rebasing Year ("&'LDC Info'!E30&" Year)" -> Last Board-approved Rebasing Year (2008 Year) | D14: Most Current Actuals Year 2011 | E14: ="Test Year " & 'LDC Info'!E28 -> Test Year 2013 | F14: Test Year Versus Last Rebasing | H14: Test Year Versus Most Current Actuals
F15: Variance ($) | G15: Percentage Change (%) | H15: Variance ($) | I15: Percentage Change (%)
A16: Reporting Basis | C16: CGAAP | D16: CGAAP | E16: MCGAAP
A17: Operations
A18: 5005 | B18: Operation Supervision and Engineering | F18: =E18-C18 -> 0 | G18: =IF(C18=0,"",(E18/C18)-1) ->  | H18: =E18-D18 -> 0 | I18: =IF(D18=0,"",(E18/D18)-1) -> 
A19: 5010 | B19: Load Dispatching | F19: =E19-C19 -> 0 | G19: =IF(C19=0,"",(E19/C19)-1) ->  | H19: =E19-D19 -> 0 | I19: =IF(D19=0,"",(E19/D19)-1) -> 
A20: 5012 | B20: Station Buildings and Fixtures Expense | F20: 0 | H20: 0
A21: 5014 | B21: Transformer Station Equipment - Operation Labour | F21: 0 | H21: 0
A22: 5015 | B22: Transformer Station Equipment - Operation Supplies and Expenses | F22: 0 | H22: 0
A23: 5016 | B23: Distribution Station Equipment - Operation Labour | F23: 0 | H23: 0
A24: 5017 | B24: Distribution Station Equipment - Operation Supplies and Expenses | F24: 0 | H24: 0
A25: 5020 | B25: Overhead Distribution Lines and Feeders - Operation Labour | C25: 305170 | D25: 399013 | E25: 474385 | F25: 169215 | G25: 0.5544942163 | H25: 75372 | I25: 0.1888961011
A26: 5025 | B26: Overhead Distribution Lines and Feeders - Operation Supplies and Expenses | C26: 77500 | D26: 38881 | E26: 84010 | F26: 6510 | G26: 0.084 | H26: 45129 | I26: 1.160695455
A27: 5030 | B27: Overhead Sub-transmission Feeders - Operation | F27: 0 | H27: 0
A28: 5035 | B28: Overhead Distribution Transformers - Operation | C28: 10000 | D28: 0 | E28: 0 | F28: -10000 | G28: -1 | H28: 0
A29: 5040 | B29: Underground Distribution Lines and Feeders - Operation Labour | F29: 0 | H29: 0
A30: 5045 | B30: Underground Distribution Lines and Feeders - Operation Supplies and Expenses | F30: 0 | H30: 0
A31: 5050 | B31: Underground Sub-transmission Feeders - Operation | F31: 0 | H31: 0
A32: 5055 | B32: Underground Distribution Transformers - Operation | F32: 0 | H32: 0
A33: 5060 | B33: Street Lighting and Signal System Expense | F33: 0 | H33: 0
A34: 5065 | B34: Meter Expense | C34: 9000 | D34: 0 | E34: 0 | F34: -9000 | G34: -1 | H34: 0
A35: 5070 | B35: Customer Premises - Operation Labour | F35: 0 | H35: 0
A36: 5075 | B36: Customer Premises - Operation Materials and Expenses | F36: 0 | H36: 0
A37: 5085 | B37: Miscellaneous Distribution Expenses | C37: 20157 | D37: 41159 | E37: 69968 | F37: 49811 | G37: 2.471151461 | H37: 28809 | I37: 0.6999441191
A38: 5090 | B38: Underground Distribution Lines and Feeders - Rental Paid | F38: 0 | H38: 0
A39: 5095 | B39: Overhead Distribution Lines and Feeders - Rental Paid | F39: 0 | H39: 0
A40: 5096 | B40: Other Rent | F40: 0 | H40: 0
A41: Total - Operations | C41: =SUM(C18:C40) -> 421827 | D41: =SUM(D18:D40) -> 479053 | E41: =SUM(E18:E40) -> 628363 | F41: 206536 | G41: 0.489622523 | H41: 149310 | I41: 0.3116774136
A42: Account | B42: Description
A43: Maintenance
A44: 5105 | B44: Maintenance Supervision and Engineering | F44: =E44-C44 -> 0 | G44: =IF(C44=0,"",(E44/C44)-1) ->  | H44: =E44-D44 -> 0 | I44: =IF(D44=0,"",(E44/D44)-1) -> 
A45: 5110 | B45: Maintenance of Buildings and Fixtures - Distribution Stations | F45: 0 | H45: 0
A46: 5112 | B46: Maintenance of Transformer Station Equipment | F46: 0 | H46: 0
A47: 5114 | B47: Maintenance of Distribution Station Equipment | F47: 0 | H47: 0
A48: 5120 | B48: Maintenance of Poles, Towers and Fixtures | C48: 26517 | D48: 27278 | E48: 48730 | F48: 22213 | G48: 0.8376890297 | H48: 21452 | I48: 0.7864212919
A49: 5125 | B49: Maintenance of Overhead Conductors and Devices | F49: 0 | H49: 0
A50: 5130 | B50: Maintenance of Overhead Services | F50: 0 | H50: 0
A51: 5135 | B51: Overhead Distribution Lines and Feeders - Right of Way | C51: 40000 | D51: 68170 | E51: 61200 | F51: 21200 | G51: 0.53 | H51: -6970 | I51: -0.102244389
A52: 5145 | B52: Maintenance of Underground Conduit | F52: 0 | H52: 0
A53: 5150 | B53: Maintenance of Underground Conductors and Devices | F53: 0 | H53: 0
A54: 5155 | B54: Maintenance of Underground Services | F54: 0 | H54: 0
A55: 5160 | B55: Maintenance of Line Transformers | C55: 10000 | D55: 2114 | E55: 13774 | F55: 3774 | G55: 0.3774 | H55: 11660 | I55: 5.515610218
A56: 5165 | B56: Maintenance of Street Lighting and Signal Systems | F56: 0 | H56: 0
A57: 5170 | B57: Sentinel Lights - Labour | C57: 2374 | D57: 2156 | E57: 2000 | F57: -374 | G57: -0.1575400168 | H57: -156 | I57: -0.07235621521
A58: 5172 | B58: Sentinel Lights - Materials and Expenses | C58: 2000 | D58: 2377 | E58: 2960 | F58: 960 | G58: 0.48 | H58: 583 | I58: 0.2452671435
A59: 5175 | B59: Maintenance of Meters | C59: 6390 | D59: 3958 | E59: 72941 | F59: 66551 | G59: 10.41486698 | H59: 68983 | I59: 17.42875189
A60: 5178 | B60: Customer Installations Expenses - Leased Property | F60: 0 | H60: 0
A61: 5195 | B61: Maintenance of Other Installations on Customer Premises | F61: 0 | H61: 0
A62: Total - Maintenance | C62: =SUM(C44:C61) -> 87281 | D62: =SUM(D44:D61) -> 106053 | E62: =SUM(E44:E61) -> 201605 | F62: 114324 | G62: 1.309838338 | H62: 95552 | I62: 0.9009834705
A63: Account | B63: Description
A64: Billing and Collecting
A65: 5305 | B65: Supervision | F65: =E65-C65 -> 0 | G65: =IF(C65=0,"",(E65/C65)-1) ->  | H65: =E65-D65 -> 0 | I65: =IF(D65=0,"",(E65/D65)-1) -> 
A66: 5310 | B66: Meter Reading Expense | C66: 80658 | D66: 5251 | E66: 4876 | F66: -75782 | G66: -0.9395472241 | H66: -375 | I66: -0.07141496858
A67: 5315 | B67: Customer Billing | C67: 162865 | D67: 160281 | E67: 195212 | F67: 32347 | G67: 0.1986123476 | H67: 34931 | I67: 0.2179359999
A68: 5320 | B68: Collecting | C68: 86006 | D68: 90179 | E68: 96877 | F68: 10871 | G68: 0.1263981583 | H68: 6698 | I68: 0.0742744985
A69: 5325 | B69: Collecting - Cash Over and Short | C69: -3 | D69: -146 | E69: 0 | F69: 3 | G69: -1 | H69: 146 | I69: -1
A70: 5330 | B70: Collection Charges | C70: 300 | F70: -300 | G70: -1 | H70: 0
A71: 5335 | B71: Bad Debt Expense | C71: 20000 | D71: 9996 | E71: 20000 | F71: 0 | G71: 0 | H71: 10004 | I71: 1.00080032
A72: 5340 | B72: Miscellaneous Customer Accounts Expenses | F72: 0 | H72: 0
A73: Total - Billing and Collecting | C73: =SUM(C65:C72) -> 349826 | D73: =SUM(D65:D72) -> 265561 | E73: =SUM(E65:E72) -> 316965 | F73: -32861 | G73: -0.09393527068 | H73: 51404 | I73: 0.1935675796
A74: Account | B74: Description
A75: Community Relations
A76: 5405 | B76: Supervision | F76: =E76-C76 -> 0 | G76: =IF(C76=0,"",(E76/C76)-1) ->  | H76: =E76-D76 -> 0 | I76: =IF(D76=0,"",(E76/D76)-1) -> 
A77: 5410 | B77: Community Relations - Sundry | F77: 0 | H77: 0
A78: 5415 | B78: Energy Conservation | F78: 0 | H78: 0
A79: 5420 | B79: Community Safety Program | F79: 0 | H79: 0
A80: 5425 | B80: Miscellaneous Customer Service and Informational Expenses | F80: 0 | H80: 0
A81: 5505 | B81: Supervision | F81: 0 | H81: 0
A82: 5510 | B82: Demonstrating and Selling Expense | F82: 0 | H82: 0
A83: 5515 | B83: Advertising Expenses | F83: 0 | H83: 0
A84: 5520 | B84: Miscellaneous Sales Expense | F84: 0 | H84: 0
A85: Total - Community Relations | C85: =SUM(C76:C84) -> 0 | D85: =SUM(D76:D84) -> 0 | E85: =SUM(E76:E84) -> 0 | F85: 0 | H85: 0
A86: Account | B86: Description
A87: Administrative and General Expenses
A88: 5605 | B88: Executive Salaries and Expenses | F88: =E88-C88 -> 0 | G88: =IF(C88=0,"",(E88/C88)-1) ->  | H88: =E88-D88 -> 0 | I88: =IF(D88=0,"",(E88/D88)-1) -> 
A89: 5610 | B89: Management Salaries and Expenses | F89: 0 | H89: 0
A90: 5615 | B90: General Administrative Salaries and Expenses | C90: 138859 | D90: 179236 | E90: 244923 | F90: 106064 | G90: 0.7638251752 | H90: 65687 | I90: 0.3664832958
A91: 5620 | B91: Office Supplies and Expenses | C91: 8600 | D91: 8627 | E91: 7103 | F91: -1497 | G91: -0.1740697674 | H91: -1524 | I91: -0.1766546888
A92: 5625 | B92: Administrative Expense Transferred - Credit | F92: 0 | H92: 0
A93: 5630 | B93: Outside Services Employed | C93: 30683 | D93: 37652 | E93: 36773 | F93: 6090 | G93: 0.1984812437 | H93: -879 | I93: -0.02334537342
A94: 5635 | B94: Property Insurance | C94: 26700 | D94: 18470 | E94: 18850 | F94: -7850 | G94: -0.2940074906 | H94: 380 | I94: 0.02057390363
A95: 5640 | B95: Injuries and Damages | F95: 0 | H95: 0
A96: 5645 | B96: OMERS Pensions and Benefits | F96: 0 | H96: 0
A97: 5646 | B97: Employee Pensions and OPEB | F97: =E97-C97 -> 0 | G97: =IF(C97=0,"",(E97/C97)-1) ->  | H97: =E97-D97 -> 0 | I97: =IF(D97=0,"",(E97/D97)-1) -> 
A98: 5647 | B98: Employee Sick Leave | F98: 0 | H98: 0
A99: 5650 | B99: Franchise Requirements | F99: 0 | H99: 0
A100: 5655 | B100: Regulatory Expenses | C100: 13000 | D100: 13429 | E100: 33046 | F100: 20046 | G100: 1.542 | H100: 19617 | I100: 1.460793804
A101: 5660 | B101: General Advertising Expenses | C101: 1000 | D101: 3820 | E101: 1061 | F101: 61 | G101: 0.061 | H101: -2759 | I101: -0.7222513089
A102: 5665 | B102: Miscellaneous General Expenses | C102: 20815 | D102: 23166 | E102: 40882 | F102: 20067 | G102: 0.9640643767 | H102: 17716 | I102: 0.7647414314
A103: 5670 | B103: Rent | C103: 19050 | D103: 17969 | E103: 19866 | F103: =E103-C103 -> 816 | G103: =IF(C103=0,"",(E103/C103)-1) -> 0.04283464567 | H103: =E103-D103 -> 1897 | I103: 0.1055707051
A104: 5672 | B104: Lease Payment Charge | F104: 0 | H104: 0
A105: 5675 | B105: Maintenance of General Plant | F105: 0 | H105: 0
A106: 5680 | B106: Electrical Safety Authority Fees | C106: 2185 | D106: 0 | E106: 2501 | F106: 316 | G106: 0.1446224256 | H106: 2501
A107: 5681 | B107: Special Purpose Charge Expense | D107: 15042 | F107: 0 | H107: -15042
A108: 5685 | B108: Independent Electricity System Operator Fees and Penalties | F108: 0 | H108: 0
A109: 5695 | B109: OM&A Contra Account | F109: 0 | H109: 0
A110: 6205 | B110: Donations | F110: =E110-C110 -> 0 | G110: =IF(C110=0,"",(E110/C110)-1) ->  | H110: =E110-D110 -> 0 | I110: =IF(D110=0,"",(E110/D110)-1) -> 
A111: 6205 | B111: Donations, Sub-account LEAP Funding | D111: 2130 | E111: 2455 | F111: 2455 | H111: 325 | I111: 0.1525821596
A112: Total - Administrative and General Expenses | C112: =SUM(C88:C111) -> 260892 | D112: =SUM(D88:D111) -> 319541 | E112: =SUM(E88:E111) -> 407460 | F112: 146568 | G112: 0.5617956856 | H112: 87919 | I112: 0.2751415311
A113: Total OM&A | C113: =C112+C85+C73+C62+C41 -> 1119826 | D113: =D112+D85+D73+D62+D41 -> 1170208 | E113: =E112+E85+E73+E62+E41 -> 1554393 | F113: 434567 | G113: 0.3880665389 | H113: 384185 | I113: 0.3283048826
A114: Adjustments for non-recoverable items
A115: 5681 | B115: Special Purpose Charge Expense | D115: 15042 | F115: =E115-C115 -> 0 | G115: =IF(C115=0,"",(E115/C115)-1) ->  | H115: =E115-D115 -> -15042 | I115: =IF(D115=0,"",(E115/D115)-1) -> -1
A116: 6205 | B116: Donations1 | F116: =E116-C116 -> 0 | G116: =IF(C116=0,"",(E116/C116)-1) ->  | H116: =E116-D116 -> 0 | I116: =IF(D116=0,"",(E116/D116)-1) -> 
A117: 5170 | B117: Sentinel Lights - Labour | C117: 2374 | D117: 2156 | E117: 2000 | F117: =E117-C117 -> -374 | G117: =IF(C117=0,"",(E117/C117)-1) -> -0.1575400168 | H117: =E117-D117 -> -156 | I117: =IF(D117=0,"",(E117/D117)-1) -> -0.07235621521
A118: 5172 | B118: Sentinel Lights - Materials and Expenses | C118: 2000 | D118: 2377 | E118: 2960 | F118: =E118-C118 -> 960 | G118: =IF(C118=0,"",(E118/C118)-1) -> 0.48 | H118: =E118-D118 -> 583 | I118: =IF(D118=0,"",(E118/D118)-1) -> 0.2452671435
F119: =E119-C119 -> 0 | G119: =IF(C119=0,"",(E119/C119)-1) ->  | H119: =E119-D119 -> 0 | I119: =IF(D119=0,"",(E119/D119)-1) -> 
A120: Total Recoverable OM&A | C120: =C113-SUM(C115:C119) -> 1115452 | D120: =D113-SUM(D115:D119) -> 1150633 | E120: 1549433 | F120: 433981 | G120: =IF(C120=0,"",(E120/C120)-1) -> 0.389062909 | H120: 398800 | I120: =IF(D120=0,"",(E120/D120)-1) -> 0.3465918325
A122: 1 Account 6205 - Donations is generally non-recoverable. However, the sub-account LEAP funding of account 6205 is generally recoverable.
A125: Note:
A127: 1 | B127: If the applicant is adopting IFRS or an alternate accounting standard as of January 1, 2013 for financial reporting purposes, Column D "Most Current Actual Year" must be provided on CGAAP.
A128: 2 | B128: If the applicant is adopting IFRS or an alternate accounting standard as of January 1, 2012 for financial reporting purposes, Column D "Most Current Actual Year" must be provided on that standard.

Sheet App.2-I_OM&A_Summary_Analys
K1: File Number: | L1: ='LDC Info'!$E$18 -> EB-2012-0165
K2: Exhibit: | L2: 4
K3: Tab:
K4: Schedule:
K5: Page:
K7: Date: | L7: 2013-02-22
A9: Appendix 2-I
A10: Summary of Recoverable OM&A Expenses
B13: ="Last Rebasing Year (" & 'LDC Info'!E30 & " BA)" -> Last Rebasing Year (2008 BA) | C13: ="Last Rebasing Year (" & 'LDC Info'!E30 & " Actuals)" -> Last Rebasing Year (2008 Actuals) | D13: 2009 Actuals | E13: ='LDC Info'!E26 -2 & " Actuals" -> 2010 Actuals | F13: ='LDC Info'!E26 -1 & " Actuals" -> 2011 Actuals | G13: ='LDC Info'!E26 & " Bridge Year" -> 2012 Bridge Year | H13: ='LDC Info'!E28 & " Test Year" -> 2013 Test Year
A14: Reporting Basis | B14: CGAAP | C14: CGAAP | D14: CGAAP | E14: CGAAP | F14: CGAAP | G14: MCGAAP | H14: MCGAAP
A15: Operations | B15: 421827 | C15: 426324 | D15: 396303 | E15: 493191 | F15: 479053 | G15: 584640 | H15: 628363
A16: Maintenance | B16: 87281 | C16: 91130 | D16: 94702 | E16: 116678 | F16: 106053 | G16: 320616 | H16: 201605
A17: SubTotal | B17: =SUM(B15:B16) -> 509108 | C17: =SUM(C15:C16) -> 517454 | D17: 491005 | E17: 609869 | F17: 585106 | G17: 905256 | H17: 829968
A18: %Change (year over year) | D18: =IF(ISERROR((D17-C17)/C17), "", (D17-C17)/C17) -> -0.05111372219 | E18: =IF(ISERROR((E17-D17)/D17), "", (E17-D17)/D17) -> 0.2420830745 | F18: =IF(ISERROR((F17-E17)/E17), "", (F17-E17)/E17) -> -0.0406038018 | G18: 0.5471658127 | H18: -0.08316763435
A19: %Change (Test Year vs Last Rebasing Year - Actual) | H19: =IF(ISERROR((H17-C17)/C17), "", (H17-C17)/C17) -> 0.6039454715
A20: Billing and Collecting | B20: 349826 | C20: 365700 | D20: 381340 | E20: 310460 | F20: 265561 | G20: 298102 | H20: 316965
A21: Community Relations
A22: Administrative and General | B22: 260892 | C22: 263826 | D22: 267718 | E22: 240621 | F22: 319541 | G22: 391805 | H22: 407460
A23: SubTotal | B23: =SUM(B20:B22) -> 610718 | C23: =SUM(C20:C22) -> 629526 | D23: 649058 | E23: 551081 | F23: 585102 | G23: 689907 | H23: 724425
A24: %Change (year over year) | D24: =IF(ISERROR((D23-C23)/C23), "", (D23-C23)/C23) -> 0.03102651836 | E24: =IF(ISERROR((E23-D23)/D23), "", (E23-D23)/D23) -> -0.1509526113 | F24: =IF(ISERROR((F23-E23)/E23), "", (F23-E23)/E23) -> 0.06173502625 | G24: =IF(ISERROR((G23-F23)/F23), "", (G23-F23)/F23) -> 0.1791226145 | H24: =IF(ISERROR((H23-G23)/G23), "", (H23-G23)/G23) -> 0.05003283051
A25: %Change (Test Year vs Last Rebasing Year - Actual) | H25: =IF(ISERROR((H23-C23)/C23), "", (H23-C23)/C23) -> 0.1507467523
A26: Total | B26: =SUM(B23,B17) -> 1119826 | C26: =SUM(C23,C17) -> 1146980 | D26: 1140063 | E26: 1160950 | F26: 1170208 | G26: 1595163 | H26: 1554393
A27: %Change (year over year) | D27: =IF(ISERROR((D26-C26)/C26), "", (D26-C26)/C26) -> -0.00603061954 | E27: =IF(ISERROR((E26-D26)/D26), "", (E26-D26)/D26) -> 0.01832091735 | F27: =IF(ISERROR((F26-E26)/E26), "", (F26-E26)/E26) -> 0.007974503639 | G27: =IF(ISERROR((G26-F26)/F26), "", (G26-F26)/F26) -> 0.3631448426 | H27: =IF(ISERROR((H26-G26)/G26), "", (H26-G26)/G26) -> -0.02555851659
B30: =B13 -> Last Rebasing Year (2008 BA) | C30: =C13 -> Last Rebasing Year (2008 Actuals) | D30: 2009 Actuals | E30: 2010 Actuals | F30: 2011 Actuals | G30: 2012 Bridge Year | H30: 2013 Test Year
A31: Operations | B31: =B15 -> 421827 | C31: =C15 -> 426324 | D31: =D15 -> 396303 | E31: 493191 | F31: 479053 | G31: 584640 | H31: 628363
A32: Maintenance | B32: =B16 -> 87281 | C32: =C16 -> 91130 | D32: =D16 -> 94702 | E32: 116678 | F32: 106053 | G32: 320616 | H32: 201605
A33: Billing and Collecting | B33: =B20 -> 349826 | C33: =C20 -> 365700 | D33: =D20 -> 381340 | E33: 310460 | F33: 265561 | G33: 298102 | H33: 316965
A34: Community Relations | B34: =B21 -> 0 | C34: =C21 -> 0 | D34: =D21 -> 0 | E34: 0 | F34: 0 | G34: 0 | H34: 0
A35: Administrative and General | B35: =B22 -> 260892 | C35: =C22 -> 263826 | D35: =D22 -> 267718 | E35: 240621 | F35: 319541 | G35: 391805 | H35: 407460
A36: Total | B36: =SUM(B31:B35) -> 1119826 | C36: =SUM(C31:C35) -> 1146980 | D36: =SUM(D31:D35) -> 1140063 | E36: 1160950 | F36: 1170208 | G36: 1595163 | H36: 1554393
A37: %Change (year over year) | D37: =IF(ISERROR((D36-C36)/C36), "", (D36-C36)/C36) -> -0.00603061954 | E37: =IF(ISERROR((E36-D36)/D36), "", (E36-D36)/D36) -> 0.01832091735 | F37: =IF(ISERROR((F36-E36)/E36), "", (F36-E36)/E36) -> 0.007974503639 | G37: =IF(ISERROR((G36-F36)/F36), "", (G36-F36)/F36) -> 0.3631448426 | H37: =IF(ISERROR((H36-G36)/G36), "", (H36-G36)/G36) -> -0.02555851659
B40: =B13 -> Last Rebasing Year (2008 BA) | C40: =C13 -> Last Rebasing Year (2008 Actuals) | D40: ="Variance " & 'LDC Info'!E30 & " BA – " & 'LDC Info'!E30 & " Actuals" -> Variance 2008 BA – 2008 Actuals | E40: 2009 Actuals | F40: ="Variance " & 'LDC Info'!E26 -3 & " Actuals vs. " & 'LDC Info'!E30 & " Actuals" -> Variance 2009 Actuals vs. 2008 Actuals | G40: =E13 -> 2010 Actuals | H40: ="Variance " & 'LDC Info'!E26 -2 & " Actuals vs. " & 'LDC Info'!E30+1 & " Actuals" -> Variance 2010 Actuals vs. 2009 Actuals | I40: =F13 -> 2011 Actuals | J40: ="Variance " & 'LDC Info'!E26 -1 & " Actuals vs. " & 'LDC Info'!E26-2 & " Actuals" -> Variance 2011 Actuals vs. 2010 Actuals | K40: =G13 -> 2012 Bridge Year | L40: ="Variance " & 'LDC Info'!E26 & " Bridge vs. " & 'LDC Info'!E26 -1 & " Actuals" -> Variance 2012 Bridge vs. 2011 Actuals | M40: =H13 -> 2013 Test Year | N40: ="Variance " & 'LDC Info'!E28 & " Test vs. " & 'LDC Info'!E26 & " Bridge" -> Variance 2013 Test vs. 2012 Bridge
A41: Operations | B41: =B15 -> 421827 | C41: 426324 | D41: =B41-C41 -> -4497 | E41: =D15 -> 396303 | F41: =E41-C41 -> -30021 | G41: =E15 -> 493191 | H41: =G41-E41 -> 96888 | I41: =F15 -> 479053 | J41: =I41-G41 -> -14138 | K41: =G15 -> 584640 | L41: =K41-I41 -> 105587 | M41: =H15 -> 628363 | N41: =M41-K41 -> 43723
A42: Maintenance | B42: 87281 | C42: 91130 | D42: =B42-C42 -> -3849 | E42: =D16 -> 94702 | F42: =E42-C42 -> 3572 | G42: =E16 -> 116678 | H42: 21976 | I42: =F16 -> 106053 | J42: =I42-G42 -> -10625 | K42: =G16 -> 320616 | L42: 214563 | M42: =H16 -> 201605 | N42: -119011
A43: Billing and Collecting | B43: =B20 -> 349826 | C43: 365700 | D43: -15874 | E43: =D20 -> 381340 | F43: 15640 | G43: =E20 -> 310460 | H43: -70880 | I43: =F20 -> 265561 | J43: -44899 | K43: =G20 -> 298102 | L43: 32541 | M43: =H20 -> 316965 | N43: 18863
A44: Community Relations | B44: 0 | C44: 0 | D44: 0 | E44: =D21 -> 0 | F44: 0 | G44: =E21 -> 0 | H44: 0 | I44: =F21 -> 0 | J44: 0 | K44: =G21 -> 0 | L44: 0 | M44: =H21 -> 0 | N44: 0
A45: Administrative and General | B45: 260892 | C45: 263826 | D45: -2934 | E45: =D22 -> 267718 | F45: 3892 | G45: 240621 | H45: -27097 | I45: 319541 | J45: 78920 | K45: 391805 | L45: 72264 | M45: 407460 | N45: 15655
A46: Total OM&A Expenses | B46: =SUM(B41:B45) -> 1119826 | C46: =SUM(C41:C45) -> 1146980 | D46: -27154 | E46: =SUM(E41:E45) -> 1140063 | F46: -6917 | G46: 1160950 | H46: =SUM(H41:H45) -> 20887 | I46: 1170208 | J46: 9258 | K46: 1595163 | L46: 424955 | M46: 1554393 | N46: -40770
A47: Variance from previous year | E47: =E46-C46 -> -6917 | G47: =G46-E46 -> 20887 | I47: =I46-G46 -> 9258 | K47: =K46-I46 -> 424955 | M47: =M46-K46 -> -40770
A48: Percent change (year over year) | E48: =IF(ISERROR(E47/C46), "", E47/C46) -> -0.00603061954 | G48: =IF(ISERROR(G47/C46), "", G47/C46) -> 0.01821043087 | I48: =IF(ISERROR(I47/G46), "", I47/G46) -> 0.007974503639 | K48: =IF(ISERROR(K47/I46), "", K47/I46) -> 0.3631448426 | M48: =IF(ISERROR(M47/K46), "", M47/K46) -> -0.02555851659
A49: Percent Change: Test year vs. Most Current Actual | I49: =IF(ISERROR(($M$46-I46)/I46), "", ($M$46-I46)/I46) -> 0.3283048826
A50: Simple average of % variance for all years | E50: =IF(ISERROR((K46-A46)/A46), "", (K46-A46)/A46) ->  | I50: =IF(ISERROR(AVERAGE(E48,G48,I48)), "", AVERAGE(E48,G4,I48)) -> 0.0009719420496 | M50: =IF(ISERROR(AVERAGE(F48,H48,J48,L48,N48)), "", AVERAGE(F48,H48,J48,L48,N48)) ->  | N50: =IF(ISERROR(AVERAGE(E48,G48,I48,K48,M48)), "", AVERAGE(E48,G48,I48,K48,M48)) -> 0.0715481282
A51: Compound Annual Growth Rate for all years | E51: =IF(ISERROR((K47-A47)/A47), "", (K47-A47)/A47) ->  | M51: =IF((M46-C46)=0, "", (M46/C46)^(1/6)-1) -> 0.05196388697
A52: ="Compound Growth Rate (" & F13 & " vs. " & 'LDC Info'!E30 & " Actuals)" -> Compound Growth Rate (2011 Actuals vs. 2008 Actuals) | I52: =IF(ISERROR((I46/C46)^(1/(2010-2008)) - 1), "", (I46-C46)/C46) -> 0.02025144292
A54: Note:
A56: 1 "BA" = Board-Approved
A57: 2 If it has been more than three years since the applicant last filed a cost of service application, additional years of historical actuals should be incorporated into the table, as necessary, to go back to the last cost of service application. If the applicant last filed a cost of service application less than three years ago, a minimum of three years of actual information is required.
A59: 3 Recoverable OM&A that is included on these tables should be identical to the recoverable OM&A that is shown for the corresponding periods on Appendix 2-H.

Sheet App.2-J_OM&A_Cost _Drivers
G1: File Number: | H1: ='LDC Info'!$E$18 -> EB-2012-0165
G2: Exhibit: | H2: 4
G3: Tab:
G4: Schedule:
G5: Page:
G7: Date: | H7: 2013-02-22
A10: Appendix 2-J
A11: OM&A Cost Driver Table
A13: OM&A | B13: ="Last Rebasing Year (" & 'LDC Info'!E30 & " Actuals)" -> Last Rebasing Year (2008 Actuals) | D13: ='LDC Info'!E26 -3 & " Actuals" -> 2009 Actuals | E13: ='LDC Info'!E26 -2 & " Actuals" -> 2010 Actuals | F13: ='LDC Info'!E26 -1 & " Actuals" -> 2011 Actuals | G13: ='LDC Info'!E26 & " Bridge Year" -> 2012 Bridge Year | H13: ='LDC Info'!E28 & " Test Year" -> 2013 Test Year
A14: Reporting Basis | B14: CGAAP | D14: CGAAP | E14: CGAAP | F14: CGAAP | G14: MCGAAP | H14: MCGAAP
A15: Opening Balance | B15: 1119826 | D15: =B36 -> 1146980 | E15: =IF(ISERROR(FIND("2008", $B$13)),#REF!, D36) -> 1140063 | F15: =IF(ISERROR(FIND("2008", $B$13)), D36, E36) -> 1160950 | G15: 1170208 | H15: 1595163
A16: Distribution Expenses - Maintenance | B16: -11157 | H16: 7343
A17: Tree Trimming | B17: 14678 | E17: 10560
A18: Maintenance of Meters - Smart Meters | G18: 78832
A19: Distribution Expenses - Operations | B19: 16823 | D19: -20954 | E19: 62269 | G19: 16401
A20: Meter Revarification costs | B20: -8503
A21: Training Costs | B21: -6162 | F21: 25973 | G21: -25000 | H21: 27650
A22: Transformer Testing | D22: -11088 | E22: 35888 | F22: -37139 | G22: 17567
A23: Customer Billing/Collecting | B23: 13783 | E23: -10992 | G23: 17981
A24: Bad Debt Expense | D24: 13277 | E24: -9361 | F24: -12881
A25: Meter Reading Expense | E25: -48629 | F25: -22360
A26: Amounts transferred from Acct 1556 | G26: 116682 | H26: -116682
A27: Management/General Admin Salaries/Expenses | D27: 19061 | F27: 13205
A28: Regulatory Expenses | D28: -15221 | G28: 42245 | H28: -22933
A29: One time Costs | H29: 21187
A30: 2010 Audit fees not accrued | E30: -16808 | F30: 33616
A31: New Capitalization Policy | G31: 39127
A32: Asset Management Plan Consulting fees | G32: 10000 | H32: -10000
A33: Persisting due to Organizational restructuring | G33: 73279 | H33: 89458
A34: Succession Planning/Implementation | G34: 36144 | H34: -36144
A35: Miscellaneous | B35: 7692 | D35: 8008 | E35: -2040 | F35: 8844 | G35: 1697 | H35: -649
A36: Closing Balance | B36: =SUM(B15:B35) -> 1146980 | D36: =SUM(D15:D35) -> 1140063 | E36: 1160950 | F36: 1170208 | G36: 1595163 | H36: =SUM(H15:H35) -> 1554393
A38: Notes:
A40: 1 | B40: For each year, a detailed explanation for each cost driver and associated amount is
B41: required.
A42: 2 | B42: The closing balance for each year becomes the opening balance for the next year.
A43: 3 | B43: If it has been more than three years since the applicant last filed a cost of service application, additional years of historical actuals should be incorporated into the table, as necessary, to go back to the last cost of service application. If the applicant last filed a cost of service application less than three years ago, a minimum of three years of actual information is required.
A47: 4 | B47: Opening Balance for "Last Rebasing Year" (cell B15) should be equal to the Board-Approved amount.

Sheet App.2-K_Employee Costs
G1: File Number: | H1: ='LDC Info'!$E$18 -> EB-2012-0165
G2: Exhibit: | H2: 4
G3: Tab:
G4: Schedule:
G5: Page:
G7: Date: | H7: 2013-02-22
A9: Appendix 2-K
A10: Employee Costs
B12: ="Last Rebasing Year (" & 'LDC Info'!E30 & " Board-Approved)" -> Last Rebasing Year (2008 Board-Approved) | C12: ="Last Rebasing Year (" & 'LDC Info'!E30 & " Actuals)" -> Last Rebasing Year (2008 Actuals) | D12: 2009 Actuals | E12: ='LDC Info'!E26 -2 & " Actuals" -> 2010 Actuals | F12: ='LDC Info'!E26 -1 & " Actuals" -> 2011 Actuals | G12: ='LDC Info'!E26 & " Bridge Year" -> 2012 Bridge Year | H12: ='LDC Info'!E28 & " Test Year" -> 2013 Test Year
A13: Reporting Basis | B13: CGAAP | C13: CGAAP | D13: CGAAP | E13: CGAAP | F13: CGAAP | G13: MCGAAP | H13: MCGAAP
A14: Number of Employees (FTEs including Part-Time)1
A15: Executive | B15: 1 | C15: 1 | D15: 1 | E15: 1 | F15: 1 | G15: 1.2 | H15: 1
A16: Management | B16: 1 | C16: 1 | D16: 1 | E16: 1 | F16: 1 | G16: 1 | H16: 1
A17: Non-Union | G17: 0.42 | H17: 1
A18: Union | B18: 5 | C18: 6 | D18: 6 | E18: 6 | F18: 6 | G18: 5.75 | H18: 6
A19: Total | B19: =SUM(B15:B18) -> 7 | C19: 8 | D19: 8 | E19: 8 | F19: 8 | G19: 8.37 | H19: 9
A20: Number of Part-Time Employees
A21: Executive
A22: Management
A23: Non-Union
A24: Union | B24: 1
A25: Total | B25: =SUM(B21:B24) -> 1 | C25: 0 | D25: 0 | E25: 0 | F25: 0 | G25: 0 | H25: 0
A26: Total Salary and Wages
A27: Executive
A28: Management
A29: Non-Union
A30: Union | B30: 474644 | C30: 531188 | D30: 589810 | E30: 602342 | F30: 612696 | G30: 703255 | H30: 641205
A31: Total | B31: =SUM(B27:B30) -> 474644 | C31: 531188 | D31: 589810 | E31: 602342 | F31: 612696 | G31: 703255 | H31: 641205
A32: Current Benefits
A33: Executive
A34: Management
A35: Non-Union
A36: Union | B36: 35847 | C36: 67911 | D36: 81159 | E36: 82787 | F36: 97995 | G36: 102140 | H36: 98689
A37: Total | B37: =SUM(B33:B36) -> 35847 | C37: 67911 | D37: 81159 | E37: 82787 | F37: 97995 | G37: 102140 | H37: 98689
A38: Accrued Pension and Post-Retirement Benefits
A39: Executive
A40: Management
A41: Non-Union
A42: Union | C42: 84458 | D42: 82964 | E42: 88222 | F42: 82521 | G42: 48240 | H42: 45551
A43: Total | B43: =SUM(B39:B42) -> 0 | C43: 84458 | D43: 82964 | E43: 88222 | F43: 82521 | G43: 48240 | H43: 45551
A44: Total Benefits (Current + Accrued)
A45: Executive | B45: =B33+B39 -> 0 | C45: 0 | D45: =D33+D39 -> 0 | E45: 0 | F45: 0 | G45: 0 | H45: 0
A46: Management | B46: 0 | C46: 0 | D46: =D34+D40 -> 0 | E46: 0 | F46: 0 | G46: 0 | H46: 0
A47: Non-Union | B47: 0 | C47: 0 | D47: =D35+D41 -> 0 | E47: 0 | F47: 0 | G47: 0 | H47: 0
A48: Union | B48: 35847 | C48: 152369 | D48: =D36+D42 -> 164123 | E48: 171009 | F48: 180516 | G48: 150380 | H48: 144240
A49: Total | B49: 35847 | C49: 152369 | D49: =D37+D43 -> 164123 | E49: 171009 | F49: 180516 | G49: 150380 | H49: 144240
A50: Total Compensation (Salary, Wages, & Benefits)
A51: Executive | B51: =B27+B45 -> 0 | C51: 0 | D51: =D27+D45 -> 0 | E51: 0 | F51: 0 | G51: 0 | H51: 0
A52: Management | B52: 0 | C52: 0 | D52: =D28+D46 -> 0 | E52: 0 | F52: 0 | G52: 0 | H52: 0
A53: Non-Union | B53: 0 | C53: 0 | D53: =D29+D47 -> 0 | E53: 0 | F53: 0 | G53: 0 | H53: 0
A54: Union | B54: 510491 | C54: 683557 | D54: =D30+D48 -> 753933 | E54: 773351 | F54: 793212 | G54: 853635 | H54: 785445
A55: Total | B55: 510491 | C55: 683557 | D55: =D31+D49 -> 753933 | E55: 773351 | F55: 793212 | G55: 853635 | H55: 785445
A56: Compensation - Average Yearly Base Wages
A57: Executive
A58: Management
A59: Non-Union
A60: Union | B60: 62563 | C60: =C30/C19 -> 66398.5 | D60: =D30/D19 -> 73726.25 | E60: 75292.75 | F60: 76587 | G60: 84020.908 | H60: 71245
A61: Total
A62: Compensation - Average Yearly Overtime
A63: Executive
A64: Management
A65: Non-Union
A66: Union
A67: Total
A68: Compensation - Average Yearly Incentive Pay
A69: Executive
A70: Management
A71: Non-Union
A72: Union
A73: Total
A74: Compensation - Average Yearly Benefits
A75: Executive
A76: Management
A77: Non-Union
A78: Union | B78: 5121 | C78: =SUM(C37/C19) -> 8488.875 | D78: =SUM(D37/D19) -> 10144.875 | E78: 10348.375 | F78: 12249.375 | G78: 12203.10633 | H78: 10965.44444
A79: Total
A81: Total Compensation | B81: =SUM(B51:B54) -> 510491 | C81: 683557 | D81: 753933 | E81: 773351 | F81: 793212 | G81: 853635 | H81: 785445
A82: Total Compensation Capitalized (CGAAP) | C82: 54788 | D82: 75782 | E82: 73964 | F82: 94913 | G82: 99595
A83: Total Compensation Charged to OM&A (CGAAP) | B83: =B81-B82 -> 510491 | C83: 628769 | D83: 678151 | E83: 699387 | F83: 698299 | G83: 754040
A85: Total Compensation Capitalized (MCGAAP) | H85: 94779
A86: Total Compensation Charged to OM&A (MCGAAP) | F86: =F81-F85 -> 793212 | G86: =G81-G85 -> 853635 | H86: =H81-H85 -> 690666
A89: 1 If an applicant wishes to use headcount, it must also file the same schedule on an FTE basis.
A91: Note:
A92: 1 Please report compensation on a CGAAP and MIFRS basis for your transition year.

Sheet App.2-L_OM&A_per_Cust_FTEE
H1: File Number: | I1: ='LDC Info'!$E$18 -> EB-2012-0165
H2: Exhibit: | I2: 4
H3: Tab:
H4: Schedule:
H5: Page:
H7: Date: | I7: 2013-02-22
A9: Appendix 2-L
A10: Recoverable OM&A Cost per Customer and per FTEE
C12: ="Last Rebasing Year (" & 'LDC Info'!E30 & " Board-Approved)" -> Last Rebasing Year (2008 Board-Approved) | D12: ="Last Rebasing Year (" & 'LDC Info'!E30 & " Actuals)" -> Last Rebasing Year (2008 Actuals) | E12: 2009 Actuals | F12: ='LDC Info'!E26 -2 & " Actuals" -> 2010 Actuals | G12: ='LDC Info'!E26 -1 & " Actuals" -> 2011 Actuals | H12: ='LDC Info'!E26 & " Bridge Year" -> 2012 Bridge Year | I12: ='LDC Info'!E28 & " Test Year" -> 2013 Test Year
A13: Reporting Basis | C13: CGAAP | D13: CGAAP | E13: CGAAP | F13: CGAAP | G13: CGAAP | H13: MCGAAP | I13: MCGAAP
A14: Number of Customers | C14: 2757 | D14: 2736 | E14: 2742 | F14: 2765 | G14: 2760 | H14: 2753 | I14: 2757
A15: Total Recoverable OM&A from Appendix 2-I | C15: 1119826 | D15: 1146980 | E15: 1140063 | F15: 1160950 | G15: 1170208 | H15: 1595163 | I15: 1554393
A16: OM&A cost per customer | C16: =IF(C14=0,"",C15/C14) -> 406.1755531 | D16: 419.2178363 | E16: 415.7778993 | F16: 419.8734177 | G16: 423.9884058 | H16: 579.4271704 | I16: 563.7986942
A17: Number of FTEEs | C17: 7 | D17: 8 | E17: 8 | F17: 8 | G17: 8 | H17: 8.37 | I17: 9
A18: Customers/FTEEs | C18: =IF(C17=0,"",C14/C17) -> 393.8571429 | D18: 342 | E18: 342.75 | F18: 345.625 | G18: 345 | H18: 328.9127838 | I18: 306.3333333
A19: OM&A Cost per FTEE | C19: =IF(C17=0,"",C15/C17) -> 159975.1429 | D19: 143372.5 | E19: 142507.875 | F19: 145118.75 | G19: 146276 | H19: 190581.0036 | I19: 172710.3333
A21: Notes:
A23: 1 | B23: If it has been more than three years since the applicant last filed a cost of service application, additional years of historical actuals should be incorporated into the table, as necessary, to go back to the last cost of service application. If the applicant last filed a cost of service application less than three years ago, a minimum of three years of actual information is required.
A27: 2 | B27: The method of calculating the number of customers must be identified.
A28: 3 | B28: The method of calculating the number of FTEEs must be identified. See also Appendix 2-K
A29: 4 | B29: The number of customers and the number of FTEEs should correspond to mid-year or average of January 1 and December 31 figures.

Sheet App.2-M_Regulatory_Costs
J1: File Number: | K1: ='LDC Info'!$E$18 -> EB-2012-0165
J2: Exhibit: | K2: 4
J3: Tab:
J4: Schedule:
J5: Page:
J7: Date: | K7: 2013-02-22
A9: Appendix 2-M
A10: Regulatory Cost Schedule
E11: On-going
E12: On-Time
A13: Regulatory Cost Category | C13: USoA Account | D13: USoA Account Balance | E13: Ongoing or One-time Cost? 2 | F13: ="Last Rebasing Year (" & 'LDC Info'!E30 & " Board Approved)" -> Last Rebasing Year (2008 Board Approved) | G13: Most Current Actuals Year 2011 | H13: ='LDC Info'!E26 & " Bridge Year" -> 2012 Bridge Year | I13: Annual % Change | J13: ='LDC Info'!E28 & " Test Year" -> 2013 Test Year | K13: Annual % Change
A14: (A) | C14: (B) | D14: (C ) | E14: (D) | F14: (E) | G14: (F) | H14: (G) | I14: (H) = [(G)-(F)]/(F) | J14: (I) | K14: (J) = [(I)-(G)]/(G)
A15: 1 | B15: OEB Annual Assessment | C15: 5655 | E15: On-Going | F15: 13000 | G15: 12900 | H15: 12537 | I15: =IF(G15=0,"",(H15-G15)/G15) -> -0.02813953488 | J15: 12734 | K15: =IF(H15=0,"",(J15-H15)/H15) -> 0.01571348808
A16: 2 | B16: OEB Section 30 Costs (Applicant-originated) | C16: 5655 | E16: On-Going | I16: =IF(G16=0,"",(H16-G16)/G16) ->  | K16: =IF(H16=0,"",(J16-H16)/H16) -> 
A17: 3 | B17: OEB Section 30 Costs (OEB-initiated) | C17: 5655 | E17: On-Going | G17: 529.08 | H17: 1000 | I17: 0.8900733348 | J17: 1000 | K17: 0
A18: 4 | B18: Expert Witness costs for regulatory matters
A19: 5 | B19: Legal costs for regulatory matters | C19: 5655 | E19: On-Time
A20: 6 | B20: Consultants' costs for regulatory matters | C20: 5655 | E20: On-Time | F20: 25000 | G20: 0 | H20: 40000 | J20: 30000 | K20: -0.25
A21: 7 | B21: Operating expenses associated with staff resources allocated to regulatory matters | C21: 5610 | E21: On-Going | F21: 41921 | G21: 56745 | H21: 62840 | I21: 0.1074103445 | J21: 67353 | K21: 0.07181731381
A22: 8 | B22: Operating expenses associated with other resources allocated to regulatory matters 1
A23: 9 | B23: Other regulatory agency fees or assessments | C23: 5680 | E23: On-Going | F23: 2185 | G23: 2516.28 | H23: 2501 | I23: -0.006072456165 | J23: 2501 | K23: 0
A24: 10 | B24: Any other costs for regulatory matters (please define)
A25: 11 | B25: Intervenor costs | C25: 5655 | E25: On-Time | F25: 0 | H25: 2245.1 | J25: 5000 | K25: 1.227072291
A26: 12 | B26: Sub-total - Ongoing Costs 3 | D26: =SUMIF($E15:$E25,$E11,D15:D25) -> 0 | F26: =SUMIF($E15:$E25,$E11,F15:F25) -> 57106 | G26: =SUMIF($E15:$E25,$E11,G15:G25) -> 72690.36 | H26: =SUMIF($E15:$E25,$E11,H15:H25) -> 78878 | I26: 0.08512325431 | J26: =SUMIF($E15:$E25,$E11,J15:J25) -> 83588 | K26: 0.05971246735
A27: 13 | B27: Sub-total - One-time Costs 4 | D27: =SUMIF($E15:$E25,$E12,D15:D25) -> 0 | F27: =SUMIF($E15:$E25,$E12,F15:F25) -> 25000 | G27: =SUMIF($E15:$E25,$E12,G15:G25) -> 0 | H27: =SUMIF($E15:$E25,$E12,H15:H25) -> 42245.1 | J27: =SUMIF($E15:$E25,$E12,J15:J25) -> 35000 | K27: -0.1715015469
A28: 14 | B28: Total | D28: =D26+D27 -> 0 | F28: =F26+F27 -> 82106 | G28: =G26+G27 -> 72690.36 | H28: =H26+H27 -> 121123.1 | I28: 0.6662883497 | J28: =J26+J27 -> 118588 | K28: -0.02092994648
A31: 1 | B31: Please identify the resources involved.
A32: 2 | B32: Where a category's costs include both one-time and ongoing costs, the applicant should prove a separate breakdown between one-time and ongoing costs.
A33: 3 | B33: Sum of all ongoing costs identified in rows 1 to 11 inclusive.
A34: 4 | B34: Sum of all one-time costs identified in rows 1 to 11 inclusive.
A37: Please fill out the following table for all one-time costs related to this cost of service application
C39: Historical Year(s) | D39: =H13 -> 2012 Bridge Year | E39: =J13 -> 2013 Test Year
A40: 4 | B40: Expert Witness costs for regulatory matters | D40: =H18 -> 0 | E40: =J18 -> 0
A41: 6 | B41: Consultants' costs for regulatory matters | D41: =H20 -> 40000 | E41: =J20 -> 30000
A42: 7 | B42: Operating expenses associated with staff resources allocated to regulatory matters
A43: 8 | B43: Operating expenses associated with other resources allocated to regulatory matters 1 | D43: =H22 -> 0 | E43: =J22 -> 0
A44: 11 | B44: Intervenor costs | D44: =H25 -> 2245.1 | E44: =J25 -> 5000

Sheet App.2-N_Corp_Cost_Allocatio(NA)
F1: File Number: | G1: ='LDC Info'!$E$18 -> EB-2012-0165
F2: Exhibit:
F3: Tab:
F4: Schedule:
F5: Page:
F7: Date:
A9: Appendix 2-N
A10: Shared Services and Corporate Cost Allocation
B12: Year: | C12: 2008
A14: Shared Services
A16: Name of Company | C16: Service Offered | D16: Pricing Methdology | E16: Price for the Service | F16: Cost for the Service
A17: From | B17: To
E18: $ | F18: $
A28: Corporate Cost Allocation
A30: Name of Company | C30: Service Offered | D30: Pricing Methdology | E30: % of Corporate Costs Allocated | F30: Amount Allocated
A31: From | B31: To
E32: % | F32: $
A33: eg: parent company | B33: eg: regulated entity
A42: Note:
A43: 1 | B43: This appendix must be completed in relation to each service provided or received for the Historical (actuals), Bridge and Test years.

Sheet App.2-OA Capital Struct 2008 BA
K1: File Number: | O1: ='LDC Info'!$E$18 -> EB-2012-0165
K2: Exhibit: | O2: 5
K3: Tab:
K4: Schedule:
K5: Page:
K7: Date: | O7: 2013-02-22
C10: Appendix 2-OA
C11: Capital Structure and Cost of Capital
I12: 2008 Board Approved
A13: This table must be completed for the required years of all historical years, the bridge year and the test year.
A15: Line No.
C16: Particulars | E16: Capitalization Ratio | K16: Cost Rate | O16: Return
C19: Application
E20: (%) | I20: ($) | K20: (%) | O20: ($)
C21: Debt
A22: 1 | C22: Long-term Debt | E22: 0.493 | I22: =$I$31*E22 -> 3062641.222 | K22: 0.061 | O22: =K22*I22 -> 186821.1145
A23: 2 | C23: Short-term Debt | E23: 0.04 | G23: (1) | I23: =$I$31*E23 -> 248490.16 | K23: 0.0447 | O23: =K23*I23 -> 11107.51015
A24: 3 | C24: Total Debt | E24: =SUM(E22:E23) -> 0.533 | I24: =SUM(I22:I23) -> 3311131.382 | K24: =IF(E24=0,0,SUMPRODUCT(E22:E23,K22:K23)/E24) -> 0.05977673546 | O24: =SUM(O22:O23) -> 197928.6247
C26: Equity
A27: 4 | C27: Common Equity | E27: 0.467 | I27: =$I$31*E27 -> 2901122.618 | K27: 0.0857 | O27: =K27*I27 -> 248626.2084
A28: 5 | C28: Preferred Shares | I28: =$I$31*E28 -> 0 | O28: =K28*I28 -> 0
A29: 6 | C29: Total Equity | E29: =SUM(E27:E28) -> 0.467 | I29: =SUM(I27:I28) -> 2901122.618 | K29: =IF(E29=0,0,SUMPRODUCT(E27:E28,K27:K28)/E29) -> 0.0857 | O29: =SUM(O27:O28) -> 248626.2084
A31: 7 | C31: Total | E31: 1 | I31: 6212254 | K31: =(K24*E24)+(K29*E29) -> 0.0718829 | O31: =O24+O29 -> 446554.8331
A34: Notes
A35: (1) | C35: 4.0% unless an applicant has proposed or been approved for a different amount.

Sheet App.2-OA Capital Structure 2008
K1: File Number: | O1: ='LDC Info'!$E$18 -> EB-2012-0165
K2: Exhibit: | O2: 5
K3: Tab:
K4: Schedule:
K5: Page:
K7: Date: | O7: 2013-02-22
C10: Appendix 2-OA
C11: Capital Structure and Cost of Capital
I12: 2008
A13: This table must be completed for the required years of all historical years, the bridge year and the test year.
A15: Line No.
C16: Particulars | E16: Capitalization Ratio | K16: Cost Rate | O16: Return
C19: Application
E20: (%) | I20: ($) | K20: (%) | O20: ($)
C21: Debt
A22: 1 | C22: Long-term Debt | E22: 0.493 | I22: =$I$31*E22 -> 2771464.083 | K22: 0.0473 | O22: =K22*I22 -> 131090.2511
A23: 2 | C23: Short-term Debt | E23: 0.04 | G23: (1) | I23: =$I$31*E23 -> 224865.24 | K23: 0.0447 | O23: =K23*I23 -> 10051.47623
A24: 3 | C24: Total Debt | E24: =SUM(E22:E23) -> 0.533 | I24: =SUM(I22:I23) -> 2996329.323 | K24: =IF(E24=0,0,SUMPRODUCT(E22:E23,K22:K23)/E24) -> 0.04710487805 | O24: =SUM(O22:O23) -> 141141.7274
C26: Equity
A27: 4 | C27: Common Equity | E27: 0.467 | I27: =$I$31*E27 -> 2625301.677 | K27: 0.0857 | O27: =K27*I27 -> 224988.3537
A28: 5 | C28: Preferred Shares | I28: =$I$31*E28 -> 0 | O28: =K28*I28 -> 0
A29: 6 | C29: Total Equity | E29: =SUM(E27:E28) -> 0.467 | I29: =SUM(I27:I28) -> 2625301.677 | K29: =IF(E29=0,0,SUMPRODUCT(E27:E28,K27:K28)/E29) -> 0.0857 | O29: =SUM(O27:O28) -> 224988.3537
A31: 7 | C31: Total | E31: 1 | I31: 5621631 | K31: =(K24*E24)+(K29*E29) -> 0.0651288 | O31: =O24+O29 -> 366130.0811
A34: Notes
A35: (1) | C35: 4.0% unless an applicant has proposed or been approved for a different amount.

Sheet App.2-OA Capital Structure 2009
K1: File Number: | O1: ='LDC Info'!$E$18 -> EB-2012-0165
K2: Exhibit: | O2: 5
K3: Tab:
K4: Schedule:
K5: Page:
K7: Date: | O7: 2013-02-22
C10: Appendix 2-OA
C11: Capital Structure and Cost of Capital
I12: 2009
A13: This table must be completed for the required years of all historical years, the bridge year and the test year.
A15: Line No.
C16: Particulars | E16: Capitalization Ratio | K16: Cost Rate | O16: Return
C19: Application
E20: (%) | I20: ($) | K20: (%) | O20: ($)
C21: Debt
A22: 1 | C22: Long-term Debt | E22: 0.527 | I22: =$I$31*E22 -> 2789175.431 | K22: 0.02930281535 | O22: =K22*I22 -> 81730.69263
A23: 2 | C23: Short-term Debt | E23: 0.04 | G23: (1) | I23: =$I$31*E23 -> 211702.12 | K23: 0.0447 | O23: =K23*I23 -> 9463.084764
A24: 3 | C24: Total Debt | E24: =SUM(E22:E23) -> 0.567 | I24: =SUM(I22:I23) -> 3000877.551 | K24: =IF(E24=0,0,SUMPRODUCT(E22:E23,K22:K23)/E24) -> 0.03038903649 | O24: =SUM(O22:O23) -> 91193.7774
C26: Equity
A27: 4 | C27: Common Equity | E27: 0.433 | I27: =$I$31*E27 -> 2291675.449 | K27: 0.0857 | O27: =K27*I27 -> 196396.586
A28: 5 | C28: Preferred Shares | I28: =$I$31*E28 -> 0 | O28: =K28*I28 -> 0
A29: 6 | C29: Total Equity | E29: =SUM(E27:E28) -> 0.433 | I29: =SUM(I27:I28) -> 2291675.449 | K29: =IF(E29=0,0,SUMPRODUCT(E27:E28,K27:K28)/E29) -> 0.0857 | O29: =SUM(O27:O28) -> 196396.586
A31: 7 | C31: Total | E31: 1 | I31: 5292553 | K31: =(K24*E24)+(K29*E29) -> 0.05433868369 | O31: =O24+O29 -> 287590.3634
A34: Notes
A35: (1) | C35: 4.0% unless an applicant has proposed or been approved for a different amount.

Sheet App.2-OA Capital Structure 2010
K1: File Number: | O1: ='LDC Info'!$E$18 -> EB-2012-0165
K2: Exhibit: | O2: 5
K3: Tab:
K4: Schedule:
K5: Page:
K7: Date: | O7: 2013-02-22
C10: Appendix 2-OA
C11: Capital Structure and Cost of Capital
I12: 2010
A13: This table must be completed for the required years of all historical years, the bridge year and the test year.
A15: Line No.
C16: Particulars | E16: Capitalization Ratio | K16: Cost Rate | O16: Return
C19: Application
E20: (%) | I20: ($) | K20: (%) | O20: ($)
C21: Debt
A22: 1 | C22: Long-term Debt | E22: 0.56 | I22: =$I$31*E22 -> 3080525.28 | K22: 0.03104464688 | O22: =K22*I22 -> 95633.81953
A23: 2 | C23: Short-term Debt | E23: 0.04 | G23: (1) | I23: =$I$31*E23 -> 220037.52 | K23: 0.0447 | O23: =K23*I23 -> 9835.677144
A24: 3 | C24: Total Debt | E24: =SUM(E22:E23) -> 0.6 | I24: =SUM(I22:I23) -> 3300562.8 | K24: =IF(E24=0,0,SUMPRODUCT(E22:E23,K22:K23)/E24) -> 0.03195500376 | O24: =SUM(O22:O23) -> 105469.4967
C26: Equity
A27: 4 | C27: Common Equity | E27: 0.4 | I27: =$I$31*E27 -> 2200375.2 | K27: 0.0857 | O27: =K27*I27 -> 188572.1546
A28: 5 | C28: Preferred Shares | I28: =$I$31*E28 -> 0 | O28: =K28*I28 -> 0
A29: 6 | C29: Total Equity | E29: =SUM(E27:E28) -> 0.4 | I29: =SUM(I27:I28) -> 2200375.2 | K29: =IF(E29=0,0,SUMPRODUCT(E27:E28,K27:K28)/E29) -> 0.0857 | O29: =SUM(O27:O28) -> 188572.1546
A31: 7 | C31: Total | E31: 1 | I31: 5500938 | K31: =(K24*E24)+(K29*E29) -> 0.05345300225 | O31: =O24+O29 -> 294041.6513
A34: Notes
A35: (1) | C35: 4.0% unless an applicant has proposed or been approved for a different amount.

Sheet App.2-OA Capital Structure 2011
K1: File Number: | O1: ='LDC Info'!$E$18 -> EB-2012-0165
K2: Exhibit: | O2: 5
K3: Tab:
K4: Schedule:
K5: Page:
K7: Date: | O7: 2013-02-22
C10: Appendix 2-OA
C11: Capital Structure and Cost of Capital
I12: 2011
A13: This table must be completed for the required years of all historical years, the bridge year and the test year.
A15: Line No.
C16: Particulars | E16: Capitalization Ratio | K16: Cost Rate | O16: Return
C19: Application
E20: (%) | I20: ($) | K20: (%) | O20: ($)
C21: Debt
A22: 1 | C22: Long-term Debt | E22: 0.56 | I22: =$I$31*E22 -> 3131261.84 | K22: 0.03418743384 | O22: =K22*I22 -> 107049.807
A23: 2 | C23: Short-term Debt | E23: 0.04 | G23: (1) | I23: =$I$31*E23 -> 223661.56 | K23: 0.0447 | O23: =K23*I23 -> 9997.671732
A24: 3 | C24: Total Debt | E24: =SUM(E22:E23) -> 0.6 | I24: =SUM(I22:I23) -> 3354923.4 | K24: =IF(E24=0,0,SUMPRODUCT(E22:E23,K22:K23)/E24) -> 0.03488827158 | O24: =SUM(O22:O23) -> 117047.4787
C26: Equity
A27: 4 | C27: Common Equity | E27: 0.4 | I27: =$I$31*E27 -> 2236615.6 | K27: 0.0857 | O27: =K27*I27 -> 191677.9569
A28: 5 | C28: Preferred Shares | I28: =$I$31*E28 -> 0 | O28: =K28*I28 -> 0
A29: 6 | C29: Total Equity | E29: =SUM(E27:E28) -> 0.4 | I29: =SUM(I27:I28) -> 2236615.6 | K29: =IF(E29=0,0,SUMPRODUCT(E27:E28,K27:K28)/E29) -> 0.0857 | O29: =SUM(O27:O28) -> 191677.9569
A31: 7 | C31: Total | E31: 1 | I31: 5591539 | K31: =(K24*E24)+(K29*E29) -> 0.05521296295 | O31: =O24+O29 -> 308725.4356
A34: Notes
A35: (1) | C35: 4.0% unless an applicant has proposed or been approved for a different amount.

Sheet App.2-OA Capital Structure 2012
K1: File Number: | O1: ='LDC Info'!$E$18 -> EB-2012-0165
K2: Exhibit: | O2: 5
K3: Tab:
K4: Schedule:
K5: Page:
K7: Date: | O7: 2013-02-22
C10: Appendix 2-OA
C11: Capital Structure and Cost of Capital
I12: 2012
A13: This table must be completed for the required years of all historical years, the bridge year and the test year.
A15: Line No.
C16: Particulars | E16: Capitalization Ratio | K16: Cost Rate | O16: Return
C19: Application
E20: (%) | I20: ($) | K20: (%) | O20: ($)
C21: Debt
A22: 1 | C22: Long-term Debt | E22: 0.56 | I22: =$I$31*E22 -> 3290186.48 | K22: 0.03430032958 | O22: =K22*I22 -> 112854.4807
A23: 2 | C23: Short-term Debt | E23: 0.04 | G23: (1) | I23: =$I$31*E23 -> 235013.32 | K23: 0.0207 | O23: =K23*I23 -> 4864.775724
A24: 3 | C24: Total Debt | E24: =SUM(E22:E23) -> 0.6 | I24: =SUM(I22:I23) -> 3525199.8 | K24: =IF(E24=0,0,SUMPRODUCT(E22:E23,K22:K23)/E24) -> 0.03339364095 | O24: =SUM(O22:O23) -> 117719.2564
C26: Equity
A27: 4 | C27: Common Equity | E27: 0.4 | I27: =$I$31*E27 -> 2350133.2 | K27: 0.0857 | O27: =K27*I27 -> 201406.4152
A28: 5 | C28: Preferred Shares | I28: =$I$31*E28 -> 0 | O28: =K28*I28 -> 0
A29: 6 | C29: Total Equity | E29: =SUM(E27:E28) -> 0.4 | I29: =SUM(I27:I28) -> 2350133.2 | K29: =IF(E29=0,0,SUMPRODUCT(E27:E28,K27:K28)/E29) -> 0.0857 | O29: =SUM(O27:O28) -> 201406.4152
A31: 7 | C31: Total | E31: 1 | I31: 5875333 | K31: =(K24*E24)+(K29*E29) -> 0.05431618457 | O31: =O24+O29 -> 319125.6716
A34: Notes
A35: (1) | C35: 4.0% unless an applicant has proposed or been approved for a different amount.

Sheet App.2-OA Capital Str 2012(CGAAP
K1: File Number: | O1: ='LDC Info'!$E$18 -> EB-2012-0165
K2: Exhibit: | O2: 5
K3: Tab:
K4: Schedule:
K5: Page:
K7: Date: | O7: 2013-02-22
C10: Appendix 2-OA
C11: Capital Structure and Cost of Capital
I12: 2012
A13: This table must be completed for the required years of all historical years, the bridge year and the test year.
A15: Line No.
C16: Particulars | E16: Capitalization Ratio | K16: Cost Rate | O16: Return
C19: Application
E20: (%) | I20: ($) | K20: (%) | O20: ($)
C21: Debt
A22: 1 | C22: Long-term Debt | E22: 0.56 | I22: =$I$31*E22 -> 3256781.36 | K22: 0.03430032958 | O22: =K22*I22 -> 111708.674
A23: 2 | C23: Short-term Debt | E23: 0.04 | G23: (1) | I23: =$I$31*E23 -> 232627.24 | K23: 0.0207 | O23: =K23*I23 -> 4815.383868
A24: 3 | C24: Total Debt | E24: =SUM(E22:E23) -> 0.6 | I24: =SUM(I22:I23) -> 3489408.6 | K24: =IF(E24=0,0,SUMPRODUCT(E22:E23,K22:K23)/E24) -> 0.03339364095 | O24: =SUM(O22:O23) -> 116524.0579
C26: Equity
A27: 4 | C27: Common Equity | E27: 0.4 | I27: =$I$31*E27 -> 2326272.4 | K27: 0.0857 | O27: =K27*I27 -> 199361.5447
A28: 5 | C28: Preferred Shares | I28: =$I$31*E28 -> 0 | O28: =K28*I28 -> 0
A29: 6 | C29: Total Equity | E29: =SUM(E27:E28) -> 0.4 | I29: =SUM(I27:I28) -> 2326272.4 | K29: =IF(E29=0,0,SUMPRODUCT(E27:E28,K27:K28)/E29) -> 0.0857 | O29: =SUM(O27:O28) -> 199361.5447
A31: 7 | C31: Total | E31: 1 | I31: 5815681 | K31: =(K24*E24)+(K29*E29) -> 0.05431618457 | O31: =O24+O29 -> 315885.6026
A34: Notes
A35: (1) | C35: 4.0% unless an applicant has proposed or been approved for a different amount.

Sheet App.2-OA Capital Structure 2013
K1: File Number: | O1: ='LDC Info'!$E$18 -> EB-2012-0165
K2: Exhibit: | O2: 5
K3: Tab:
K4: Schedule:
K5: Page:
K7: Date: | O7: 2013-02-22
C10: Appendix 2-OA
C11: Capital Structure and Cost of Capital
I12: 2013
A13: This table must be completed for the required years of all historical years, the bridge year and the test year.
A15: Line No.
C16: Particulars | E16: Capitalization Ratio | K16: Cost Rate | O16: Return
C19: Application
E20: (%) | I20: ($) | K20: (%) | O20: ($)
C21: Debt
A22: 1 | C22: Long-term Debt | E22: 0.56 | I22: =$I$31*E22 -> 3419699.36 | K22: 0.03441582888 | O22: =K22*I22 -> 117691.788
A23: 2 | C23: Short-term Debt | E23: 0.04 | G23: (1) | I23: =$I$31*E23 -> 244264.24 | K23: 0.0208 | O23: =K23*I23 -> 5080.696192
A24: 3 | C24: Total Debt | E24: =SUM(E22:E23) -> 0.6 | I24: =SUM(I22:I23) -> 3663963.6 | K24: =IF(E24=0,0,SUMPRODUCT(E22:E23,K22:K23)/E24) -> 0.03350810695 | O24: =SUM(O22:O23) -> 122772.4842
C26: Equity
A27: 4 | C27: Common Equity | E27: 0.4 | I27: =$I$31*E27 -> 2442642.4 | K27: 0.0912 | O27: =K27*I27 -> 222768.9869
A28: 5 | C28: Preferred Shares | I28: =$I$31*E28 -> 0 | O28: =K28*I28 -> 0
A29: 6 | C29: Total Equity | E29: =SUM(E27:E28) -> 0.4 | I29: =SUM(I27:I28) -> 2442642.4 | K29: =IF(E29=0,0,SUMPRODUCT(E27:E28,K27:K28)/E29) -> 0.0912 | O29: =SUM(O27:O28) -> 222768.9869
A31: 7 | C31: Total | E31: 1 | I31: 6106606 | K31: =(K24*E24)+(K29*E29) -> 0.05658486417 | O31: =O24+O29 -> 345541.4711
A34: Notes
A35: (1) | C35: 4.0% unless an applicant has proposed or been approved for a different amount.

Sheet App.2-OB_Debt Instruments 2008
J1: File Number: | K1: ='LDC Info'!$E$18 -> EB-2012-0165
J2: Exhibit: | K2: 5
J3: Tab:
J4: Schedule:
J5: Page:
J7: Date: | K7: 2013-02-22
A10: Appendix 2-OB
A11: Debt Instruments
A13: This table must be completed for the required years of all historical years, the bridge year and the test year.
D14: Year | E14: 2008
A16: Row | B16: Description | C16: Lender | D16: Affiliated or Third-Party Debt? | E16: Fixed or Variable-Rate? | F16: Start Date | G16: Term (years) | H16: Principal ($) | I16: Rate (%) (Note 2) | J16: Interest ($) (Note 1)
A17: 1 | B17: CIBC Bank Loan | C17: CIBC | D17: Third-Party | E17: Variable Rate | G17: 15 | H17: 2688989 | I17: 0.0473 | J17: =H17*I17 -> 127189.1797
A18: 2 | J18: =H18*I18 -> 0
A19: 3 | J19: 0
A20: 4 | J20: 0
A21: 5 | J21: 0
A22: 6 | J22: 0
A23: 7 | J23: 0
A24: 8 | J24: 0
A25: 9 | J25: 0
A26: 10 | J26: 0
A27: 11 | J27: 0
A28: 12 | J28: 0
A30: Total | H30: =SUM(H17:H28) -> 2688989 | I30: =IF(H30=0,"",J30/H30) -> 0.0473 | J30: =SUM(J17:J28) -> 127189.1797
A32: Notes
A34: 1 | B34: If financing is in place only part of the year, calculate the pro-rated interest and input in the cell.
A35: 2 | B35: Input actual or deemed long-term debt rate in accordance with the guidelines in The Report of the Board on the Cost of Capital for Ontario's Regulated Utilities, issued December 11, 2009
A36: 3 | B36: Add more lines above row 12 if necessary.

Sheet App.2-OB_Debt Instruments 2009
J1: File Number: | K1: ='LDC Info'!$E$18 -> EB-2012-0165
J2: Exhibit: | K2: 5
J3: Tab:
J4: Schedule:
J5: Page:
J7: Date: | K7: 2013-02-22
A10: Appendix 2-OB
A11: Debt Instruments
A13: This table must be completed for the required years of all historical years, the bridge year and the test year.
D14: Year | E14: 2009
A16: Row | B16: Description | C16: Lender | D16: Affiliated or Third-Party Debt? | E16: Fixed or Variable-Rate? | F16: Start Date | G16: Term (years) | H16: Principal ($) | I16: Rate (%) (Note 2) | J16: Interest ($) (Note 1)
A17: 1 | B17: CIBC Bank Loan | C17: CIBC | D17: Third-Party | E17: Variable Rate | G17: 15 | H17: 2502989 | I17: 0.024 | J17: =H17*I17 -> 60071.736
A18: 2 | B18: CIBC Smart Meter Loan | C18: CIBC | D18: Third-Party | E18: Fixed Rate | G18: 15 | H18: 750000 | I18: 0.047 | J18: =H18*I18 -> 35250
A19: 3 | J19: 0
A20: 4 | J20: 0
A21: 5 | J21: 0
A22: 6 | J22: 0
A23: 7 | J23: 0
A24: 8 | J24: 0
A25: 9 | J25: 0
A26: 10 | J26: 0
A27: 11 | J27: 0
A28: 12 | J28: 0
A30: Total | H30: =SUM(H17:H28) -> 3252989 | I30: =IF(H30=0,"",J30/H30) -> 0.02930281535 | J30: =SUM(J17:J28) -> 95321.736
A32: Notes
A34: 1 | B34: If financing is in place only part of the year, calculate the pro-rated interest and input in the cell.
A35: 2 | B35: Input actual or deemed long-term debt rate in accordance with the guidelines in The Report of the Board on the Cost of Capital for Ontario's Regulated Utilities, issued December 11, 2009
A36: 3 | B36: Add more lines above row 12 if necessary.

Sheet App.2-OB_Debt Instruments 2010
J1: File Number: | K1: ='LDC Info'!$E$18 -> EB-2012-0165
J2: Exhibit: | K2: 5
J3: Tab:
J4: Schedule:
J5: Page:
J7: Date: | K7: 2013-02-22
A10: Appendix 2-OB
A11: Debt Instruments
A13: This table must be completed for the required years of all historical years, the bridge year and the test year.
D14: Year | E14: 2010
A16: Row | B16: Description | C16: Lender | D16: Affiliated or Third-Party Debt? | E16: Fixed or Variable-Rate? | F16: Start Date | G16: Term (years) | H16: Principal ($) | I16: Rate (%) (Note 2) | J16: Interest ($) (Note 1)
A17: 1 | B17: CIBC Bank Loan | C17: CIBC | D17: Third-Party | E17: Variable Rate | G17: 15 | H17: 2316989 | I17: 0.026 | J17: =H17*I17 -> 60241.714
A18: 2 | B18: CIBC Smart Meter Loan | C18: CIBC | D18: Third-Party | E18: Fixed Rate | G18: 15 | H18: 732569 | I18: 0.047 | J18: =H18*I18 -> 34430.743
A19: 3 | J19: 0
A20: 4 | J20: 0
A21: 5 | J21: 0
A22: 6 | J22: 0
A23: 7 | J23: 0
A24: 8 | J24: 0
A25: 9 | J25: 0
A26: 10 | J26: 0
A27: 11 | J27: 0
A28: 12 | J28: 0
A30: Total | H30: =SUM(H17:H28) -> 3049558 | I30: =IF(H30=0,"",J30/H30) -> 0.03104464877 | J30: =SUM(J17:J28) -> 94672.457
A32: Notes
A34: 1 | B34: If financing is in place only part of the year, calculate the pro-rated interest and input in the cell.
A35: 2 | B35: Input actual or deemed long-term debt rate in accordance with the guidelines in The Report of the Board on the Cost of Capital for Ontario's Regulated Utilities, issued December 11, 2009
A36: 3 | B36: Add more lines above row 12 if necessary.

Sheet App.2-OB_Debt Instruments 2011
J1: File Number: | K1: ='LDC Info'!$E$18 -> EB-2012-0165
J2: Exhibit: | K2: 5
J3: Tab:
J4: Schedule:
J5: Page:
J7: Date: | K7: 2013-02-22
A10: Appendix 2-OB
A11: Debt Instruments
A13: This table must be completed for the required years of all historical years, the bridge year and the test year.
D14: Year | E14: 2011
A16: Row | B16: Description | C16: Lender | D16: Affiliated or Third-Party Debt? | E16: Fixed or Variable-Rate? | F16: Start Date | G16: Term (years) | H16: Principal ($) | I16: Rate (%) (Note 2) | J16: Interest ($) (Note 1)
A17: 1 | B17: CIBC Bank Loan | C17: CIBC | D17: Third-Party | E17: Variable Rate | G17: 15 | H17: 2130989 | I17: 0.03 | J17: =H17*I17 -> 63929.67
A18: 2 | B18: CIBC Smart Meter Loan | C18: CIBC | D18: Third-Party | E18: Fixed Rate | G18: 15 | H18: 696455 | I18: 0.047 | J18: =H18*I18 -> 32733.385
A19: 3 | J19: 0
A20: 4 | J20: 0
A21: 5 | J21: 0
A22: 6 | J22: 0
A23: 7 | J23: 0
A24: 8 | J24: 0
A25: 9 | J25: 0
A26: 10 | J26: 0
A27: 11 | J27: 0
A28: 12 | J28: 0
A30: Total | H30: =SUM(H17:H28) -> 2827444 | I30: =IF(H30=0,"",J30/H30) -> 0.03418743395 | J30: =SUM(J17:J28) -> 96663.055
A32: Notes
A34: 1 | B34: If financing is in place only part of the year, calculate the pro-rated interest and input in the cell.
A35: 2 | B35: Input actual or deemed long-term debt rate in accordance with the guidelines in The Report of the Board on the Cost of Capital for Ontario's Regulated Utilities, issued December 11, 2009
A36: 3 | B36: Add more lines above row 12 if necessary.

Sheet App.2-OB_Debt Instruments 2012
J1: File Number: | K1: ='LDC Info'!$E$18 -> EB-2012-0165
J2: Exhibit: | K2: 5
J3: Tab:
J4: Schedule:
J5: Page:
J7: Date: | K7: 2013-02-22
A10: Appendix 2-OB
A11: Debt Instruments
A13: This table must be completed for the required years of all historical years, the bridge year and the test year.
D14: Year | E14: 2012
A16: Row | B16: Description | C16: Lender | D16: Affiliated or Third-Party Debt? | E16: Fixed or Variable-Rate? | F16: Start Date | G16: Term (years) | H16: Principal ($) | I16: Rate (%) (Note 2) | J16: Interest ($) (Note 1)
A17: 1 | B17: CIBC Bank Loan | C17: CIBC | D17: Third-Party | E17: Variable Rate | G17: 15 | H17: 1944989 | I17: 0.03 | J17: =H17*I17 -> 58349.67
A18: 2 | B18: CIBC Smart Meter Loan | C18: CIBC | D18: Third-Party | E18: Fixed Rate | G18: 15 | H18: 658607 | I18: 0.047 | J18: =H18*I18 -> 30954.529
A19: 3 | J19: 0
A20: 4 | J20: 0
A21: 5 | J21: 0
A22: 6 | J22: 0
A23: 7 | J23: 0
A24: 8 | J24: 0
A25: 9 | J25: 0
A26: 10 | J26: 0
A27: 11 | J27: 0
A28: 12 | J28: 0
A30: Total | H30: =SUM(H17:H28) -> 2603596 | I30: =IF(H30=0,"",J30/H30) -> 0.03430032885 | J30: =SUM(J17:J28) -> 89304.199
A32: Notes
A34: 1 | B34: If financing is in place only part of the year, calculate the pro-rated interest and input in the cell.
A35: 2 | B35: Input actual or deemed long-term debt rate in accordance with the guidelines in The Report of the Board on the Cost of Capital for Ontario's Regulated Utilities, issued December 11, 2009
A36: 3 | B36: Add more lines above row 12 if necessary.

Sheet App.2-OB_Debt Instruments 2013
J1: File Number: | K1: ='LDC Info'!$E$18 -> EB-2012-0165
J2: Exhibit: | K2: 5
J3: Tab:
J4: Schedule:
J5: Page:
J7: Date: | K7: 2013-02-22
A10: Appendix 2-OB
A11: Debt Instruments
A13: This table must be completed for the required years of all historical years, the bridge year and the test year.
D14: Year | E14: 2013
A16: Row | B16: Description | C16: Lender | D16: Affiliated or Third-Party Debt? | E16: Fixed or Variable-Rate? | F16: Start Date | G16: Term (years) | H16: Principal ($) | I16: Rate (%) (Note 2) | J16: Interest ($) (Note 1)
A17: 1 | B17: CIBC Bank Loan | C17: CIBC | D17: Third-Party | E17: Variable Rate | G17: 15 | H17: 1763851 | I17: 0.03 | J17: =H17*I17 -> 52915.53
A18: 2 | B18: CIBC Smart Meter Loan | C18: CIBC | D18: Third-Party | E18: Fixed Rate | G18: 15 | H18: 618942 | I18: 0.047 | J18: =H18*I18 -> 29090.274
A19: 3 | J19: 0
A20: 4 | J20: 0
A21: 5 | J21: 0
A22: 6 | J22: 0
A23: 7 | J23: 0
A24: 8 | J24: 0
A25: 9 | J25: 0
A26: 10 | J26: 0
A27: 11 | J27: 0
A28: 12 | J28: 0
A30: Total | H30: =SUM(H17:H28) -> 2382793 | I30: =IF(H30=0,"",J30/H30) -> 0.03441583218 | J30: =SUM(J17:J28) -> 82005.804
A32: Notes
A34: 1 | B34: If financing is in place only part of the year, calculate the pro-rated interest and input in the cell.
A35: 2 | B35: Input actual or deemed long-term debt rate in accordance with the guidelines in The Report of the Board on the Cost of Capital for Ontario's Regulated Utilities, issued December 11, 2009
A36: 3 | B36: Add more lines above row 12 if necessary.

Sheet App.2-P_Cost_Allocation
E1: File Number: | F1: ='LDC Info'!$E$18 -> EB-2012-0165
E2: Exhibit: | F2: 7
E3: Tab:
E4: Schedule:
E5: Page:
E7: Date: | F7: 2013-02-22
A9: Appendix 2-P
A10: Cost Allocation
A12: Please complete the following four tables.
A14: A) Allocated Costs
A16: Classes | B16: Costs Allocated from Previous Study | C16: % | D16: Costs Allocated in Test Year Study (Column 7A) | E16: %
A17: Residential | B17: 951703 | C17: =IF(B$28=0,"",B17/B$28) -> 0.5872487756 | D17: 1355777 | E17: =IF(D$28=0,"",D17/D$28) -> 0.6482535873
A18: GS < 50 kW | B18: 318511 | C18: =IF(B$28=0,"",B18/B$28) -> 0.1965373596 | D18: 298118 | E18: 0.1425426622
A19: GS 50 kW to 4,999 kW | B19: 226666 | C19: 0.13986436 | D19: 288811 | E19: 0.1380925969
A20: GS > xxx kW, if applicable | C20: 0 | E20: 0
A21: Large User, if applicable | C21: 0 | E21: 0
A22: Street Lighting | B22: 120731 | C22: 0.0744971193 | D22: 147819 | E22: 0.07067843533
A23: Sentinel Lighting | C23: 0 | E23: 0
A24: Unmetered Scattered Load (USL) | B24: 3002 | C24: 0.001852385486 | D24: 905 | E24: 0.0004327182837
A25: Other class, if applicable | C25: 0 | E25: 0
C26: 0 | E26: 0
A27: Embedded distributor class | C27: 0 | E27: 0
A28: Total | B28: =SUM(B17:B27) -> 1620613 | C28: =SUM(C17:C27) -> 1 | D28: =SUM(D17:D27) -> 2091430 | E28: =SUM(E17:E27) -> 1
A30: Notes
A32: 1 Customer Classification - If proposed rate classes differ from those in place in the previous Cost Allocation study, modify the rate classes to match the current application as closely as possible.
A35: 2 Host Distributors - Provide information on embedded distributor(s) as a separate class, if applicable. If embedded distributor(s) are billed as customers in a General Service class, include the allocated cost and revenue of the embedded distributor(s) in the applicable class. Also complete Appendix 2-Q.
A39: 3 Class Revenue Requirements - If using the Board-issued model, in column 7A enter the results from Worksheet O-1, Revenue Requirement (row 40 in the 2013 model). This excludes costs in deferral and variance accounts. Note to Embedded Distributor(s), it also does not include Account 4750 - Low Voltage (LV) Costs.
A43: B) Calculated Class Revenues
C45: Column 7B | D45: Column 7C | E45: Column 7D | F45: Column 7E
A46: Classes (same as previous table) | C46: Load Forecast (LF) X current approved rates | D46: L.F. X current approved rates X (1 + d) | E46: LF X proposed rates | F46: Miscellaneous Revenue
A48: =A17 -> Residential | C48: 1040067 | D48: 1140677 | E48: 1222636.493 | F48: 83726
A49: GS < 50 kW | C49: 296199 | D49: 324852 | E49: 309069.2 | F49: 18460
A50: GS 50 kW to 4,999 kW | C50: 350336 | D50: 384225 | E50: 330062 | F50: 16073
A51: GS > xxx kW, if applicable
A52: Large User, if applicable
A53: Street Lighting | C53: 102100 | D53: 111976 | E53: 100028 | F53: 10708
A54: Sentinel Lighting
A55: Unmetered Scattered Load (USL) | C55: 615.2823131 | D55: 675 | E55: 674.24 | F55: 58.16060941
A56: Other class, if applicable
A58: =A27 -> Embedded distributor class
A59: =A28 -> Total | C59: =SUM(C48:C58) -> 1789317.282 | D59: =SUM(D48:D58) -> 1962405 | E59: =SUM(E48:E58) -> 1962469.933 | F59: =SUM(F48:F58) -> 129025.1606
A61: Notes:
A63: 1 Columns 7B to 7D - LF means Load Forecast of Annual Billing Quantities (i.e. customers or connections X 12, (kWh or kW, as applicable). Revenue Quantities should be net of Transfomrer Ownership Allowance. Exclude revenue from rate adders and rate riders.
A66: 2 Columns 7C and 7D - Column total in each column should equal the Base Revenue Requirement
A68: 3 Columns 7C - The Board cost allocation model calculates "1+d" in worksheet O-1, cell C21. "d" is defined as Revenue Deficiency/ Revenue at Current Rates.
A71: 4 Columns 7E - If using the Board-issued Cost Allocation model, enter Miscellaneous Revenue as it appears in Worksheet O-1, row 19.
A74: C) Rebalancing Revenue-to-Cost (R/C) Ratios
A76: Class | C76: Previously Approved Ratios | D76: Status Quo Ratios | E76: Proposed Ratios | F76: Policy Range
C77: Most Recent Year: | D77: (7C + 7E) / (7A) | E77: (7D + 7E) / (7A)
C78: 2010
C79: % | D79: % | E79: % | F79: %
A80: =A48 -> Residential | C80: 98.09 | D80: =IF(D17=0,"",(D48+F48)/D17*100) -> 90.31005837 | E80: =IF(D17=0,"",(E48+F48)/D17*100) -> 96.35526292 | F80: 85 - 115
A81: GS < 50 kW | C81: 96.26 | D81: =IF(D18=0,"",(D49+F49)/D18*100) -> 115.159769 | E81: 109.8656237 | F81: 80 - 120
A82: GS 50 kW to 4,999 kW | C82: 129.16 | D82: 138.6020616 | E82: 119.8482745 | F82: 80 - 120
A83: GS > xxx kW, if applicable | F83: 80 - 120
A84: Large User, if applicable | F84: 85 - 115
A85: Street Lighting | C85: 70 | D85: 82.99609658 | E85: 74.91323849 | F85: 70 - 120
A86: Sentinel Lighting | F86: 80 - 120
A87: Unmetered Scattered Load (USL) | C87: 98.29 | D87: 81.01222203 | E87: 80.92824413 | F87: 80 - 120
A88: Other class, if applicable
A90: =A58 -> Embedded distributor class
A92: Notes
A94: 1 Previously Approved Revenue-to-Cost Ratios - For most applicants, Most Recent Year would be the third year of the IRM 3 period, e.g. if the applicant rebased in 2009 with further adjustments over 2 years, the Most recent year is 2011. For applicants that have had rates adjusted only under IRM 2, the Most Recent Year is 2006, and the applicant should enter the ratios from their Informational Filing.
A97: 2 Status Quo Ratios - The Board's updated Cost Allocation Model yields the Status Quo Ratios in Worksheet O-1. Status Quo means "Before Rebalancing".
A99: D) Proposed Revenue-to-Cost Ratios
A101: Class | C101: Proposed Revenue-to-Cost Ratios | F101: Policy Range
C102: 2013 | D102: 2014 | E102: 2015
C103: % | D103: % | E103: % | F103: %
A104: =A80 -> Residential | C104: =E80 -> 96.35526292 | D104: 96.36 | E104: 96.36 | F104: =F80 -> 85 - 115
A105: =A81 -> GS < 50 kW | C105: =E81 -> 109.8656237 | D105: 109.87 | E105: 109.87 | F105: =F81 -> 80 - 120
A106: GS 50 kW to 4,999 kW | C106: 119.8482745 | D106: 119.85 | E106: 119.85 | F106: 80 - 120
A107: GS > xxx kW, if applicable | F107: 80 - 120
A108: Large User, if applicable | F108: 85 - 115
A109: Street Lighting | C109: 74.91323849 | D109: 74.91 | E109: 74.91 | F109: 70 - 120
A110: Sentinel Lighting | F110: 80 - 120
A111: Unmetered Scattered Load (USL) | C111: 80.92824413 | D111: 80.93 | E111: 80.93 | F111: 80 - 120
A112: Other class, if applicable | F112: =F88 -> 0
F113: =F89 -> 0
A114: Embedded distributor class
A116: Note
A117: 1 The applicant should complete Table D if it is applying for approval of a revenue to cost ratio in 2012 that is outside the Board’s policy range for any customer class. Table (d) will show the information that the distributor would likely enter in the IRM model) in 2013. In 2013 Table (d), enter the planned ratios for the classes that will be ‘Change’ and ‘No Change’ in 2013 (in the current Revenue Cost Ratio Adjustment Workform, Worksheet C1.1 ‘Decision – Cost Revenue Adjustment’, column d), and enter TBD for class(es) that will be entered as ‘Rebalance’.

Sheet App.2-Q_Cost of Serv. Emb. NA
F1: File Number: | G1: ='LDC Info'!$E$18 -> EB-2012-0165
F2: Exhibit:
F3: Tab:
F4: Schedule:
F5: Page:
F7: Date:
A9: Appendix 2-Q
A10: Cost of Serving Embedded Distributor(s)
A12: To be completed by Host Distributors*
A13: (Not required if Host Distributor has an Embedded Distributor rate class, i.e. a separate row in Appendix 2-P.)
A17: Proposed Rate Class for Billing Embedded Distributor(s)
A19: Host's Distribution Facilities used by Embedded Distributor(s)
A21: (1) | B21: (2) | C21: (3) | D21: (4) | E21: (5) | F21: (6) = '(3) + (4)
A22: Asset Class | B22: Total OM&A costs asociated with asset class | C22: Original cost of asset class | D22: Accumulated amortization of asset class | E22: Annual amortization of asset class | F22: Net Book Value of asset class
A23: Totals for Host Distributor: | B23: ($) | C23: ($) | D23: ($) | E23: ($)
A24: Distribution Stations | F24: =C24+D24 -> 0
A25: Low Voltage Line | F25: 0
A26: LV Line category # 2 (if applcable) | F26: 0
A27: TS (owned by host) | F27: 0
A28: add rows if necessary... | F28: 0
F29: 0
F30: 0
A32: (1) | B32: (7) | C32: (8) | D32: (9) | E32: (10) | F32: (11)
A33: =A22 -> Asset Class | B33: Total line length or station capacity in asset class | C33: Line length or capacity required to provide LV service to Embedded Distributor(s) | D33: Annual total demand on station/line providing LV services (sum of 12 monthly peaks) | E33: Annual billed Embedded Distributor demand on station/line providing LV services | F33: Embedded Distributor(s)' Responsibility Share
A34: Embedded Distributor's share: | B34: kW or kVa; km | C34: kW or kVA; km | D34: kW or kVA | E34: kW or kVA | F34: percent
A35: Distribution Stations | F35: =IF(D35=0,0,(C35/B35)*(E35/D35)) -> 0
A36: Low Voltage Line | F36: =IF(D36=0,0,(C36/B36)*(E36/D36)) -> 0
A37: LV Line # 2 (if applicable) | F37: =IF(D37=0,0,(C37/B37)*(E37/D37)) -> 0
A38: TS (owned by host) | F38: =IF(D38=0,0,(C38/B38)*(E38/D38)) -> 0
A39: add rows if necessary | F39: =IF(D39=0,0,(C39/B39)*(E39/D39)) -> 0
A41: (1) | B41: (12) | C41: (12a) | D41: (13) | E41: (14) | F41: (15) | G41: (16)
A42: =A33 -> Asset Class | B42: Return on Assets used to Provide LV services | C42: Taxes/PILs | D42: Annual amortization on assets used to provide LV services | E42: OM&A costs with burden associated with assets used to provide LV services | F42: Total annual cost associated with assets used to provide LV services | G42: Monthly cost associated with the delivery of LV services
B43: ($) | C43: ($) | D43: ($) | E43: ($) | F43: ($) | G43: $/kW or $/kVA
A44: Distribution Stations | B44: =E$55*(F24+B24*E$60)*F35 -> 0 | C44: =(B44-(B$55*C$55*F35*(F24+B24*E58)+B$56*C$56*F35*(F24+B24*E$58)))*E$58/(1-E$58) -> 0 | D44: =E24*F35 -> 0 | E44: =B24*F35 -> 0 | F44: =SUM(B44:E44) -> 0 | G44: =IF(E35=0,0,(D44/E35)) -> 0
A45: Low Voltage Line | B45: =E$55*(F25+B25*E$60)*F36 -> 0 | C45: =(B45-(B$55*C$55*F36*(F25+B25*E59)+B$56*C$56*F36*(F25+B25*E59)))*E$58/(1-E$58) -> 0 | D45: =E25*F36 -> 0 | E45: =B25*F36 -> 0 | F45: =SUM(B45:E45) -> 0 | G45: =IF(E36=0,0,(D45/E36)) -> 0
A46: LV Line # 2 (if applicable) | B46: =E$55*(F26+B26*E$60)*F37 -> 0 | C46: =(B46-(B$55*C$55*F37*(F26+B26*E60)+B$56*C$56*F37*(F26+B26*E$60)))*E$58/(1-E$58) -> 0 | D46: =E26*F37 -> 0 | E46: =B26*F37 -> 0 | F46: =SUM(B46:E46) -> 0 | G46: =IF(E37=0,0,(D46/E37)) -> 0
A47: TS (owned by host) | B47: =E$55*(F27+B27*E$60)*F38 -> 0 | C47: =(B47-(B$55*C$55*F38*(F27+B27*E61)+B$56*C$56*F38*(F27+B27*E61)))*E$58/(1-E$58) -> 0 | D47: =E27*F38 -> 0 | E47: =B27*F38 -> 0 | F47: =SUM(B47:E47) -> 0 | G47: =IF(E38=0,0,(D47/E38)) -> 0
A48: add rows if necessary | B48: =E$55*(F28+B28*E$60)*F39 -> 0 | C48: =(B48-(B$55*C$55*F39*(F28+B28*I62)+B$56*C$56*F39*(F28+B28*I62)))*E$58/(1-E$58) -> 0 | D48: =E28*F39 -> 0 | E48: =B28*F39 -> 0 | F48: =SUM(B48:E48) -> 0 | G48: =IF(E39=0,0,(D48/E39)) -> 0
A50: Total | F50: =SUM(F44:F48) -> 0 | G50: =SUM(G44:G48) -> 0
A52: (17) | B52: (18) | C52: (19) | D52: (20) | E52: (21)
B53: Capital Structure | C53: Cost Rate
B54: (%) | C54: (%) | E54: (%)
A55: Long-Term Debt | D55: Weighted Average Cost of Capital | E55: =IF(B61=0%,0,SUMPRODUCT(B55:B59,C55:C59)/B61) -> 0
A56: Short-term Debt
A58: Common Equity | D58: Tax/PILs Rate
A59: Preferred Shares
D60: Working Capital Allowance Factor
A61: Total | B61: =SUM(B55:B59) -> 0

Sheet App.2-R_Loss Factors
G1: File Number: | H1: ='LDC Info'!$E$18 -> EB-2012-0165
G2: Exhibit: | H2: 8
G3: Tab:
G4: Schedule: | H4: 1
G5: Page:
G7: Date: | H7: 2013-02-22
A9: Appendix 2-R
A10: Loss Factors
C14: Historical Years | H14: 5-Year Average
C15: =IF(ISBLANK('LDC Info'!E26-5), "Year 5", 'LDC Info'!E26-5) -> 2007 | D15: =IF(ISBLANK('LDC Info'!E26-4), "Year 5", 'LDC Info'!E26-4) -> 2008 | E15: =IF(ISBLANK('LDC Info'!E26-3), "Year 5", 'LDC Info'!E26-3) -> 2009 | F15: =IF(ISBLANK('LDC Info'!E26-2), "Year 5", 'LDC Info'!E26-2) -> 2010 | G15: =IF(ISBLANK('LDC Info'!E26-1), "Year 5", 'LDC Info'!E26-1) -> 2011
B16: Losses Within Distributor's System
A17: A(1) | B17: "Wholesale" kWh delivered to distributor (higher value) | C17: 94269858 | D17: 82172582 | E17: 76290185 | F17: 74989583 | G17: 76666329 | H17: =IF(SUM(C17:G17)=0,0,AVERAGE(C17:G17)) -> 80877707.4
A18: A(2) | B18: "Wholesale" kWh delivered to distributor (lower value) | C18: 93884880 | D18: 81867475 | E18: 76016629 | F18: 74719842 | G18: 76399313 | H18: =IF(SUM(C18:G18)=0,0,AVERAGE(C18:G18)) -> 80577627.8
A19: B | B19: Portion of "Wholesale" kWh delivered to distributor for its Large Use Customer(s) | H19: =IF(SUM(C19:G19)=0,0,AVERAGE(C19:G19)) -> 0
A20: C | B20: Net "Wholesale" kWh delivered to distributor = A(2) - B | C20: =C18-C19 -> 93884880 | D20: 81867475 | E20: 76016629 | F20: 74719842 | G20: 76399313 | H20: 80577627.8
A21: D | B21: "Retail" kWh delivered by distributor | C21: 89846017 | D21: 77324320 | E21: 71778509 | F21: 70415620 | G21: 72931754 | H21: =IF(SUM(C21:G21)=0,0,AVERAGE(C21:G21)) -> 76459244
A22: E | B22: Portion of "Retail" kWh delivered by distributor to its Large Use Customer(s) | H22: =IF(SUM(C22:G22)=0,0,AVERAGE(C22:G22)) -> 0
A23: F | B23: Net "Retail" kWh delivered by distributor = D - E | C23: =C21-C22 -> 89846017 | D23: 77324320 | E23: 71778509 | F23: 70415620 | G23: 72931754 | H23: 76459244
A24: G | B24: Loss Factor in Distributor's system = C / F | C24: =IF(C23=0,"",C20/C23) -> 1.044953167 | D24: 1.058754542 | E24: 1.059044414 | F24: 1.061125955 | G24: 1.047545257 | H24: 1.053863779
B25: Losses Upstream of Distributor's System
A26: H | B26: Supply Facilities Loss Factor | C26: 1.034 | D26: 1.034 | E26: 1.034 | F26: 1.034 | G26: 1.034 | H26: =IF(SUM(C26:G26)=0,0,AVERAGE(C26:G26)) -> 1.034
B27: Total Losses
A28: I | B28: Total Loss Factor = G x H | C28: =IF(C24="","",C24*C26) -> 1.080481575 | D28: 1.094752196 | E28: 1.095051924 | F28: 1.097204237 | G28: 1.083161796 | H28: 1.089695147
A30: Notes
A33: A(1) | B33: If directly connected to the IESO-controlled grid, kWh pertains to the virtual meter on the primary or high voltage side of the transformer at the interface with the transmission grid. This corresponds to the "With Losses" kWh value provided by the IESO's MV-WEB. It is the higher of the two values provided by MV-WEB.
B37: If fully embedded within a host distributor, kWh pertains to the virtual meter on the primary or high voltage side of the transformer, at the interface between the host distributor and the transmission grid. For example, if the host distributor is Hydro One Networks Inc., kWh from the Hydro One Networks' invoice corresponding to "Total kWh w Losses" should be reported. This corresponds to the higher of the two kWh values provided in Hydro One Networks' invoice.
B42: If partially embedded, kWh pertains to the sum of the above.
A44: A(2) | B44: If directly connected to the IESO-controlled grid, kWh pertains to a metering installation on the secondary or low voltage side of the transformer at the interface with the transmission grid. This corresponds to the "Without Losses" kWh value provided by the IESO's MV-WEB. It is the lower of the two kWh values provided by MV-WEB.
B48: If fully embedded with the host distributor, kWh pertains to an actual or virtual meter at the interface between the embedded distributor and the host distributor. For example, if the host distributor is Hydro One Networks Inc., kWh from the Hydro One Networks' invoice corresponding to "Total kWh" should be reported. This corresponds to the lower of the two kWh values provided in Hydro One Networks' invoice.
B53: If partially embedded, kWh pertains to the sum of the above.
B55: Additionally, kWh pertaining to distributed generation directly connected to the distributor's own distribution network should be included in A(2).
A58: B | B58: If a Large Use Customer is metered on the secondary or low voltage side of the transformer, the default loss is 1% (i.e., B = 1.01 X E).
A61: D | B61: kWh corresponding to D should equal metered or estimated kWh at the customer’s delivery point.
A64: G and I | B64: These loss factors pertain to secondary-metered customers with demand less than 5,000 kW.
A66: H | B66: If directly connected to the IESO-controlled grid, SFLF = 1.0045.
B68: If fully embedded within a host distributor, SFLF = loss factor re losses in transformer at grid interface X loss factor re losses in host distributor's system. If the host distributor is Hydro One Networks Inc., SFLF = 1.0060 X 1.0278 = 1.0340. If partially embedded, SFLF should be calculated as the weighted average of above.
B72: Distributors that wish to propose a different SFLF should provide appropriate justification for any such proposal including supporting
B73: calculations and any other relevant material.

Sheet App.2-S_Stranded Meters
G1: File Number: | H1: ='LDC Info'!$E$18 -> EB-2012-0165
G2: Exhibit: | H2: 9
G3: Tab:
G4: Schedule:
G5: Page:
G7: Date: | H7: 2013-02-22
A9: Appendix 2-S
A10: Stranded Meter Treatment
A12: Year | B12: Notes | C12: Gross Asset Value | D12: Accumulated Amortization | E12: Contributed Capital (Net of Amortization) | F12: Net Asset | G12: Proceeds on Disposition | H12: Residual Net Book Value
C13: (A) | D13: (B) | E13: (C) | F13: (D ) = (A) - (B) - (C) | G13: (E) | H13: (F) = (D) - (E)
A14: 2006 | C14: 294462 | D14: 42198 | F14: =C14-D14-E14 -> 252264 | H14: =F14-G14 -> 252264
A15: 2007 | C15: 294462 | D15: 53977 | F15: 240485 | H15: 240485
A16: 2008 | C16: 294462 | D16: 65755 | F16: 228707 | H16: 228707
A17: 2009 | C17: 294462 | D17: 77534 | F17: 216928 | H17: 216928
A18: 2010 | C18: 294462 | D18: 89312 | F18: 205150 | H18: 205150
A19: 2011 | C19: 294462 | D19: 101091 | F19: 193371 | H19: 193371
A20: 2012 | B20: (1) | C20: 294462 | D20: 112869 | F20: 181593 | H20: 181593
A22: Notes:
A24: (1) | B24: For 2012, please indicate whether the amounts provided are on a forecast or actual basis.
A26: Some distributors have transferred the cost of stranded meters from Account 1860 - Meters to "Sub-account Stranded Meter Costs of Account 1555", while in some cases distributors have left these costs in Account 1860. Depending on which treatment the applicant has chosen. please provide the information under either of the two scenarios (A and B below), as applicable.
A31: Scenario A: If the stranded meter costs were transferred to "Sub-account Stranded Meter Costs" of Account 1555, the above table should be completed and the following information should be provided.
A34: 1 | B34: A description of the accounting treatment followed by the applicant on stranded meter costs for financial accounting and reporting purposes.
A37: 2 | B37: The amount of the pooled residual net book value of the removed from service stranded meters, less any contributed capital (net of accumulated amortization), and less any net proceeds from sales, which were transferred to this sub-account as of December 31, 2010.
A41: 3 | B41: A statement as to whether or not, since transferring the removed stranded meter costs to the sub-account, the recording of depreciation expenses was continued in order to reduce the net book value through accumulated depreciation. If so, the total depreciation expense amount for the period from the time the costs for the stranded meters were transferred to the sub-account to December 31, 2010 should be provided.
B46: If no depreciation expenses were recorded to reduce the net book value of stranded meter costs through accumulated depreciation, the total depreciation expense amount that would have been applicable from the time that the stranded meter costs were transferred to the sub-account of Account 1555 to December 31, 2010 should be provided. In addition, the following information should be provided:
B51: a) | C51: Whether or not carrying charges were recorded for the stranded meter cost balances in the sub-account, and if so, the total carrying charges recorded to December 31, 2010.
B54: b) | C54: The estimated amount of the pooled residual net book value of the removed from service meters, less any net proceeds from sales and contributed capital, at the time when the smart meters will have been fully deployed (e.g., as of December 31, 2010). If the smart meters have been fully deployed, the actual amount should be provided.
B59: c) | C59: A description as to how the applicant intends to recover in rates the remaining costs for stranded meters, including the proposed accounting treatment, the proposed disposition period, and the associated bill impacts.
A63: Scenario B: If the stranded meter costs remained recorded in Account 1860, the above table should be completed and the following information should be provided:
A66: 1 | B66: A description of the accounting treatment followed by the applicant on stranded meter costs for financial accounting and reporting purposes.
A69: 2 | B69: The amount of the pooled residual net book value of the removed from service stranded meters, less any contributed capital (net of accumulated amortization), and less any net proceeds from sales, as of December 31, 2010.
A73: 3 | B73: A statement as to whether or not the recording of depreciation expenses continued in order to reduce the net book value through accumulated depreciation. If so, provision of the total (cumulative) depreciation expense for the period from the time that the meters became stranded to December 31, 2010.
A77: 4 | B77: If no depreciation expenses were recorded to reduce the net book value of stranded meters through accumulated depreciation, the total (cumulative) depreciation expense amount that would have been applicable for the period from the time that the meters became stranded to December 31, 2010.
A81: 5 | B81: The estimated amount of the pooled residual net book value of the removed from service meters, less any net proceeds from sales and contributed capital, at the time when smart meters will have been fully deployed. If the smart meters have been fully deployed, please provide the actual amount.
A85: 6 | B85: A description as to how the applicant intends to recover in rates the costs for stranded meters, including the proposed accounting treatment, the proposed disposition period and the associated bill impacts.
A88: Distributors should also provide the Net Book Value per class of meter as of December 31, 2010 as well as the number of meters that were removed / stranded. In preparing this information, distributors should review the Board's letter of January 16, 2007 Stranded Meter Costs Related to the Installation of Smart Meters which stated that records were to be kept of the type and number of each meter to support the stranded meter costs.

Sheet App.2-T_1592_Tax_Variance
C1: File Number: | E1: ='LDC Info'!$E$18 -> EB-2012-0165
C2: Exhibit: | E2: 9
C3: Tab:
C4: Schedule:
C5: Page:
C7: Date: | E7: 2013-02-22
A9: Appendix 2-T
A10: Deferred PILs Account 1592 Balances
A12: The following table should be completed based on the information requested below, in accordance with the notes following the table. An explanation should be provided for any blank entries.
A14: Tax Item | E14: Principal as of
E15: December 31,
E16: 2011
A17: Large Corporation Tax grossed-up proxy from 2006 EDR application PILs model for the period from May 1, 2006 to April 30, 2007
A18: Large Corporation Tax grossed-up proxy from 2006 EDR application PILs model for the period from January 1, 2006 to April 30, 2006 (4/12ths of the approved grossed-up proxy), if not recorded in PILs account 1562
A19: Ontario Capital Tax rate decrease and increase in capital deduction for 2007
A20: Ontario Capital Tax rate decrease and increase in capital deduction for 2008
A21: Ontario Capital Tax rate decrease and increase in capital deduction for 2009
A22: Ontario Capital Tax rate decrease and increase in capital deduction for 2010
A23: Capital Cost Allowance class changes from 2006 EDR application for 2006
A24: Capital Cost Allowance class changes from 2006 EDR application for 2007
A25: Capital Cost Allowance class changes from 2006 EDR application for 2008
A26: Capital Cost Allowance class changes from 2006 EDR application for 2009
A27: Capital Cost Allowance class changes from 2006 EDR application for 2010
A28: Capital Cost Allowance class changes from 2006 EDR application for 2011
A29: Capital Cost Allowance class changes from any prior application not recorded above. Please provide details and explanation separately.
A30: PILs Tax Varaince for 2006 and Subsequent Years - Sub-Account HST/OVAT Input Tax Credits (ITCs) - Represents 100% of the account balances as a t December 31, 2011 | E30: -12745
A31: Total | E31: =SUM(E17:E30) -> -12745
A33: Notes:
A35: 1 | B35: Revise the deferral and variance account continuity schedule to include account 1592 as a group 2 account and enter all relevant information for transactions, adjustments, etc., for all relevant years.
A38: 2 | B38: Describe each type of tax item that has been recorded in account 1592.
A40: 3 | B40: Provide the calculations that show how each item was determined and provide any pertinent supporting evidence and documentation.
A43: 4 | B43: Please state whether or not the applicant followed the guidance provided in the FAQ of July 2007. If not, please provide an explanation.
A46: 5 | B46: Identify the account balance as of December 31, 2011 as per the 2011 Audited Financial Statements. Identify the account balance as of December 31, 2011 as per the April 2012 2.1.7 RRR filing to the Board. Provide a reconciliation if the balances provided are not identical to each other and to the total shown on the continuity schedule.
A51: 6 | B51: Complete the above table based on the answers to the previous. Add rows as required to complete the analysis in an informative manner. Please provide the completed table as a working Excel spreadsheet.

Sheet App.2-U_IFRS Transition Costs
J1: File Number: | K1: ='LDC Info'!$E$18 -> EB-2012-0165
J2: Exhibit: | K2: 9
J3: Tab:
J4: Schedule:
J5: Page:
J7: Date: | K7: 2013-02-22
A9: Appendix 2-U
A10: One-Time Incremental IFRS Transition Costs
A12: The following table should be completed based on the information requested below. An explanation should be provided for any blank entries. The entries should include one-time incremental IFRS transition costs that are currently included in Account 1508, Other Regulatory Assets, sub-account Deferred IFRS Transition Costs Account, or Account 1508, Other Regulatory Assets, sub-account IFRS Transition Costs Variance Account.
A14: Nature of One-Time Incremental IFRS Transition Costs 1 | E14: Audited Actual | F14: Audited Actual | G14: Audited Actual | H14: Audited Carrying | I14: Total Audited | J14: RRR 2.1.7 | K14: Variance 2 | L14: Reasons why the costs recorded meet the criteria of one-time IFRS administrative incremental costs
E15: Costs Incurred | F15: Costs Incurred | G15: Costs Incurred | H15: Charges | I15: Actual Costs | J15: Balance
E16: 2009 | F16: 2010 | G16: 2011 | H16: to Dec 31, 2011 | I16: to Dec 31, 2011 | J16: 2011-12-31
A17: professional accounting fees | G17: 17500 | I17: =SUM(E17:H17) -> 17500 | L17: Fees associated with transitional analysis for PP&E accounts performed by an outside consultant
A18: professional legal fees | I18: =SUM(E18:H18) -> 0
A19: salaries, wages and benefits of staff added to support the transition to IFRS | I19: 0
A20: associated staff training and development costs | I20: 0
A21: costs related to system upgrades, or replacements or changes where IFRS was the major reason for conversion | I21: 0
I22: 0
I23: 0
I24: 0
I25: 0
I26: 0
I27: 0
I28: 0
A29: Insert description of additional item(s) and new rows if needed. | I29: 0
A30: Total | E30: =SUM(E17:E29) -> 0 | F30: =SUM(F17:F29) -> 0 | G30: =SUM(G17:G29) -> 17500 | H30: =SUM(H17:H29) -> 0 | I30: =SUM(I17:I29) -> 17500 | J30: 17500 | K30: =+I30-J30 -> 0
A33: Note:
A34: 1 | B34: The Deferred IFRS Transition Costs Account and the IFRS Transition Costs Variance Account are exclusively for necessary, incremental transition costs and shall not include ongoing IFRS compliance costs or impacts arising from adopting accounting policy changes that reflect changes in the timing of the recognition of income. The incremental costs in these accounts shall not include costs related to system upgrades, or replacements or changes where IFRS was not the major reason for conversion. In addition, incremental IFRS costs shall not include capital assets or expenditures.
A36: 2 | B36: Applicants are to provide an explanation of material variances in evidence

Sheet App.2-V_Rev_Reconciliation
O1: File Number: | P1: ='LDC Info'!$E$18 -> EB-2012-0165
O2: Exhibit: | P2: 8
O3: Tab:
O4: Schedule: | P4: 7
O5: Page:
O7: Date: | P7: 2013-02-22
A9: Appendix 2-V
A10: Revenue Reconciliation
A12: Rate Class | B12: Customers/ Connections | C12: Number of Customers/Connections | F12: Test Year Consumption | H12: Proposed Rates | K12: Revenues at Proposed Rates | M12: Class Specific Revenue Requirement | N12: Transformer Allowance Credit | O12: Total | P12: Difference
C13: Start of Test Year | D13: End of Test Year | E13: Average | F13: kWh | G13: kW | H13: Monthly Service Charge | I13: Volumetric
I14: kWh | J14: kW
A16: Residential | B16: Customers | C16: 2323 | D16: 2323 | E16: =IF(SUM(C16:D16)=0,0,AVERAGE(C16:D16)) -> 2323 | F16: 34980266 | H16: 28.52 | I16: 0.0122 | K16: =H16*E16*12+I16*F16+J16*G16 -> 1221782.765 | M16: 1222636.493 | O16: =SUM(M16:N16) -> 1222636.493 | P16: =O16-K16 -> 853.7277
A17: GS < 50 kW | B17: Customers | C17: 374 | D17: 374 | E17: 374 | F17: 12526981 | H17: 44.98 | I17: 0.0086 | K17: 309602.2766 | M17: 309069.2 | O17: 309069.2 | P17: -533.0766
A18: GS > 50 to 4,999 kW | B18: Customers | C18: 56 | D18: 56 | E18: 56 | F18: 25251296 | G18: 63706 | H18: 375.8 | J18: 1.3085 | K18: 335896.901 | M18: 330062 | N18: 5830 | O18: 335892 | P18: -4.901
A19: Streetlighting | B19: Connections | C19: 531 | D19: 531 | E19: 531 | F19: 499759 | G19: 1507 | H19: 9.67 | J19: 25.4938 | K19: 100036.3966 | M19: 100028 | O19: 100028 | P19: -8.3966
A20: Unmetered Scattered Load | B20: Connections | C20: 2 | D20: 2 | E20: 2 | F20: 11962 | H20: 23.56 | I20: 0.0091 | K20: 674.2942 | M20: 674.24 | O20: 674.24 | P20: -0.0542
E21: 0 | K21: 0 | O21: 0 | P21: 0
E22: 0 | K22: 0 | O22: 0 | P22: 0
E23: 0 | K23: 0 | O23: 0 | P23: 0
A25: Total | K25: =SUM(K16:K23) -> 1967992.634 | M25: =SUM(M16:M23) -> 1962469.933 | N25: =SUM(N16:N23) -> 5830 | O25: =M25+N25 -> 1968299.933 | P25: =O25-K25 -> 307.2993
A27: Note
A29: 1 The class specific revenue requirements in column N must be the amounts used in the final rate design process. The total of column N should equate to the proposed base revenue requirement

Sheet App.2-W_Bill Impacts - RS
N1: File Number: | O1: ='LDC Info'!$E$18 -> EB-2012-0165 | T1: 2
N2: Exhibit: | O2: 8
N3: Tab:
N4: Schedule: | O4: 8
N5: Page:
N7: Date: | O7: 2013-02-22
B10: Appendix 2-W
B11: Bill Impacts
B14: Customer Class: | D14: Residential
D16: Consumption | F16: 800 | G16: kWh
F18: Current Board-Approved | J18: Proposed | N18: Impact
D19: Charge Unit | F19: Rate | G19: Volume | H19: Charge | J19: Rate | K19: Volume | L19: Charge | N19: $ Change | O19: % Change
F20: ($) | H20: ($) | J20: ($) | L20: ($)
B21: Monthly Service Charge | D21: Monthly | F21: 24.26 | G21: 1 | H21: =G21*F21 -> 24.26 | J21: 28.52 | K21: 1 | L21: =K21*J21 -> 28.52 | N21: =L21-H21 -> 4.26 | O21: =IF((H21)=0,"",(N21/H21)) -> 0.1755976917
B22: Smart Meter Rate Adder | D22: Monthly | G22: 1 | H22: =G22*F22 -> 0 | K22: 1 | L22: =K22*J22 -> 0 | N22: =L22-H22 -> 0 | O22: =IF((H22)=0,"",(N22/H22)) -> 
B23: Smart Meter Inc Rev Req Rider | D23: Monthly | F23: 4.61 | G23: 1 | H23: 4.61 | K23: 1 | L23: =K23*J23 -> 0 | N23: =L23-H23 -> -4.61 | O23: =IF((H23)=0,"",(N23/H23)) -> -1
B24: Smart Meter Disposition Rider | D24: Monthly | F24: 2.42 | G24: 1 | H24: 2.42 | J24: 2.42 | K24: 1 | L24: 2.42 | N24: 0 | O24: 0
B25: Smart Asset Recovery Rider | D25: Monthly | G25: 1 | H25: 0 | J25: 2.83 | K25: 1 | L25: 2.83 | N25: 2.83
G26: 1 | H26: 0 | K26: 1 | L26: 0 | N26: 0
B27: Distribution Volumetric Rate | D27: per kWh | F27: 0.0104 | G27: =$F$16 -> 800 | H27: 8.32 | J27: 0.0122 | K27: =$F$16 -> 800 | L27: 9.76 | N27: 1.44 | O27: 0.1730769231
B28: Smart Meter Disposition Rider | G28: =$F$16 -> 800 | H28: 0 | K28: =$F$16 -> 800 | L28: 0 | N28: 0
B29: LRAM & SSM Rate Rider | G29: =$F$16 -> 800 | H29: 0 | K29: 800 | L29: 0 | N29: 0
B30: Low Voltage Rate Adder | D30: per kWh | F30: 0.003 | G30: =$F$16 -> 800 | H30: =G30*F30 -> 2.4 | J30: 0.0037 | K30: 800 | L30: =K30*J30 -> 2.96 | N30: =L30-H30 -> 0.56 | O30: =IF((H30)=0,"",(N30/H30)) -> 0.2333333333
G31: 800 | H31: 0 | K31: 800 | L31: 0 | N31: 0
G32: 800 | H32: 0 | K32: 800 | L32: 0 | N32: 0
G33: =$F$16 -> 800 | H33: 0 | K33: 800 | L33: 0 | N33: 0
G34: 800 | H34: 0 | K34: 800 | L34: 0 | N34: 0
G35: 800 | H35: 0 | K35: 800 | L35: 0 | N35: 0
G36: 800 | H36: 0 | K36: 800 | L36: 0 | N36: 0
B37: Sub-Total A | H37: =SUM(H21:H36) -> 42.01 | L37: =SUM(L21:L36) -> 46.49 | N37: 4.48 | O37: 0.1066412759
B38: Deferral/Variance Account Disposition Rate Rider | D38: per kWh | F38: -0.0035 | G38: =$F$16 -> 800 | H38: =G38*F38 -> -2.8 | J38: -0.0028 | K38: =$F$16 -> 800 | L38: =K38*J38 -> -2.24 | N38: =L38-H38 -> 0.56 | O38: =IF((H38)=0,"",(N38/H38)) -> -0.2
G39: =$F$16 -> 800 | H39: =G39*F39 -> 0 | K39: =$F$16 -> 800 | L39: =K39*J39 -> 0 | N39: =L39-H39 -> 0 | O39: =IF((H39)=0,"",(N39/H39)) -> 
G40: 800 | H40: 0 | K40: 800 | L40: 0 | N40: 0
G41: 800 | H41: 0 | K41: 800 | L41: 0 | N41: 0
B42: Low Voltage Service Charge | G42: 800 | H42: =G42*F42 -> 0 | K42: 800 | L42: =K42*J42 -> 0 | N42: =L42-H42 -> 0 | O42: =IF((H42)=0,"",(N42/H42)) -> 
B43: Smart Meter Entity Charge | K43: 800 | L43: =K43*J43 -> 0 | N43: =L43-H43 -> 0
B44: Sub-Total B - Distribution (includes Sub-Total A) | H44: =SUM(H38:H42)+H37 -> 39.21 | L44: =SUM(L38:L42)+L37 -> 44.25 | N44: =L44-H44 -> 5.04 | O44: =IF((H44)=0,"",(N44/H44)) -> 0.1285386381
B45: RTSR - Network | D45: per kWh | F45: 0.0055 | G45: =F16*(1+F71) -> 851.36 | H45: =G45*F45 -> 4.68248 | J45: 0.0065 | K45: =F16*(1+J71) -> 871.76 | L45: =K45*J45 -> 5.66644 | N45: =L45-H45 -> 0.98396 | O45: =IF((H45)=0,"",(N45/H45)) -> 0.2101365089
B46: RTSR - Line and Transformation Connection | D46: per kWh | F46: 0.0013 | G46: =G45 -> 851.36 | H46: =G46*F46 -> 1.106768 | J46: 0.0015 | K46: =K45 -> 871.76 | L46: =K46*J46 -> 1.30764 | N46: 0.200872 | O46: 0.1814942246
B47: Sub-Total C - Delivery (including Sub-Total B) | H47: =SUM(H44:H46) -> 44.999248 | L47: =SUM(L44:L46) -> 51.22408 | N47: 6.224832 | O47: 0.1383319117
B48: Wholesale Market Service Charge (WMSC) | D48: per kWh | F48: 0.0052 | G48: =G46 -> 851.36 | H48: =G48*F48 -> 4.427072 | J48: 0.0052 | K48: =K46 -> 871.76 | L48: =K48*J48 -> 4.533152 | N48: 0.10608 | O48: 0.02396166134
B49: Rural and Remote Rate Protection (RRRP) | D49: per kWh | F49: 0.0011 | G49: =G46 -> 851.36 | H49: 0.936496 | J49: 0.0011 | K49: =K46 -> 871.76 | L49: 0.958936 | N49: 0.02244 | O49: 0.02396166134
B50: Standard Supply Service Charge | D50: Monthly | F50: 0.25 | G50: 1 | H50: 0.25 | J50: 0.25 | K50: 1 | L50: 0.25 | N50: 0 | O50: 0
B51: Debt Retirement Charge (DRC) | D51: per kWh | F51: 0.007 | G51: =G49 -> 851.36 | H51: 5.95952 | J51: 0.007 | K51: =K49 -> 871.76 | L51: 6.10232 | N51: 0.1428 | O51: 0.02396166134
B52: Energy - RPP - Tier 1 | D52: per kWh | F52: 0.074 | G52: =IF($T$1=1,IF($F$16>=600,600,IF($F$16<600,$F$16*(1+$F$71),$F$16-600)),IF($T$1=2,IF($F$16>=1000,1000,IF($F$16<1000,$F$16*(1+$F$71),$F$16-1000)))) -> 851.36 | H52: =G52*F52 -> 63.00064 | J52: 0.074 | K52: =IF($T$1=1,IF($F$16>=600,600,IF($F$16<600,$F$16*(1+$J$71),$F$16-600)),IF($T$1=2,IF($F$16>=1000,1000,IF($F$16<1000,$F$16*(1+$J$71),$F$16-1000)))) -> 871.76 | L52: =K52*J52 -> 64.51024 | N52: 1.5096 | O52: 0.02396166134
B53: Energy - RPP - Tier 2 | D53: per kWh | F53: 0.087 | G53: =IF($T$1=1,IF($F$16>=600,$F$16*(1+$F$71)-600,IF($F$16<600,0,)), IF($T$1=2,IF($F$16>=1000,$F$16*(1+$F$71)-1000,IF($F$16<1000,0)))) -> 0 | H53: =G53*F53 -> 0 | J53: 0.087 | K53: =IF($T$1=1,IF($F$16>=600,$F$16*(1+$J$71)-600,IF($F$16<600,0,)), IF($T$1=2,IF($F$16>=1000,$F$16*(1+$J$71)-1000,IF($F$16<1000,0)))) -> 0 | L53: =K53*J53 -> 0 | N53: 0
B54: TOU - Off Peak | D54: per kWh | F54: 0.063 | G54: =0.64*$F$16*(1+$F$71) -> 544.8704 | H54: 34.3268352 | J54: 0.063 | K54: =0.64*$F$16*(1+$J$71) -> 557.9264 | L54: 35.1493632 | N54: 0.822528 | O54: 0.02396166134
B55: TOU - Mid Peak | D55: per kWh | F55: 0.099 | G55: =0.18*$F$16*(1+$F$71) -> 153.2448 | H55: 15.1712352 | J55: 0.099 | K55: =0.18*$F$16*(1+$J$71) -> 156.9168 | L55: 15.5347632 | N55: 0.363528 | O55: 0.02396166134
B56: TOU - On Peak | D56: per kWh | F56: 0.118 | G56: =0.18*$F$16*(1+$F$71) -> 153.2448 | H56: 18.0828864 | J56: 0.118 | K56: =0.18*$F$16*(1+$J$71) -> 156.9168 | L56: 18.5161824 | N56: 0.433296 | O56: 0.02396166134
B58: Total Bill on RPP (before Taxes) | H58: =SUM(H47:H53) -> 119.572976 | L58: =SUM(L47:L53) -> 127.578728 | N58: 8.005752 | O58: 0.06695285396
B59: HST | F59: 0.13 | H59: =H58*F59 -> 15.54448688 | J59: 0.13 | L59: =L58*J59 -> 16.58523464 | N59: =L59-H59 -> 1.04074776 | O59: =IF((H59)=0,"",(N59/H59)) -> 0.06695285396
B60: Total Bill (including HST) | H60: =H58+H59 -> 135.1174629 | L60: =L58+L59 -> 144.1639626 | N60: =L60-H60 -> 9.04649976 | O60: =IF((H60)=0,"",(N60/H60)) -> 0.06695285396
B61: Ontario Clean Energy Benefit 1 | H61: =ROUND(-H60*10%,2) -> -13.51 | L61: =ROUND(-L60*10%,2) -> -14.42 | N61: =L61-H61 -> -0.91 | O61: =IF((H61)=0,"",(N61/H61)) -> 0.06735751295
B62: Total Bill on RPP (including OCEB) | H62: =SUM(H60:H61) -> 121.6074629 | L62: =SUM(L60:L61) -> 129.7439626 | N62: 8.13649976 | O62: 0.06690789831
B64: Total Bill on TOU (before Taxes) | H64: =SUM(H47:H51,H54:H56) -> 124.1532928 | L64: =SUM(L47:L51,L54:L56) -> 132.2687968 | N64: =L64-H64 -> 8.115504 | O64: =IF((H64)=0,"",(N64/H64)) -> 0.06536680435
B65: HST | F65: 0.13 | H65: =H64*F65 -> 16.13992806 | J65: 0.13 | L65: =L64*J65 -> 17.19494358 | N65: 1.05501552 | O65: 0.06536680435
B66: Total Bill (including HST) | H66: =H64+H65 -> 140.2932209 | L66: =L64+L65 -> 149.4637404 | N66: 9.17051952 | O66: 0.06536680435
B67: Ontario Clean Energy Benefit 1 | H67: =ROUND(-H66*10%,2) -> -14.03 | L67: =ROUND(-L66*10%,2) -> -14.95 | N67: -0.92 | O67: 0.06557377049
B68: Total Bill on TOU (including OCEB) | H68: =H66+H67 -> 126.2632209 | L68: =L66+L67 -> 134.5137404 | N68: 8.25051952 | O68: 0.06534380688
B71: Loss Factor (%) | F71: 0.0642 | J71: 0.0897
A73: 1 Applicable to eligible customers only. Refer to the Ontario Clean Energy Benefit Act, 2010.
A75: Note that the "Charge $" columns provide breakdowns of the amounts that each bill component contributes to the total monthly bill at the referenced
A76: consumption level at existing and proposed rates.
A78: Applicants must provide bill impacts for residential at 800 kWh and GS<50kW at 2000 kWh. In addition, their filing should cover the range that is relevant
A79: to their service territory, class by class. A general guideline of consumption levels follows:
A81: Residential (kWh) - 100, 250, 500, 800, 1000, 1500, 2000
A82: GS<50kW (kWh) - 1000, 2000, 5000, 10000, 15000
A83: GS>50kW (kW) - 60, 100, 500, 1000
A84: Large User - range appropriate for utility
A85: Lighting Classes and USL - 150 kWh and 1 kW, range appropriate for utility.

Sheet App.2-W_Bill ImpactsGS<50
N1: File Number: | O1: ='LDC Info'!$E$18 -> EB-2012-0165 | T1: 2
N2: Exhibit: | O2: 8
N3: Tab:
N4: Schedule: | O4: 8
N5: Page:
N7: Date: | O7: 2013-02-22
B10: Appendix 2-W
B11: Bill Impacts
B14: Customer Class: | D14: General Service < 50 kW
D16: Consumption | F16: 2000 | G16: kWh
F18: Current Board-Approved | J18: Proposed | N18: Impact
D19: Charge Unit | F19: Rate | G19: Volume | H19: Charge | J19: Rate | K19: Volume | L19: Charge | N19: $ Change | O19: % Change
F20: ($) | H20: ($) | J20: ($) | L20: ($)
B21: Monthly Service Charge | D21: Monthly | F21: 43.11 | G21: 1 | H21: =G21*F21 -> 43.11 | J21: 44.98 | K21: 1 | L21: =K21*J21 -> 44.98 | N21: =L21-H21 -> 1.87 | O21: =IF((H21)=0,"",(N21/H21)) -> 0.04337740663
B22: Smart Meter Rate Adder | D22: Monthly | G22: 1 | H22: =G22*F22 -> 0 | K22: 1 | L22: =K22*J22 -> 0 | N22: =L22-H22 -> 0 | O22: =IF((H22)=0,"",(N22/H22)) -> 
B23: Smart Meter Inc Rev Req Rider | D23: Monthly | F23: 5.18 | G23: 1 | H23: 5.18 | K23: 1 | L23: =K23*J23 -> 0 | N23: =L23-H23 -> -5.18 | O23: =IF((H23)=0,"",(N23/H23)) -> -1
B24: Smart Meter Disposition Rider | D24: Monthly | F24: 3.09 | G24: 1 | H24: 3.09 | J24: 3.09 | K24: 1 | L24: 3.09 | N24: 0 | O24: 0
B25: Smart Meter Disposition Rider | D25: Monthly | G25: 1 | H25: 0 | J25: 2.63 | K25: 1 | L25: 2.63 | N25: 2.63
G26: 1 | H26: 0 | K26: 1 | L26: 0 | N26: 0
B27: Distribution Volumetric Rate | D27: per kWh | F27: 0.0082 | G27: =$F$16 -> 2000 | H27: 16.4 | J27: 0.0086 | K27: =$F$16 -> 2000 | L27: 17.2 | N27: 0.8 | O27: 0.0487804878
B28: Smart Meter Disposition Rider | G28: =$F$16 -> 2000 | H28: 0 | K28: =$F$16 -> 2000 | L28: 0 | N28: 0
B29: LRAM & SSM Rate Rider | G29: =$F$16 -> 2000 | H29: 0 | K29: 2000 | L29: 0 | N29: 0
B30: Low Voltage Rate Adder | D30: per kWh | F30: 0.0027 | G30: =$F$16 -> 2000 | H30: 5.4 | J30: 0.0031 | K30: 2000 | L30: 6.2 | N30: 0.8 | O30: 0.1481481481
G31: 2000 | H31: 0 | K31: 2000 | L31: 0 | N31: 0
G32: 2000 | H32: 0 | K32: 2000 | L32: 0 | N32: 0
G33: 2000 | H33: 0 | K33: 2000 | L33: 0 | N33: 0
G34: 2000 | H34: 0 | K34: 2000 | L34: 0 | N34: 0
G35: 2000 | H35: 0 | K35: 2000 | L35: 0 | N35: 0
G36: 2000 | H36: 0 | K36: 2000 | L36: 0 | N36: 0
B37: Sub-Total A | H37: =SUM(H21:H36) -> 73.18 | L37: =SUM(L21:L36) -> 74.1 | N37: 0.92 | O37: 0.01257174091
B38: Deferral/Variance Account Disposition Rate Rider | D38: per kWh | F38: -0.0028 | G38: =$F$16 -> 2000 | H38: =G38*F38 -> -5.6 | J38: -0.0031 | K38: =$F$16 -> 2000 | L38: =K38*J38 -> -6.2 | N38: =L38-H38 -> -0.6 | O38: =IF((H38)=0,"",(N38/H38)) -> 0.1071428571
G39: =$F$16 -> 2000 | H39: =G39*F39 -> 0 | K39: =$F$16 -> 2000 | L39: =K39*J39 -> 0 | N39: =L39-H39 -> 0 | O39: =IF((H39)=0,"",(N39/H39)) -> 
G40: 2000 | H40: 0 | K40: 2000 | L40: 0 | N40: 0
G41: 2000 | H41: 0 | K41: 2000 | L41: 0 | N41: 0
B42: Low Voltage Service Charge | G42: 2000 | H42: =G42*F42 -> 0 | K42: 2000 | L42: =K42*J42 -> 0 | N42: =L42-H42 -> 0 | O42: =IF((H42)=0,"",(N42/H42)) -> 
B43: Smart Meter Entity Charge | K43: 2000 | L43: =K43*J43 -> 0 | N43: =L43-H43 -> 0
B44: Sub-Total B - Distribution (includes Sub-Total A) | H44: =SUM(H38:H42)+H37 -> 67.58 | L44: =SUM(L38:L42)+L37 -> 67.9 | N44: =L44-H44 -> 0.32 | O44: =IF((H44)=0,"",(N44/H44)) -> 0.004735128736
B45: RTSR - Network | D45: per kWh | F45: 0.005 | G45: =F16*(1+F71) -> 2128.4 | H45: =G45*F45 -> 10.642 | J45: 0.0059 | K45: =F16*(1+J71) -> 2179.4 | L45: =K45*J45 -> 12.85846 | N45: 2.21646 | O45: 0.2082747604
B46: RTSR - Line and Transformation Connection | D46: per kWh | F46: 0.0011 | G46: =G45 -> 2128.4 | H46: =G46*F46 -> 2.34124 | J46: 0.0012 | K46: =K45 -> 2179.4 | L46: =K46*J46 -> 2.61528 | N46: 0.27404 | O46: 0.1170490851
B47: Sub-Total C - Delivery (including Sub-Total B) | H47: =SUM(H44:H46) -> 80.56324 | L47: =SUM(L44:L46) -> 83.37374 | N47: 2.8105 | O47: 0.03488563767
B48: Wholesale Market Service Charge (WMSC) | D48: per kWh | F48: 0.0052 | G48: =G46 -> 2128.4 | H48: =G48*F48 -> 11.06768 | J48: 0.0052 | K48: =K46 -> 2179.4 | L48: =K48*J48 -> 11.33288 | N48: 0.2652 | O48: 0.02396166134
B49: Rural and Remote Rate Protection (RRRP) | D49: per kWh | F49: 0.0011 | G49: =G46 -> 2128.4 | H49: 2.34124 | J49: 0.0011 | K49: =K46 -> 2179.4 | L49: 2.39734 | N49: 0.0561 | O49: 0.02396166134
B50: Standard Supply Service Charge | D50: Monthly | F50: 0.25 | G50: 1 | H50: 0.25 | J50: 0.25 | K50: 1 | L50: 0.25 | N50: 0 | O50: 0
B51: Debt Retirement Charge (DRC) | D51: per kWh | F51: 0.007 | G51: =G49 -> 2128.4 | H51: 14.8988 | J51: 0.007 | K51: =K49 -> 2179.4 | L51: 15.2558 | N51: 0.357 | O51: 0.02396166134
B52: Energy - RPP - Tier 1 | D52: per kWh | F52: 0.074 | G52: =IF($T$1=1,IF($F$16>=600,600,IF($F$16<600,$F$16*(1+$F$71),$F$16-600)),IF($T$1=2,IF($F$16>=1000,1000,IF($F$16<1000,$F$16*(1+$F$71),$F$16-1000)))) -> 1000 | H52: =G52*F52 -> 74 | J52: 0.074 | K52: =IF($T$1=1,IF($F$16>=600,600,IF($F$16<600,$F$16*(1+$J$71),$F$16-600)),IF($T$1=2,IF($F$16>=1000,1000,IF($F$16<1000,$F$16*(1+$J$71),$F$16-1000)))) -> 1000 | L52: =K52*J52 -> 74 | N52: 0 | O52: 0
B53: Energy - RPP - Tier 2 | D53: per kWh | F53: 0.087 | G53: =IF($T$1=1,IF($F$16>=600,$F$16*(1+$F$71)-600,IF($F$16<600,0,)), IF($T$1=2,IF($F$16>=1000,$F$16*(1+$F$71)-1000,IF($F$16<1000,0)))) -> 1128.4 | H53: =G53*F53 -> 98.1708 | J53: 0.087 | K53: =IF($T$1=1,IF($F$16>=600,$F$16*(1+$J$71)-600,IF($F$16<600,0,)), IF($T$1=2,IF($F$16>=1000,$F$16*(1+$J$71)-1000,IF($F$16<1000,0)))) -> 1179.4 | L53: =K53*J53 -> 102.6078 | N53: 4.437 | O53: 0.04519673875
B54: TOU - Off Peak | D54: per kWh | F54: 0.063 | G54: =0.64*$F$16*(1+$F$71) -> 1362.176 | H54: 85.817088 | J54: 0.063 | K54: =0.64*$F$16*(1+$J$71) -> 1394.816 | L54: 87.873408 | N54: 2.05632 | O54: 0.02396166134
B55: TOU - Mid Peak | D55: per kWh | F55: 0.099 | G55: =0.18*$F$16*(1+$F$71) -> 383.112 | H55: 37.928088 | J55: 0.099 | K55: =0.18*$F$16*(1+$J$71) -> 392.292 | L55: 38.836908 | N55: 0.90882 | O55: 0.02396166134
B56: TOU - On Peak | D56: per kWh | F56: 0.118 | G56: =0.18*$F$16*(1+$F$71) -> 383.112 | H56: 45.207216 | J56: 0.118 | K56: =0.18*$F$16*(1+$J$71) -> 392.292 | L56: 46.290456 | N56: 1.08324 | O56: 0.02396166134
B58: Total Bill on RPP (before Taxes) | H58: =SUM(H47:H53) -> 281.29176 | L58: =SUM(L47:L53) -> 289.21756 | N58: 7.9258 | O58: 0.02817643858
B59: HST | F59: 0.13 | H59: =H58*F59 -> 36.5679288 | J59: 0.13 | L59: =L58*J59 -> 37.5982828 | N59: 1.030354 | O59: 0.02817643858
B60: Total Bill (including HST) | H60: =H58+H59 -> 317.8596888 | L60: =L58+L59 -> 326.8158428 | N60: 8.956154 | O60: 0.02817643858
B61: Ontario Clean Energy Benefit 1 | H61: =ROUND(-H60*10%,2) -> -31.79 | L61: =ROUND(-L60*10%,2) -> -32.68 | N61: -0.89 | O61: 0.02799622523
B62: Total Bill on RPP (including OCEB) | H62: =SUM(H60:H61) -> 286.0696888 | L62: =SUM(L60:L61) -> 294.1358428 | N62: 8.066154 | O62: 0.02819646511
B64: Total Bill on TOU (before Taxes) | H64: =SUM(H47:H51,H54:H56) -> 278.073352 | L64: =SUM(L47:L51,L54:L56) -> 285.610532 | N64: =L64-H64 -> 7.53718 | O64: =IF((H64)=0,"",(N64/H64)) -> 0.02710500645
B65: HST | F65: 0.13 | H65: =H64*F65 -> 36.14953576 | J65: 0.13 | L65: =L64*J65 -> 37.12936916 | N65: 0.9798334 | O65: 0.02710500645
B66: Total Bill (including HST) | H66: =H64+H65 -> 314.2228878 | L66: =L64+L65 -> 322.7399012 | N66: 8.5170134 | O66: 0.02710500645
B67: Ontario Clean Energy Benefit 1 | H67: =ROUND(-H66*10%,2) -> -31.42 | L67: =ROUND(-L66*10%,2) -> -32.27 | N67: -0.85 | O67: 0.02705283259
B68: Total Bill on TOU (including OCEB) | H68: =H66+H67 -> 282.8028878 | L68: =L66+L67 -> 290.4699012 | N68: 7.6670134 | O68: 0.02711080308
B71: Loss Factor (%) | F71: 0.0642 | J71: 0.0897
A73: 1 Applicable to eligible customers only. Refer to the Ontario Clean Energy Benefit Act, 2010.
A75: Note that the "Charge $" columns provide breakdowns of the amounts that each bill component contributes to the total monthly bill at the referenced
A76: consumption level at existing and proposed rates.
A78: Applicants must provide bill impacts for residential at 800 kWh and GS<50kW at 2000 kWh. In addition, their filing should cover the range that is relevant
A79: to their service territory, class by class. A general guideline of consumption levels follows:
A81: Residential (kWh) - 100, 250, 500, 800, 1000, 1500, 2000
A82: GS<50kW (kWh) - 1000, 2000, 5000, 10000, 15000
A83: GS>50kW (kW) - 60, 100, 500, 1000
A84: Large User - range appropriate for utility
A85: Lighting Classes and USL - 150 kWh and 1 kW, range appropriate for utility.

Sheet App.2-W_Bill ImpactsGS>50
N1: File Number: | O1: ='LDC Info'!$E$18 -> EB-2012-0165 | T1: 2
N2: Exhibit: | O2: 8
N3: Tab:
N4: Schedule: | O4: 8
N5: Page:
N7: Date: | O7: 2013-02-22
B10: Appendix 2-W
B11: Bill Impacts
B14: Customer Class: | D14: General Service 50 to 4,999 kW
D16: Consumption | F16: 100 | G16: kW
F17: 30000 | G17: kWh
F19: Current Board-Approved | J19: Proposed | N19: Impact
D20: Charge Unit | F20: Rate | G20: Volume | H20: Charge | J20: Rate | K20: Volume | L20: Charge | N20: $ Change | O20: % Change
F21: ($) | H21: ($) | J21: ($) | L21: ($)
B22: Monthly Service Charge | D22: Monthly | F22: 398.88 | G22: 1 | H22: =G22*F22 -> 398.88 | J22: 375.8 | K22: 1 | L22: =K22*J22 -> 375.8 | N22: =L22-H22 -> -23.08 | O22: =IF((H22)=0,"",(N22/H22)) -> -0.05786201364
B23: Smart Meter Rate Adder | D23: Monthly | G23: 1 | H23: =G23*F23 -> 0 | K23: 1 | L23: =K23*J23 -> 0 | N23: =L23-H23 -> 0 | O23: =IF((H23)=0,"",(N23/H23)) -> 
B24: Smart Meter Inc Rev Req Rider | D24: Monthly | G24: 1 | H24: 0 | K24: 1 | L24: =K24*J24 -> 0 | N24: =L24-H24 -> 0 | O24: =IF((H24)=0,"",(N24/H24)) -> 
B25: Smart Meter Disposition Rider | D25: Monthly | G25: 1 | H25: 0 | K25: 1 | L25: 0 | N25: 0
D26: Monthly | G26: 1 | H26: 0 | K26: 1 | L26: 0 | N26: 0
G27: 1 | H27: 0 | K27: 1 | L27: 0 | N27: 0
B28: Distribution Volumetric Rate | D28: per kW | F28: 1.3832 | G28: =$F$16 -> 100 | H28: 138.32 | J28: 1.3085 | K28: =$F$16 -> 100 | L28: 130.85 | N28: -7.47 | O28: -0.05400520532
B29: Smart Meter Disposition Rider | G29: =$F$16 -> 100 | H29: 0 | K29: =$F$16 -> 100 | L29: 0 | N29: 0
B30: LRAM & SSM Rate Rider | G30: =$F$16 -> 100 | H30: 0 | K30: 100 | L30: 0 | N30: 0
B31: Low Voltage Rate Adder | D31: per kW | F31: 1.1187 | G31: =$F$16 -> 100 | H31: 111.87 | J31: 1.289 | K31: 100 | L31: 128.9 | N31: 17.03 | O31: 0.1522302673
G32: 100 | H32: 0 | K32: 100 | L32: 0 | N32: 0
G33: 100 | H33: 0 | K33: 100 | L33: 0 | N33: 0
G34: 100 | H34: 0 | K34: 100 | L34: 0 | N34: 0
G35: 100 | H35: 0 | K35: 100 | L35: 0 | N35: 0
G36: 100 | H36: 0 | K36: 100 | L36: 0 | N36: 0
G37: 100 | H37: 0 | K37: 100 | L37: 0 | N37: 0
B38: Sub-Total A | H38: =SUM(H22:H37) -> 649.07 | L38: =SUM(L22:L37) -> 635.55 | N38: -13.52 | O38: -0.02082980264
B39: Deferral/Variance Account Disposition Rate Rider | D39: per kW | F39: -0.8074 | G39: =$F$16 -> 100 | H39: =G39*F39 -> -80.74 | J39: -1.3376 | K39: =$F$16 -> 100 | L39: =K39*J39 -> -133.76 | N39: =L39-H39 -> -53.02 | O39: =IF((H39)=0,"",(N39/H39)) -> 0.6566757493
B40: Global Adjustment Rate Rider | D40: per kW | F40: -0.8145 | G40: =$F$16 -> 100 | H40: =G40*F40 -> -81.45 | J40: -1.0352 | K40: =$F$16 -> 100 | L40: =K40*J40 -> -103.52 | N40: =L40-H40 -> -22.07 | O40: =IF((H40)=0,"",(N40/H40)) -> 0.2709637815
G41: 100 | H41: 0 | K41: 100 | L41: 0 | N41: 0
G42: 100 | H42: 0 | K42: 100 | L42: 0 | N42: 0
B43: Low Voltage Service Charge | G43: 100 | H43: =G43*F43 -> 0 | K43: 100 | L43: =K43*J43 -> 0 | N43: =L43-H43 -> 0 | O43: =IF((H43)=0,"",(N43/H43)) -> 
B44: Smart Meter Entity Charge | K44: 100 | L44: =K44*J44 -> 0 | N44: =L44-H44 -> 0
B45: Sub-Total B - Distribution (includes Sub-Total A) | H45: =SUM(H39:H43)+H38 -> 486.88 | L45: =SUM(L39:L43)+L38 -> 398.27 | N45: =L45-H45 -> -88.61 | O45: =IF((H45)=0,"",(N45/H45)) -> -0.1819955636
B46: RTSR - Network | D46: per kW | F46: 2.0041 | G46: =F16 -> 100 | H46: =G46*F46 -> 200.41 | J46: 2.3692 | K46: =F16 -> 100 | L46: =K46*J46 -> 236.92 | N46: 36.51 | O46: 0.1821765381
B47: RTSR - Line and Transformation Connection | D47: per kW | F47: 0.4581 | G47: =G46 -> 100 | H47: =G47*F47 -> 45.81 | J47: 0.5163 | K47: =K46 -> 100 | L47: =K47*J47 -> 51.63 | N47: 5.82 | O47: 0.1270464964
B48: Sub-Total C - Delivery (including Sub-Total B) | H48: =SUM(H45:H47) -> 733.1 | L48: =SUM(L45:L47) -> 686.82 | N48: -46.28 | O48: -0.06312917747
B49: Wholesale Market Service Charge (WMSC) | D49: per kWh | F49: 0.0052 | G49: =$F$17*(1+F72) -> 31926 | H49: =G49*F49 -> 166.0152 | J49: 0.0052 | K49: =$F$17*(1+J72) -> 32691 | L49: =K49*J49 -> 169.9932 | N49: 3.978 | O49: 0.02396166134
B50: Rural and Remote Rate Protection (RRRP) | D50: per kWh | F50: 0.0011 | G50: =G49 -> 31926 | H50: 35.1186 | J50: 0.0011 | K50: =K49 -> 32691 | L50: 35.9601 | N50: 0.8415 | O50: 0.02396166134
B51: Standard Supply Service Charge | D51: Monthly | F51: 0.25 | G51: 1 | H51: 0.25 | J51: 0.25 | K51: 1 | L51: 0.25 | N51: 0 | O51: 0
B52: Debt Retirement Charge (DRC) | D52: per kWh | F52: 0.007 | G52: =F17 -> 30000 | H52: 210 | J52: 0.007 | K52: =F17 -> 30000 | L52: 210 | N52: 0 | O52: 0
B53: Energy - RPP - Tier 1 | D53: per kWh | F53: 0.074 | G53: =IF($T$1=1,IF($F$17>=600,600,IF($F$17<600,$F$17*(1+$F$72),$F$17-600)),IF($T$1=2,IF($F$17>=1000,1000,IF($F$17<1000,$F$17*(1+$F$72),$F$17-1000)))) -> 1000 | H53: =G53*F53 -> 74 | J53: 0.074 | K53: =IF($T$1=1,IF($F$17>=600,600,IF($F$17<600,$F$17*(1+$J$72),$F$17-600)),IF($T$1=2,IF($F$17>=1000,1000,IF($F$17<1000,$F$17*(1+$J$72),$F$17-1000)))) -> 1000 | L53: =K53*J53 -> 74 | N53: 0 | O53: 0
B54: Energy - RPP - Tier 2 | D54: per kWh | F54: 0.087 | G54: =IF($T$1=1,IF($F$17>=600,$F$17*(1+$F$72)-600,IF($F$17<600,0,)), IF($T$1=2,IF($F$17>=1000,$F$17*(1+$F$72)-1000,IF($F$17<1000,0)))) -> 30926 | H54: =G54*F54 -> 2690.562 | J54: 0.087 | K54: =IF($T$1=1,IF($F$17>=600,$F$17*(1+$J$72)-600,IF($F$17<600,0,)), IF($T$1=2,IF($F$17>=1000,$F$17*(1+$J$72)-1000,IF($F$17<1000,0)))) -> 31691 | L54: =K54*J54 -> 2757.117 | N54: 66.555 | O54: 0.0247364677
B55: TOU - Off Peak | D55: per kWh | F55: 0.063 | G55: =0.64*$F$17*(1+$F$72) -> 20432.64 | H55: 1287.25632 | J55: 0.063 | K55: =0.64*$F$17*(1+$J$72) -> 20922.24 | L55: 1318.10112 | N55: 30.8448 | O55: 0.02396166134
B56: TOU - Mid Peak | D56: per kWh | F56: 0.099 | G56: =0.18*$F$17*(1+$F$72) -> 5746.68 | H56: 568.92132 | J56: 0.099 | K56: =0.18*$F$17*(1+$J$72) -> 5884.38 | L56: 582.55362 | N56: 13.6323 | O56: 0.02396166134
B57: TOU - On Peak | D57: per kWh | F57: 0.118 | G57: =0.18*$F$17*(1+$F$72) -> 5746.68 | H57: 678.10824 | J57: 0.118 | K57: =0.18*$F$17*(1+$J$72) -> 5884.38 | L57: 694.35684 | N57: 16.2486 | O57: 0.02396166134
B59: Total Bill on RPP (before Taxes) | H59: =SUM(H48:H54) -> 3909.0458 | L59: =SUM(L48:L54) -> 3934.1403 | N59: 25.0945 | O59: 0.006419597335
B60: HST | F60: 0.13 | H60: =H59*F60 -> 508.175954 | J60: 0.13 | L60: =L59*J60 -> 511.438239 | N60: 3.262285 | O60: 0.006419597335
B61: Total Bill (including HST) | H61: =H59+H60 -> 4417.221754 | L61: =L59+L60 -> 4445.578539 | N61: 28.356785 | O61: 0.006419597335
B62: Ontario Clean Energy Benefit 1 | H62: =ROUND(-H61*10%,2) -> -441.72 | L62: =ROUND(-L61*10%,2) -> -444.56 | N62: -2.84 | O62: 0.006429412297
B63: Total Bill on RPP (including OCEB) | H63: =SUM(H61:H62) -> 3975.501754 | L63: =SUM(L61:L62) -> 4001.018539 | N63: 25.516785 | O63: 0.00641850679
B65: Total Bill on TOU (before Taxes) | H65: =SUM(H48:H52,H55:H57) -> 3678.76968 | L65: =SUM(L48:L52,L55:L57) -> 3698.03488 | N65: =L65-H65 -> 19.2652 | O65: =IF((H65)=0,"",(N65/H65)) -> 0.005236859514
B66: HST | F66: 0.13 | H66: =H65*F66 -> 478.2400584 | J66: 0.13 | L66: =L65*J66 -> 480.7445344 | N66: 2.504476 | O66: 0.005236859514
B67: Total Bill (including HST) | H67: =H65+H66 -> 4157.009738 | L67: =L65+L66 -> 4178.779414 | N67: 21.769676 | O67: 0.005236859514
B68: Ontario Clean Energy Benefit 1 | H68: =ROUND(-H67*10%,2) -> -415.7 | L68: =ROUND(-L67*10%,2) -> -417.88 | N68: -2.18 | O68: 0.005244166466
B69: Total Bill on TOU (including OCEB) | H69: =H67+H68 -> 3741.309738 | L69: =L67+L68 -> 3760.899414 | N69: 19.589676 | O69: 0.005236047633
B72: Loss Factor (%) | F72: 0.0642 | J72: 0.0897
A74: 1 Applicable to eligible customers only. Refer to the Ontario Clean Energy Benefit Act, 2010.
A76: Note that the "Charge $" columns provide breakdowns of the amounts that each bill component contributes to the total monthly bill at the referenced
A77: consumption level at existing and proposed rates.
A79: Applicants must provide bill impacts for residential at 800 kWh and GS<50kW at 2000 kWh. In addition, their filing should cover the range that is relevant
A80: to their service territory, class by class. A general guideline of consumption levels follows:
A82: Residential (kWh) - 100, 250, 500, 800, 1000, 1500, 2000
A83: GS<50kW (kWh) - 1000, 2000, 5000, 10000, 15000
A84: GS>50kW (kW) - 60, 100, 500, 1000
A85: Large User - range appropriate for utility
A86: Lighting Classes and USL - 150 kWh and 1 kW, range appropriate for utility.

Sheet App.2-W_Bill ImpactsGS>1000
N1: File Number: | O1: ='LDC Info'!$E$18 -> EB-2012-0165 | T1: 2
N2: Exhibit: | O2: 8
N3: Tab:
N4: Schedule: | O4: 8
N5: Page:
N7: Date: | O7: 2013-02-22
B10: Appendix 2-W
B11: Bill Impacts
B14: Customer Class: | D14: General Service > 1000 kW - Interval Metered
D16: Consumption | F16: 1000 | G16: kW
F17: 200000 | G17: kWh
F19: Current Board-Approved | J19: Proposed | N19: Impact
D20: Charge Unit | F20: Rate | G20: Volume | H20: Charge | J20: Rate | K20: Volume | L20: Charge | N20: $ Change | O20: % Change
F21: ($) | H21: ($) | J21: ($) | L21: ($)
B22: Monthly Service Charge | D22: Monthly | F22: 398.88 | G22: 1 | H22: =G22*F22 -> 398.88 | J22: 375.8 | K22: 1 | L22: =K22*J22 -> 375.8 | N22: =L22-H22 -> -23.08 | O22: =IF((H22)=0,"",(N22/H22)) -> -0.05786201364
B23: Smart Meter Rate Adder | D23: Monthly | G23: 1 | H23: =G23*F23 -> 0 | K23: 1 | L23: =K23*J23 -> 0 | N23: =L23-H23 -> 0 | O23: =IF((H23)=0,"",(N23/H23)) -> 
B24: Smart Meter Inc Rev Req Rider | D24: Monthly | G24: 1 | H24: 0 | K24: 1 | L24: =K24*J24 -> 0 | N24: =L24-H24 -> 0 | O24: =IF((H24)=0,"",(N24/H24)) -> 
B25: Smart Meter Disposition Rider | D25: Monthly | G25: 1 | H25: 0 | K25: 1 | L25: 0 | N25: 0
D26: Monthly | G26: 1 | H26: 0 | K26: 1 | L26: 0 | N26: 0
G27: 1 | H27: 0 | K27: 1 | L27: 0 | N27: 0
B28: Distribution Volumetric Rate | D28: per kW | F28: 1.3832 | G28: =$F$16 -> 1000 | H28: 1383.2 | J28: 1.3085 | K28: =$F$16 -> 1000 | L28: 1308.5 | N28: -74.7 | O28: -0.05400520532
B29: Smart Meter Disposition Rider | G29: =$F$16 -> 1000 | H29: 0 | K29: =$F$16 -> 1000 | L29: 0 | N29: 0
B30: LRAM & SSM Rate Rider | G30: =$F$16 -> 1000 | H30: 0 | K30: 1000 | L30: 0 | N30: 0
B31: Low Voltage Rate Adder | D31: per kW | F31: 1.1187 | G31: =$F$16 -> 1000 | H31: 1118.7 | J31: 1.289 | K31: 1000 | L31: 1289 | N31: 170.3 | O31: 0.1522302673
G32: 1000 | H32: 0 | K32: 1000 | L32: 0 | N32: 0
G33: 1000 | H33: 0 | K33: 1000 | L33: 0 | N33: 0
G34: 1000 | H34: 0 | K34: 1000 | L34: 0 | N34: 0
G35: 1000 | H35: 0 | K35: 1000 | L35: 0 | N35: 0
G36: 1000 | H36: 0 | K36: 1000 | L36: 0 | N36: 0
G37: 1000 | H37: 0 | K37: 1000 | L37: 0 | N37: 0
B38: Sub-Total A | H38: =SUM(H22:H37) -> 2900.78 | L38: =SUM(L22:L37) -> 2973.3 | N38: 72.52 | O38: 0.02500017237
B39: Deferral/Variance Account Disposition Rate Rider | D39: per kW | F39: -0.8074 | G39: =$F$16 -> 1000 | H39: =G39*F39 -> -807.4 | J39: -1.3376 | K39: =$F$16 -> 1000 | L39: =K39*J39 -> -1337.6 | N39: =L39-H39 -> -530.2 | O39: =IF((H39)=0,"",(N39/H39)) -> 0.6566757493
B40: Global Adjustment Rate Rider | D40: per kW | F40: -0.8145 | G40: =$F$16 -> 1000 | H40: =G40*F40 -> -814.5 | J40: -1.0352 | K40: =$F$16 -> 1000 | L40: =K40*J40 -> -1035.2 | N40: =L40-H40 -> -220.7 | O40: =IF((H40)=0,"",(N40/H40)) -> 0.2709637815
G41: 1000 | H41: 0 | K41: 1000 | L41: 0 | N41: 0
G42: 1000 | H42: 0 | K42: 1000 | L42: 0 | N42: 0
B43: Low Voltage Service Charge | G43: 1000 | H43: =G43*F43 -> 0 | K43: 1000 | L43: =K43*J43 -> 0 | N43: =L43-H43 -> 0 | O43: =IF((H43)=0,"",(N43/H43)) -> 
B44: Smart Meter Entity Charge | K44: 1000 | L44: =K44*J44 -> 0 | N44: =L44-H44 -> 0
B45: Sub-Total B - Distribution (includes Sub-Total A) | H45: =SUM(H39:H43)+H38 -> 1278.88 | L45: =SUM(L39:L43)+L38 -> 600.5 | N45: =L45-H45 -> -678.38 | O45: =IF((H45)=0,"",(N45/H45)) -> -0.5304485175
B46: RTSR - Network | D46: per kW | F46: 2.126 | G46: =F16 -> 1000 | H46: =G46*F46 -> 2126 | J46: 2.5034 | K46: =F16 -> 1000 | L46: =K46*J46 -> 2503.4 | N46: 377.4 | O46: 0.1775164628
B47: RTSR - Line and Transformation Connection | D47: per kW | F47: 0.5062 | G47: =G46 -> 1000 | H47: =G47*F47 -> 506.2 | J47: 0.5667 | K47: =K46 -> 1000 | L47: =K47*J47 -> 566.7 | N47: 60.5 | O47: 0.1195179771
B48: Sub-Total C - Delivery (including Sub-Total B) | H48: =SUM(H45:H47) -> 3911.08 | L48: =SUM(L45:L47) -> 3670.6 | N48: -240.48 | O48: -0.06148685274
B49: Wholesale Market Service Charge (WMSC) | D49: per kWh | F49: 0.0052 | G49: =$F$17*(1+F72) -> 210700 | H49: =G49*F49 -> 1095.64 | J49: 0.0052 | K49: =$F$17*(1+J72) -> 215760 | L49: =K49*J49 -> 1121.952 | N49: 26.312 | O49: 0.02401518747
B50: Rural and Remote Rate Protection (RRRP) | D50: per kWh | F50: 0.0011 | G50: =G49 -> 210700 | H50: 231.77 | J50: 0.0011 | K50: =K49 -> 215760 | L50: 237.336 | N50: 5.566 | O50: 0.02401518747
B51: Standard Supply Service Charge | D51: Monthly | F51: 0.25 | G51: 1 | H51: 0.25 | J51: 0.25 | K51: 1 | L51: 0.25 | N51: 0 | O51: 0
B52: Debt Retirement Charge (DRC) | D52: per kWh | F52: 0.007 | G52: =F17 -> 200000 | H52: 1400 | J52: 0.007 | K52: =F17 -> 200000 | L52: 1400 | N52: 0 | O52: 0
B53: Energy - RPP - Tier 1 | D53: per kWh | F53: 0.074 | G53: =IF($T$1=1,IF($F$17>=600,600,IF($F$17<600,$F$17*(1+$F$72),$F$17-600)),IF($T$1=2,IF($F$17>=1000,1000,IF($F$17<1000,$F$17*(1+$F$72),$F$17-1000)))) -> 1000 | H53: =G53*F53 -> 74 | J53: 0.074 | K53: =IF($T$1=1,IF($F$17>=600,600,IF($F$17<600,$F$17*(1+$J$72),$F$17-600)),IF($T$1=2,IF($F$17>=1000,1000,IF($F$17<1000,$F$17*(1+$J$72),$F$17-1000)))) -> 1000 | L53: =K53*J53 -> 74 | N53: 0 | O53: 0
B54: Energy - RPP - Tier 2 | D54: per kWh | F54: 0.087 | G54: =IF($T$1=1,IF($F$17>=600,$F$17*(1+$F$72)-600,IF($F$17<600,0,)), IF($T$1=2,IF($F$17>=1000,$F$17*(1+$F$72)-1000,IF($F$17<1000,0)))) -> 209700 | H54: =G54*F54 -> 18243.9 | J54: 0.087 | K54: =IF($T$1=1,IF($F$17>=600,$F$17*(1+$J$72)-600,IF($F$17<600,0,)), IF($T$1=2,IF($F$17>=1000,$F$17*(1+$J$72)-1000,IF($F$17<1000,0)))) -> 214760 | L54: =K54*J54 -> 18684.12 | N54: 440.22 | O54: 0.02412970911
B55: TOU - Off Peak | D55: per kWh | F55: 0.063 | G55: =0.64*$F$17*(1+$F$72) -> 134848 | H55: 8495.424 | J55: 0.063 | K55: =0.64*$F$17*(1+$J$72) -> 138086.4 | L55: 8699.4432 | N55: 204.0192 | O55: 0.02401518747
B56: TOU - Mid Peak | D56: per kWh | F56: 0.099 | G56: =0.18*$F$17*(1+$F$72) -> 37926 | H56: 3754.674 | J56: 0.099 | K56: =0.18*$F$17*(1+$J$72) -> 38836.8 | L56: 3844.8432 | N56: 90.1692 | O56: 0.02401518747
B57: TOU - On Peak | D57: per kWh | F57: 0.118 | G57: =0.18*$F$17*(1+$F$72) -> 37926 | H57: 4475.268 | J57: 0.118 | K57: =0.18*$F$17*(1+$J$72) -> 38836.8 | L57: 4582.7424 | N57: 107.4744 | O57: 0.02401518747
B59: Total Bill on RPP (before Taxes) | H59: =SUM(H48:H54) -> 24956.64 | L59: =SUM(L48:L54) -> 25188.258 | N59: 231.618 | O59: 0.009280816648
B60: HST | F60: 0.13 | H60: =H59*F60 -> 3244.3632 | J60: 0.13 | L60: =L59*J60 -> 3274.47354 | N60: 30.11034 | O60: 0.009280816648
B61: Total Bill (including HST) | H61: =H59+H60 -> 28201.0032 | L61: =L59+L60 -> 28462.73154 | N61: 261.72834 | O61: 0.009280816648
B62: Ontario Clean Energy Benefit 1 | H62: =ROUND(-H61*10%,2) -> -2820.1 | L62: =ROUND(-L61*10%,2) -> -2846.27 | N62: -26.17 | O62: 0.009279812773
B63: Total Bill on RPP (including OCEB) | H63: =SUM(H61:H62) -> 25380.9032 | L63: =SUM(L61:L62) -> 25616.46154 | N63: 235.55834 | O63: 0.00928092819
B65: Total Bill on TOU (before Taxes) | H65: =SUM(H48:H52,H55:H57) -> 23364.106 | L65: =SUM(L48:L52,L55:L57) -> 23557.1668 | N65: =L65-H65 -> 193.0608 | O65: =IF((H65)=0,"",(N65/H65)) -> 0.008263136625
B66: HST | F66: 0.13 | H66: =H65*F66 -> 3037.33378 | J66: 0.13 | L66: =L65*J66 -> 3062.431684 | N66: 25.097904 | O66: 0.008263136625
B67: Total Bill (including HST) | H67: =H65+H66 -> 26401.43978 | L67: =L65+L66 -> 26619.59848 | N67: 218.158704 | O67: 0.008263136625
B68: Ontario Clean Energy Benefit 1 | H68: =ROUND(-H67*10%,2) -> -2640.14 | L68: =ROUND(-L67*10%,2) -> -2661.96 | N68: -21.82 | O68: 0.008264713235
B69: Total Bill on TOU (including OCEB) | H69: =H67+H68 -> 23761.29978 | L69: =L67+L68 -> 23957.63848 | N69: 196.338704 | O69: 0.008262961446
B72: Loss Factor (%) | F72: 0.0535 | J72: 0.0788
A74: 1 Applicable to eligible customers only. Refer to the Ontario Clean Energy Benefit Act, 2010.
A76: Note that the "Charge $" columns provide breakdowns of the amounts that each bill component contributes to the total monthly bill at the referenced
A77: consumption level at existing and proposed rates.
A79: Applicants must provide bill impacts for residential at 800 kWh and GS<50kW at 2000 kWh. In addition, their filing should cover the range that is relevant
A80: to their service territory, class by class. A general guideline of consumption levels follows:
A82: Residential (kWh) - 100, 250, 500, 800, 1000, 1500, 2000
A83: GS<50kW (kWh) - 1000, 2000, 5000, 10000, 15000
A84: GS>50kW (kW) - 60, 100, 500, 1000
A85: Large User - range appropriate for utility
A86: Lighting Classes and USL - 150 kWh and 1 kW, range appropriate for utility.

Sheet App.2-W_Bill Impacts StLites
N1: File Number: | O1: ='LDC Info'!$E$18 -> EB-2012-0165 | T1: 2
N2: Exhibit: | O2: 8
N3: Tab:
N4: Schedule: | O4: 8
N5: Page:
N7: Date: | O7: 2013-02-22
B10: Appendix 2-W
B11: Bill Impacts
B14: Customer Class: | D14: Street Lighting
D16: Consumption | F16: 120 | G16: kW
F17: 40000 | G17: kWh
F18: 531 | G18: Connections
F19: Current Board-Approved | J19: Proposed | N19: Impact
D20: Charge Unit | F20: Rate | G20: Volume | H20: Charge | J20: Rate | K20: Volume | L20: Charge | N20: $ Change | O20: % Change
F21: ($) | H21: ($) | J21: ($) | L21: ($)
B22: Monthly Service Charge | D22: Monthly | F22: 9.87 | G22: 531 | H22: =G22*F22 -> 5240.97 | J22: 9.67 | K22: 531 | L22: =K22*J22 -> 5134.77 | N22: =L22-H22 -> -106.2 | O22: =IF((H22)=0,"",(N22/H22)) -> -0.02026342452
B23: Smart Meter Rate Adder | D23: Monthly | G23: 1 | H23: =G23*F23 -> 0 | K23: 1 | L23: =K23*J23 -> 0 | N23: =L23-H23 -> 0 | O23: =IF((H23)=0,"",(N23/H23)) -> 
B24: Smart Meter Inc Rev Req Rider | D24: Monthly | G24: 1 | H24: 0 | K24: 1 | L24: =K24*J24 -> 0 | N24: =L24-H24 -> 0 | O24: =IF((H24)=0,"",(N24/H24)) -> 
B25: Smart Meter Disposition Rider | D25: Monthly | G25: 1 | H25: 0 | K25: 1 | L25: 0 | N25: 0
G26: 1 | H26: 0 | K26: 1 | L26: 0 | N26: 0
G27: 1 | H27: 0 | K27: 1 | L27: 0 | N27: 0
B28: Distribution Volumetric Rate | D28: per kW | F28: 26.0218 | G28: =$F$16 -> 120 | H28: 3122.616 | J28: 25.4938 | K28: =$F$16 -> 120 | L28: 3059.256 | N28: -63.36 | O28: -0.02029067935
B29: Smart Meter Disposition Rider | G29: =$F$16 -> 120 | H29: 0 | K29: =$F$16 -> 120 | L29: 0 | N29: 0
B30: LRAM & SSM Rate Rider | G30: =$F$16 -> 120 | H30: 0 | K30: 120 | L30: 0 | N30: 0
B31: Low Voltage Rate Adder | D31: per kW | F31: 0.8534 | G31: =$F$16 -> 120 | H31: 102.408 | J31: 0.9966 | K31: 120 | L31: 119.592 | N31: 17.184 | O31: 0.1677993907
G32: 120 | H32: 0 | K32: 120 | L32: 0 | N32: 0
G33: 120 | H33: 0 | K33: 120 | L33: 0 | N33: 0
G34: 120 | H34: 0 | K34: 120 | L34: 0 | N34: 0
G35: 120 | H35: 0 | K35: 120 | L35: 0 | N35: 0
G36: 120 | H36: 0 | K36: 120 | L36: 0 | N36: 0
G37: 120 | H37: 0 | K37: 120 | L37: 0 | N37: 0
B38: Sub-Total A | H38: =SUM(H22:H37) -> 8465.994 | L38: =SUM(L22:L37) -> 8313.618 | N38: -152.376 | O38: -0.01799859532
B39: Deferral/Variance Account Disposition Rate Rider | D39: per kW | F39: -2.1406 | G39: =$F$16 -> 120 | H39: =G39*F39 -> -256.872 | J39: 1.5062 | K39: =$F$16 -> 120 | L39: =K39*J39 -> 180.744 | N39: =L39-H39 -> 437.616 | O39: =IF((H39)=0,"",(N39/H39)) -> -1.703634495
B40: Global Adjustment Rate Rider | G40: =$F$16 -> 120 | H40: =G40*F40 -> 0 | J40: -0.8723 | K40: =$F$16 -> 120 | L40: =K40*J40 -> -104.676 | N40: =L40-H40 -> -104.676 | O40: =IF((H40)=0,"",(N40/H40)) -> 
G41: 120 | H41: 0 | K41: 120 | L41: 0 | N41: 0
G42: 120 | H42: 0 | K42: 120 | L42: 0 | N42: 0
B43: Low Voltage Service Charge | G43: 120 | H43: =G43*F43 -> 0 | K43: 120 | L43: =K43*J43 -> 0 | N43: =L43-H43 -> 0 | O43: =IF((H43)=0,"",(N43/H43)) -> 
B44: Smart Meter Entity Charge | K44: 120 | L44: =K44*J44 -> 0 | N44: =L44-H44 -> 0
B45: Sub-Total B - Distribution (includes Sub-Total A) | H45: =SUM(H39:H43)+H38 -> 8209.122 | L45: =SUM(L39:L43)+L38 -> 8389.686 | N45: =L45-H45 -> 180.564 | O45: =IF((H45)=0,"",(N45/H45)) -> 0.02199553131
B46: RTSR - Network | D46: per kW | F46: 1.5114 | G46: =F16 -> 120 | H46: =G46*F46 -> 181.368 | J46: 1.7868 | K46: =F16 -> 120 | L46: =K46*J46 -> 214.416 | N46: 33.048 | O46: 0.1822151647
B47: RTSR - Line and Transformation Connection | D47: per kW | F47: 0.3542 | G47: =G46 -> 120 | H47: =G47*F47 -> 42.504 | J47: 0.3992 | K47: =K46 -> 120 | L47: =K47*J47 -> 47.904 | N47: 5.4 | O47: 0.1270468662
B48: Sub-Total C - Delivery (including Sub-Total B) | H48: =SUM(H45:H47) -> 8432.994 | L48: =SUM(L45:L47) -> 8652.006 | N48: 219.012 | O48: 0.02597084736
B49: Wholesale Market Service Charge (WMSC) | D49: per kWh | F49: 0.0052 | G49: =$F$17*(1+F72) -> 42568 | H49: =G49*F49 -> 221.3536 | J49: 0.0052 | K49: =$F$17*(1+J72) -> 43588 | L49: =K49*J49 -> 226.6576 | N49: 5.304 | O49: 0.02396166134
B50: Rural and Remote Rate Protection (RRRP) | D50: per kWh | F50: 0.0011 | G50: =G49 -> 42568 | H50: 46.8248 | J50: 0.0011 | K50: =K49 -> 43588 | L50: 47.9468 | N50: 1.122 | O50: 0.02396166134
B51: Standard Supply Service Charge | D51: Monthly | F51: 0.25 | G51: 1 | H51: 0.25 | J51: 0.25 | K51: 1 | L51: 0.25 | N51: 0 | O51: 0
B52: Debt Retirement Charge (DRC) | D52: per kWh | F52: 0.007 | G52: =F17 -> 40000 | H52: 280 | J52: 0.007 | K52: =F17 -> 40000 | L52: 280 | N52: 0 | O52: 0
B53: Energy - RPP - Tier 1 | D53: per kWh | F53: 0.074 | G53: =IF($T$1=1,IF($F$17>=600,600,IF($F$17<600,$F$17*(1+$F$72),$F$17-600)),IF($T$1=2,IF($F$17>=1000,1000,IF($F$17<1000,$F$17*(1+$F$72),$F$17-1000)))) -> 1000 | H53: =G53*F53 -> 74 | J53: 0.074 | K53: =IF($T$1=1,IF($F$17>=600,600,IF($F$17<600,$F$17*(1+$J$72),$F$17-600)),IF($T$1=2,IF($F$17>=1000,1000,IF($F$17<1000,$F$17*(1+$J$72),$F$17-1000)))) -> 1000 | L53: =K53*J53 -> 74 | N53: 0 | O53: 0
B54: Energy - RPP - Tier 2 | D54: per kWh | F54: 0.087 | G54: =IF($T$1=1,IF($F$17>=600,$F$17*(1+$F$72)-600,IF($F$17<600,0,)), IF($T$1=2,IF($F$17>=1000,$F$17*(1+$F$72)-1000,IF($F$17<1000,0)))) -> 41568 | H54: =G54*F54 -> 3616.416 | J54: 0.087 | K54: =IF($T$1=1,IF($F$17>=600,$F$17*(1+$J$72)-600,IF($F$17<600,0,)), IF($T$1=2,IF($F$17>=1000,$F$17*(1+$J$72)-1000,IF($F$17<1000,0)))) -> 42588 | L54: =K54*J54 -> 3705.156 | N54: 88.74 | O54: 0.02453810624
B55: TOU - Off Peak | D55: per kWh | F55: 0.063 | G55: =0.64*$F$17*(1+$F$72) -> 27243.52 | H55: 1716.34176 | J55: 0.063 | K55: =0.64*$F$17*(1+$J$72) -> 27896.32 | L55: 1757.46816 | N55: 41.1264 | O55: 0.02396166134
B56: TOU - Mid Peak | D56: per kWh | F56: 0.099 | G56: =0.18*$F$17*(1+$F$72) -> 7662.24 | H56: 758.56176 | J56: 0.099 | K56: =0.18*$F$17*(1+$J$72) -> 7845.84 | L56: 776.73816 | N56: 18.1764 | O56: 0.02396166134
B57: TOU - On Peak | D57: per kWh | F57: 0.118 | G57: =0.18*$F$17*(1+$F$72) -> 7662.24 | H57: 904.14432 | J57: 0.118 | K57: =0.18*$F$17*(1+$J$72) -> 7845.84 | L57: 925.80912 | N57: 21.6648 | O57: 0.02396166134
B59: Total Bill on RPP (before Taxes) | H59: =SUM(H48:H54) -> 12671.8384 | L59: =SUM(L48:L54) -> 12986.0164 | N59: 314.178 | O59: 0.0247934033
B60: HST | F60: 0.13 | H60: =H59*F60 -> 1647.338992 | J60: 0.13 | L60: =L59*J60 -> 1688.182132 | N60: 40.84314 | O60: 0.0247934033
B61: Total Bill (including HST) | H61: =H59+H60 -> 14319.17739 | L61: =L59+L60 -> 14674.19853 | N61: 355.02114 | O61: 0.0247934033
B62: Ontario Clean Energy Benefit 1 | H62: =ROUND(-H61*10%,2) -> -1431.92 | L62: =ROUND(-L61*10%,2) -> -1467.42 | N62: -35.5 | O62: 0.02479188781
B63: Total Bill on RPP (including OCEB) | H63: =SUM(H61:H62) -> 12887.25739 | L63: =SUM(L61:L62) -> 13206.77853 | N63: 319.52114 | O63: 0.02479357169
B65: Total Bill on TOU (before Taxes) | H65: =SUM(H48:H52,H55:H57) -> 12360.47024 | L65: =SUM(L48:L52,L55:L57) -> 12666.87584 | N65: =L65-H65 -> 306.4056 | O65: =IF((H65)=0,"",(N65/H65)) -> 0.02478915398
B66: HST | F66: 0.13 | H66: =H65*F66 -> 1606.861131 | J66: 0.13 | L66: =L65*J66 -> 1646.693859 | N66: 39.832728 | O66: 0.02478915398
B67: Total Bill (including HST) | H67: =H65+H66 -> 13967.33137 | L67: =L65+L66 -> 14313.5697 | N67: 346.238328 | O67: 0.02478915398
B68: Ontario Clean Energy Benefit 1 | H68: =ROUND(-H67*10%,2) -> -1396.73 | L68: =ROUND(-L67*10%,2) -> -1431.36 | N68: -34.63 | O68: 0.02479362511
B69: Total Bill on TOU (including OCEB) | H69: =H67+H68 -> 12570.60137 | L69: =L67+L68 -> 12882.2097 | N69: 311.608328 | O69: 0.02478865719
B72: Loss Factor (%) | F72: 0.0642 | J72: 0.0897
A74: 1 Applicable to eligible customers only. Refer to the Ontario Clean Energy Benefit Act, 2010.
A76: Note that the "Charge $" columns provide breakdowns of the amounts that each bill component contributes to the total monthly bill at the referenced
A77: consumption level at existing and proposed rates.
A79: Applicants must provide bill impacts for residential at 800 kWh and GS<50kW at 2000 kWh. In addition, their filing should cover the range that is relevant
A80: to their service territory, class by class. A general guideline of consumption levels follows:
A82: Residential (kWh) - 100, 250, 500, 800, 1000, 1500, 2000
A83: GS<50kW (kWh) - 1000, 2000, 5000, 10000, 15000
A84: GS>50kW (kW) - 60, 100, 500, 1000
A85: Large User - range appropriate for utility
A86: Lighting Classes and USL - 150 kWh and 1 kW, range appropriate for utility.

Sheet App.2-W_Bill Impacts USL
N1: File Number: | O1: ='LDC Info'!$E$18 -> EB-2012-0165 | T1: 2
N2: Exhibit: | O2: 8
N3: Tab:
N4: Schedule: | O4: 8
N5: Page:
N7: Date: | O7: 2013-02-22
B10: Appendix 2-W
B11: Bill Impacts
B14: Customer Class: | D14: Unmetered Scattered Load
D16: Consumption | F16: 498 | G16: kWh
F18: Current Board-Approved | J18: Proposed | N18: Impact
D19: Charge Unit | F19: Rate | G19: Volume | H19: Charge | J19: Rate | K19: Volume | L19: Charge | N19: $ Change | O19: % Change
F20: ($) | H20: ($) | J20: ($) | L20: ($)
B21: Monthly Service Charge | D21: Monthly | F21: 21.5 | G21: 1 | H21: =G21*F21 -> 21.5 | J21: 23.56 | K21: 1 | L21: =K21*J21 -> 23.56 | N21: =L21-H21 -> 2.06 | O21: =IF((H21)=0,"",(N21/H21)) -> 0.09581395349
B22: Smart Meter Rate Adder | D22: Monthly | G22: 1 | H22: =G22*F22 -> 0 | K22: 1 | L22: =K22*J22 -> 0 | N22: =L22-H22 -> 0 | O22: =IF((H22)=0,"",(N22/H22)) -> 
B23: Smart Meter Inc Rev Req Rider | D23: Monthly | G23: 1 | H23: 0 | K23: 1 | L23: =K23*J23 -> 0 | N23: =L23-H23 -> 0 | O23: =IF((H23)=0,"",(N23/H23)) -> 
B24: Smart Meter Disposition Rider | D24: Monthly | G24: 1 | H24: 0 | K24: 1 | L24: 0 | N24: 0
G25: 1 | H25: 0 | K25: 1 | L25: 0 | N25: 0
G26: 1 | H26: 0 | K26: 1 | L26: 0 | N26: 0
B27: Distribution Volumetric Rate | D27: per kWh | F27: 0.0083 | G27: =$F$16 -> 498 | H27: 4.1334 | J27: 0.0091 | K27: =$F$16 -> 498 | L27: 4.5318 | N27: 0.3984 | O27: 0.09638554217
B28: Smart Meter Disposition Rider | G28: =$F$16 -> 498 | H28: 0 | K28: =$F$16 -> 498 | L28: 0 | N28: 0
B29: LRAM & SSM Rate Rider | G29: =$F$16 -> 498 | H29: 0 | K29: 498 | L29: 0 | N29: 0
B30: Low Voltage Rate Adder | D30: per kWh | F30: 0.0027 | G30: =$F$16 -> 498 | H30: 1.3446 | J30: 0.0031 | K30: 498 | L30: 1.5438 | N30: 0.1992 | O30: 0.1481481481
G31: 498 | H31: 0 | K31: 498 | L31: 0 | N31: 0
G32: 498 | H32: 0 | K32: 498 | L32: 0 | N32: 0
G33: 498 | H33: 0 | K33: 498 | L33: 0 | N33: 0
G34: 498 | H34: 0 | K34: 498 | L34: 0 | N34: 0
G35: 498 | H35: 0 | K35: 498 | L35: 0 | N35: 0
G36: 498 | H36: 0 | K36: 498 | L36: 0 | N36: 0
B37: Sub-Total A | H37: =SUM(H21:H36) -> 26.978 | L37: =SUM(L21:L36) -> 29.6356 | N37: 2.6576 | O37: 0.09850989695
B38: Deferral/Variance Account Disposition Rate Rider | D38: per kWh | F38: -0.0081 | G38: =$F$16 -> 498 | H38: =G38*F38 -> -4.0338 | J38: -0.0019 | K38: =$F$16 -> 498 | L38: =K38*J38 -> -0.9462 | N38: =L38-H38 -> 3.0876 | O38: =IF((H38)=0,"",(N38/H38)) -> -0.7654320988
G39: =$F$16 -> 498 | H39: =G39*F39 -> 0 | K39: =$F$16 -> 498 | L39: =K39*J39 -> 0 | N39: =L39-H39 -> 0 | O39: =IF((H39)=0,"",(N39/H39)) -> 
G40: 498 | H40: 0 | K40: 498 | L40: 0 | N40: 0
G41: 498 | H41: 0 | K41: 498 | L41: 0 | N41: 0
B42: Low Voltage Service Charge | G42: 498 | H42: =G42*F42 -> 0 | K42: 498 | L42: =K42*J42 -> 0 | N42: =L42-H42 -> 0 | O42: =IF((H42)=0,"",(N42/H42)) -> 
B43: Smart Meter Entity Charge | K43: 498 | L43: =K43*J43 -> 0 | N43: =L43-H43 -> 0
B44: Sub-Total B - Distribution (includes Sub-Total A) | H44: =SUM(H38:H42)+H37 -> 22.9442 | L44: =SUM(L38:L42)+L37 -> 28.6894 | N44: =L44-H44 -> 5.7452 | O44: =IF((H44)=0,"",(N44/H44)) -> 0.2503987936
B45: RTSR - Network | D45: per kWh | F45: 0.005 | G45: =F16*(1+F71) -> 529.9716 | H45: =G45*F45 -> 2.649858 | J45: 0.0059 | K45: =F16*(1+J71) -> 542.6706 | L45: =K45*J45 -> 3.20175654 | N45: 0.55189854 | O45: 0.2082747604
B46: RTSR - Line and Transformation Connection | D46: per kWh | F46: 0.0011 | G46: =G45 -> 529.9716 | H46: =G46*F46 -> 0.58296876 | J46: 0.0012 | K46: =K45 -> 542.6706 | L46: =K46*J46 -> 0.65120472 | N46: 0.06823596 | O46: 0.1170490851
B47: Sub-Total C - Delivery (including Sub-Total B) | H47: =SUM(H44:H46) -> 26.17702676 | L47: =SUM(L44:L46) -> 32.54236126 | N47: 6.3653345 | O47: 0.2431649155
B48: Wholesale Market Service Charge (WMSC) | D48: per kWh | F48: 0.0052 | G48: =G46 -> 529.9716 | H48: =G48*F48 -> 2.75585232 | J48: 0.0052 | K48: =K46 -> 542.6706 | L48: =K48*J48 -> 2.82188712 | N48: 0.0660348 | O48: 0.02396166134
B49: Rural and Remote Rate Protection (RRRP) | D49: per kWh | F49: 0.0011 | G49: =G46 -> 529.9716 | H49: 0.58296876 | J49: 0.0011 | K49: =K46 -> 542.6706 | L49: 0.59693766 | N49: 0.0139689 | O49: 0.02396166134
B50: Standard Supply Service Charge | D50: Monthly | F50: 0.25 | G50: 1 | H50: 0.25 | J50: 0.25 | K50: 1 | L50: 0.25 | N50: 0 | O50: 0
B51: Debt Retirement Charge (DRC) | D51: per kWh | F51: 0.007 | G51: =G49 -> 529.9716 | H51: 3.7098012 | J51: 0.007 | K51: =K49 -> 542.6706 | L51: 3.7986942 | N51: 0.088893 | O51: 0.02396166134
B52: Energy - RPP - Tier 1 | D52: per kWh | F52: 0.074 | G52: =IF($T$1=1,IF($F$16>=600,600,IF($F$16<600,$F$16*(1+$F$71),$F$16-600)),IF($T$1=2,IF($F$16>=1000,1000,IF($F$16<1000,$F$16*(1+$F$71),$F$16-1000)))) -> 529.9716 | H52: =G52*F52 -> 39.2178984 | J52: 0.074 | K52: =IF($T$1=1,IF($F$16>=600,600,IF($F$16<600,$F$16*(1+$J$71),$F$16-600)),IF($T$1=2,IF($F$16>=1000,1000,IF($F$16<1000,$F$16*(1+$J$71),$F$16-1000)))) -> 542.6706 | L52: =K52*J52 -> 40.1576244 | N52: 0.939726 | O52: 0.02396166134
B53: Energy - RPP - Tier 2 | D53: per kWh | F53: 0.087 | G53: =IF($T$1=1,IF($F$16>=600,$F$16*(1+$F$71)-600,IF($F$16<600,0,)), IF($T$1=2,IF($F$16>=1000,$F$16*(1+$F$71)-1000,IF($F$16<1000,0)))) -> 0 | H53: =G53*F53 -> 0 | J53: 0.087 | K53: =IF($T$1=1,IF($F$16>=600,$F$16*(1+$J$71)-600,IF($F$16<600,0,)), IF($T$1=2,IF($F$16>=1000,$F$16*(1+$J$71)-1000,IF($F$16<1000,0)))) -> 0 | L53: =K53*J53 -> 0 | N53: 0
B54: TOU - Off Peak | D54: per kWh | F54: 0.063 | G54: =0.64*$F$16*(1+$F$71) -> 339.181824 | H54: 21.36845491 | J54: 0.063 | K54: =0.64*$F$16*(1+$J$71) -> 347.309184 | L54: 21.88047859 | N54: 0.51202368 | O54: 0.02396166134
B55: TOU - Mid Peak | D55: per kWh | F55: 0.099 | G55: =0.18*$F$16*(1+$F$71) -> 95.394888 | H55: 9.444093912 | J55: 0.099 | K55: =0.18*$F$16*(1+$J$71) -> 97.680708 | L55: 9.670390092 | N55: 0.22629618 | O55: 0.02396166134
B56: TOU - On Peak | D56: per kWh | F56: 0.118 | G56: =0.18*$F$16*(1+$F$71) -> 95.394888 | H56: 11.25659678 | J56: 0.118 | K56: =0.18*$F$16*(1+$J$71) -> 97.680708 | L56: 11.52632354 | N56: 0.26972676 | O56: 0.02396166134
